Workbook

Sheet LDC Info
Z3: 1 | AA3: Alectra Utilities Corporation-Brampton Rate Zone
Z4: 2 | AA4: Alectra Utilities Corporation-Enersource Rate Zone
Z5: 3 | AA5: Alectra Utilities Corporation-Horizon Utilities Rate Zone
Z6: 4 | AA6: Alectra Utilities Corporation-PowerStream Rate Zone
Z7: 5 | AA7: Alectra Utilities Corporation-Guelph Rate Zone
Z8: 6 | AA8: Algoma Power Inc.
Z9: 7 | AA9: Atikokan Hydro Inc.
Z10: 8 | AA10: Bluewater Power Distribution Corporation
Z11: 9 | AA11: Brantford Power Inc.
Z12: 10 | AA12: Burlington Hydro Inc.
Z13: 11 | AA13: Canadian Niagara Power Inc.
D14: Utility Name | E14: Bluewater Power Distribution Corporation | Z14: 12 | AA14: Centre Wellington Hydro Ltd.
Z15: 13 | AA15: Chapleau Public Utilities Corporation
D16: Assigned EB Number | E16: EB-2022-0016 | Z16: 14 | AA16: Cooperative Hydro Embrun Inc.
Z17: 15 | AA17: E.L.K. Energy Inc.
D18: Name of Contact and Title | E18: Leslie Dugas | Z18: 16 | AA18: Elexicon Energy Inc.-Whitby Rate Zone
Z19: 17 | AA19: Elexicon Energy Inc.-Veridian Rate Zone
D20: Phone Number | E20: 519-337-8201 Ext 2255 | Z20: 18 | AA20: Energy+ Inc.
Z21: 19 | AA21: Entegrus Powerlines Inc.-For Entegrus-Main Rate Zone
D22: Email Address | E22: ldugas@bluewaterpower.com | Z22: 20 | AA22: Entegrus Powerlines Inc.-For Former St. Thomas Energy Rate Zone
Z23: 21 | AA23: ENWIN Utilities Ltd.
D24: Test Year | E24: 2023 | Z24: 22 | AA24: EPCOR Electricity Distribution Ontario Inc.
Z25: 23 | AA25: ERTH Power Corporation - ERTH Power Main Rate Zone
D26: Bridge Year | E26: =IF(ISBLANK(E24), "", E24-1) -> 2022 | Z26: 24 | AA26: ERTH POWER CORPORATION – GODERICH RATE ZONE
Z27: 25 | AA27: Essex Powerlines Corporation
D28: Last Rebasing Year | E28: 2013 | Z28: 26 | AA28: Festival Hydro Inc.
Z29: 27 | AA29: Fort Frances Power Corporation
A30: Identify the accounting standard used for the test year | Z30: 28 | AA30: Greater Sudbury Hydro Inc.
E31: MIFRS | Z31: 29 | AA31: Grimsby Power Incorporated
Z32: 30 | AA32: Halton Hills Hydro Inc.
A33: ="Did "& E14 &" update its depreciation and capitalization policies?" -> Did Bluewater Power Distribution Corporation update its depreciation and capitalization policies? | Z33: 31 | AA33: Hearst Power Distribution Co. Ltd.
E34: No | Z34: 32 | AA34: Hydro 2000 Inc.
Z35: 33 | AA35: Hydro Hawkesbury Inc.
A36: If "yes" to cell E34, were the changes in policies reflected in a prior rebasing application? | Z36: 34 | AA36: Hydro One Networks Inc.
E37: Yes | Z37: 35 | AA37: Hydro One Networks Inc.-Former Haldimand County Hydro Inc. Service Area
Z38: 36 | AA38: Hydro One Networks Inc.-Former Norfolk Power Distribution Inc. Service Area
A39: ="When did "&E14&" update its actual depreciation and capitalization policies?" -> When did Bluewater Power Distribution Corporation update its actual depreciation and capitalization policies? | Z39: 37 | AA39: Hydro One Networks Inc.-Former Woodstock Hydro Services Inc. Service Area
E40: 2001-01-01 | F40: 2013 | Z40: 38 | AA40: Hydro One Remote Communites Inc.
Z41: 39 | AA41: Hydro Ottawa Limited
A42: Identify the year the applicant adopted IFRS for financial reporting purposes | Z42: 40 | AA42: InnPower Corporation
E43: 2015 | Z43: 41 | AA43: Kingston Hydro Corporation
Z44: 42 | AA44: Kitchener-Wilmot Hydro Inc.
Z45: 43 | AA45: Lakefront Utilities Inc.
A46: ="Is " & E14 & " applying for cost recovery for the test and/or future year(s) for Green Energy initiatives?" -> Is Bluewater Power Distribution Corporation applying for cost recovery for the test and/or future year(s) for Green Energy initiatives? | Z46: 44 | AA46: Lakeland Power Distribution Ltd.
E47: No | Z47: 45 | AA47: Lakeland Power Distribution Ltd.-Parry Sound Service Area
Z48: 46 | AA48: London Hydro Inc.
A49: ="Is " & E14 & " an embedded distributor?" -> Is Bluewater Power Distribution Corporation an embedded distributor? | E49: Partial | Z49: 47 | AA49: Milton Hydro Distribution Inc.
Z50: 48 | AA50: Newmarket-Tay Power Distribution Ltd.-For Former Midland Power Utility Rate Zone
Z51: 49 | AA51: Newmarket-Tay Power Distribution Ltd.-For Newmarket-Tay Power Main Rate Zone
B52: Notes | Z52: 50 | AA52: Niagara Peninsula Energy Inc.
Z53: 51 | AA53: Niagara-on-the-Lake Hydro Inc.
C54: Pale green cells represent input cells. | Z54: 52 | AA54: North Bay Hydro Distribution Limited - Espanola service territory
Z55: 53 | AA55: North Bay Hydro Distribution Limited - North Bay service territory
C56: Pale blue cells represent drop-down lists. The applicant should select the appropriate item from the drop-down list. | Z56: 54 | AA56: Northern Ontario Wires Inc.
Z57: 55 | AA57: Oakville Hydro Electricity Distribution Inc.
C58: White cells contain fixed values, automatically generated values or formulae. | N58: =IF(LEN($G58)>1, (SUMPRODUCT(--($C$81:$C$1003=$C58),--($A$81:$A$1003=$D58), --($B$81:$B$1003=$B58&"_TOTAL"), $L$1:$L$889)), "") ->  | O58: =IF(LEN($G58)>1, (SUMPRODUCT(--($C$81:$C$1003=$C58),--($A$81:$A$1003=$D58), --($B$81:$B$1003=$B58&"_TOTAL"), $M$1:$M$889)), "") ->  | Z58: 56 | AA58: Orangeville Hydro Limited
Z59: 57 | AA59: Orillia Power Distribution Corporation
Z60: 58 | AA60: Oshawa PUC Networks Inc.
Z61: 59 | AA61: Ottawa River Power Corporation
Z62: 60 | AA62: Peterborough Distribution Incorporated
Z63: 61 | AA63: PUC Distribution Inc.
Z64: 62 | AA64: Renfrew Hydro Inc.
Z65: 63 | AA65: Rideau St. Lawrence Distribution Inc.
Z66: 64 | AA66: Sioux Lookout Hydro Inc.
Z67: 65 | AA67: Synergy North Corporation-Kenora Rate Zone
Z68: 66 | AA68: Synergy North Corporation-Thunder Bay Rate Zone
Z69: 67 | AA69: Tillsonburg Hydro Inc.
Z70: 68 | AA70: Toronto Hydro-Electric System Limited
Z71: 69 | AA71: Wasaga Distribution Inc.
Z72: 70 | AA72: Waterloo North Hydro Inc.
Z73: 71 | AA73: Welland Hydro-Electric System Corp.
Z74: 72 | AA74: Wellington North Power Inc.
Z75: 73 | AA75: Westario Power Inc.

Sheet Index
A15: 1 | B15: LDC Information Sheet | E15: 20 | F15: App.2-G: Service Reliability Indicators
A16: 2 | B16: Index | E16: 21 | F16: App.2-H: Other Operating Revenue (TO BE UPDATED AT THE DRAFT RATE ORDER STAGE)
A17: 3 | B17: Cost of Service Application Flowchart | E17: 22 | F17: App.2-I: Load Forecast CDM Adjustment Workform
A18: 4 | B18: List of Key References | E18: 23 | F18: App.2-IA: Load Forecast Data Instructions
A19: 5 | B19: App.2-A: List of Requested Approvals | E19: 24 | F19: App.2-IB: Actual and Forecast Load and Customer Data
A20: 6 | B20: App.2-AA: Capital Projects Table | E20: 25 | F20: App.2-JA: OM&A Summary Analysis (TO BE UPDATED AT THE DRAFT RATE ORDER STAGE)
A21: 7 | B21: App.2-AB: Capital Expenditures (TO BE UPDATED AT THE DRAFT RATE ORDER STAGE) | E21: 26 | F21: App.2-JB: Recoverable OM&A Cost Driver Table
A22: 8 | B22: App. 2-AC: Customer Engagement Worksheet | E22: 27 | F22: App.2-JC: OM&A Programs Table
A23: 9 | B23: App.2-B: General Accounting Instructions Relating to MIFRS Transition - CONTACT OEB STAFF IF TAB REQUIRED | E23: 28 | F23: App.2-JD: OM&A Programs Table
A24: 10 | B24: App.2-BA: Fixed Asset Continuity Schedule | E24: 29 | F24: App.2-L: Recoverable OM&A Cost per Customer and per FTE
A25: 11 | B25: Appendix 2-BB: Service Life Comparison | E25: 30 | F25: App.2-M: Regulatory Costs Schedule (TO BE UPDATED AT THE DRAFT RATE ORDER STAGE)
A26: 12 | B26: App.2-C_DepExp: Depreciation and Amortization Expense | E26: 31 | F26: App.2-N: Shared Services and Corporate Cost Allocation
A27: 13 | B27: App.2-D: Overhead Expenses | E27: 32 | F27: App.2-OA: Capital Structure and Cost of Capital
A28: 14 | B28: App.2-EA: Account 1575 PP&E Deferral Account (2015 IFRS Adopters) - CONTACT OEB STAFF IF TAB REQUIRED | E28: 33 | F28: App.2-OB: Debt Instruments
A29: 15 | B29: App.2-EB: Account 1576 - Accounting Changes Under CGAAP (2012 Changes) - CONTACT OEB STAFF IF TAB REQUIRED | E29: 34 | F29: App.2-Q: Cost of Serving Embedded Distributor(s)
A30: 16 | B30: App.2-EC: Account 1576 - Accounting Changes Under CGAAP (2013 Changes) - CONTACT OEB STAFF IF TAB REQUIRED | E30: 35 | F30: App.2-R: Loss Factors
A31: 17 | B31: App.2-FA: Renewable Generation Connection Investment Summary (TO BE UPDATED AT THE DRAFT RATE ORDER STAGE) | E31: 36 | F31: App.2-S: Stranded Meter Treatment- CONTACT OEB STAFF IF TAB REQUIRED
A32: 18 | B32: App.2-FB: Calculation of Renewable Generation Connection Direct Benefits/Provincial Amount: Renewable Enabling Improvement Investments (TO BE UPDATED AT THE DRAFT RATE ORDER STAGE) | E32: 37 | F32: App.2-Y: Transition to MIFRS Summary Impact - CONTACT OEB STAFF IF TAB REQUIRED
A33: 19 | B33: App.2-FC: Calculation of Renewable Generation Connection Direct Benefits/Provincial Amount: Renewable Expansion Investments (TO BE UPDATED AT THE DRAFT RATE ORDER STAGE) | E33: 38 | F33: App.2-YA: One-Time Incremental IFRS Transition Costs - CONTACT OEB STAFF IF TAB REQUIRED
E34: 39 | F34: App.2-ZA: Commodity Expense
E35: 40 | F35: App.2-ZB: Cost of Power
A42: Note: | B42: Appendices for the Tariff of Rates and Charges at Current and Proposed Rates, and for the Bill Impacts are now in a separate spreadsheet model. These appendices were formerly 2-Z and 2-W.

Sheet COS Flowchart
B4: Cost of Service Rate Application Schematic
B6: The Cost of Service Rate Application Schematic is a flowchart that is included as a guide for the components of an application. The schematic demonstrates how demand and costs interrelate to derive the revenue requirement and how the revenue requirement is allocated between classes and through fixed/variable splits to derive rates that will be compensatory for the annual revenue requirement, based on the the forecasted demand. There is no form to be filled out; therefore, this Schedule is not required to be filed.

Sheet List of Key References

Sheet App.2-A_Requested_Approvals
G1: File Number: | H1: =EBNUMBER -> EB-2022-0016
G2: Exhibit:
G3: Tab:
G4: Schedule:
G5: Page:
G7: Date: | H7: 2022-10-24
B9: Appendix 2-A
B10: List of Requested Approvals
B12: The distributor must fill out the following sheet with the complete list of specific approvals requested and relevant section(s) of the legislation must be provided. All approvals, including accounting orders (deferral and variance accounts) new rate classes, revised specific service charges or retail service charges which the applicant is seeking, must be separately identified, as well being clearly documented in the appropriate sections of the application.
B14: Additional requests may be added by copying and pasting blank input rows, as needed.
B16: If additional requests arise, or requested approvals are removed, during the processing of the application, the distributor should update this list.
B18: =CONCATENATE('LDC Info'!E14," is seeking the following approvals in this application:") -> Bluewater Power Distribution Corporation is seeking the following approvals in this application:
B20: 1 | F20: Approval of the 2023 Test Year rate base as proposed with Bluewater's average net book value of fixed assets and working capital allowance as set out in Exhibit 2 - Rate Base.
B22: 2 | D22: a | F22: Approval of the 2023 Test Year revenue requirement as proposed in Exhibit 6 - Calculation of Revenue Deficiency or Sufficiency as follows:
B24: 2 | D24: b | F24: Approval of the capital structure, cost of capital parameters, and deemed return on equity and debt proposed in Exhibit 5 - Cost of Capital and Capital Structure.
B26: 2 | D26: c | F26: Approval of test year Operations, Maintenance and Administration expenses proposed in Exhibit 4 - Operating Expenses.
B28: 2 | D28: d | F28: Approval of test year property taxes and payments in lieu of taxes (PILs) proposed in Exhibit 6 - Revenue Requirement and Revenue Deficiency / Sufficiency
B30: 2 | D30: e | F30: Approval of the 2023 Test Year Service Revenue Requirement of $27,672,099 as proposed in Exhibit 6 - Calculation of Revenue Deficiency or Sufficiency.
B32: 2 | D32: f | F32: Approval of the 2023 Revenue Offsets of $1,233,238 as proposed in Exhibit 6 - Revenue Requirement and Revenue Deficiency / Sufficiency.
B34: 2 | D34: g | F34: Approval of the 2023 Test Year Base Revenue Requirement of $26,438,861 as proposed in Exhibit 6 - Calculation of Revenue Deficiency or Sufficiency.
B36: 3 | F36: Approval of Cost Allocation as filed in Exhbit 7 - Cost Allocation.
B38: 4 | F38: Approval of 2023 distribution rates and charges, effective May 1, 2023, as proposed in Attachment 8-2 - 2023 Proposed Tariff of Rates and Charges found in Exhibit 8 - Rate Design.
B40: 5 | F40: Approval of updated Retail Transmission Service Rates (“RTSRs”), as identified in Exhibit 8 - Rate Design.
B42: 6 | D42: a | F42: Approvals for disposition of Group 1 DVA accounts as of December 31, 2021 of $721,065.88 (including Account 1589) , and associated class specific rate riders a set out in Exhibit 9 - Deferral and Variance Accounts.
B44: 6 | D44: b | F44: Approvals for the disposition of Group 2 DVA accounts of ($1,308,207), exlcuding LRAM of $794,592, as of December 31, 2021 with certain adjustments for forecasted amounts as of December 31, 2022 as set out in Exhibit 9 - Deferral and Variance Accounts.
B46: 6 | D46: c | F46: Approval for the disposition of the balance in its Lost Revenue Adjustment Mechanism Variance Account (“LRAMVA”) of $794,592, resulting from its Conservation and Demand Management (“CDM”) activities up to December 31, 2022 as identified 9.4. Lost Revenue Adjustment Mechanism Variance Account of Exhibit 9.
B48: 7 | F48: Other items or amounts that may be requested by Bluewater during the course of this proceeding, and as may be granted by the OEB.

Sheet App.2-AA_Capital Projects
N1: File Number: | O1: =EBNUMBER -> EB-2022-0016
N2: Exhibit:
N3: Tab:
N4: Schedule:
N5: Page:
N7: Date: | O7: 2023-02-13
B9: Appendix 2-AA
B10: Capital Projects Table
B13: Projects | C13: =D13-1 -> 2013 | D13: 2014 | E13: 2015 | F13: 2016 | G13: 2017 | H13: =I13-1 -> 2018 | I13: =J13-1 -> 2019 | J13: =K13-1 -> 2020 | K13: =BridgeYear - 1 -> 2021 | L13: 2022 Actual | M13: 2022 Bridge as filed | N13: =TestYear & " Test Year" -> 2023 Test Year
A14: System Access
A15: UT11 | B15: New Connections, Upgrades, Subdivisions | C15: 623701.91 | D15: 856828.9 | E15: 900248.49 | F15: 1028174 | G15: 776707 | H15: 924273 | I15: 1264310 | J15: 1246001 | K15: 1832038.11 | L15: 1733217 | M15: 2000000 | N15: 2110000
A16: M1 | B16: Single Phase Meters and Poly Phase Meters | C16: 85181 | D16: 21161.33 | E16: 35398.64 | F16: 73671 | G16: 115638 | H16: 73241 | I16: 5751 | J16: 395981 | K16: 94380.53 | L16: 95515 | M16: 100000 | N16: 104500
A17: M5 | B17: GS > 50 KW | C17: 0 | D17: 0 | E17: 0 | F17: 0 | G17: 136794 | H17: 150518 | I17: 206387 | J17: 0 | K17: 0 | L17: 0 | M17: 0 | N17: 0
A18: M7 | B18: Smart Meter Replacement ESA | C18: 0 | D18: 0 | E18: 553048.03 | F18: 27010 | G18: 0 | H18: 0 | I18: 0 | J18: 0 | K18: 0 | L18: 0 | M18: 0 | N18: 0
B19: Miscellaneous (projects under materiality) | C19: 19154 | D19: 7921.83 | E19: 30635.95 | F19: 27103 | G19: 109188 | H19: 19456 | I19: 53055 | J19: 52228 | K19: 37901.62 | L19: =14638+72152 -> 86790 | M19: 100000 | N19: 107500
B20: Sub-Total | C20: =SUM(C15:C19) -> 728036.91 | D20: =SUM(D15:D19) -> 885912.06 | E20: 1519331.11 | F20: 1155958 | G20: 1138327 | H20: 1167488 | I20: 1529503 | J20: 1694210 | K20: 1964320.26 | L20: 1915522 | M20: 2200000 | N20: 2322000
A21: System Renewal
A22: UT4 | B22: 27.6kV Neutral Program | C22: 1991.95 | D22: 43364.63 | E22: 139692.36 | F22: 64529 | G22: 0 | H22: 0 | I22: 0 | J22: 0 | K22: 0 | L22: 0 | M22: 0 | N22: 0
A23: UT5 | B23: Petrolia | C23: 24165 | D23: 64616.24 | E23: 55512.48 | F23: 138588 | G23: 41355 | H23: 38972 | I23: 338871 | J23: 5661 | K23: 156686.04 | L23: 139212 | M23: 100000 | N23: 208000
A24: UT6 | B24: Alvinston/Oil Springs Capital Items | C24: 11753 | D24: 20977.09 | E24: 12874.62 | F24: 12548 | G24: 13224 | H24: 14534 | I24: 104412 | J24: 230902 | K24: 5707.43 | L24: 28953 | M24: 100000 | N24: 20600
A25: UT7 | B25: 4KV Lines Rebuild/ Load Conversion | C25: 82455 | D25: 3415 | E25: 99241.64 | F25: 202065 | G25: 41919 | H25: 26717 | I25: 308320 | J25: 187281 | K25: 4524.86 | L25: 257512 | M25: 200000 | N25: 210000
A26: UT8 | B26: Pt Edward upgrades | C26: 22898 | D26: 8535.04 | E26: 50178.45 | F26: 39973 | G26: 92942 | H26: 285557 | I26: 30916 | J26: 74228 | K26: 82396.57 | L26: 66263 | M26: 50000 | N26: 51300
A27: UT14 | B27: Cross Arm/Cap & Pin Insulator Replacement Program | C27: 75063 | D27: 133907.27 | E27: 182129.41 | F27: 183116 | G27: 189407 | H27: 114276 | I27: 62235 | J27: 184601 | K27: 155826.39 | L27: 98172 | M27: 150000 | N27: 153000
A28: UT15 | B28: Wood Pole Replacement Program | C28: 192531 | D28: 180841.47 | E28: 784501.3 | F28: 1151248 | G28: 1911268 | H28: 1706437 | I28: 2040526 | J28: 2316330 | K28: 1563009.97 | L28: 2076665 | M28: 1900000 | N28: 1957000
A29: UT16 | B29: Watford | C29: 18611 | D29: 10013.15 | E29: 51339.64 | F29: 50508 | G29: 50975 | H29: 7088 | I29: 47904 | J29: 37891 | K29: 62942.86 | L29: 94484 | M29: 100000 | N29: 208000
A30: UT18 | B30: Unforeseen Capital Fund | C30: 185397 | D30: 350105.77 | E30: 120327.96 | F30: 226522 | G30: 180328 | H30: 262327 | I30: 190325 | J30: 85072 | K30: 140876.44 | L30: 183466 | M30: 200000 | N30: 175000
A31: UT22 | B31: 8 kv Load Conversion | C31: 69534 | D31: 40386.54 | E31: 298385.38 | F31: 163364 | G31: 129147 | H31: 0 | I31: 256060 | J31: 0 | K31: 0 | L31: 0 | M31: 0 | N31: 372500
A32: UT24 | B32: Storm Restoration | C32: 275997.91 | D32: 200803.21 | E32: 163721.11 | F32: 209932 | G32: 256390 | H32: 212537 | I32: 311998 | J32: 235969 | K32: 568753.06 | L32: 214550 | M32: 350000 | N32: 385000
A33: UT26 | B33: Primary Underground Cable Replacements | C33: 320683 | D33: 179592.94 | E33: 229915.7 | F33: 183671 | G33: 172484 | H33: 539468 | I33: 136001 | J33: 164590 | K33: 42320.86 | L33: 348676 | M33: 300000 | N33: 322000
A34: UT31 | B34: Pad Mount Transformer Replacements | C34: 58475 | D34: 52777.45 | E34: 64389.9 | F34: 85891 | G34: 45143 | H34: 74475 | I34: 21224 | J34: 38433 | K34: 11672.28 | L34: 34446 | M34: 192000 | N34: 82500
A35: UT34 | B35: 27.6kV Lines Upgrades | C35: 9084 | D35: 134870.36 | E35: 72814.79 | F35: 357686 | G35: 109055 | H35: 13211 | I35: 10085 | J35: 0 | K35: 29326.12 | L35: 0 | M35: 0 | N35: 0
A36: UT35 | B36: Substation Transformer Replacements | C36: 126737.22 | D36: 0 | E36: 0 | F36: 0 | G36: 0 | H36: 0 | I36: 0 | J36: 0 | K36: 153980.4 | L36: 0 | M36: 0 | N36: 0
A37: UT36 | B37: Downtown Secondary Network Cable Replacement | C37: 0 | D37: 0 | E37: 0 | F37: 0 | G37: 0 | H37: 0 | I37: 115921 | J37: 498990 | K37: 129017.1 | L37: 226776 | M37: 350000 | N37: 0
A38: UT37 | B38: Pole Line Scott Rd./Tashmoo Ave | C38: 0 | D38: 0 | E38: 196022.15 | F38: 74145 | G38: 0 | H38: 0 | I38: 0 | J38: 0 | K38: 0 | L38: 0 | M38: 0 | N38: 0
A39: UT47 | B39: Emergency Transformer Replacement | C39: 0 | D39: 0 | E39: 236735.07 | F39: 308029 | G39: 297897 | H39: 217559 | I39: 230866 | J39: 253558 | K39: 243556.52 | L39: 473281 | M39: 250000 | N39: 262500
A40: UT48 | B40: Emergency Primary Line Replacement | C40: 0 | D40: 0 | E40: 85770.77 | F40: 49353 | G40: 22321 | H40: 190910 | I40: 57874 | J40: 95998 | K40: 92894.65 | L40: 388570 | M40: 80000 | N40: 83500
A41: UT52 | B41: Delta/Wye Services | C41: 0 | D41: 0 | E41: 0 | F41: 0 | G41: 0 | H41: 0 | I41: 153904 | J41: 0 | K41: 0 | L41: 0 | M41: 0 | N41: 0
A42: UT53 | B42: 1F8 Lead Cable Elimination | C42: 0 | D42: 0 | E42: 0 | F42: 0 | G42: 0 | H42: 0 | I42: 429400 | J42: 2146 | K42: 6531.11 | L42: 0 | M42: 0 | N42: 0
A43: UT59 | B43: Front St. Pole Line Re-build | C43: 0 | D43: 0 | E43: 0 | F43: 0 | G43: 0 | H43: 175173 | I43: 0 | J43: 0 | K43: 0 | L43: 0 | M43: 0 | N43: 0
A44: UT60 | B44: Vault 'K' on George St. - Concrete Lid/Panel Replacement | C44: 0 | D44: 0 | E44: 0 | F44: 0 | G44: 0 | H44: 9128 | I44: 160118 | J44: 0 | K44: 0 | L44: 0 | M44: 0 | N44: 0
A45: UT63 | B45: Indian Rd. S. to Plank Rd. - Pole Line Rebuild | C45: 0 | D45: 0 | E45: 0 | F45: 0 | G45: 0 | H45: 315775 | I45: -1139 | J45: 0 | K45: 0 | L45: 0 | M45: 0 | N45: 0
A46: UT71 | B46: PCB Tx Replacement | C46: 0 | D46: 0 | E46: 0 | F46: 0 | G46: 0 | H46: 0 | I46: 0 | J46: 0 | K46: 27793.2 | L46: 199338 | M46: 150000 | N46: 157500
A47: UT72 | B47: St. Clair Parkway in Sarnia (North of LaSalle Line) | C47: 0 | D47: 0 | E47: 0 | F47: 0 | G47: 0 | H47: 0 | I47: 0 | J47: 0 | K47: 0 | L47: 0 | M47: 0 | N47: 262500
A48: UT73 | B48: Albany Substation breaker upgrade | C48: 0 | D48: 0 | E48: 0 | F48: 0 | G48: 0 | H48: 0 | I48: 0 | J48: 0 | K48: 0 | L48: 0 | M48: 0 | N48: 210000
A49: UT74 | B49: 4kV System Upgrades | C49: 0 | D49: 0 | E49: 0 | F49: 0 | G49: 0 | H49: 0 | I49: 0 | J49: 0 | K49: 0 | L49: 0 | M49: 0 | N49: 817500
A50: UT75 | B50: Progress Drive Substation Upgrade | C50: 0 | D50: 0 | E50: 0 | F50: 0 | G50: 0 | H50: 0 | I50: 0 | J50: 0 | K50: 0 | L50: 379260 | M50: 300000 | N50: 0
A51: UT76 | B51: Downtown Switch Replacement | C51: 0 | D51: 0 | E51: 0 | F51: 0 | G51: 0 | H51: 0 | I51: 0 | J51: 0 | K51: 0 | L51: 0 | M51: 75000 | N51: 131300
A52: UT21 | B52: 27.6 Kv Feeder Extensions | C52: 207122.41 | D52: 5525 | E52: 371342.63 | F52: 284250 | G52: 10358 | H52: 0 | I52: 1905 | J52: 0 | K52: 0 | L52: 187416 | M52: 250000 | N52: 372500
B53: Miscellaneous | C53: 169729.62 | D53: 246300.26 | E53: 110783.55 | F53: 80871 | G53: 39559 | H53: 169400 | I53: 95205 | J53: 94719 | K53: 62799.16 | L53: =23315+1391+176353+4636+537+9810+27790 -> 243832 | M53: 195000 | N53: 217000
B54: Sub-Total | C54: =SUM(C22:C53) -> 1852228.11 | D54: =SUM(D22:D53) -> 1676031.42 | E54: 3325678.91 | F54: 3866289 | G54: 3603772 | H54: 4373544 | I54: 5102931 | J54: 4506369 | K54: 3540615.02 | L54: 5640872 | M54: 5292000 | N54: 6659200
A55: System Service
A56: UT25 | B56: Remote Load Break Switches | C56: 86731.82 | D56: 6078.65 | E56: 130503.65 | F56: 110405 | G56: 76595 | H56: 82948 | I56: 82205 | J56: 61661 | K56: 111160.12 | L56: 62571 | M56: 90000 | N56: 96500
A57: UT28 | B57: Asset Condition Assessment (feeder & substn) | C57: 78184 | D57: 185330.43 | E57: 138354.62 | F57: 155300 | G57: 158865 | H57: 142095 | I57: 149720 | J57: 137223 | K57: 150245.2 | L57: 34766 | M57: 150000 | N57: 0
A58: UT67 | B58: Petrolia Wanstead TS | C58: 0 | D58: 0 | E58: 35000 | F58: 350000 | G58: 350000 | H58: 455000 | I58: 0 | J58: 0 | K58: 0 | L58: 0 | M58: 0 | N58: 0
A59: 0 | B59: Telecommunications - Operations | C59: 0 | D59: 0 | E59: 0 | F59: 0 | G59: 0 | H59: 0 | I59: 0 | J59: 0 | K59: 0 | L59: 0 | M59: 0 | N59: 375000
B60: Miscellaneous | C60: 154657.44 | D60: 212378.16 | E60: 67433.37 | F60: 108916 | G60: 0 | H60: 109541 | I60: 14406 | J60: 102009 | K60: 104518.19 | L60: =128767+0+5295 -> 134062 | M60: 120000 | N60: 42900
B61: Sub-Total | C61: =SUM(C56:C60) -> 319573.26 | D61: 403787.24 | E61: 371291.64 | F61: 724621 | G61: 585460 | H61: 789584 | I61: 246331 | J61: 300893 | K61: 365923.51 | L61: 231399 | M61: 360000 | N61: 514400
A62: General Plant
A63: UT1 | B63: Substation Building | C63: 27594.67 | D63: 28503.21 | E63: 22605.89 | F63: 51956 | G63: 165347 | H63: 92891 | I63: 31240 | J63: 4850 | K63: 16850 | L63: 31885 | M63: 75000 | N63: 82500
A64: UT10 | B64: Vehicle Replacement | C64: 430500 | D64: 63299.94 | E64: 77429.52 | F64: 491583 | G64: 1080380 | H64: 551622 | I64: 281054 | J64: 996818 | K64: 514835.77 | L64: =528007+118844 -> 646851 | M64: 730000 | N64: 270000
A65: UT12 | B65: Transformers | C65: 80165.8 | D65: 80004.4 | E65: 55622.04 | F65: 18513 | G65: 141354 | H65: 36822 | I65: 247427 | J65: 63918 | K65: 207063.86 | L65: 485126 | M65: 150000 | N65: 165000
A66: UT19 | B66: Service Centre | C66: 465404.18 | D66: 89295.2 | E66: 47284.28 | F66: 61861 | G66: 80100 | H66: 87198 | I66: 193164 | J66: 187543 | K66: 659469.08 | L66: 243079 | M66: 200000 | N66: 150000
A67: UT39 | B67: Operations Technology Systems Workflow | C67: 2000.8 | D67: 90919.17 | E67: 137540.81 | F67: 0 | G67: 0 | H67: 0 | I67: 0 | J67: 0 | K67: 0 | L67: 0 | M67: 0 | N67: 0
A68: UT68 | B68: Substation #1 Restoration | C68: 0 | D68: 0 | E68: 303485.76 | F68: 13050 | G68: 438 | H68: 0 | I68: 0 | J68: 0 | K68: 0 | L68: 0 | M68: 0 | N68: 0
A69: UT70 | B69: Decommission Municipal Substation #20 | C69: 0 | D69: 0 | E69: 0 | F69: 0 | G69: 0 | H69: 0 | I69: 0 | J69: 0 | K69: 85688.94 | L69: 21575 | M69: 150000 | N69: 0
A70: IT1 | B70: Data Centre Lifecycle | C70: 409122 | D70: 268064.86 | E70: 95159.92 | F70: 109888.39 | G70: 78026 | H70: 108752 | I70: 306220 | J70: 569290 | K70: 396339.17 | L70: 425224 | M70: 290000 | N70: 185000
A71: IT2 | B71: Computer Infrastructure Lifecycle | C71: 110457 | D71: 109281.49 | E71: 130974.26 | F71: 117126.19 | G71: 153966 | H71: 210443 | I71: 270811 | J71: 211994 | K71: 175649.49 | L71: 293713 | M71: 200000 | N71: 200000
A72: IT3 | B72: Corporate IT Security | C72: 19408 | D72: 71983.13 | E72: 15266.57 | F72: 141100.38 | G72: 86285 | H72: 137943 | I72: 344624 | J72: 203877 | K72: 160318.04 | L72: 174880 | M72: 240000 | N72: 220000
A73: IT4 | B73: Internal Technology Development | C73: 195053 | D73: 338697.35 | E73: 287977.2 | F73: 259303.4 | G73: 313973 | H73: 346005 | I73: 311763 | J73: 344802 | K73: 372210.02 | L73: =430955-40000 -> 390955 | M73: 390000 | N73: 425000
A74: IT5 | B74: Legislated Business Application Upgrades | C74: 189750 | D74: 6277.57 | E74: 157017.07 | F74: 223653.86 | G74: 119285 | H74: 132652 | I74: 137043 | J74: 118684 | K74: 80364.59 | L74: 172932 | M74: 250000 | N74: 300000
A75: IT6 | B75: Software-Upgrades and Additions | C75: 220044 | D75: 65737.51 | E75: 28136.15 | F75: 275625.05 | G75: 54689 | H75: 36267 | I75: 111224 | J75: 136359 | K75: 210174.16 | L75: 162530 | M75: 110000 | N75: 110000
A76: IT8 | B76: SCADA / ODS / OMS / GIS | C76: 111428 | D76: 120118.62 | E76: 264124.68 | F76: 205617.57 | G76: 61993 | H76: 0 | I76: 0 | J76: 0 | K76: 0 | L76: 0 | M76: 0 | N76: 0
A77: IT9 | B77: Disaster Recovery Plan Upgrade Phase I,II,III | C77: 42290 | D77: 215542.6 | E77: 12275.48 | F77: 105510.53 | G77: 7302 | H77: 33488 | I77: 58430 | J77: 37058 | K77: 35716 | L77: 192681 | M77: 150000 | N77: 158000
A78: IT33 | B78: Utilismart RSVA Utility Data Hub (ODS) | C78: 0 | D78: 0 | E78: 0 | F78: 0 | G78: 0 | H78: 0 | I78: 125035 | J78: 43823 | K78: 13429.63 | L78: 0 | M78: 0 | N78: 0
A79: IT34 | B79: Sub 1 Datacentre Expansion | C79: 0 | D79: 0 | E79: 0 | F79: 0 | G79: 0 | H79: 465234 | I79: 0 | J79: 0 | K79: 0 | L79: 0 | M79: 0 | N79: 0
A80: IT35 | B80: Business Technology Improvements | C80: 0 | D80: 0 | E80: 0 | F80: 0 | G80: 0 | H80: 0 | I80: 0 | J80: 0 | K80: 0 | L80: 217402 | M80: 280000 | N80: 435000
B81: Vacant Land | C81: 0 | D81: 0 | E81: 0 | F81: 0 | G81: 0 | H81: 0 | I81: 0 | J81: 0 | K81: 0 | M81: 900000 | N81: 900000
A82: O6 | B82: CN Land Rights | D82: 160000
B83: Miscellaneous | C83: 202410.09 | D83: 81365.75 | E83: 55111.63 | F83: 224327.92 | G83: 193617 | H83: 123382 | I83: 218020 | J83: 142730 | K83: 208272.05 | L83: =92883+3544+0+25433+22451+2 -> 144313 | M83: 185000 | N83: 176000
B84: Sub-Total | C84: =SUM(C63:C83) -> 2505627.54 | D84: =SUM(D63:D83) -> 1789090.8 | E84: 1690011.26 | F84: 2299116.29 | G84: 2536755 | H84: 2362699 | I84: 2636055 | J84: 3061746 | K84: 3136380.8 | L84: 3603146 | M84: 4300000 | N84: 3776500
B85: Total | C85: =SUM(C84+C61+C54+C20) -> 5405465.82 | D85: 4754821.52 | E85: 6906312.92 | F85: 8045984.29 | G85: 7864314 | H85: 8693315 | I85: 9514820 | J85: 9563218 | K85: 9007239.59 | L85: 11390939 | M85: 12152000 | N85: 13272100
B86: Less Renewable Generation Facility Assets and Other Non-Rate-Regulated Utility Assets (input as negative)
B87: Total | C87: =C85-C86 -> 5405465.82 | D87: =D85-D86 -> 4754821.52 | E87: 6906312.92 | F87: 8045984.29 | G87: 7864314 | H87: 8693315 | I87: 9514820 | J87: 9563218 | K87: 9007239.59 | L87: 11390939 | M87: 12152000 | N87: 13272100
B90: Reconciliation:
B91: Per above: | C91: =+C87 -> 5405465.82 | D91: =+D87 -> 4754821.52 | E91: 6906312.92 | F91: 8045984.29 | G91: 7864314 | H91: 8693315 | I91: 9514820 | J91: 9563218 | K91: 9007239.59 | L91: 11390939 | M91: 12152000 | N91: 13272100
B92: Add smart grid | C92: 0 | D92: 0 | E92: 260289 | F92: 44385 | G92: 20206 | H92: 34467 | I92: 7791 | J92: 0 | K92: 0 | L92: 0 | M92: 0 | N92: 0
B93: Misc adjustments | C93: 0 | D93: -49331 | E93: 0 | F93: 0 | G93: 0 | H93: 0 | I93: 1008 | J93: 0 | K93: 2477 | L93: 0 | M93: 0 | N93: 0
B94: Add increase in Account 1995 | C94: -537827 | D94: -221296 | E94: n/a | F94: n/a | G94: n/a | H94: n/a | I94: n/a | J94: n/a | K94: n/a | L94: n/a | M94: n/a | N94: n/a
B95: Change in inventory capitalized | C95: 100867 | D95: 71716 | E95: 64975 | F95: 327110 | G95: -110183 | H95: 190854 | I95: 120190 | J95: 174373 | K95: 372781 | L95: =+'App.2-BA_Fixed Asset Cont'!E1027 -> -43351 | M95: 0
B96: Remove meals included in above | C96: -3449 | D96: -3421 | E96: -9506 | F96: -4839 | G96: -9172 | H96: -10683 | I96: -18199 | J96: -9058 | K96: -12744 | L96: -5905 | M96: 0 | N96: 0
B97: Agrees to audited FS | C97: =SUM(C91:C96) -> 4965056.82 | D97: 4552489.52 | E97: 7222070.92 | F97: 8412640.29 | G97: 7765165 | H97: 8907953 | I97: 9625610 | J97: 9728533 | K97: 9369753.59 | L97: 11341683 | M97: 12152000 | N97: =SUM(N91:N96) -> 13272100
B98: Remove change in CWIP | C98: -70701 | D98: -653288 | E98: 419818 | F98: -513729 | G98: -57840 | H98: 333723 | I98: -66633 | J98: 150341 | K98: -329801 | L98: 697886 | M98: 0
B99: Add increase in Account 2440 | C99: n/a | D99: n/a | E99: -360407 | F99: -272609 | G99: -204153 | H99: -364309 | I99: -330870 | J99: -481627.5 | K99: -229470 | L99: -929669 | M99: -1000000 | N99: -1000000
B100: Remove non-utility asset | C100: -33157 | D100: 4731 | E100: 0 | F100: -68999 | G100: 0 | H100: 0 | J100: 0 | L100: 0 | M100: 0
B101: Agrees to Appendix 2-BA | C101: =SUM(C97:C100) -> 4861198.82 | D101: =SUM(D97:D100) -> 3903932.52 | E101: 7281481.92 | F101: 7557303.29 | G101: 7503172 | H101: 8877367 | I101: 9228107 | J101: 9397246.5 | K101: 8810482.59 | L101: 11109900 | M101: 11152000 | N101: 12272100
C103: =+'App.2-BA_Fixed Asset Cont'!E151 -> 4861199 | D103: =+'App.2-BA_Fixed Asset Cont'!E233 -> 3903933 | E103: =+'App.2-BA_Fixed Asset Cont'!E405 -> 7281482 | F103: =+'App.2-BA_Fixed Asset Cont'!E495 -> 7557303 | G103: =+'App.2-BA_Fixed Asset Cont'!E585 -> 7503172 | H103: =+'App.2-BA_Fixed Asset Cont'!E675 -> 8877367 | I103: =+'App.2-BA_Fixed Asset Cont'!E765 -> 9228107 | J103: =+'App.2-BA_Fixed Asset Cont'!E855 -> 9397246.37 | K103: =+'App.2-BA_Fixed Asset Cont'!E945 -> 8810483.02 | L103: =+'App.2-BA_Fixed Asset Cont'!E1035 -> 11283229
B107: Notes:
B109: 1 Please provide a breakdown of the major components of each capital project undertaken in each year. Please ensure that all projects below the materiality threshold are included in the miscellaneous line. Add more projects as required.
B110: 2 The applicant should group projects appropriately and avoid presentations that result in classification of significant components of the capital budget in the miscellaneous category.

Sheet App.2-AB_Capital Expenditures
AH1: File Number: | AJ1: =EBNUMBER -> EB-2022-0016
AH2: Exhibit:
AH3: Tab:
AH4: Schedule:
A5: TO BE UPDATED AT THE DRAFT RATE ORDER STAGE | AH5: Page:
AH7: Date: | AJ7: 2023-02-13
A9: Appendix 2-AB
A10: Table 2 - Capital Expenditure Summary from Chapter 5 Consolidated Distribution System Plan Filing Requirements
A11: First year of Forecast Period:
A12: =TestYear -> 2023
A13: CATEGORY | B13: Historical Period (previous plan1 & actual) | AF13: Forecast Period (planned)
B14: =E14-1 -> 2013 | E14: =H14-1 -> 2014 | H14: =K14-1 -> 2015 | K14: =N14-1 -> 2016 | N14: =Q14-1 -> 2017 | Q14: =T14-1 -> 2018 | T14: =W14-1 -> 2019 | W14: =Z14-1 -> 2020 | Z14: =AC14-1 -> 2021 | AC14: =AF14-1 -> 2022 | AF14: =A12 -> 2023 | AG14: =AF14+1 -> 2024 | AH14: =AG14+1 -> 2025 | AI14: =AH14+1 -> 2026 | AJ14: =AI14+1 -> 2027
B15: Plan | C15: Actual | D15: Var | E15: Plan | F15: Actual | G15: Var | H15: Plan | I15: Actual | J15: Var | K15: Plan | L15: Actual | M15: Var | N15: Plan | O15: Actual | P15: Var | Q15: Plan | R15: Actual | S15: Var | T15: Plan | U15: Actual | V15: Var | W15: Plan | X15: Actual | Y15: Var | Z15: Plan | AA15: Actual | AB15: Var | AC15: Plan | AD15: Actual2 | AE15: Var
B16: $ '000 | D16: % | E16: $ '000 | G16: % | H16: $ '000 | J16: % | K16: $ '000 | M16: % | N16: $ '000 | P16: % | Q16: $ '000 | S16: % | T16: $ '000 | V16: % | W16: $ '000 | Y16: % | Z16: $ '000 | AB16: % | AC16: $ '000 | AE16: % | AF16: $ '000
A17: System Access | B17: 1250 | C17: 728 | D17: =IF(ISERROR((C17-B17)/B17),"--",(C17-B17)/B17) -> -0.4176 | E17: 785 | F17: 886 | G17: =IF(ISERROR((F17-E17)/E17),"--",(F17-E17)/E17) -> 0.1286624204 | H17: 958 | I17: 1519 | J17: =IF(ISERROR((I17-H17)/H17),"--",(I17-H17)/H17) -> 0.5855949896 | K17: 1230 | L17: 1156 | M17: =IF(ISERROR((L17-K17)/K17),"--",(L17-K17)/K17) -> -0.06016260163 | N17: 1252 | O17: 1138 | P17: =IF(ISERROR((O17-N17)/N17),"--",(O17-N17)/N17) -> -0.0910543131 | Q17: 1115 | R17: 1167 | S17: =IF(ISERROR((R17-Q17)/Q17),"--",(R17-Q17)/Q17) -> 0.0466367713 | T17: 1200 | U17: 1530 | V17: =IF(ISERROR((U17-T17)/T17),"--",(U17-T17)/T17) -> 0.275 | W17: 1050 | X17: 1694 | Y17: =IF(ISERROR((X17-W17)/W17),"--",(X17-W17)/W17) -> 0.6133333333 | Z17: 1400 | AA17: 1964 | AB17: =IF(ISERROR((AA17-Z17)/Z17),"--",(AA17-Z17)/Z17) -> 0.4028571429 | AC17: 2200 | AD17: 1916 | AE17: =IF(ISERROR((AD17-AC17)/AC17),"--",(AD17-AC17)/AC17) -> -0.1290909091 | AF17: 2322 | AG17: 2446 | AH17: 2520 | AI17: 2595 | AJ17: 2642
A18: System Renewal | B18: 2035 | C18: 1852 | D18: =IF(ISERROR((C18-B18)/B18),"--",(C18-B18)/B18) -> -0.08992628993 | E18: 2392 | F18: 1676 | G18: =IF(ISERROR((F18-E18)/E18),"--",(F18-E18)/E18) -> -0.2993311037 | H18: 2480 | I18: 3326 | J18: =IF(ISERROR((I18-H18)/H18),"--",(I18-H18)/H18) -> 0.3411290323 | K18: 3686 | L18: 3866 | M18: =IF(ISERROR((L18-K18)/K18),"--",(L18-K18)/K18) -> 0.04883342377 | N18: 3697 | O18: 3604 | P18: =IF(ISERROR((O18-N18)/N18),"--",(O18-N18)/N18) -> -0.02515553151 | Q18: 4895 | R18: 4374 | S18: =IF(ISERROR((R18-Q18)/Q18),"--",(R18-Q18)/Q18) -> -0.1064351379 | T18: 5340 | U18: 5103 | V18: =IF(ISERROR((U18-T18)/T18),"--",(U18-T18)/T18) -> -0.04438202247 | W18: 5290 | X18: 4506 | Y18: =IF(ISERROR((X18-W18)/W18),"--",(X18-W18)/W18) -> -0.1482041588 | Z18: 5370 | AA18: 3541 | AB18: =IF(ISERROR((AA18-Z18)/Z18),"--",(AA18-Z18)/Z18) -> -0.3405959032 | AC18: 5292 | AD18: 5641 | AE18: =IF(ISERROR((AD18-AC18)/AC18),"--",(AD18-AC18)/AC18) -> 0.06594860166 | AF18: 6659 | AG18: 5900 | AH18: 5244 | AI18: 5401 | AJ18: 5520
A19: System Service | B19: 311 | C19: 320 | D19: 0.02893890675 | E19: 613 | F19: 404 | G19: -0.3409461664 | H19: 367 | I19: 371 | J19: 0.01089918256 | K19: 1118 | L19: 725 | M19: -0.3515205725 | N19: 719 | O19: 585 | P19: -0.1863699583 | Q19: 775 | R19: 790 | S19: 0.01935483871 | T19: 260 | U19: 246 | V19: -0.05384615385 | W19: 350 | X19: 301 | Y19: -0.14 | Z19: 410 | AA19: 366 | AB19: -0.1073170732 | AC19: 360 | AD19: 231 | AE19: -0.3583333333 | AF19: 514 | AG19: 194 | AH19: 200 | AI19: 206 | AJ19: 211
A20: General Plant | B20: 2871 | C20: 2506 | D20: -0.127133403 | E20: 2741 | F20: 1789 | G20: -0.3473184969 | H20: 3300 | I20: 1690 | J20: -0.4878787879 | K20: 2441 | L20: 2299 | M20: -0.05817287997 | N20: 3181 | O20: 2537 | P20: -0.2024520591 | Q20: 2432 | R20: 2363 | S20: -0.02837171053 | T20: 3099 | U20: 2636 | V20: -0.1494030332 | W20: 3292 | X20: 3062 | Y20: -0.06986634265 | Z20: 3660 | AA20: 3136 | AB20: -0.1431693989 | AC20: 4300 | AD20: 3603 | AE20: -0.1620930233 | AF20: =2877+900 -> 3777 | AG20: 3170 | AH20: 3630 | AI20: 3903 | AJ20: 4257
A21: TOTAL EXPENDITURE | B21: =SUM(B17:B20) -> 6467 | C21: =SUM(C17:C20) -> 5406 | D21: -0.1640637081 | E21: =SUM(E17:E20) -> 6531 | F21: =SUM(F17:F20) -> 4755 | G21: -0.2719338539 | H21: =SUM(H17:H20) -> 7105 | I21: =SUM(I17:I20) -> 6906 | J21: -0.02800844476 | K21: =SUM(K17:K20) -> 8475 | L21: =SUM(L17:L20) -> 8046 | M21: -0.05061946903 | N21: =SUM(N17:N20) -> 8849 | O21: =SUM(O17:O20) -> 7864 | P21: -0.1113120127 | Q21: =SUM(Q17:Q20) -> 9217 | R21: =SUM(R17:R20) -> 8694 | S21: -0.05674297494 | T21: 9899 | U21: 9515 | V21: -0.03879179715 | W21: 9982 | X21: 9563 | Y21: -0.041975556 | Z21: 10840 | AA21: 9007 | AB21: -0.169095941 | AC21: 12152 | AD21: 11391 | AE21: -0.06262343647 | AF21: 13272 | AG21: 11710 | AH21: 11594 | AI21: 12105 | AJ21: =SUM(AJ17:AJ20) -> 12630
A22: Capital Contributions | C22: 538 | D22: -- | F22: 221 | G22: -- | I22: 360 | J22: -- | L22: 273 | M22: -- | O22: 204 | P22: -- | R22: 364 | S22: -- | U22: 331 | V22: -- | X22: 482 | Y22: -- | AA22: 229 | AB22: -- | AC22: 1000 | AD22: 930 | AE22: -0.07 | AF22: 1000 | AG22: 1000 | AH22: 1000 | AI22: 1000 | AJ22: 1000
A23: Net Capital Expenditures | B23: =B21-B22 -> 6467 | C23: =C21-C22 -> 4868 | D23: -0.2472552961 | E23: =E21-E22 -> 6531 | F23: =F21-F22 -> 4534 | G23: -0.3057724698 | H23: =H21-H22 -> 7105 | I23: =I21-I22 -> 6546 | J23: -0.07867698804 | K23: =K21-K22 -> 8475 | L23: 7773 | M23: -0.08283185841 | N23: =N21-N22 -> 8849 | O23: 7660 | P23: -0.134365465 | Q23: =Q21-Q22 -> 9217 | R23: 8330 | S23: -0.09623521753 | T23: =T21-T22 -> 9899 | U23: 9184 | V23: -0.07222951813 | W23: =W21-W22 -> 9982 | X23: =X21-X22 -> 9081 | Y23: -0.09026247245 | Z23: =Z21-Z22 -> 10840 | AA23: =AA21-AA22 -> 8778 | AB23: -0.1902214022 | AC23: =AC21-AC22 -> 11152 | AD23: =AD21-AD22 -> 10461 | AE23: -0.06196197991 | AF23: =AF21-AF22 -> 12272 | AG23: =AG21-AG22 -> 10710 | AH23: 10594 | AI23: 11105 | AJ23: 11630
A24: System O&M | C24: 3696.81284 | D24: -- | F24: 3718 | G24: -- | I24: 3972 | J24: -- | L24: 3997 | M24: -- | O24: 4113 | P24: -- | R24: 4621 | S24: -- | U24: 4152 | V24: -- | X24: 4137 | Y24: -- | AA24: 4603 | AB24: -- | AC24: 5773.526 | AD24: 4602 | AE24: -0.2029134363 | AF24: 6490.487 | AG24: 6685.20161 | AH24: 6885.757658 | AI24: 7092.330388 | AJ24: 7305.1003
A26: Notes to the Table:
A27: 1. Historical “previous plan” data is not required unless a plan has previously been filed. However, use the last OEB-approved, at least on a Total (Capital) Expenditure basis for the last cost of service rebasing year, and the applicant should include their planned budget in each subsequent historical year up to and including the Bridge Year.
A28: 2. Indicate the number of months of 'actual' data included in the last year of the Historical Period (normally a 'bridge' year):
A30: Explanatory Notes on Variances (complete only if applicable)
A31: Notes on shifts in forecast vs. historical budgets by category
A32: Note 2 - 2022 'Actual' contains budget figures only
A34: Notes on year over year Plan vs. Actual variances for Total Expenditures
A37: Notes on Plan vs. Actual variance trends for individual expenditure categories

Sheet Hidden_CAPEX (hidden)
A1: Utility Name | B1: EB Number | C1: Test Year | D1: Bridge Year | E1: Last Rebasing Year | F1: Category | G1: Year | H1: Plan | I1: Actual
A2: ='LDC Info'!$E$14 -> Bluewater Power Distribution Corporation | B2: =EBNUMBER -> EB-2022-0016 | C2: =TestYear -> 2023 | D2: =BridgeYear -> 2022 | E2: =RebaseYear -> 2013 | F2: System Access | G2: ='App.2-AB_Capital Expenditures'!E14 -> 2014 | H2: ='App.2-AB_Capital Expenditures'!E17 -> 785 | I2: ='App.2-AB_Capital Expenditures'!F17 -> 886
A3: ='LDC Info'!$E$14 -> Bluewater Power Distribution Corporation | B3: EB-2022-0016 | C3: 2023 | D3: 2022 | E3: 2013 | F3: System Renewal | G3: ='App.2-AB_Capital Expenditures'!E14 -> 2014 | H3: ='App.2-AB_Capital Expenditures'!E18 -> 2392 | I3: ='App.2-AB_Capital Expenditures'!F18 -> 1676
A4: ='LDC Info'!$E$14 -> Bluewater Power Distribution Corporation | B4: EB-2022-0016 | C4: 2023 | D4: 2022 | E4: 2013 | F4: System Service | G4: ='App.2-AB_Capital Expenditures'!E14 -> 2014 | H4: ='App.2-AB_Capital Expenditures'!E19 -> 613 | I4: ='App.2-AB_Capital Expenditures'!F19 -> 404
A5: ='LDC Info'!$E$14 -> Bluewater Power Distribution Corporation | B5: EB-2022-0016 | C5: 2023 | D5: 2022 | E5: 2013 | F5: General Plant | G5: ='App.2-AB_Capital Expenditures'!E14 -> 2014 | H5: ='App.2-AB_Capital Expenditures'!E20 -> 2741 | I5: ='App.2-AB_Capital Expenditures'!F20 -> 1789
A6: ='LDC Info'!$E$14 -> Bluewater Power Distribution Corporation | B6: EB-2022-0016 | C6: 2023 | D6: 2022 | E6: 2013 | F6: Total Expenditure | G6: ='App.2-AB_Capital Expenditures'!E14 -> 2014 | H6: ='App.2-AB_Capital Expenditures'!E21 -> 6531 | I6: ='App.2-AB_Capital Expenditures'!F21 -> 4755
A7: ='LDC Info'!$E$14 -> Bluewater Power Distribution Corporation | B7: EB-2022-0016 | C7: 2023 | D7: 2022 | E7: 2013 | F7: Capital Contributions | G7: ='App.2-AB_Capital Expenditures'!E14 -> 2014 | H7: ='App.2-AB_Capital Expenditures'!E22 -> 0 | I7: ='App.2-AB_Capital Expenditures'!F22 -> 221
A8: ='LDC Info'!$E$14 -> Bluewater Power Distribution Corporation | B8: EB-2022-0016 | C8: 2023 | D8: 2022 | E8: 2013 | F8: Net Capital Expenditures | G8: ='App.2-AB_Capital Expenditures'!E14 -> 2014 | H8: ='App.2-AB_Capital Expenditures'!E23 -> 6531 | I8: ='App.2-AB_Capital Expenditures'!F23 -> 4534
A9: ='LDC Info'!$E$14 -> Bluewater Power Distribution Corporation | B9: EB-2022-0016 | C9: 2023 | D9: 2022 | E9: 2013 | F9: System O&M | G9: ='App.2-AB_Capital Expenditures'!E14 -> 2014 | H9: ='App.2-AB_Capital Expenditures'!E24 -> 0 | I9: ='App.2-AB_Capital Expenditures'!F24 -> 3718
A10: ='LDC Info'!$E$14 -> Bluewater Power Distribution Corporation | B10: EB-2022-0016 | C10: 2023 | D10: 2022 | E10: 2013 | F10: System Access | G10: ='App.2-AB_Capital Expenditures'!H14 -> 2015 | H10: ='App.2-AB_Capital Expenditures'!H17 -> 958 | I10: ='App.2-AB_Capital Expenditures'!I17 -> 1519
A11: ='LDC Info'!$E$14 -> Bluewater Power Distribution Corporation | B11: EB-2022-0016 | C11: 2023 | D11: 2022 | E11: 2013 | F11: System Renewal | G11: ='App.2-AB_Capital Expenditures'!H14 -> 2015 | H11: ='App.2-AB_Capital Expenditures'!H18 -> 2480 | I11: ='App.2-AB_Capital Expenditures'!I18 -> 3326
A12: ='LDC Info'!$E$14 -> Bluewater Power Distribution Corporation | B12: EB-2022-0016 | C12: 2023 | D12: 2022 | E12: 2013 | F12: System Service | G12: ='App.2-AB_Capital Expenditures'!H14 -> 2015 | H12: ='App.2-AB_Capital Expenditures'!H19 -> 367 | I12: ='App.2-AB_Capital Expenditures'!I19 -> 371
A13: ='LDC Info'!$E$14 -> Bluewater Power Distribution Corporation | B13: EB-2022-0016 | C13: 2023 | D13: 2022 | E13: 2013 | F13: General Plant | G13: ='App.2-AB_Capital Expenditures'!H14 -> 2015 | H13: ='App.2-AB_Capital Expenditures'!H20 -> 3300 | I13: ='App.2-AB_Capital Expenditures'!I20 -> 1690
A14: ='LDC Info'!$E$14 -> Bluewater Power Distribution Corporation | B14: EB-2022-0016 | C14: 2023 | D14: 2022 | E14: 2013 | F14: Total Expenditure | G14: ='App.2-AB_Capital Expenditures'!H14 -> 2015 | H14: ='App.2-AB_Capital Expenditures'!H21 -> 7105 | I14: ='App.2-AB_Capital Expenditures'!I21 -> 6906
A15: ='LDC Info'!$E$14 -> Bluewater Power Distribution Corporation | B15: EB-2022-0016 | C15: 2023 | D15: 2022 | E15: 2013 | F15: Capital Contributions | G15: ='App.2-AB_Capital Expenditures'!H14 -> 2015 | H15: ='App.2-AB_Capital Expenditures'!H22 -> 0 | I15: ='App.2-AB_Capital Expenditures'!I22 -> 360
A16: ='LDC Info'!$E$14 -> Bluewater Power Distribution Corporation | B16: EB-2022-0016 | C16: 2023 | D16: 2022 | E16: 2013 | F16: Net Capital Expenditures | G16: ='App.2-AB_Capital Expenditures'!H14 -> 2015 | H16: ='App.2-AB_Capital Expenditures'!H23 -> 7105 | I16: ='App.2-AB_Capital Expenditures'!I23 -> 6546
A17: ='LDC Info'!$E$14 -> Bluewater Power Distribution Corporation | B17: EB-2022-0016 | C17: 2023 | D17: 2022 | E17: 2013 | F17: System O&M | G17: ='App.2-AB_Capital Expenditures'!H14 -> 2015 | H17: ='App.2-AB_Capital Expenditures'!H24 -> 0 | I17: ='App.2-AB_Capital Expenditures'!I24 -> 3972
A18: ='LDC Info'!$E$14 -> Bluewater Power Distribution Corporation | B18: EB-2022-0016 | C18: 2023 | D18: 2022 | E18: 2013 | F18: System Access | G18: ='App.2-AB_Capital Expenditures'!K14 -> 2016 | H18: ='App.2-AB_Capital Expenditures'!K17 -> 1230 | I18: ='App.2-AB_Capital Expenditures'!L17 -> 1156
A19: ='LDC Info'!$E$14 -> Bluewater Power Distribution Corporation | B19: EB-2022-0016 | C19: 2023 | D19: 2022 | E19: 2013 | F19: System Renewal | G19: ='App.2-AB_Capital Expenditures'!K14 -> 2016 | H19: ='App.2-AB_Capital Expenditures'!K18 -> 3686 | I19: ='App.2-AB_Capital Expenditures'!L18 -> 3866
A20: ='LDC Info'!$E$14 -> Bluewater Power Distribution Corporation | B20: EB-2022-0016 | C20: 2023 | D20: 2022 | E20: 2013 | F20: System Service | G20: ='App.2-AB_Capital Expenditures'!K14 -> 2016 | H20: ='App.2-AB_Capital Expenditures'!K19 -> 1118 | I20: ='App.2-AB_Capital Expenditures'!L19 -> 725
A21: ='LDC Info'!$E$14 -> Bluewater Power Distribution Corporation | B21: EB-2022-0016 | C21: 2023 | D21: 2022 | E21: 2013 | F21: General Plant | G21: ='App.2-AB_Capital Expenditures'!K14 -> 2016 | H21: ='App.2-AB_Capital Expenditures'!K20 -> 2441 | I21: ='App.2-AB_Capital Expenditures'!L20 -> 2299
A22: ='LDC Info'!$E$14 -> Bluewater Power Distribution Corporation | B22: EB-2022-0016 | C22: 2023 | D22: 2022 | E22: 2013 | F22: Total Expenditure | G22: ='App.2-AB_Capital Expenditures'!K14 -> 2016 | H22: ='App.2-AB_Capital Expenditures'!K21 -> 8475 | I22: ='App.2-AB_Capital Expenditures'!L21 -> 8046
A23: ='LDC Info'!$E$14 -> Bluewater Power Distribution Corporation | B23: EB-2022-0016 | C23: 2023 | D23: 2022 | E23: 2013 | F23: Capital Contributions | G23: ='App.2-AB_Capital Expenditures'!K14 -> 2016 | H23: ='App.2-AB_Capital Expenditures'!K22 -> 0 | I23: ='App.2-AB_Capital Expenditures'!L22 -> 273
A24: ='LDC Info'!$E$14 -> Bluewater Power Distribution Corporation | B24: EB-2022-0016 | C24: 2023 | D24: 2022 | E24: 2013 | F24: Net Capital Expenditures | G24: ='App.2-AB_Capital Expenditures'!K14 -> 2016 | H24: ='App.2-AB_Capital Expenditures'!K23 -> 8475 | I24: ='App.2-AB_Capital Expenditures'!L23 -> 7773
A25: ='LDC Info'!$E$14 -> Bluewater Power Distribution Corporation | B25: EB-2022-0016 | C25: 2023 | D25: 2022 | E25: 2013 | F25: System O&M | G25: ='App.2-AB_Capital Expenditures'!K14 -> 2016 | H25: ='App.2-AB_Capital Expenditures'!K24 -> 0 | I25: ='App.2-AB_Capital Expenditures'!L24 -> 3997
A26: ='LDC Info'!$E$14 -> Bluewater Power Distribution Corporation | B26: EB-2022-0016 | C26: 2023 | D26: 2022 | E26: 2013 | F26: System Access | G26: ='App.2-AB_Capital Expenditures'!N14 -> 2017 | H26: ='App.2-AB_Capital Expenditures'!N17 -> 1252 | I26: ='App.2-AB_Capital Expenditures'!O17 -> 1138
A27: ='LDC Info'!$E$14 -> Bluewater Power Distribution Corporation | B27: EB-2022-0016 | C27: 2023 | D27: 2022 | E27: 2013 | F27: System Renewal | G27: ='App.2-AB_Capital Expenditures'!N14 -> 2017 | H27: ='App.2-AB_Capital Expenditures'!N18 -> 3697 | I27: ='App.2-AB_Capital Expenditures'!O18 -> 3604
A28: ='LDC Info'!$E$14 -> Bluewater Power Distribution Corporation | B28: EB-2022-0016 | C28: 2023 | D28: 2022 | E28: 2013 | F28: System Service | G28: ='App.2-AB_Capital Expenditures'!N14 -> 2017 | H28: ='App.2-AB_Capital Expenditures'!N19 -> 719 | I28: ='App.2-AB_Capital Expenditures'!O19 -> 585
A29: ='LDC Info'!$E$14 -> Bluewater Power Distribution Corporation | B29: EB-2022-0016 | C29: 2023 | D29: 2022 | E29: 2013 | F29: General Plant | G29: ='App.2-AB_Capital Expenditures'!N14 -> 2017 | H29: ='App.2-AB_Capital Expenditures'!N20 -> 3181 | I29: ='App.2-AB_Capital Expenditures'!O20 -> 2537
A30: ='LDC Info'!$E$14 -> Bluewater Power Distribution Corporation | B30: EB-2022-0016 | C30: 2023 | D30: 2022 | E30: 2013 | F30: Total Expenditure | G30: ='App.2-AB_Capital Expenditures'!N14 -> 2017 | H30: ='App.2-AB_Capital Expenditures'!N21 -> 8849 | I30: ='App.2-AB_Capital Expenditures'!O21 -> 7864
A31: ='LDC Info'!$E$14 -> Bluewater Power Distribution Corporation | B31: EB-2022-0016 | C31: 2023 | D31: 2022 | E31: 2013 | F31: Capital Contributions | G31: ='App.2-AB_Capital Expenditures'!N14 -> 2017 | H31: ='App.2-AB_Capital Expenditures'!N22 -> 0 | I31: ='App.2-AB_Capital Expenditures'!O22 -> 204
A32: ='LDC Info'!$E$14 -> Bluewater Power Distribution Corporation | B32: EB-2022-0016 | C32: 2023 | D32: 2022 | E32: 2013 | F32: Net Capital Expenditures | G32: ='App.2-AB_Capital Expenditures'!N14 -> 2017 | H32: ='App.2-AB_Capital Expenditures'!N23 -> 8849 | I32: ='App.2-AB_Capital Expenditures'!O23 -> 7660
A33: ='LDC Info'!$E$14 -> Bluewater Power Distribution Corporation | B33: EB-2022-0016 | C33: 2023 | D33: 2022 | E33: 2013 | F33: System O&M | G33: ='App.2-AB_Capital Expenditures'!N14 -> 2017 | H33: ='App.2-AB_Capital Expenditures'!N24 -> 0 | I33: ='App.2-AB_Capital Expenditures'!O24 -> 4113
A34: ='LDC Info'!$E$14 -> Bluewater Power Distribution Corporation | B34: =EBNUMBER -> EB-2022-0016 | C34: =TestYear -> 2023 | D34: =BridgeYear -> 2022 | E34: =RebaseYear -> 2013 | F34: System Access | G34: ='App.2-AB_Capital Expenditures'!Q14 -> 2018 | H34: ='App.2-AB_Capital Expenditures'!Q17 -> 1115 | I34: ='App.2-AB_Capital Expenditures'!R17 -> 1167
A35: ='LDC Info'!$E$14 -> Bluewater Power Distribution Corporation | B35: EB-2022-0016 | C35: 2023 | D35: 2022 | E35: 2013 | F35: System Renewal | G35: ='App.2-AB_Capital Expenditures'!Q14 -> 2018 | H35: ='App.2-AB_Capital Expenditures'!Q18 -> 4895 | I35: ='App.2-AB_Capital Expenditures'!R18 -> 4374
A36: ='LDC Info'!$E$14 -> Bluewater Power Distribution Corporation | B36: EB-2022-0016 | C36: 2023 | D36: 2022 | E36: 2013 | F36: System Service | G36: ='App.2-AB_Capital Expenditures'!Q14 -> 2018 | H36: ='App.2-AB_Capital Expenditures'!Q19 -> 775 | I36: ='App.2-AB_Capital Expenditures'!R19 -> 790
A37: ='LDC Info'!$E$14 -> Bluewater Power Distribution Corporation | B37: EB-2022-0016 | C37: 2023 | D37: 2022 | E37: 2013 | F37: General Plant | G37: ='App.2-AB_Capital Expenditures'!Q14 -> 2018 | H37: ='App.2-AB_Capital Expenditures'!Q20 -> 2432 | I37: ='App.2-AB_Capital Expenditures'!R20 -> 2363
A38: ='LDC Info'!$E$14 -> Bluewater Power Distribution Corporation | B38: EB-2022-0016 | C38: 2023 | D38: 2022 | E38: 2013 | F38: Total Expenditure | G38: ='App.2-AB_Capital Expenditures'!Q14 -> 2018 | H38: ='App.2-AB_Capital Expenditures'!Q21 -> 9217 | I38: ='App.2-AB_Capital Expenditures'!R21 -> 8694
A39: ='LDC Info'!$E$14 -> Bluewater Power Distribution Corporation | B39: EB-2022-0016 | C39: 2023 | D39: 2022 | E39: 2013 | F39: Capital Contributions | G39: ='App.2-AB_Capital Expenditures'!Q14 -> 2018 | H39: ='App.2-AB_Capital Expenditures'!Q22 -> 0 | I39: ='App.2-AB_Capital Expenditures'!R22 -> 364
A40: ='LDC Info'!$E$14 -> Bluewater Power Distribution Corporation | B40: EB-2022-0016 | C40: 2023 | D40: 2022 | E40: 2013 | F40: Net Capital Expenditures | G40: ='App.2-AB_Capital Expenditures'!Q14 -> 2018 | H40: ='App.2-AB_Capital Expenditures'!Q23 -> 9217 | I40: ='App.2-AB_Capital Expenditures'!R23 -> 8330
A41: ='LDC Info'!$E$14 -> Bluewater Power Distribution Corporation | B41: EB-2022-0016 | C41: 2023 | D41: 2022 | E41: 2013 | F41: System O&M | G41: ='App.2-AB_Capital Expenditures'!Q14 -> 2018 | H41: ='App.2-AB_Capital Expenditures'!Q24 -> 0 | I41: ='App.2-AB_Capital Expenditures'!R24 -> 4621
A42: ='LDC Info'!$E$14 -> Bluewater Power Distribution Corporation | B42: EB-2022-0016 | C42: 2023 | D42: 2022 | E42: 2013 | F42: System Access | G42: ='App.2-AB_Capital Expenditures'!T14 -> 2019 | H42: ='App.2-AB_Capital Expenditures'!T17 -> 1200 | I42: ='App.2-AB_Capital Expenditures'!U17 -> 1530
A43: ='LDC Info'!$E$14 -> Bluewater Power Distribution Corporation | B43: EB-2022-0016 | C43: 2023 | D43: 2022 | E43: 2013 | F43: System Renewal | G43: ='App.2-AB_Capital Expenditures'!T14 -> 2019 | H43: ='App.2-AB_Capital Expenditures'!T18 -> 5340 | I43: ='App.2-AB_Capital Expenditures'!U18 -> 5103
A44: ='LDC Info'!$E$14 -> Bluewater Power Distribution Corporation | B44: EB-2022-0016 | C44: 2023 | D44: 2022 | E44: 2013 | F44: System Service | G44: ='App.2-AB_Capital Expenditures'!T14 -> 2019 | H44: ='App.2-AB_Capital Expenditures'!T19 -> 260 | I44: ='App.2-AB_Capital Expenditures'!U19 -> 246
A45: ='LDC Info'!$E$14 -> Bluewater Power Distribution Corporation | B45: EB-2022-0016 | C45: 2023 | D45: 2022 | E45: 2013 | F45: General Plant | G45: ='App.2-AB_Capital Expenditures'!T14 -> 2019 | H45: ='App.2-AB_Capital Expenditures'!T20 -> 3099 | I45: ='App.2-AB_Capital Expenditures'!U20 -> 2636
A46: ='LDC Info'!$E$14 -> Bluewater Power Distribution Corporation | B46: EB-2022-0016 | C46: 2023 | D46: 2022 | E46: 2013 | F46: Total Expenditure | G46: ='App.2-AB_Capital Expenditures'!T14 -> 2019 | H46: ='App.2-AB_Capital Expenditures'!T21 -> 9899 | I46: ='App.2-AB_Capital Expenditures'!U21 -> 9515
A47: ='LDC Info'!$E$14 -> Bluewater Power Distribution Corporation | B47: EB-2022-0016 | C47: 2023 | D47: 2022 | E47: 2013 | F47: Capital Contributions | G47: ='App.2-AB_Capital Expenditures'!T14 -> 2019 | H47: ='App.2-AB_Capital Expenditures'!T22 -> 0 | I47: ='App.2-AB_Capital Expenditures'!U22 -> 331
A48: ='LDC Info'!$E$14 -> Bluewater Power Distribution Corporation | B48: EB-2022-0016 | C48: 2023 | D48: 2022 | E48: 2013 | F48: Net Capital Expenditures | G48: ='App.2-AB_Capital Expenditures'!T14 -> 2019 | H48: ='App.2-AB_Capital Expenditures'!T23 -> 9899 | I48: ='App.2-AB_Capital Expenditures'!U23 -> 9184
A49: ='LDC Info'!$E$14 -> Bluewater Power Distribution Corporation | B49: EB-2022-0016 | C49: 2023 | D49: 2022 | E49: 2013 | F49: System O&M | G49: ='App.2-AB_Capital Expenditures'!T14 -> 2019 | H49: ='App.2-AB_Capital Expenditures'!T24 -> 0 | I49: ='App.2-AB_Capital Expenditures'!U24 -> 4152
A50: ='LDC Info'!$E$14 -> Bluewater Power Distribution Corporation | B50: EB-2022-0016 | C50: 2023 | D50: 2022 | E50: 2013 | F50: System Access | G50: ='App.2-AB_Capital Expenditures'!W14 -> 2020 | H50: ='App.2-AB_Capital Expenditures'!W17 -> 1050 | I50: ='App.2-AB_Capital Expenditures'!X17 -> 1694
A51: ='LDC Info'!$E$14 -> Bluewater Power Distribution Corporation | B51: EB-2022-0016 | C51: 2023 | D51: 2022 | E51: 2013 | F51: System Renewal | G51: ='App.2-AB_Capital Expenditures'!W14 -> 2020 | H51: ='App.2-AB_Capital Expenditures'!W18 -> 5290 | I51: ='App.2-AB_Capital Expenditures'!X18 -> 4506
A52: ='LDC Info'!$E$14 -> Bluewater Power Distribution Corporation | B52: EB-2022-0016 | C52: 2023 | D52: 2022 | E52: 2013 | F52: System Service | G52: ='App.2-AB_Capital Expenditures'!W14 -> 2020 | H52: ='App.2-AB_Capital Expenditures'!W19 -> 350 | I52: ='App.2-AB_Capital Expenditures'!X19 -> 301
A53: ='LDC Info'!$E$14 -> Bluewater Power Distribution Corporation | B53: EB-2022-0016 | C53: 2023 | D53: 2022 | E53: 2013 | F53: General Plant | G53: ='App.2-AB_Capital Expenditures'!W14 -> 2020 | H53: ='App.2-AB_Capital Expenditures'!W20 -> 3292 | I53: ='App.2-AB_Capital Expenditures'!X20 -> 3062
A54: ='LDC Info'!$E$14 -> Bluewater Power Distribution Corporation | B54: EB-2022-0016 | C54: 2023 | D54: 2022 | E54: 2013 | F54: Total Expenditure | G54: ='App.2-AB_Capital Expenditures'!W14 -> 2020 | H54: ='App.2-AB_Capital Expenditures'!W21 -> 9982 | I54: ='App.2-AB_Capital Expenditures'!X21 -> 9563
A55: ='LDC Info'!$E$14 -> Bluewater Power Distribution Corporation | B55: EB-2022-0016 | C55: 2023 | D55: 2022 | E55: 2013 | F55: Capital Contributions | G55: ='App.2-AB_Capital Expenditures'!W14 -> 2020 | H55: ='App.2-AB_Capital Expenditures'!W22 -> 0 | I55: ='App.2-AB_Capital Expenditures'!X22 -> 482
A56: ='LDC Info'!$E$14 -> Bluewater Power Distribution Corporation | B56: EB-2022-0016 | C56: 2023 | D56: 2022 | E56: 2013 | F56: Net Capital Expenditures | G56: ='App.2-AB_Capital Expenditures'!W14 -> 2020 | H56: ='App.2-AB_Capital Expenditures'!W23 -> 9982 | I56: ='App.2-AB_Capital Expenditures'!X23 -> 9081
A57: ='LDC Info'!$E$14 -> Bluewater Power Distribution Corporation | B57: EB-2022-0016 | C57: 2023 | D57: 2022 | E57: 2013 | F57: System O&M | G57: ='App.2-AB_Capital Expenditures'!W14 -> 2020 | H57: ='App.2-AB_Capital Expenditures'!W24 -> 0 | I57: ='App.2-AB_Capital Expenditures'!X24 -> 4137
A58: ='LDC Info'!$E$14 -> Bluewater Power Distribution Corporation | B58: EB-2022-0016 | C58: 2023 | D58: 2022 | E58: 2013 | F58: System Access | G58: ='App.2-AB_Capital Expenditures'!Z14 -> 2021 | H58: ='App.2-AB_Capital Expenditures'!Z17 -> 1400 | I58: ='App.2-AB_Capital Expenditures'!AA17 -> 1964
A59: ='LDC Info'!$E$14 -> Bluewater Power Distribution Corporation | B59: EB-2022-0016 | C59: 2023 | D59: 2022 | E59: 2013 | F59: System Renewal | G59: ='App.2-AB_Capital Expenditures'!Z14 -> 2021 | H59: ='App.2-AB_Capital Expenditures'!Z18 -> 5370 | I59: ='App.2-AB_Capital Expenditures'!AA18 -> 3541
A60: ='LDC Info'!$E$14 -> Bluewater Power Distribution Corporation | B60: EB-2022-0016 | C60: 2023 | D60: 2022 | E60: 2013 | F60: System Service | G60: ='App.2-AB_Capital Expenditures'!Z14 -> 2021 | H60: ='App.2-AB_Capital Expenditures'!Z19 -> 410 | I60: ='App.2-AB_Capital Expenditures'!AA19 -> 366
A61: ='LDC Info'!$E$14 -> Bluewater Power Distribution Corporation | B61: EB-2022-0016 | C61: 2023 | D61: 2022 | E61: 2013 | F61: General Plant | G61: ='App.2-AB_Capital Expenditures'!Z14 -> 2021 | H61: ='App.2-AB_Capital Expenditures'!Z20 -> 3660 | I61: ='App.2-AB_Capital Expenditures'!AA20 -> 3136
A62: ='LDC Info'!$E$14 -> Bluewater Power Distribution Corporation | B62: EB-2022-0016 | C62: 2023 | D62: 2022 | E62: 2013 | F62: Total Expenditure | G62: ='App.2-AB_Capital Expenditures'!Z14 -> 2021 | H62: ='App.2-AB_Capital Expenditures'!Z21 -> 10840 | I62: ='App.2-AB_Capital Expenditures'!AA21 -> 9007
A63: ='LDC Info'!$E$14 -> Bluewater Power Distribution Corporation | B63: EB-2022-0016 | C63: 2023 | D63: 2022 | E63: 2013 | F63: Capital Contributions | G63: ='App.2-AB_Capital Expenditures'!Z14 -> 2021 | H63: ='App.2-AB_Capital Expenditures'!Z22 -> 0 | I63: ='App.2-AB_Capital Expenditures'!AA22 -> 229
A64: ='LDC Info'!$E$14 -> Bluewater Power Distribution Corporation | B64: EB-2022-0016 | C64: 2023 | D64: 2022 | E64: 2013 | F64: Net Capital Expenditures | G64: ='App.2-AB_Capital Expenditures'!Z14 -> 2021 | H64: ='App.2-AB_Capital Expenditures'!Z23 -> 10840 | I64: ='App.2-AB_Capital Expenditures'!AA23 -> 8778
A65: ='LDC Info'!$E$14 -> Bluewater Power Distribution Corporation | B65: EB-2022-0016 | C65: 2023 | D65: 2022 | E65: 2013 | F65: System O&M | G65: ='App.2-AB_Capital Expenditures'!Z14 -> 2021 | H65: ='App.2-AB_Capital Expenditures'!Z24 -> 0 | I65: ='App.2-AB_Capital Expenditures'!AA24 -> 4603
A66: ='LDC Info'!$E$14 -> Bluewater Power Distribution Corporation | B66: =EBNUMBER -> EB-2022-0016 | C66: =TestYear -> 2023 | D66: =BridgeYear -> 2022 | E66: =RebaseYear -> 2013 | F66: System Access | G66: ='App.2-AB_Capital Expenditures'!AC14 -> 2022 | H66: ='App.2-AB_Capital Expenditures'!AC17 -> 2200 | I66: ='App.2-AB_Capital Expenditures'!AD17 -> 1916
A67: ='LDC Info'!$E$14 -> Bluewater Power Distribution Corporation | B67: EB-2022-0016 | C67: 2023 | D67: 2022 | E67: 2013 | F67: System Renewal | G67: ='App.2-AB_Capital Expenditures'!AC14 -> 2022 | H67: ='App.2-AB_Capital Expenditures'!AC18 -> 5292 | I67: ='App.2-AB_Capital Expenditures'!AD18 -> 5641
A68: ='LDC Info'!$E$14 -> Bluewater Power Distribution Corporation | B68: EB-2022-0016 | C68: 2023 | D68: 2022 | E68: 2013 | F68: System Service | G68: ='App.2-AB_Capital Expenditures'!AC14 -> 2022 | H68: ='App.2-AB_Capital Expenditures'!AC19 -> 360 | I68: ='App.2-AB_Capital Expenditures'!AD19 -> 231
A69: ='LDC Info'!$E$14 -> Bluewater Power Distribution Corporation | B69: EB-2022-0016 | C69: 2023 | D69: 2022 | E69: 2013 | F69: General Plant | G69: ='App.2-AB_Capital Expenditures'!AC14 -> 2022 | H69: ='App.2-AB_Capital Expenditures'!AC20 -> 4300 | I69: ='App.2-AB_Capital Expenditures'!AD20 -> 3603
A70: ='LDC Info'!$E$14 -> Bluewater Power Distribution Corporation | B70: EB-2022-0016 | C70: 2023 | D70: 2022 | E70: 2013 | F70: Total Expenditure | G70: ='App.2-AB_Capital Expenditures'!AC14 -> 2022 | H70: ='App.2-AB_Capital Expenditures'!AC21 -> 12152 | I70: ='App.2-AB_Capital Expenditures'!AD21 -> 11391
A71: ='LDC Info'!$E$14 -> Bluewater Power Distribution Corporation | B71: EB-2022-0016 | C71: 2023 | D71: 2022 | E71: 2013 | F71: Capital Contributions | G71: ='App.2-AB_Capital Expenditures'!AC14 -> 2022 | H71: ='App.2-AB_Capital Expenditures'!AC22 -> 1000 | I71: ='App.2-AB_Capital Expenditures'!AD22 -> 930
A72: ='LDC Info'!$E$14 -> Bluewater Power Distribution Corporation | B72: EB-2022-0016 | C72: 2023 | D72: 2022 | E72: 2013 | F72: Net Capital Expenditures | G72: ='App.2-AB_Capital Expenditures'!AC14 -> 2022 | H72: ='App.2-AB_Capital Expenditures'!AC23 -> 11152 | I72: ='App.2-AB_Capital Expenditures'!AD23 -> 10461
A73: ='LDC Info'!$E$14 -> Bluewater Power Distribution Corporation | B73: EB-2022-0016 | C73: 2023 | D73: 2022 | E73: 2013 | F73: System O&M | G73: ='App.2-AB_Capital Expenditures'!AC14 -> 2022 | H73: ='App.2-AB_Capital Expenditures'!AC24 -> 5773.526 | I73: ='App.2-AB_Capital Expenditures'!AD24 -> 4602
A74: ='LDC Info'!$E$14 -> Bluewater Power Distribution Corporation | B74: EB-2022-0016 | C74: 2023 | D74: 2022 | E74: 2013 | F74: System Access | G74: ='App.2-AB_Capital Expenditures'!AF14 -> 2023 | H74: ='App.2-AB_Capital Expenditures'!AF17 -> 2322
A75: ='LDC Info'!$E$14 -> Bluewater Power Distribution Corporation | B75: EB-2022-0016 | C75: 2023 | D75: 2022 | E75: 2013 | F75: System Renewal | G75: ='App.2-AB_Capital Expenditures'!AF14 -> 2023 | H75: ='App.2-AB_Capital Expenditures'!AF18 -> 6659
A76: ='LDC Info'!$E$14 -> Bluewater Power Distribution Corporation | B76: EB-2022-0016 | C76: 2023 | D76: 2022 | E76: 2013 | F76: System Service | G76: ='App.2-AB_Capital Expenditures'!AF14 -> 2023 | H76: ='App.2-AB_Capital Expenditures'!AF19 -> 514
A77: ='LDC Info'!$E$14 -> Bluewater Power Distribution Corporation | B77: EB-2022-0016 | C77: 2023 | D77: 2022 | E77: 2013 | F77: General Plant | G77: ='App.2-AB_Capital Expenditures'!AF14 -> 2023 | H77: ='App.2-AB_Capital Expenditures'!AF20 -> 3777
A78: ='LDC Info'!$E$14 -> Bluewater Power Distribution Corporation | B78: EB-2022-0016 | C78: 2023 | D78: 2022 | E78: 2013 | F78: Total Expenditure | G78: ='App.2-AB_Capital Expenditures'!AF14 -> 2023 | H78: ='App.2-AB_Capital Expenditures'!AF21 -> 13272
A79: ='LDC Info'!$E$14 -> Bluewater Power Distribution Corporation | B79: EB-2022-0016 | C79: 2023 | D79: 2022 | E79: 2013 | F79: Capital Contributions | G79: ='App.2-AB_Capital Expenditures'!AF14 -> 2023 | H79: ='App.2-AB_Capital Expenditures'!AF22 -> 1000
A80: ='LDC Info'!$E$14 -> Bluewater Power Distribution Corporation | B80: EB-2022-0016 | C80: 2023 | D80: 2022 | E80: 2013 | F80: Net Capital Expenditures | G80: ='App.2-AB_Capital Expenditures'!AF14 -> 2023 | H80: ='App.2-AB_Capital Expenditures'!AF23 -> 12272
A81: ='LDC Info'!$E$14 -> Bluewater Power Distribution Corporation | B81: EB-2022-0016 | C81: 2023 | D81: 2022 | E81: 2013 | F81: System O&M | G81: ='App.2-AB_Capital Expenditures'!AF14 -> 2023 | H81: ='App.2-AB_Capital Expenditures'!AF24 -> 6490.487
A82: ='LDC Info'!$E$14 -> Bluewater Power Distribution Corporation | B82: EB-2022-0016 | C82: 2023 | D82: 2022 | E82: 2013 | F82: System Access | G82: ='App.2-AB_Capital Expenditures'!AG14 -> 2024 | H82: ='App.2-AB_Capital Expenditures'!AG17 -> 2446
A83: ='LDC Info'!$E$14 -> Bluewater Power Distribution Corporation | B83: EB-2022-0016 | C83: 2023 | D83: 2022 | E83: 2013 | F83: System Renewal | G83: ='App.2-AB_Capital Expenditures'!AG14 -> 2024 | H83: ='App.2-AB_Capital Expenditures'!AG18 -> 5900
A84: ='LDC Info'!$E$14 -> Bluewater Power Distribution Corporation | B84: EB-2022-0016 | C84: 2023 | D84: 2022 | E84: 2013 | F84: System Service | G84: ='App.2-AB_Capital Expenditures'!AG14 -> 2024 | H84: ='App.2-AB_Capital Expenditures'!AG19 -> 194
A85: ='LDC Info'!$E$14 -> Bluewater Power Distribution Corporation | B85: EB-2022-0016 | C85: 2023 | D85: 2022 | E85: 2013 | F85: General Plant | G85: ='App.2-AB_Capital Expenditures'!AG14 -> 2024 | H85: ='App.2-AB_Capital Expenditures'!AG20 -> 3170
A86: ='LDC Info'!$E$14 -> Bluewater Power Distribution Corporation | B86: EB-2022-0016 | C86: 2023 | D86: 2022 | E86: 2013 | F86: Total Expenditure | G86: ='App.2-AB_Capital Expenditures'!AG14 -> 2024 | H86: ='App.2-AB_Capital Expenditures'!AG21 -> 11710
A87: ='LDC Info'!$E$14 -> Bluewater Power Distribution Corporation | B87: EB-2022-0016 | C87: 2023 | D87: 2022 | E87: 2013 | F87: Capital Contributions | G87: ='App.2-AB_Capital Expenditures'!AG14 -> 2024 | H87: ='App.2-AB_Capital Expenditures'!AG22 -> 1000
A88: ='LDC Info'!$E$14 -> Bluewater Power Distribution Corporation | B88: EB-2022-0016 | C88: 2023 | D88: 2022 | E88: 2013 | F88: Net Capital Expenditures | G88: ='App.2-AB_Capital Expenditures'!AG14 -> 2024 | H88: ='App.2-AB_Capital Expenditures'!AG23 -> 10710
A89: ='LDC Info'!$E$14 -> Bluewater Power Distribution Corporation | B89: EB-2022-0016 | C89: 2023 | D89: 2022 | E89: 2013 | F89: System O&M | G89: ='App.2-AB_Capital Expenditures'!AG14 -> 2024 | H89: ='App.2-AB_Capital Expenditures'!AG24 -> 6685.20161
A90: ='LDC Info'!$E$14 -> Bluewater Power Distribution Corporation | B90: EB-2022-0016 | C90: 2023 | D90: 2022 | E90: 2013 | F90: System Access | G90: ='App.2-AB_Capital Expenditures'!AH14 -> 2025 | H90: ='App.2-AB_Capital Expenditures'!AH17 -> 2520
A91: ='LDC Info'!$E$14 -> Bluewater Power Distribution Corporation | B91: EB-2022-0016 | C91: 2023 | D91: 2022 | E91: 2013 | F91: System Renewal | G91: ='App.2-AB_Capital Expenditures'!AH14 -> 2025 | H91: ='App.2-AB_Capital Expenditures'!AH18 -> 5244
A92: ='LDC Info'!$E$14 -> Bluewater Power Distribution Corporation | B92: EB-2022-0016 | C92: 2023 | D92: 2022 | E92: 2013 | F92: System Service | G92: ='App.2-AB_Capital Expenditures'!AH14 -> 2025 | H92: ='App.2-AB_Capital Expenditures'!AH19 -> 200
A93: ='LDC Info'!$E$14 -> Bluewater Power Distribution Corporation | B93: EB-2022-0016 | C93: 2023 | D93: 2022 | E93: 2013 | F93: General Plant | G93: ='App.2-AB_Capital Expenditures'!AH14 -> 2025 | H93: ='App.2-AB_Capital Expenditures'!AH20 -> 3630
A94: ='LDC Info'!$E$14 -> Bluewater Power Distribution Corporation | B94: EB-2022-0016 | C94: 2023 | D94: 2022 | E94: 2013 | F94: Total Expenditure | G94: ='App.2-AB_Capital Expenditures'!AH14 -> 2025 | H94: ='App.2-AB_Capital Expenditures'!AH21 -> 11594
A95: ='LDC Info'!$E$14 -> Bluewater Power Distribution Corporation | B95: EB-2022-0016 | C95: 2023 | D95: 2022 | E95: 2013 | F95: Capital Contributions | G95: ='App.2-AB_Capital Expenditures'!AH14 -> 2025 | H95: ='App.2-AB_Capital Expenditures'!AH22 -> 1000
A96: ='LDC Info'!$E$14 -> Bluewater Power Distribution Corporation | B96: EB-2022-0016 | C96: 2023 | D96: 2022 | E96: 2013 | F96: Net Capital Expenditures | G96: ='App.2-AB_Capital Expenditures'!AH14 -> 2025 | H96: ='App.2-AB_Capital Expenditures'!AH23 -> 10594
A97: ='LDC Info'!$E$14 -> Bluewater Power Distribution Corporation | B97: EB-2022-0016 | C97: 2023 | D97: 2022 | E97: 2013 | F97: System O&M | G97: ='App.2-AB_Capital Expenditures'!AH14 -> 2025 | H97: ='App.2-AB_Capital Expenditures'!AH24 -> 6885.757658
A98: ='LDC Info'!$E$14 -> Bluewater Power Distribution Corporation | B98: =EBNUMBER -> EB-2022-0016 | C98: =TestYear -> 2023 | D98: =BridgeYear -> 2022 | E98: =RebaseYear -> 2013 | F98: System Access | G98: ='App.2-AB_Capital Expenditures'!AI14 -> 2026 | H98: ='App.2-AB_Capital Expenditures'!AI17 -> 2595
A99: ='LDC Info'!$E$14 -> Bluewater Power Distribution Corporation | B99: EB-2022-0016 | C99: 2023 | D99: 2022 | E99: 2013 | F99: System Renewal | G99: ='App.2-AB_Capital Expenditures'!AI14 -> 2026 | H99: ='App.2-AB_Capital Expenditures'!AI18 -> 5401
A100: ='LDC Info'!$E$14 -> Bluewater Power Distribution Corporation | B100: EB-2022-0016 | C100: 2023 | D100: 2022 | E100: 2013 | F100: System Service | G100: ='App.2-AB_Capital Expenditures'!AI14 -> 2026 | H100: ='App.2-AB_Capital Expenditures'!AI19 -> 206
A101: ='LDC Info'!$E$14 -> Bluewater Power Distribution Corporation | B101: EB-2022-0016 | C101: 2023 | D101: 2022 | E101: 2013 | F101: General Plant | G101: ='App.2-AB_Capital Expenditures'!AI14 -> 2026 | H101: ='App.2-AB_Capital Expenditures'!AI20 -> 3903
A102: ='LDC Info'!$E$14 -> Bluewater Power Distribution Corporation | B102: EB-2022-0016 | C102: 2023 | D102: 2022 | E102: 2013 | F102: Total Expenditure | G102: ='App.2-AB_Capital Expenditures'!AI14 -> 2026 | H102: ='App.2-AB_Capital Expenditures'!AI21 -> 12105
A103: ='LDC Info'!$E$14 -> Bluewater Power Distribution Corporation | B103: EB-2022-0016 | C103: 2023 | D103: 2022 | E103: 2013 | F103: Capital Contributions | G103: ='App.2-AB_Capital Expenditures'!AI14 -> 2026 | H103: ='App.2-AB_Capital Expenditures'!AI22 -> 1000
A104: ='LDC Info'!$E$14 -> Bluewater Power Distribution Corporation | B104: EB-2022-0016 | C104: 2023 | D104: 2022 | E104: 2013 | F104: Net Capital Expenditures | G104: ='App.2-AB_Capital Expenditures'!AI14 -> 2026 | H104: ='App.2-AB_Capital Expenditures'!AI23 -> 11105
A105: ='LDC Info'!$E$14 -> Bluewater Power Distribution Corporation | B105: EB-2022-0016 | C105: 2023 | D105: 2022 | E105: 2013 | F105: System O&M | G105: ='App.2-AB_Capital Expenditures'!AI14 -> 2026 | H105: ='App.2-AB_Capital Expenditures'!AI24 -> 7092.330388
A106: ='LDC Info'!$E$14 -> Bluewater Power Distribution Corporation | B106: EB-2022-0016 | C106: 2023 | D106: 2022 | E106: 2013 | F106: System Access | G106: ='App.2-AB_Capital Expenditures'!AJ14 -> 2027 | H106: ='App.2-AB_Capital Expenditures'!AJ17 -> 2642
A107: ='LDC Info'!$E$14 -> Bluewater Power Distribution Corporation | B107: EB-2022-0016 | C107: 2023 | D107: 2022 | E107: 2013 | F107: System Renewal | G107: ='App.2-AB_Capital Expenditures'!AJ14 -> 2027 | H107: ='App.2-AB_Capital Expenditures'!AJ18 -> 5520
A108: ='LDC Info'!$E$14 -> Bluewater Power Distribution Corporation | B108: EB-2022-0016 | C108: 2023 | D108: 2022 | E108: 2013 | F108: System Service | G108: ='App.2-AB_Capital Expenditures'!AJ14 -> 2027 | H108: ='App.2-AB_Capital Expenditures'!AJ19 -> 211
A109: ='LDC Info'!$E$14 -> Bluewater Power Distribution Corporation | B109: EB-2022-0016 | C109: 2023 | D109: 2022 | E109: 2013 | F109: General Plant | G109: ='App.2-AB_Capital Expenditures'!AJ14 -> 2027 | H109: ='App.2-AB_Capital Expenditures'!AJ20 -> 4257
A110: ='LDC Info'!$E$14 -> Bluewater Power Distribution Corporation | B110: EB-2022-0016 | C110: 2023 | D110: 2022 | E110: 2013 | F110: Total Expenditure | G110: ='App.2-AB_Capital Expenditures'!AJ14 -> 2027 | H110: ='App.2-AB_Capital Expenditures'!AJ21 -> 12630
A111: ='LDC Info'!$E$14 -> Bluewater Power Distribution Corporation | B111: EB-2022-0016 | C111: 2023 | D111: 2022 | E111: 2013 | F111: Capital Contributions | G111: ='App.2-AB_Capital Expenditures'!AJ14 -> 2027 | H111: ='App.2-AB_Capital Expenditures'!AJ22 -> 1000
A112: ='LDC Info'!$E$14 -> Bluewater Power Distribution Corporation | B112: EB-2022-0016 | C112: 2023 | D112: 2022 | E112: 2013 | F112: Net Capital Expenditures | G112: ='App.2-AB_Capital Expenditures'!AJ14 -> 2027 | H112: ='App.2-AB_Capital Expenditures'!AJ23 -> 11630
A113: ='LDC Info'!$E$14 -> Bluewater Power Distribution Corporation | B113: EB-2022-0016 | C113: 2023 | D113: 2022 | E113: 2013 | F113: System O&M | G113: ='App.2-AB_Capital Expenditures'!AJ14 -> 2027 | H113: ='App.2-AB_Capital Expenditures'!AJ24 -> 7305.1003

Sheet App.2-AC_Customer Engagement
B1: File Number: | C1: =EBNUMBER -> EB-2022-0016
B2: Exhibit:
B3: Tab:
B4: Schedule:
B5: Page:
B7: Date: | C7: 2022-10-24
A9: Appendix 2-AC
A10: Customer Engagement Activities Summary
A12: Provide a list of customer engagement activities | B12: Provide a list of customer needs and preferences identified through each engagement activity | C12: Actions taken to respond to identified needs and preferences. If no action was taken, explain why.
A13: CUSTOMER SERVICE
A14: Arrears support | B14: Bluewater receives customer inquiries about bill amounts and assistance with arrears. Bluewater identified a need for augmented customer care with regard to financial assistance. | C14: Bluewater works closely with its customers to offer education on financial assistance programs such as LEAP and OESP, as well as local community offerings through the Inn of the Good Shepherd and other social service agencies. Bluewater has a dedicated Credit and Collections department that offers custom payment arrangements based on the customer’s individual situation.
A15: Bill Inserts | B15: Customers have expressed interest in education concerning offerings from Bluewater and the IESO. Bill inserts provide the opportunity to frequently interact with and educate customers. | C15: Bill inserts share important information with customers, including media releases and information about OESP and conservation initiatives. Inserts are also available online, through ebilling emails, and at reception.
A18: Customer walk-ins to office | B18: Identified the need to explain: the bill; payment arrangements; account balances; billing inquiries; services such as ebilling; TOU rates; outages; conservation programs; low income assistance programs available, etc. | C18: Bluewater takes the action to maintain this service option including an ability to make payment in-person. Front office staff are trained to handle majority of issues.
A19: Customer phone calls related to service | B19: Identified the need to explain: the bill; payment arrangements; account balances; billing inquiries; services such as ebilling; TOU rates; outages; conservation programs; low income assistance programs available, etc. Reminded of the need to focus on affordable rates and to assist customers with billing and energy literacy information. Identified need for ebilling and self-service options. | C19: Trained all customer service staff to handle inquiries; increased CDM activities to assist with conservation; continued promotion of MyAccount to assist customers with consumption management.
A20: Customer phone calls related to storms and outages, maintenance projects and vegetation management | B20: Identified the need for social media information source on storm outages. | C20: Launched social media channels (Twitter and Facebook) in 2015. Implemented OMS with linkage to distribution system mapping in order to display the outage geographically on the Bluewater website.
A21: INFORMATION SESSIONS
A22: Annual General Meeting – Public Information Session | B22: Survey results indicated that customers are interested in being educated about the topics presented, including the electrical industry, rates, conservation, and safety, as well as cybersecurity. | C22: Bluewater invites all customers to its Annual General Meeting informational sessions. Customers are educated about topics including the electrical industry, rates, conservation, and safety.
C24: In 2016, a survey was conducted at the Annual General Meeting to garner customer feedback.
A25: Shareholder Meetings | B25: Bluewater regularly meets with its shareholders to discuss plans, rates, and the impact on customers. | C25: Bluewater takes shareholder feedback and integrates into strategic planning.
A26: Large User Information Sessions, including: | B26: Identified customer preferences, including increased reliability, even if it requires higher costs and information about global adjustment, pole replacement, and conservation. | C26: Meeting the individualized needs of large customers initiatives specific to them.
A28: January 2017 – Individual customer meetings | B28: Customers valued Bluewater’s networking events, face-to-face interaction with the utility, reliable service, and conservation advice.
A30: June 2018 – Large Customer Breakfast; Survey conducted
A32: January 2022 – Large and Intermediate Lunch and Learn
A33: Customer Letters, Unmetered Scattered Load and Sentinel | B33: January 2020, Bluewater sent letters to customers in the Unmetered Scattered Load and Sentinel lighting rate categories. The purpose of the letter was to advise of our rebasing application and to provide the customer with their current billing information (kWh) so that they may review and provide an update to Bluewater Power if needed. | C33: Bluewater did not receive any discrepancies to the information provided to customers.
A36: 2020-01-01
A37: 2022-02-01
A38: Customer Letters, General Service >50, General Service 50-4,99 kW, Large | B38: In February 2020, Bluewater sent letters to all customers in the General Service > 50 kW, General Service 50-4999 kW (Intermediate), and Large Use rate categories. The purpose of the letter was to advise of our rebasing application, and to provide an overview of the Distribution System Plan. | C38: Outcomes: No customer feedback.
A41: 2020-02-01
A42: COMMUNITY ENGAGEMENT
A43: Emergency Preparedness Day (annually) | B43: Through feedback from customer care, Bluewater identified a need for Bluewater to be part of the communities it serves, which value safety education | C43: Schools in our communities and the general public attend the Community Awareness Emergency Response event, where Bluewater provides information about safety around power lines.
A44: Power Line Safety campaigns | B44: Through feedback from customer care, Bluewater identified an interest in and need for safety education. | C44: Through social media, Bluewater promotes power line safety. In partnership with other utilities, an educational video was created and is promoted.
A45: Participation in community events, including the Sarnia Home Show, Degroots Garden Show, Seniors Information Fair | B45: Bluewater meets with customers that may not come into the office. Customers appreciate additional dialogue regarding the composition of their invoices. | C45: Community events allow Bluewater staff, including customer service and CDM, to meet face-to-face with its customers and introduce them to Energy Conservation Programs, learn about online resources, such as consumption data, and engage with customers about their electrical bills, generally . Also, promotions are on-going to encourage customers to enrol with e-billing.
A46: 100 Year Community Celebration BBQs | B46: Survey results identified a need to maintain effective customer service and competitive distribution rates. | C46: To celebrate to utility’s 100 year anniversary, staff interacted with customers face-to-face at events held in each of the communities served by Bluewater. A survey was conducted to gather feedback on customer experiences.
A47: Take Your Kids to Work Day | B47: Local high school students need information about electricity and careers. | C47: The students learn about possible jobs at the Bluewater and several topics including safety, health, and wellness.
A49: Charitable donations | B49: Some customers face challenging personal and financial circumstances. | C49: Bluewater supports local charities, which support our customers.
A52: Employee charitable efforts | B52: Some customers face challenging personal and financial circumstances. | C52: Bluewater employees fundraise internally weekly for charities. Employees also support charitable events, including the Big Bike for Heart and Stroke, the Ontario Utility Hockey Tournament for KidSport Ontario, and a bake sale for Canadian Breast Cancer Foundation.
B54: Social media feedback from customers demonstrates support of Bluewater’s relief efforts. | C54: During the holidays, employees collect funds and non-perishable food to donate to the food local bank.
C56: Employees also respond to emergencies, including volunteering to assist with relief efforts to restore power after hurricanes and storms throughout Canada and the United States. Employees also gathered supplies for the victims of Hurricane Harvey.
C58: These efforts allow for continued employee empathy and sensitivity to community interaction and account collection activities, as well as continued focus on monitoring of bill impacts and maintaining competitive distribution rates.
A59: Networking Events, including: | B59: Bluewater actively participates in its local Chamber of Commerce, as well as other networking events to interact with local businesses and community members. | C59: Staff are able to hear customers’ electricity concerns, provide industry education, and assistance where needed.
A61: Chamber of Commerce events; Bluewater Power hosted a Business After 5 Event (2016)
A63: Enbridge Famous 5 Speaker Series (2016)
A64: CONSERVATION PROGRAMS
A65: Individual meetings with individual commercial customers | B65: Customers want to learn more about the conservation programs offered by Bluewater. | C65: The Conservation Demand Management team regularly conduct one-on-one meetings and information sessions with commercial customers to discuss conservation options.
A66: Community Events | B66: Customers want to learn more about the conservation programs offered by Bluewater. | C66: The Conservation Demand Management team attended various community events, including the Point Edward Farmers Market, DeGroots Garden Show, Sarnia Kinsmen Ribfest, and CHOK Garden Show, as well as Instant Savings Events in different municipalities served by Bluewater. These events allow for customers to interact with staff and learn about programs that will help the reduce their energy consumption and manage their bills.
A67: SURVEYS
A68: Customer Satisfaction Bi-Annual Telephone Survey (Oraclepoll Research), | B68: As required by the OEB, customer satisfaction surveys are conducted bi-annually. | C68: Bluewater closely monitors the results of the surveys and takes actions to investigate and implement solutions for identified issues. Bluewater considers customers’ desires for new technology and methods to improve service to them.
A69: 400 participants per survey
B70: Overall customers satisfaction improved. There was a slight decrease in satisfaction with respect to the reliability of electricity service. Customer service satisfaction increased. | C70: The slight decrease in reliability satisfaction supports the action to focus on increasing reliability through a pole replacement program.
A71: Conducted in 2014, 2017, 2019, 2021
A72: Public Safety Awareness Survey – Bi-Annual Telephone Survey | B72: As required by OEB, public safety awareness surveys are conducted bi-annually. | C72: Bluewater closely monitors the results of the surveys, and promotes power line safety through social media.
A74: Conducted in 2016, 2018, 2020, 2022
A75: Online Customer Satisfaction Survey | B75: Customers support investing in aging infrastructure and automated switches/modernizing technology. They were interested in usage comparisons, a mobile app, and the promotion of conservation. | C75: Bluewater followed up directly with any customer-specific queries. Bluewater has budgeted to replace aging infrastructure, including wood poles.
A77: Conducted in summer of 2018
A78: Home Show Survey | B78: Results from the 2016 survey indicated that 96% of customers are satisfied with the current level of service. Customers prioritize lowering electricity bills. | C78: Bluewater followed up directly with any customer-specific queries.
A80: Conducted in 2016
A82: Customer Survey on DSP | B82: Customers were satisfied with the service from Bluewater and supported the proposed investments in all four categories. | C82: Bluewater followed up directly with any customer-specific queries. Bluewater proposed the investments that its customers supported in this DSP.
A84: Conducted in January 2022
A85: ONLINE COMMUNICATION
A86: Website | B86: Through ongoing customer feedback, Bluewater identified a need to provide customers with easily accessible information on billing, operations, conservation, and self-service options. | C86: Detailed billing and account transaction information; Tools to view and manage consumption
A87: MyAccount | B87: Through ongoing customer feedback, Bluewater identified a need to provide customers with easily accessible information on billing and usage. | C87: The MyAccount portal allows customers access to hourly consumption data and monthly bills with ebilling
A88: Outage map | B88: Customer phone calls related to storms and outages identified need for online information source on outages. Customers continuously express interest in outage notification systems. | C88: An outage management system was implemented in 2018, which includes an outage map available on our website. Through our increased use of social media, customers are notified of outages and provided with links to the live outage map.

Sheet App.2-B_Acctg Instructions (hidden)
A1: General Instructions to MIFRS Appendices
A2: Types of Schedules to File
A4: The purpose of this tab is to provide general instructions. The specific instructions to each appendix are listed in footnotes of each appendix.
A6: The typical applicant is expected to have made capitalization and depreciation policy changes under CGAAP as permitted by the OEB on January 1, 2012 or mandated by the OEB by January 1, 2013, and adopted IFRS for reporting purposes on January 1, 2015 (transition date January 1, 2014). Most distributors filing for 2021 rates have rebased with these accounting changes reflected in a prior rebasing application. If that is the case, information relating to pre-accounting policy changes is not generally required. Most distributors may have rebased under MIFRS. If that is the case, information related to the accounting standard used prior to IFRS is not generally required. The information to be provided by applicants will depend on when the accounting policy changes were made and when they last rebased. In general, applicants should provide the following information in the appendices:
E9: Reflecting Accounting Policy Changes in Current Application | G9: Reflected Accounting Policy Changes in Prior Application3 | H9: Rebased under MIFRS in Prior Application3
E10: Accounting Policy Changes in 2012 and Adopted IFRS in 2015 | F10: Accounting Policy Changes in 2013 and Adopted IFRS in 2015 | G10: Adopted IFRS in 2015 | H10: IFRS Since 2015
B11: 2021 | C11: Test | E11: MIFRS | F11: MIFRS | G11: MIFRS | H11: MIFRS
A12: Information to be filed in 2019 CoS Application | B12: 2020 | C12: Bridge | E12: MIFRS | F12: MIFRS | G12: MIFRS | H12: MIFRS
B13: 2019 | C13: Bridge | E13: MIFRS | F13: MIFRS | G13: MIFRS | H13: MIFRS
B14: 2018 | C14: Bridge | E14: MIFRS | F14: MIFRS | G14: MIFRS | H14: MIFRS
B15: 2017 | C15: Historical | E15: MIFRS | F15: MIFRS | G15: MIFRS | H15: MIFRS
B16: 2016 | C16: Historical | E16: MIFRS | F16: MIFRS | G16: MIFRS | H16: MIFRS
B17: 2015 | C17: Historical | E17: MIFRS and Revised CGAAP1 | F17: MIFRS and Revised CGAAP1 | G17: MIFRS and Revised CGAAP1 | H17: N/A
B18: 2014 | C18: Historical | E18: Revised CGAAP | F18: CGAAP and Revised CGAAP2 | G18: N/A | H18: N/A
B19: 2013 | C19: Historical | E19: CGAAP and Revised CGAAP2 | F19: N/A | G19: N/A | H19: N/A
A21: 1) For the transition year (2014), the applicant may file two appendices, one under Revised CGAAP and one under MIFRS, depending on the materiality of impacts. See the specific instructions under each appendix below for further details.
A22: 2) For applicants that are reflecting accounting policy changes for the first time in a rebasing application, the applicant must file two appendices in the year that the applicant implemented changes to its capitalization and depreciation policies (2012 or 2013), one before and one after the policy changes.
A23: 3) Applicants should provide CGAAP and Revised CGAAP schedules (i.e. as indicated in the first two columns of the above table) to support balances in Account 1576 if the account has yet to be disposed of.
A26: Appendix 2-BA - Fixed Asset Schedule
A28: Applicants are to provide Appendix 2-BA in accordance with the years and corresponding accounting standards noted in the above table to provide a year over year continuity in fixed assets.
A29: If this is the first application where the applicant is rebasing under MIFRS, the applicant should file two appendices, one under Revised CGAAP and one under MIFRS for the transition year (2014), if the change between Revised CGAAP and MIFRS is material. If the change from the accounting standards is not material, the applicant may choose to only provide one appendix under MIFRS. However, the applicant must also indicate the fixed asset net book value balance under Revised CGAAP, the total dollar value of the change and explain why it is not material.
A33: The applicant must establish the continuity of historical cost for gross assets and accumulated depreciation by asset class by ensuring that the opening balance in the year agrees to the closing balance in the prior year.
A36: Appendix 2-Cx - Depreciation and Amortization
A38: Applicants are to provide Appendix 2-C in accordance with the years and corresponding accounting standards listed in the above table.
A39: Appendix 2-C is to be used under all of the scenarios presented in the table above. In the appendix, the applicant will need to indicate which scenario applies. The appendix is to be duplicated for each year and for each accounting standard required as per the above table.
A40: Depreciation accounting policy changes were mandated by the OEB by January 1, 2013. In general, no further changes to an applicant's depreciation policy (i.e. assets' service lives) are expected after the OEB mandated changes by January 1, 2013, unless a change is determined to be necessary in accordance with the depreciation review required under IFRS. If the applicant has made any changes to its depreciation policy subsequent to the OEB mandated changes, for the year of the change, applicants must quantify the change in depreciation. If there are significant changes to multiple asset classes, the applicant must complete Appendix 2-C before and after the change. Applicants must also explain the nature of the change, the reason for the change, quantify the impact of the change.
A42: Appendix 2-E - Account 1575, IFRS-CGAAP Transitional PP&E Amounts (2-EA), Account 1576, Accounting Changes Under CGAAP (2-EB, 2-EC) CONTACT OEB STAFF IF TAB REQUIRED
A44: 1) For an applicant that has a balance in Account 1576 to dispose:
A45: · | B45: If an applicant changed capitalization and depreciation policies effective January 1, 2012, the applicant must complete Appendix 2-EB
A46: · | B46: If an applicant changed capitalization and depreciation policies effective January 1, 2013, the applicant must complete Appendix 2-EC
A48: 2) For an applicant that has a balance in Account 1575 to dispose:
A49: · | B49: The applicant must complete 2-EA
A50: If the applicant did not make any further PP&E accounting policy changes beyond the capitalization and depreciation policy changes as mandated by the OEB by January 1, 2013 (i.e. no further changes made on transition to IFRS), the applicant must indicate this and does not need to complete Appendix 2-EA.
A54: Appendix 2-Y - Summary of Impacts to Revenue Requirement from Transition to MIFRS CONTACT OEB STAFF IF TAB REQUIRED
A56: Applicants must complete Appendix 2-Y if this is the first rebasing application under MIFRS. An applicant must provide a summary of the dollar impacts of MIFRS to each component of the revenue requirement (e.g. rate base, operating costs, etc.), including the overall impact on the proposed revenue requirement. Accordingly, the applicant must identify financial differences and resulting revenue requirement impacts arising from the adoption of MIFRS as compared to CGAAP. If the applicant is reflecting the changes in capitalization and depreciation policies for the first time in a rebasing application as well, then a comparison between MIFRS and CGAAP before the change in accounting policies should be completed. If the applicant changed capitalization and depreciation policies and reflected these changes in a prior rebasing application, then a comparison between MIFRS and CGAAP after the change in accounting policies should be completed.

Sheet App.2-BA_Fixed Asset Cont
N1: File Number: | O1: =EBNUMBER -> EB-2022-0016
N2: Exhibit:
N3: Tab:
N4: Schedule:
N5: Page:
N7: Date: | O7: 2023-02-13
A9: Appendix 2-BA
A10: Fixed Asset Continuity Schedule 1
E12: Accounting Standard | G12: MIFRS
E13: Year | G13: 2013 | H13: OEB Approved
D15: Cost | K15: Accumulated Depreciation
A16: CCA Class 2 | B16: OEB Account 3 | C16: Description 3 | D16: Opening Balance 8 | E16: Additions 4 | F16: Disposals (NBV = nil) | G16: Disposals 6 | H16: Closing Balance | J16: Opening Balance 8 | K16: Additions | L16: Disposals (NBV = nil) | M16: Disposals 6 | N16: Closing Balance | O16: Net Book Value
B17: 1609 | C17: Capital Contributions Paid | H17: =D17+E17+F17+G17 -> 0 | N17: =J17+K17+M17+L17 -> 0 | O17: =H17+N17 -> 0
A18: 12 | B18: 1611 | C18: Computer Software (Formally known as Account 1925) | D18: 14938463 | E18: 799935 | H18: =D18+E18+F18+G18 -> 15738398 | J18: -8251501 | K18: -2146488 | N18: =J18+K18+M18+L18 -> -10397989 | O18: =H18+N18 -> 5340409
A19: CEC | B19: 1612 | C19: Land Rights (Formally known as Account 1906) | D19: 283160 | E19: 257200 | H19: 540360 | J19: -268534 | K19: -1125 | N19: -269659 | O19: =H19+N19 -> 270701
A20: N/A | B20: 1805 | C20: Land | D20: 497489 | H20: 497489 | N20: 0 | O20: =H20+N20 -> 497489
A21: 47 | B21: 1808 | C21: Buildings | H21: 0 | N21: 0 | O21: =H21+N21 -> 0
A22: 13 | B22: 1810 | C22: Leasehold Improvements | H22: 0 | N22: 0 | O22: 0
A23: 47 | B23: 1815 | C23: Transformer Station Equipment >50 kV | H23: 0 | N23: 0 | O23: 0
A24: 47 | B24: 1820 | C24: Distribution Station Equipment <50 kV | D24: 6674639 | E24: 355000 | H24: 7029639 | J24: -3382452 | K24: -191728 | N24: -3574180 | O24: 3455459
A25: 47 | B25: 1825 | C25: Storage Battery Equipment | H25: 0 | N25: 0 | O25: 0
A26: 47 | B26: 1830 | C26: Poles, Towers & Fixtures | D26: 3288021 | E26: 774250 | H26: 4062271 | J26: -357747 | K26: -77886 | N26: -435633 | O26: 3626638
A27: 47 | B27: 1835 | C27: Overhead Conductors & Devices | D27: 28062510 | E27: 477000 | H27: 28539510 | J27: -18207109 | K27: -289132 | N27: -18496241 | O27: 10043269
A28: 47 | B28: 1840 | C28: Underground Conduit | D28: 1335143 | E28: 130000 | H28: 1465143 | J28: -153090 | K28: -25482 | N28: -178572 | O28: 1286571
A29: 47 | B29: 1845 | C29: Underground Conductors & Devices | D29: 20729936 | E29: 1185000 | H29: 21914936 | J29: -12636534 | K29: -368512 | N29: -13005046 | O29: 8909890
A30: 47 | B30: 1850 | C30: Line Transformers | D30: 16293962 | E30: 704750 | H30: 16998712 | J30: -9036347 | K30: -242286 | N30: -9278633 | O30: 7720079
A31: 47 | B31: 1855 | C31: Services (Overhead & Underground) | D31: 747806 | E31: 55000 | H31: 802806 | J31: -82027 | K31: -32046 | N31: -114073 | O31: 688733
A32: 47 | B32: 1860 | C32: Meters | D32: 1216228 | E32: 50000 | H32: 1266228 | J32: -243109 | K32: -59359 | N32: -302468 | O32: 963760
A33: 47 | B33: 1860 | C33: Meters (Smart Meters) | D33: 4661948 | H33: 4661948 | J33: -729238 | K33: -310797 | N33: -1040035 | O33: 3621913
A34: N/A | B34: 1905 | C34: Land | H34: 0 | N34: 0 | O34: 0
A35: 1b | B35: 1908 | C35: Buildings & Fixtures | D35: 8157820 | E35: 212500 | H35: 8370320 | J35: -2035157 | K35: -170983 | N35: -2206140 | O35: 6164180
A36: 13 | B36: 1910 | C36: Leasehold Improvements | H36: 0 | N36: 0 | O36: 0
A37: 8 | B37: 1915 | C37: Office Furniture & Equipment (10 years) | D37: 968617 | E37: 10000 | H37: 978617 | J37: -725421 | K37: -50860 | N37: -776281 | O37: 202336
A38: 8 | B38: 1915 | C38: Office Furniture & Equipment (5 years) | H38: 0 | N38: 0 | O38: 0
A39: 50 | B39: 1920 | C39: Computer Equip.-Hardware(Post Mar. 19/07) | D39: 6320946 | E39: 881590 | H39: 7202536 | J39: -4583528 | K39: -699342 | N39: -5282870 | O39: 1919666
A40: 45 | B40: 1920 | C40: Computer Equip.-Hardware(Post Mar. 22/04) | H40: 0 | N40: 0 | O40: 0
A41: 10 | B41: 1920 | C41: Computer Equip.-Hardware | H41: 0 | N41: 0 | O41: 0
A42: 10 | B42: 1930 | C42: Transportation Equipment | D42: 4941416 | E42: 502500 | H42: 5443916 | J42: -3059881 | K42: -328742 | N42: -3388623 | O42: 2055293
A43: 8 | B43: 1935 | C43: Stores Equipment | D43: 81138 | H43: 81138 | J43: -76074 | K43: -5063 | N43: -81137 | O43: 1
A44: 8 | B44: 1940 | C44: Tools, Shop & Garage Equipment | D44: 969840 | E44: 42000 | H44: 1011840 | J44: -707292 | K44: -58911 | N44: -766203 | O44: 245637
A45: 8 | B45: 1945 | C45: Measurement & Testing Equipment | D45: 361635 | E45: 10000 | H45: 371635 | J45: -236674 | K45: -21282 | N45: -257956 | O45: 113679
A46: 8 | B46: 1950 | C46: Power Operated Equipment | H46: 0 | N46: 0 | O46: 0
A47: 8 | B47: 1955 | C47: Communications Equipment | D47: 252975 | H47: 252975 | J47: -175060 | K47: -13288 | N47: -188348 | O47: 64627
A48: 8 | B48: 1955 | C48: Communication Equipment (Smart Meters) | H48: 0 | N48: 0 | O48: 0
A49: 8 | B49: 1960 | C49: Miscellaneous Equipment | D49: 784532 | H49: 784532 | J49: -718014 | K49: -13303 | N49: -731317 | O49: 53215
A50: 47 | B50: 1970 | C50: Load Management Controls Customer Premises | D50: 464917 | H50: 464917 | J50: -464917 | K50: 0 | N50: -464917 | O50: 0
A51: 47 | B51: 1975 | C51: Load Management Controls Utility Premises | H51: 0 | N51: 0 | O51: 0
A52: 47 | B52: 1980 | C52: System Supervisor Equipment | D52: 1313760 | E52: 20000 | H52: 1333760 | J52: -835238 | K52: -47235 | N52: -882473 | O52: 451287
A53: 47 | B53: 1985 | C53: Miscellaneous Fixed Assets | H53: 0 | N53: 0 | O53: 0
A54: 47 | B54: 1990 | C54: Other Tangible Property | D54: 645280 | H54: 645280 | N54: 0 | O54: 645280
A55: 47 | B55: 1995 | C55: Contributions & Grants | D55: -6805427 | E55: -675457 | H55: -7480884 | J55: 1678529 | K55: 143820 | N55: 1822349 | O55: -5658535
A56: 47 | B56: 2440 | C56: Deferred Revenue5 | H56: 0 | N56: 0 | O56: 0
B57: 2005 | C57: Property Under Finance Lease7 | H57: 0 | N57: =J57+K57+M57+L57 -> 0 | O57: =H57+N57 -> 0
C58: Reconciling item | G58: -30 | H58: -30 | N58: 0 | O58: -30
C59: Sub-Total | D59: =SUM(D17:D58) -> 117186754 | E59: =SUM(E17:E58) -> 5791268 | F59: =SUM(F17:F58) -> 0 | G59: =SUM(G17:G58) -> -30 | H59: =SUM(H17:H58) -> 122977992 | J59: =SUM(J17:J58) -> -65286415 | K59: -5010030 | L59: 0 | M59: 0 | N59: -70296445 | O59: 52681547
C60: Less Socialized Renewable Energy Generation Investments (input as negative) | H60: =D60+E60+G60 -> 0 | N60: =J60+K60+M60 -> 0 | O60: =H60+N60 -> 0
C61: Less Other Non Rate-Regulated Utility Assets (input as negative) | H61: =D61+E61+G61 -> 0 | N61: =J61+K61+M61 -> 0 | O61: =H61+N61 -> 0
C62: Total PP&E | D62: =SUM(D59:D61) -> 117186754 | E62: =SUM(E59:E61) -> 5791268 | F62: =SUM(F59:F61) -> 0 | G62: =SUM(G59:G61) -> -30 | H62: =SUM(H59:H61) -> 122977992 | J62: =SUM(J59:J61) -> -65286415 | K62: -5010030 | L62: 0 | M62: 0 | N62: -70296445 | O62: 52681547
D63: add back cont capital | E63: 675457 | J63: less: Overhead Adjustment | K63: 62000
D64: total gross capital additions | E64: =+E62+E63 -> 6466725 | J64: Net Depreciation Expense for 2013 | K64: =+K62+K63 -> -4948030
A70: Notes:
A72: 1 | B72: Tables in the format outlined above covering all fixed asset accounts should be submitted for the Test Year, Bridge Year and all relevant historical years. At a minimum , the applicant must provide data for the earlier of: 1) all historical years back to its last rebasing; or 2) at least three years of historical actuals, in addition to Bridge Year and Test Year forecasts. If this is the first application where the applicant is rebasing under MIFRS, contact OEB staff for further guidance on the appropriate fixed asset continuity schedules to complete (i.e. applicable years and accounting standard for each schedule).
A75: 2 | B75: The "CCA Class" for fixed assets should generally agree with the CCA Class used for tax purposes in Tax Returns. Fixed Assets sub-components may be used where the underlying asset components are classified under multiple CCA Classes for tax purposes. If an applicant uses any different classes from those shown in the table, an explanation should be provided. (also see note 3).
A78: 3 | B78: The table may need to be customized for a utility's asset categories or for any new asset accounts announced or authorized by the OEB.
A80: 4 | B80: The additions in column (E) must not include construction work in progress (CWIP).
A82: 5 | B82: Effective on the date of IFRS adoption, customer contributions will no longer be recorded in Account 1995 Contributions & Grants, but will be recorded in Account 2440, Deferred Revenues. Amortization of deferred revenue will be removed from the depreciation expense shown on this fixed asset continuity schedule as it should be included as income in Appendix 2-H Other Revenues.
A84: 6 | B84: The applicant must ensure that all asset disposals have been clearly identified in the Chapter 2 Appendices for all historic, bridge and test years. Where a distributor for general financial reporting purposes under IFRS has accounted for the amount of gain or loss on the retirement of assets in a pool of like assets as a charge or credit to income, for reporting and rate application filings, the distributor shall reclassify such gains and losses as depreciation expense, and disclose the amount separately.
A87: 7 | B87: This account includes the amount recorded under finance leases for plant leased from others and used by the utility in its utility operations.
A88: 8 | B88: The applicant must establish the continuity of historical cost for gross assets and accumulated depreciation by asset class by ensuring that the opening balance in the year agrees to the closing balance in the prior year.
M91: File Number: | N91: =EBNUMBER -> EB-2022-0016
M92: Exhibit:
M93: Tab:
M94: Schedule:
M95: Page:
M97: Date: | N97: 2022-10-24
A99: Appendix 2-BA
A100: Fixed Asset Continuity Schedule 1
E102: Accounting Standard | G102: CGAAP
E103: Year | G103: 2013
D105: Cost | K105: Accumulated Depreciation
A106: CCA Class 2 | B106: OEB Account 3 | C106: Description 3 | D106: Opening Balance 8 | E106: Additions 4 | F106: Disposals (NBV = nil) | G106: Disposals 6 | H106: Closing Balance | J106: Opening Balance 8 | K106: Additions | L106: Disposals (NBV = nil) | M106: Disposals 6 | N106: Closing Balance | O106: Net Book Value
B107: 1609 | C107: Capital Contributions Paid | H107: =D107+E107+F107+G107 -> 0 | N107: =J107+K107+M107+L107 -> 0 | O107: =H107+N107 -> 0
A108: 12 | B108: 1611 | C108: Computer Software (Formally known as Account 1925) | D108: 14938462 | E108: =989451+184 -> 989635 | F108: =-4565555-1037528-184 -> -5603267 | H108: =D108+E108+F108+G108 -> 10324830 | J108: -8251683 | K108: -2116810 | L108: =4565555+1037528+184 -> 5603267 | N108: =J108+K108+M108+L108 -> -4765226 | O108: =H108+N108 -> 5559604
A109: CEC | B109: 1612 | C109: Land Rights (Formally known as Account 1906) | D109: 283160 | F109: -253355 | H109: 29805 | J109: -268535 | K109: -1192 | L109: 253355 | N109: -16372 | O109: =H109+N109 -> 13433
A110: N/A | B110: 1805 | C110: Land | D110: 497489 | H110: 497489 | N110: 0 | O110: =H110+N110 -> 497489
A111: 47 | B111: 1808 | C111: Buildings | H111: 0 | N111: 0 | O111: =H111+N111 -> 0
A112: 13 | B112: 1810 | C112: Leasehold Improvements | H112: 0 | N112: 0 | O112: 0
A113: 47 | B113: 1815 | C113: Transformer Station Equipment >50 kV | H113: 0 | N113: 0 | O113: 0
A114: 47 | B114: 1820 | C114: Distribution Station Equipment <50 kV | D114: 6674639 | E114: 167402 | F114: -1539401 | H114: 5302640 | J114: -3382453 | K114: -220406 | L114: 1539401 | N114: -2063458 | O114: 3239182
A115: 47 | B115: 1825 | C115: Storage Battery Equipment | H115: 0 | N115: 0 | O115: 0
A116: 47 | B116: 1830 | C116: Poles, Towers & Fixtures | D116: 3288021 | E116: 535801 | H116: 3823822 | J116: -357749 | K116: -74568 | N116: -432317 | O116: 3391505
A117: 47 | B117: 1835 | C117: Overhead Conductors & Devices | D117: 28062511 | E117: 553800 | F117: -7208233 | H117: 21408078 | J117: -18207110 | K117: -292374 | L117: 7208233 | N117: -11291251 | O117: 10116827
A118: 47 | B118: 1840 | C118: Underground Conduit | D118: 1335143 | E118: 211686 | H118: 1546829 | J118: -153091 | K118: -25598 | N118: -178689 | O118: 1368140
A119: 47 | B119: 1845 | C119: Underground Conductors & Devices | D119: 20729936 | E119: 259635 | F119: -4048327 | H119: 16941244 | J119: -12636534 | K119: -355853 | L119: 4048327 | N119: -8944060 | O119: 7997184
A120: 47 | B120: 1850 | C120: Line Transformers | D120: 16293962 | E120: 512341 | F120: -3943044 | H120: 12863259 | J120: -9036347 | K120: -239910 | L120: 3943044 | N120: -5333213 | O120: 7530046
A121: 47 | B121: 1855 | C121: Services (Overhead & Underground) | D121: 747807 | E121: 175147 | H121: 922954 | J121: -82028 | K121: -32945 | N121: -114973 | O121: 807981
A122: 47 | B122: 1860 | C122: Meters | D122: =5878176-D123 -> 884156 | E122: =13134 -> 13134 | H122: 897290 | J122: =-221286 -> -221286 | K122: =-35854 -> -35854 | N122: -257140 | O122: 640150
A123: 47 | B123: 1860 | C123: Meters (Smart Meters) | D123: 4994020 | E123: 93902 | F123: -729238 | H123: 4358684 | J123: -751060 | K123: -337523 | L123: 729238 | N123: -359345 | O123: 3999339
A124: N/A | B124: 1905 | C124: Land | H124: 0 | N124: 0 | O124: 0
A125: 1b | B125: 1908 | C125: Buildings & Fixtures | D125: 8157821 | E125: 515860 | F125: -768716 | H125: 7904965 | J125: -2035157 | K125: -178130 | L125: 768716 | N125: -1444571 | O125: 6460394
A126: 13 | B126: 1910 | C126: Leasehold Improvements | H126: 0 | N126: 0 | O126: 0
A127: 8 | B127: 1915 | C127: Office Furniture & Equipment (10 years) | D127: 968617 | E127: 64833 | F127: -568839 | H127: 464611 | J127: -725206 | K127: -43493 | L127: 568839 | N127: -199860 | O127: 264751
A128: 8 | B128: 1915 | C128: Office Furniture & Equipment (5 years) | H128: 0 | N128: 0 | O128: 0
A129: 50 | B129: 1920 | C129: Computer Equip.-Hardware(Post Mar. 19/07) | D129: 6320945 | E129: 554938 | F129: =-3259977-174816 -> -3434793 | H129: 3441090 | J129: -4583529 | K129: -628644 | L129: =3259977+174816 -> 3434793 | N129: -1777380 | O129: 1663710
A130: 45 | B130: 1920 | C130: Computer Equip.-Hardware(Post Mar. 22/04) | H130: 0 | N130: 0 | O130: 0
A131: 10 | B131: 1920 | C131: Computer Equip.-Hardware | H131: 0 | N131: 0 | O131: 0
A132: 10 | B132: 1930 | C132: Transportation Equipment | D132: 4941416 | E132: 488549 | G132: -582500 | H132: 4847465 | J132: -3059880 | K132: -320365 | M132: 574238 | N132: -2806007 | O132: 2041458
A133: 8 | B133: 1935 | C133: Stores Equipment | D133: 81138 | F133: -42590 | H133: 38548 | J133: -76075 | K133: -4790 | L133: 42590 | N133: -38275 | O133: 273
A134: 8 | B134: 1940 | C134: Tools, Shop & Garage Equipment | D134: 969840 | E134: =28166-37128 -> -8962 | F134: =-496299-49820+37128 -> -508991 | H134: 451887 | J134: -707291 | K134: -43018 | L134: =496299+49820-37128 -> 508991 | N134: -241318 | O134: 210569
A135: 8 | B135: 1945 | C135: Measurement & Testing Equipment | D135: 361635 | F135: -194133 | H135: 167502 | J135: -236673 | K135: -16750 | L135: 194133 | N135: -59290 | O135: 108212
A136: 8 | B136: 1950 | C136: Power Operated Equipment | H136: 0 | N136: 0 | O136: 0
A137: 8 | B137: 1955 | C137: Communications Equipment | D137: 252975 | F137: -122390 | H137: 130585 | J137: -175060 | K137: -12953 | L137: 122390 | N137: -65623 | O137: 64962
A138: 8 | B138: 1955 | C138: Communication Equipment (Smart Meters) | H138: 0 | N138: 0 | O138: 0
A139: 8 | B139: 1960 | C139: Miscellaneous Equipment | D139: 784532 | E139: =34748+36945 -> 71693 | F139: =-675138 -> -675138 | H139: 181087 | J139: -718014 | K139: -15925 | L139: =675138 -> 675138 | N139: -58801 | O139: 122286
A140: 47 | B140: 1970 | C140: Load Management Controls Customer Premises | D140: 464917 | F140: -464917 | H140: 0 | J140: -464917 | L140: 464917 | N140: 0 | O140: 0
A141: 47 | B141: 1975 | C141: Load Management Controls Utility Premises | H141: 0 | N141: 0 | O141: 0
A142: 47 | B142: 1980 | C142: System Supervisor Equipment | D142: 1313759 | E142: 98765 | F142: -266928 | H142: 1145596 | J142: -835237 | K142: -44425 | L142: 266928 | N142: -612734 | O142: 532862
A143: 47 | B143: 1985 | C143: Miscellaneous Fixed Assets | H143: 0 | N143: 0 | O143: 0
A144: 47 | B144: 1990 | C144: Other Tangible Property | D144: 645280 | E144: 100867 | H144: 746147 | N144: 0 | O144: 746147
A145: 47 | B145: 1995 | C145: Contributions & Grants | D145: -6805427 | E145: -537827 | H145: -7343254 | J145: 1678528 | K145: 284056 | N145: 1962584 | O145: -5380670
A146: 47 | B146: 2440 | C146: Deferred Revenue5 | H146: 0 | N146: 0 | O146: =H146+N146 -> 0
B147: 2005 | C147: Property Under Finance Lease7 | H147: 0 | N147: 0 | O147: 0
C148: Sub-Total | D148: =SUM(D107:D147) -> 117186754 | E148: =SUM(E107:E147) -> 4861199 | F148: =SUM(F107:F147) -> -30372300 | G148: =SUM(G107:G147) -> -582500 | H148: =SUM(H107:H147) -> 91093153 | J148: =SUM(J107:J147) -> -65286387 | K148: -4757470 | L148: 30372300 | M148: 574238 | N148: -39097319 | O148: 51995834
C149: Less Socialized Renewable Energy Generation Investments (input as negative) | H149: =D149+E149+G149 -> 0 | N149: =J149+K149+M149 -> 0 | O149: =H149+N149 -> 0
C150: Less Other Non Rate-Regulated Utility Assets (input as negative) | H150: =D150+E150+G150 -> 0 | N150: =J150+K150+M150 -> 0 | O150: 0
C151: Total PP&E | D151: =SUM(D148:D150) -> 117186754 | E151: =SUM(E148:E150) -> 4861199 | F151: =SUM(F148:F150) -> -30372300 | G151: =SUM(G148:G150) -> -582500 | H151: =SUM(H148:H150) -> 91093153 | J151: =SUM(J148:J150) -> -65286387 | K151: -4757470 | L151: 30372300 | M151: 574238 | N151: -39097319 | O151: 51995834
C152: Depreciation Expense adj. from gain or loss on the retirement of assets (pool of like assets), if applicable6
C153: Total | K153: =K151+K152 -> -4757470
J155: Less: Fully Allocated Depreciation
A156: 10 | C156: Transportation | J156: Transportation
A157: 8 | C157: Stores Equipment | J157: Stores Equipment
A158: 47 | C158: Deferred Revenue | J158: Deferred Revenue
J159: Net Depreciation | M159: =K153-M156-M157-M158 -> -4757470
C163: per above | D163: =+D151 -> 117186754 | E163: =+E151 -> 4861199 | F163: =+F151 -> -30372300 | G163: =+G151 -> -582500 | H163: =+H151 -> 91093153 | J163: =+J151 -> -65286387 | K163: -4757470 | L163: 30372300 | M163: 574238 | N163: -39097319 | O163: 51995834
C164: remove GL 1995
C165: GL 2075 - Non Utility Assets | D165: 0 | E165: 33157 | F165: 0 | G165: 0 | H165: =SUM(D165:G165) -> 33157 | J165: 0 | K165: -8289 | L165: 0 | M165: 0 | N165: =SUM(J165:M165) -> -8289 | O165: =+H165+N165 -> 24868
C166: GL 2055 - CWIP | D166: 240893 | E166: 70701 | F166: 0 | G166: 0 | H166: =SUM(D166:G166) -> 311594 | J166: 0 | K166: 0 | L166: 0 | M166: 0 | N166: =SUM(J166:M166) -> 0 | O166: =+H166+N166 -> 311594
C167: Total Cost = | D167: =SUM(D163:D166) -> 117427647 | E167: =SUM(E163:E166) -> 4965057 | F167: -30372300 | G167: -582500 | H167: =SUM(H163:H166) -> 91437904 | J167: =SUM(J163:J166) -> -65286387 | K167: -4765759 | L167: 30372300 | M167: 574238 | N167: -39105608 | O167: 52332296
D168: agrees to audited FS | E168: agrees to audited FS | G168: agrees to audited FS | H168: agrees to audited FS | J168: agrees to audited FS | K168: agrees to audited FS | M168: agrees to audited FS | N168: agrees to audited FS | O168: agrees to audited FS
C170: Per Audited FS = | D170: 117427647 | E170: =5502883-537827 -> 4965056 | F170: -30372300 | G170: -582500 | H170: 91437901 | J170: -65286387 | K170: -4765762 | L170: 30372300 | M170: 574238 | N170: -39105610 | O170: =+H170+N170 -> 52332291
N173: File Number: | O173: =EBNUMBER -> EB-2022-0016
N174: Exhibit:
N175: Tab:
N176: Schedule:
N177: Page:
N179: Date: | O179: 2022-10-24
A181: Appendix 2-BA
A182: Fixed Asset Continuity Schedule 1
E184: Accounting Standard | G184: CGAAP
E185: Year | G185: 2014
D187: Cost | K187: Accumulated Depreciation
A188: CCA Class 2 | B188: OEB Account 3 | C188: Description 3 | D188: Opening Balance | E188: Additions 4 | F188: Disposals (NBV = nil) | G188: Disposals 6 | H188: Closing Balance | J188: Opening Balance | K188: Additions | L188: Disposals (NBV = nil) | M188: Disposals 6 | N188: Closing Balance | O188: Net Book Value
B189: 1609 | C189: Capital Contributions Paid | D189: =+H107 -> 0 | H189: =SUM(D189:G189) -> 0 | J189: =+N107 -> 0 | N189: =SUM(J189:M189) -> 0 | O189: =H189+N189 -> 0
A190: 12 | B190: 1611 | C190: Computer Software (Formally known as Account 1925) | D190: 10324830 | E190: =692351-40831 -> 651520 | H190: =SUM(D190:G190) -> 10976350 | J190: -4765226 | K190: -2180898 | N190: =SUM(J190:M190) -> -6946124 | O190: =H190+N190 -> 4030226
A191: CEC | B191: 1612 | C191: Land Rights (Formally known as Account 1906) | D191: 29805 | E191: 160000 | H191: 189805 | J191: -16372 | K191: -1192 | N191: -17564 | O191: =H191+N191 -> 172241
A192: N/A | B192: 1805 | C192: Land | D192: 497489 | H192: 497489 | J192: 0 | N192: 0 | O192: =H192+N192 -> 497489
A193: 47 | B193: 1808 | C193: Buildings | D193: 0 | H193: 0 | J193: 0 | N193: 0 | O193: =H193+N193 -> 0
A194: 13 | B194: 1810 | C194: Leasehold Improvements | D194: 0 | H194: 0 | J194: 0 | N194: 0 | O194: 0
A195: 47 | B195: 1815 | C195: Transformer Station Equipment >50 kV | D195: 0 | H195: 0 | J195: 0 | N195: 0 | O195: 0
A196: 47 | B196: 1820 | C196: Distribution Station Equipment <50 kV | D196: 5302640 | E196: 79308 | H196: 5381948 | J196: -2063458 | K196: -126280 | N196: -2189738 | O196: 3192210
A197: 47 | B197: 1825 | C197: Storage Battery Equipment | D197: 0 | H197: 0 | J197: 0 | N197: 0 | O197: 0
A198: 47 | B198: 1830 | C198: Poles, Towers & Fixtures | D198: 3823822 | E198: 385717 | H198: 4209539 | J198: -432317 | K198: -86341 | N198: -518658 | O198: 3690881
A199: 47 | B199: 1835 | C199: Overhead Conductors & Devices | D199: 21408078 | E199: 428401 | H199: 21836479 | J199: -11291251 | K199: -302663 | N199: -11593914 | O199: 10242565
A200: 47 | B200: 1840 | C200: Underground Conduit | D200: 1546829 | E200: 168721 | H200: 1715550 | J200: -178689 | K200: -33388 | N200: -212077 | O200: 1503473
A201: 47 | B201: 1845 | C201: Underground Conductors & Devices | D201: 16941244 | E201: 560925 | H201: 17502169 | J201: -8944060 | K201: -367474 | N201: -9311534 | O201: 8190635
A202: 47 | B202: 1850 | C202: Line Transformers | D202: 12863259 | E202: 578441 | H202: 13441700 | J202: -5333213 | K202: -252284 | N202: -5585497 | O202: 7856203
A203: 47 | B203: 1855 | C203: Services (Overhead & Underground) | D203: 922954 | E203: 192720 | H203: 1115674 | J203: -114973 | K203: -39203 | N203: -154176 | O203: 961498
A204: 47 | B204: 1860 | C204: Meters | D204: 897290 | E204: =22896 -> 22896 | H204: 920186 | J204: -257140 | K204: =-378723-K205 -> -36748 | N204: -293888 | O204: 626298
A205: 47 | B205: 1860 | C205: Meters (Smart Meters) | D205: 4358684 | E205: 26175 | H205: 4384859 | J205: -359345 | K205: -341975 | N205: -701320 | O205: 3683539
A206: N/A | B206: 1905 | C206: Land | D206: 0 | H206: 0 | J206: 0 | N206: 0 | O206: 0
A207: 1b | B207: 1908 | C207: Buildings & Fixtures | D207: 7904965 | E207: 128296 | H207: 8033261 | J207: -1444571 | K207: -176464 | N207: -1621035 | O207: 6412226
A208: 13 | B208: 1910 | C208: Leasehold Improvements | D208: 0 | H208: 0 | J208: 0 | N208: 0 | O208: 0
A209: 8 | B209: 1915 | C209: Office Furniture & Equipment (10 years) | D209: 464611 | E209: 9849 | H209: 474460 | J209: -199860 | K209: -45826 | N209: -245686 | O209: 228774
A210: 8 | B210: 1915 | C210: Office Furniture & Equipment (5 years) | D210: 0 | H210: 0 | J210: 0 | N210: 0 | O210: 0
A211: 50 | B211: 1920 | C211: Computer Equip.-Hardware(Post Mar. 19/07) | D211: 3441090 | E211: 401543 | H211: 3842633 | J211: -1777380 | K211: -625036 | N211: -2402416 | O211: 1440217
A212: 45 | B212: 1920 | C212: Computer Equip.-Hardware(Post Mar. 22/04) | D212: 0 | H212: 0 | J212: 0 | N212: 0 | O212: 0
A213: 10 | B213: 1920 | C213: Computer Equip.-Hardware | D213: 0 | H213: 0 | J213: 0 | N213: 0 | O213: 0
A214: 10 | B214: 1930 | C214: Transportation Equipment | D214: 4847465 | E214: 59530 | G214: -175913 | H214: 4731082 | J214: -2806007 | K214: -346069 | M214: 165303 | N214: -2986773 | O214: 1744309
A215: 8 | B215: 1935 | C215: Stores Equipment | D215: 38548 | H215: 38548 | J215: -38275 | K215: -113 | N215: -38388 | O215: 160
A216: 8 | B216: 1940 | C216: Tools, Shop & Garage Equipment | D216: 451887 | E216: 59439 | H216: 511326 | J216: -241318 | K216: -44674 | N216: -285992 | O216: 225334
A217: 8 | B217: 1945 | C217: Measurement & Testing Equipment | D217: 167502 | H217: 167502 | J217: -59290 | K217: -16750 | N217: -76040 | O217: 91462
A218: 8 | B218: 1950 | C218: Power Operated Equipment | D218: 0 | H218: 0 | J218: 0 | N218: 0 | O218: 0
A219: 8 | B219: 1955 | C219: Communications Equipment | D219: 130585 | H219: 130585 | J219: -65623 | K219: -11288 | N219: -76911 | O219: 53674
A220: 8 | B220: 1955 | C220: Communication Equipment (Smart Meters) | D220: 0 | H220: 0 | J220: 0 | N220: 0 | O220: 0
A221: 8 | B221: 1960 | C221: Miscellaneous Equipment | D221: 181087 | E221: 6270 | H221: 187357 | J221: -58801 | K221: -17977 | N221: -76778 | O221: 110579
A222: 47 | B222: 1970 | C222: Load Management Controls Customer Premises | D222: 0 | H222: 0 | J222: 0 | N222: 0 | O222: 0
A223: 47 | B223: 1975 | C223: Load Management Controls Utility Premises | D223: 0 | H223: 0 | J223: 0 | N223: 0 | O223: 0
A224: 47 | B224: 1980 | C224: System Supervisor Equipment | D224: 1145596 | E224: 133760 | H224: 1279356 | J224: -612734 | K224: -44669 | N224: -657403 | O224: 621953
A225: 47 | B225: 1985 | C225: Miscellaneous Fixed Assets | D225: 0 | H225: 0 | J225: 0 | N225: 0 | O225: 0
A226: 47 | B226: 1990 | C226: Other Tangible Property | D226: 746147 | E226: 71716 | H226: 817863 | J226: 0 | N226: 0 | O226: 817863
A227: 47 | B227: 1995 | C227: Contributions & Grants | D227: -7343254 | E227: -221294 | H227: -7564548 | J227: 1962584 | K227: 298087 | N227: 2260671 | O227: -5303877
A228: 47 | B228: 2440 | C228: Deferred Revenue5 | D228: 0 | H228: 0 | J228: 0 | N228: 0 | O228: 0
B229: 2005 | C229: Property Under Finance Lease7 | D229: 0 | H229: 0 | J229: 0 | N229: 0 | O229: 0
C230: Sub-Total | D230: =SUM(D189:D229) -> 91093153 | E230: =SUM(E189:E229) -> 3903933 | F230: =SUM(F189:F229) -> 0 | G230: =SUM(G189:G229) -> -175913 | H230: =SUM(H189:H229) -> 94821173 | J230: =SUM(J189:J229) -> -39097319 | K230: -4799225 | L230: 0 | M230: 165303 | N230: -43731241 | O230: 51089932
C231: Less Socialized Renewable Energy Generation Investments (input as negative) | D231: =+H149 -> 0 | H231: =SUM(D231:G231) -> 0 | J231: =+N149 -> 0 | N231: =SUM(J231:M231) -> 0 | O231: =H231+N231 -> 0
C232: Less Other Non Rate-Regulated Utility Assets (input as negative) | D232: =+H150 -> 0 | H232: 0 | J232: =+N150 -> 0 | N232: 0 | O232: =H232+N232 -> 0
C233: Total PP&E | D233: =SUM(D230:D232) -> 91093153 | E233: =SUM(E230:E232) -> 3903933 | F233: =SUM(F230:F232) -> 0 | G233: =SUM(G230:G232) -> -175913 | H233: =SUM(H230:H232) -> 94821173 | J233: =SUM(J230:J232) -> -39097319 | K233: -4799225 | L233: 0 | M233: 165303 | N233: -43731241 | O233: 51089932
C234: Depreciation Expense adj. from gain or loss on the retirement of assets (pool of like assets), if applicable6
C235: Total | K235: =K233+K234 -> -4799225
J237: Less: Fully Allocated Depreciation
... 763 more rows

Sheet Appendix 2-BB Service Life
N1: File Number: | P1: ='LDC Info'!E16 -> EB-2022-0016
N2: Exhibit:
N3: Tab:
N4: Schedule:
N5: Page:
N7: Date: | P7: 2022-10-24
A9: Appendix 2-BB
A10: Service Life Comparison
A11: Table F-1 from Kinetrics Report1
C15: Asset Details | F15: Useful Life | J15: USoA Account Number | K15: USoA Account Description | L15: Current | N15: Proposed | P15: Outside Range of Min, Max TUL?
A16: Parent* | B16: # | C16: Category| Component | Type | F16: MIN UL | G16: TUL | H16: MAX UL | L16: Years | M16: Rate | N16: Years | O16: Rate | P16: Below Min TUL | Q16: Above Max TUL
A17: OH | B17: 1 | C17: Fully Dressed Wood Poles | D17: Overall | F17: 35 | G17: 45 | H17: 75 | J17: 1830 | K17: Poles, Towers & Fixtures | L17: 45 | M17: =IF(ISERROR(1/L17), "", 1/L17) -> 0.02222222222 | N17: 45 | O17: =IF(ISERROR(1/N17), "", 1/N17) -> 0.02222222222 | P17: =IF(ISBLANK(N17),"",IF(N17<F17,"Yes","No")) -> No | Q17: =IF(ISBLANK(N17),"",IF(N17>H17,"Yes","No")) -> No
D18: Cross Arm | E18: Wood | F18: 20 | G18: 40 | H18: 55 | M18: =IF(ISERROR(1/L18), "", 1/L18) ->  | O18: =IF(ISERROR(1/N18), "", 1/N18) ->  | P18: =IF(ISBLANK(N18),"",IF(N18<F18,"Yes","No")) ->  | Q18: =IF(ISBLANK(N18),"",IF(N18>H18,"Yes","No")) -> 
E19: Steel | F19: 30 | G19: 70 | H19: 95
B20: 2 | C20: Fully Dressed Concrete Poles | D20: Overall | F20: 50 | G20: 60 | H20: 80 | J20: 1830 | K20: Poles, Towers & Fixtures | L20: 60 | M20: 0.01666666667 | N20: 60 | O20: 0.01666666667 | P20: No | Q20: No
D21: Cross Arm | E21: Wood | F21: 20 | G21: 40 | H21: 55
E22: Steel | F22: 30 | G22: 70 | H22: 95
B23: 3 | C23: Fully Dressed Steel Poles | D23: Overall | F23: 60 | G23: 60 | H23: 80 | J23: 1830 | K23: Poles, Towers & Fixtures | L23: 60 | M23: 0.01666666667 | N23: 60 | O23: 0.01666666667 | P23: No | Q23: No
D24: Cross Arm | E24: Wood | F24: 20 | G24: 40 | H24: 55
E25: Steel | F25: 30 | G25: 70 | H25: 95
B26: 4 | C26: OH Line Switch | F26: 30 | G26: 45 | H26: 55 | J26: 1835 | K26: Overhead Conductors & Devices | L26: 40 | M26: 0.025 | N26: 40 | O26: 0.025 | P26: No | Q26: No
B27: 5 | C27: OH Line Switch Motor | F27: 15 | G27: 25 | H27: 25
B28: 6 | C28: OH Line Switch RTU | F28: 15 | G28: 20 | H28: 20
B29: 7 | C29: OH Integral Switches | F29: 35 | G29: 45 | H29: 60 | J29: 1835 | K29: Overhead Conductors & Devices | L29: 40 | M29: 0.025 | N29: 40 | O29: 0.025 | P29: No | Q29: No
B30: 8 | C30: OH Conductors | F30: 50 | G30: 60 | H30: 75 | J30: 1835 | K30: Overhead Conductors & Devices | L30: 60 | M30: 0.01666666667 | N30: 60 | O30: 0.01666666667 | P30: No | Q30: No
B31: 9 | C31: OH Transformers & Voltage Regulators | F31: 30 | G31: 40 | H31: 60 | J31: 1850 | K31: Line Transformers | L31: 40 | M31: 0.025 | N31: 40 | O31: 0.025 | P31: No | Q31: No
B32: 10 | C32: OH Shunt Capacitor Banks | F32: 25 | G32: 30 | H32: 40
B33: 11 | C33: Reclosers | F33: 25 | G33: 40 | H33: 55 | J33: 1835 | K33: Overhead Conductors & Devices | L33: 40 | M33: 0.025 | N33: 40 | O33: 0.025 | P33: No | Q33: No
A34: TS & MS | B34: 12 | C34: Power Transformers | D34: Overall | F34: 30 | G34: 45 | H34: 60 | J34: 1820 | K34: Distribution Station Equipment <50 kV | L34: 45 | M34: 0.02222222222 | N34: 45 | O34: 0.02222222222 | P34: No | Q34: No
D35: Bushing | F35: 10 | G35: 20 | H35: 30
D36: Tap Changer | F36: 20 | G36: 30 | H36: 60
B37: 13 | C37: Station Service Transformer | F37: 30 | G37: 45 | H37: 55 | J37: 1820 | K37: Distribution Station Equipment <50 kV | L37: 45 | M37: 0.02222222222 | N37: 45 | O37: 0.02222222222 | P37: No | Q37: No
B38: 14 | C38: Station Grounding Transformer | F38: 30 | G38: 40 | H38: 40
B39: 15 | C39: Station DC System | D39: Overall | F39: 10 | G39: 20 | H39: 30
D40: Battery Bank | F40: 10 | G40: 15 | H40: 15
D41: Charger | F41: 20 | G41: 20 | H41: 30
B42: 16 | C42: Station Metal Clad Switchgear | D42: Overall | F42: 30 | G42: 40 | H42: 60 | J42: 1820 | K42: Distribution Station Equipment <50 kV | L42: 40 | M42: 0.025 | N42: 40 | O42: 0.025 | P42: No | Q42: No
D43: Removable Breaker | F43: 25 | G43: 40 | H43: 60 | J43: 1820 | K43: Distribution Station Equipment <50 kV | L43: 40 | M43: 0.025 | N43: 40 | O43: 0.025 | P43: No | Q43: No
B44: 17 | C44: Station Independent Breakers | F44: 35 | G44: 45 | H44: 65 | J44: 1820 | K44: Distribution Station Equipment <50 kV | L44: 40 | M44: 0.025 | N44: 40 | O44: 0.025 | P44: No | Q44: No
B45: 18 | C45: Station Switch | F45: 30 | G45: 50 | H45: 60 | J45: 1820 | K45: Distribution Station Equipment <50 kV | L45: 40 | M45: 0.025 | N45: 40 | O45: 0.025 | P45: No | Q45: No
B46: 19 | C46: Electromechanical Relays | F46: 25 | G46: 35 | H46: 50
B47: 20 | C47: Solid State Relays | F47: 10 | G47: 30 | H47: 45 | J47: 1820 | K47: Distribution Station Equipment <50 kV | L47: 20 | M47: 0.05 | N47: 20 | O47: 0.05 | P47: No | Q47: No
B48: 21 | C48: Digital & Numeric Relays | F48: 15 | G48: 20 | H48: 20 | J48: 1820 | K48: Distribution Station Equipment <50 kV | L48: 20 | M48: 0.05 | N48: 20 | O48: 0.05 | P48: No | Q48: No
B49: 22 | C49: Rigid Busbars | F49: 30 | G49: 55 | H49: 60
B50: 23 | C50: Steel Structure | F50: 35 | G50: 50 | H50: 90 | J50: 1820 | K50: Distribution Station Equipment <50 kV | L50: 50 | M50: 0.02 | N50: 50 | O50: 0.02 | P50: No | Q50: No
A51: UG | B51: 24 | C51: Primary Paper Insulated Lead Covered (PILC) Cables | F51: 60 | G51: 65 | H51: 75
B52: 25 | C52: Primary Ethylene-Propylene Rubber (EPR) Cables | F52: 20 | G52: 25 | H52: 25
B53: 26 | C53: Primary Non-Tree Retardant (TR) Cross Linked Polyethylene (XLPE) Cables Direct Buried | F53: 20 | G53: 25 | H53: 30
B54: 27 | C54: Primary Non-TR XLPE Cables in Duct | F54: 20 | G54: 25 | H54: 30
B55: 28 | C55: Primary TR XLPE Cables Direct Buried | F55: 25 | G55: 30 | H55: 35 | J55: 1845 | K55: Underground Conductors & Devices | L55: 35 | M55: 0.02857142857 | N55: 35 | O55: 0.02857142857 | P55: =IF(ISBLANK(N55),"",IF(N55<F55,"Yes","No")) -> No | Q55: =IF(ISBLANK(N55),"",IF(N55>H55,"Yes","No")) -> No
B56: 29 | C56: Primary TR XLPE Cables in Duct | F56: 35 | G56: 40 | H56: 55 | J56: 1845 | K56: Underground Conductors & Devices | L56: 40 | M56: 0.025 | N56: 40 | O56: 0.025 | P56: =IF(ISBLANK(N56),"",IF(N56<F56,"Yes","No")) -> No | Q56: =IF(ISBLANK(N56),"",IF(N56>H56,"Yes","No")) -> No
B57: 30 | C57: Secondary PILC Cables | F57: 70 | G57: 75 | H57: 80
B58: 31 | C58: Secondary Cables Direct Buried | F58: 25 | G58: 35 | H58: 40 | J58: 1855 | K58: Services | L58: 25 | M58: 0.04 | N58: 25 | O58: 0.04 | P58: No | Q58: No
B59: 32 | C59: Secondary Cables in Duct | F59: 35 | G59: 40 | H59: 60 | J59: 1845 | K59: Underground Conductors & Devices | L59: 50 | M59: 0.02 | N59: 50 | O59: 0.02 | P59: No | Q59: No
B60: 33 | C60: Network Tranformers | D60: Overall | F60: 20 | G60: 35 | H60: 50
D61: Protector | F61: 20 | G61: 35 | H61: 40
B62: 34 | C62: Pad-Mounted Transformers | F62: 25 | G62: 40 | H62: 45 | J62: 1850 | K62: Line Transformers | L62: 40 | M62: 0.025 | N62: 40 | O62: 0.025 | P62: No | Q62: No
B63: 35 | C63: Submersible/Vault Transformers | F63: 25 | G63: 35 | H63: 45 | J63: 1850 | K63: Line Transformers | L63: 40 | M63: 0.025 | N63: 40 | O63: 0.025 | P63: No | Q63: No
B64: 36 | C64: UG Foundation | F64: 35 | G64: 55 | H64: 70 | J64: 1840 | K64: Underground Conduit | L64: 60 | M64: 0.01666666667 | N64: 60 | O64: 0.01666666667 | P64: No | Q64: No
B65: 37 | C65: UG Vaults | D65: Overall | F65: 40 | G65: 60 | H65: 80 | J65: 1840 | K65: Underground Conduit | L65: 60 | M65: 0.01666666667 | N65: 60 | O65: 0.01666666667 | P65: No | Q65: No
D66: Roof | F66: 20 | G66: 30 | H66: 45
B67: 38 | C67: UG Vault Switches | F67: 20 | G67: 35 | H67: 50
B68: 39 | C68: Pad-Mounted Switchgear | F68: 20 | G68: 30 | H68: 45
B69: 40 | C69: Ducts | F69: 30 | G69: 50 | H69: 85 | J69: 1840 | K69: Underground Conduit | L69: 50 | M69: 0.02 | N69: 50 | O69: 0.02 | P69: No | Q69: No
B70: 41 | C70: Concrete Encased Duct Banks | F70: 35 | G70: 55 | H70: 80 | J70: 1840 | K70: Underground Conduit | L70: 60 | M70: 0.01666666667 | N70: 60 | O70: 0.01666666667 | P70: No | Q70: No
B71: 42 | C71: Cable Chambers | F71: 50 | G71: 60 | H71: 80 | J71: 1840 | K71: Underground Conduit | L71: 60 | M71: 0.01666666667 | N71: 60 | O71: 0.01666666667 | P71: No | Q71: No
A72: S | B72: 43 | C72: Remote SCADA | F72: 15 | G72: 20 | H72: 30 | J72: 1980 | K72: System Supervisor Equipment | L72: 25 | M72: 0.04 | N72: 25 | O72: 0.04 | P72: No | Q72: No
A75: Table F-2 from Kinetrics Report1
C77: Asset Details | F77: Useful Life Range | J77: USoA Account Number | K77: USoA Account Description | L77: Current | N77: Proposed | P77: Outside Range of Min, Max TUL?
B78: # | C78: Category| Component | Type | L78: Years | M78: Rate | N78: Years | O78: Rate | P78: Below Min Range | Q78: Above Max Range
B79: 1 | C79: Office Equipment | F79: 5 | G79: 15 | J79: 1915 | K79: Office Furniture & Equipment | L79: 10 | M79: =IF(ISERROR(1/L79), "", 1/L79) -> 0.1 | N79: 10 | O79: =IF(ISERROR(1/N79), "", 1/N79) -> 0.1 | P79: =IF(ISBLANK(N79),"",IF(N79<F79,"Yes","No")) -> No | Q79: =IF(ISBLANK(N79),"",IF(N79>G79,"Yes","No")) -> No
B80: 2 | C80: Vehicles | D80: Trucks & Buckets | F80: 5 | G80: 15 | J80: 1930 | K80: Transportation Equipment | L80: 10 | M80: =IF(ISERROR(1/L80), "", 1/L80) -> 0.1 | N80: 10 | O80: =IF(ISERROR(1/N80), "", 1/N80) -> 0.1 | P80: =IF(ISBLANK(N80),"",IF(N80<F80,"Yes","No")) -> No | Q80: =IF(ISBLANK(N80),"",IF(N80>G80,"Yes","No")) -> No
D81: Trailers | F81: 5 | G81: 20 | J81: 1930 | K81: Transportation Equipment | L81: 8 | M81: 0.125 | N81: 8 | O81: 0.125 | P81: No | Q81: No
D82: Vans | F82: 5 | G82: 10 | J82: 1930 | K82: Transportation Equipment | L82: 8 | M82: 0.125 | N82: 8 | O82: 0.125 | P82: No | Q82: No
B83: 3 | C83: Administrative Buildings | F83: 50 | G83: 75 | J83: 1908 | K83: Buildings & Fixtures | L83: 60 | M83: 0.01666666667 | N83: 60 | O83: 0.01666666667 | P83: No | Q83: No
B84: 4 | C84: Leasehold Improvements | F84: Lease dependent | P84: =IF(ISBLANK(N84),"",IF(N84<F84,"Yes","No")) ->  | Q84: =IF(ISBLANK(N84),"",IF(N84>G84,"Yes","No")) -> 
B85: 5 | C85: Station Buildings | D85: Station Buildings | F85: 50 | G85: 75 | J85: 1820 | K85: Distribution Station Equipment <50 kV | L85: 50 | M85: 0.02 | N85: 50 | O85: 0.02 | P85: No | Q85: No
D86: Parking | F86: 25 | G86: 30 | J86: 1820 | K86: Distribution Station Equipment <50 kV | L86: 30 | M86: 0.03333333333 | N86: 30 | O86: 0.03333333333 | P86: No | Q86: No
D87: Fence | F87: 25 | G87: 60 | J87: 1820 | K87: Distribution Station Equipment <50 kV | L87: 30 | M87: 0.03333333333 | N87: 30 | O87: 0.03333333333 | P87: No | Q87: No
D88: Roof | F88: 20 | G88: 30 | J88: 1820 | K88: Distribution Station Equipment <50 kV | L88: 30 | M88: 0.03333333333 | N88: 30 | O88: 0.03333333333 | P88: No | Q88: No
B89: 6 | C89: Computer Equipment | D89: Hardware | F89: 3 | G89: 5 | J89: 1920 | K89: Computer Equipment - Hardware | L89: 5 | M89: 0.2 | N89: 5 | O89: 0.2 | P89: No | Q89: No
D90: Software | F90: 2 | G90: 5 | J90: 1611 | K90: Computer Software | L90: 5 | M90: 0.2 | N90: 5 | O90: 0.2 | P90: No | Q90: No
B91: 7 | C91: Equipment | D91: Power Operated | F91: 5 | G91: 10
D92: Stores | F92: 5 | G92: 10 | J92: 1935 | K92: Stores Equipment | L92: 10 | M92: 0.1 | N92: 10 | O92: 0.1 | P92: No | Q92: No
D93: Tools, Shop, Garage Equipment | F93: 5 | G93: 10 | J93: 1940 | K93: Tools, Shop & Garage Equipment | L93: 10 | M93: 0.1 | N93: 10 | O93: 0.1 | P93: =IF(ISBLANK(N93),"",IF(N93<F93,"Yes","No")) -> No | Q93: =IF(ISBLANK(N93),"",IF(N93>G93,"Yes","No")) -> No
J94: 1960 | K94: Miscellaneous Equipment | L94: 10 | M94: 0.1 | N94: 10 | O94: 0.1 | P94: No | Q94: =IF(ISBLANK(N94),"",IF(N94>G93,"Yes","No")) -> No
D95: System Supervisor Equipment | F95: 5 | G95: 10 | J95: 1980 | K95: System Supervisor Equipment | L95: 10 | M95: 0.1 | N95: 10 | O95: 0.1 | P95: No | Q95: No
D96: Measurement & Testing Equipment | F96: 5 | G96: 10 | J96: 1945 | K96: Measurement & Testing Equipment | L96: 10 | M96: 0.1 | N96: 10 | O96: 0.1 | P96: No | Q96: No
B97: 8 | C97: Communication | D97: Towers | F97: 60 | G97: 70 | J97: 1980 | K97: System Supervisor Equipment | L97: 60 | M97: 0.01666666667 | N97: 60 | O97: 0.01666666667 | P97: No | Q97: No
D98: Wireless | F98: 2 | G98: 10 | J98: 1955 | K98: Communications Equipment | L98: 10 | M98: 0.1 | N98: 10 | O98: 0.1 | P98: No | Q98: No
B99: 9 | C99: Residential Energy Meters | F99: 25 | G99: 35
B100: 10 | C100: Industrial/Commercial Energy Meters | F100: 25 | G100: 35 | J100: 1860 | K100: Meters | L100: 25 | M100: 0.04 | N100: 25 | O100: 0.04 | P100: No | Q100: No
B101: 11 | C101: Wholesale Energy Meters | F101: 15 | G101: 30 | J101: 1860 | K101: Meters | L101: 25 | M101: 0.04 | N101: 25 | O101: 0.04 | P101: No | Q101: No
B102: 12 | C102: Current & Potential Transformer (CT & PT) | F102: 35 | G102: 50 | J102: 1850 | K102: Line Transformers | L102: 40 | M102: 0.025 | N102: 40 | O102: 0.025 | P102: No | Q102: No
B103: 13 | C103: Smart Meters | F103: 5 | G103: 15 | J103: 1860 | K103: Meters | L103: 15 | M103: 0.06666666667 | N103: 15 | O103: 0.06666666667 | P103: No | Q103: No
B104: 14 | C104: Repeaters - Smart Metering | F104: 10 | G104: 15 | J104: 1860 | K104: Meters | L104: 15 | M104: 0.06666666667 | N104: 15 | O104: 0.06666666667 | P104: No | Q104: No
B105: 15 | C105: Data Collectors - Smart Metering | F105: 15 | G105: 20 | J105: 1860 | K105: Meters | L105: 15 | M105: 0.06666666667 | N105: 15 | O105: 0.06666666667 | P105: No | Q105: No
A108: * TS & MS = Transformer and Municipal Stations UG = Underground Systems S = Monitoring and Control Systems
A110: Note 1: | B110: Tables F-1 and F-2 above are to be used as a reference in order to complete columns J, K, L and N.
B111: See pages 17-19 of Kinetrics Report

Sheet App.2-C_DepExp
A9: Appendix 2-C | Y9: CGAAP
A10: Depreciation and Amortization Expense | Y10: Revised CGAAP
Y11: MIFRS
A12: This appendix is to be completed in conjunction with the accounting instructions in Appendix 2-B
A14: Scenario that applies | C14: Applicable Years and Accounting Standard | R14: Year Reflected in Schedule Below | S14: Accounting Standard Reflected in Schedule Below | Y14: 2012
A15: Rebasing for the first time with depreciation policy changes made in 2012. | C15: ="This appendix must be duplicated and completed for the years 2012 to " & TestYear & ". The appendix for 2012 is to be completed under CGAAP (prior to changes in depreciation policies)." &" The appendix for 2012 to 2014 must be completed under Revised CGAAP (after changes in depreciation policies). The appendix for 2014 to " & TestYear & " is to be completed under MIFRS (2014 if changes to MIFRS are material)." -> This appendix must be duplicated and completed for the years 2012 to 2023. The appendix for 2012 is to be completed under CGAAP (prior to changes in depreciation policies). The appendix for 2012 to 2014 must be completed under Revised CGAAP (after changes in depreciation policies). The appendix for 2014 to 2023 is to be completed under MIFRS (2014 if changes to MIFRS are material). | Y15: 2013
A16: Rebasing for the first time with depreciation policy changes made in 2013. | C16: ="This appendix must be duplicated and completed for the years 2013 to " & TestYear & ". The appendix for 2013 is to be completed under CGAAP (prior to changes in depreciation policies)."&" The appendix for 2013 to 2014 must be completed under Revised CGAAP (after changes in depreciation policies). The appendix for 2014 to " & TestYear & " is to be completed under MIFRS (2014 if changes to MIFRS are material)." -> This appendix must be duplicated and completed for the years 2013 to 2023. The appendix for 2013 is to be completed under CGAAP (prior to changes in depreciation policies). The appendix for 2013 to 2014 must be completed under Revised CGAAP (after changes in depreciation policies). The appendix for 2014 to 2023 is to be completed under MIFRS (2014 if changes to MIFRS are material). | Y16: 2014
A17: Already rebased with depreciation policy changes in a prior rate application and rebasing MIFRS for the first time. | C17: This appendix must be completed for 2014 to the test year. The appendix for 2014 is to be completed under Revised CGAAP (after changes in depreciation policies). The appendix for 2014 to the test year is to be completed under MIFRS (2014 if changes to MIFRS are material). | Y17: 2015
A18: Already rebased under MIFRS in a prior rate application | C18: ="This appendix must be completed under MIFRS for each year for the earlier of: 1) all historical years back to its last rebasing; or 2) at least three years of historical actuals, in addition to Bridge Year and Test Year forecasts." -> This appendix must be completed under MIFRS for each year for the earlier of: 1) all historical years back to its last rebasing; or 2) at least three years of historical actuals, in addition to Bridge Year and Test Year forecasts. | Y18: 2016
Y19: 2017
B20: 2013 CGAAP | C20: Book Values | J20: Service Lives | N20: Depreciation Expense | Y20: 2018
A21: Account | B21: Description | C21: Opening Net Book Value of Existing Assets as at Date of Policy Change (Jan. 1) 1 | D21: Less Fully Depreciated 7 | E21: Net Amount of Existing Assets Before Policy Change to be Depreciated | F21: Opening Gross Book Value of Assets Acquired After Policy Change 2 | G21: Less Fully Depreciated 8 | H21: Net Amount of Assets Acquired After Policy Change to be Depreciated | I21: Current Year Additions | J21: Average Remaining Life of Assets Existing Before Policy Change 3 | K21: Depreciation Rate Assets Acquired After Policy Change | L21: Life of Assets Acquired After Policy Change 4 | M21: Depreciation Rate on New Additions | N21: Depreciation Expense on Assets Existing Before Policy Change | O21: Depreciation Expense on Assets Acquired After Policy Change | P21: Depreciation Expense on Current Year Additions 5 | Q21: Total Current Year Depreciation Expense | R21: Depreciation Expense per Appendix 2-BA Fixed Assets, Column J | S21: Variance 6
C22: a | D22: b | E22: c = a-b | F22: d | G22: e | H22: f = d- e | I22: g | J22: h | K22: i = 1/h | L22: j | M22: k = 1/j | N22: l = c/h | O22: m = f/j | P22: n = g*0.5/j | Q22: o = l+m+n | R22: p | S22: q = p-o
A23: 1611 | B23: Computer Software (Formally known as Account 1925) | C23: ='App.2-BA_Fixed Asset Cont'!D108+'App.2-BA_Fixed Asset Cont'!J108 -> 6686779 | E23: =C23-D23 -> 6686779 | H23: =F23-G23 -> 0 | I23: ='App.2-BA_Fixed Asset Cont'!E108 -> 989635 | J23: 3.267985409 | K23: =IF(J23=0,0,1/J23) -> 0.3059989182 | L23: 5 | M23: =IF(L23=0,0,1/L23) -> 0.2 | N23: =IF(J23=0,0,+E23/J23) -> 2046147.14 | O23: =IF(L23=0,0,+H23/L23) -> 0 | P23: =IF(L23=0,0,+(I23*0.5)/L23) -> 98963.5 | Q23: =IF(ISERROR(+N23+O23+P23), 0, +N23+O23+P23) -> 2145110.64 | R23: =-'App.2-BA_Fixed Asset Cont'!K108 -> 2116810 | S23: =IF(ISERROR(+R23-Q23), 0, +R23-Q23) -> -28300.64044
A24: 1612 | B24: Land Rights (Formally known as Account 1906) | C24: ='App.2-BA_Fixed Asset Cont'!D109+'App.2-BA_Fixed Asset Cont'!J109 -> 14625 | E24: =C24-D24 -> 14625 | H24: =F24-G24 -> 0 | I24: ='App.2-BA_Fixed Asset Cont'!E109 -> 0 | J24: 13 | K24: =IF(J24=0,0,1/J24) -> 0.07692307692 | L24: 25 | M24: =IF(L24=0,0,1/L24) -> 0.04 | N24: =IF(J24=0,0,+E24/J24) -> 1125 | O24: =IF(L24=0,0,+H24/L24) -> 0 | P24: =IF(L24=0,0,+(I24*0.5)/L24) -> 0 | Q24: =IF(ISERROR(+N24+O24+P24), 0, +N24+O24+P24) -> 1125 | R24: =-'App.2-BA_Fixed Asset Cont'!K109 -> 1192 | S24: =IF(ISERROR(+R24-Q24), 0, +R24-Q24) -> 67
A25: 1805 | B25: Land | C25: ='App.2-BA_Fixed Asset Cont'!D110+'App.2-BA_Fixed Asset Cont'!J110 -> 497489 | E25: 497489 | H25: 0 | I25: ='App.2-BA_Fixed Asset Cont'!E110 -> 0 | J25: 0 | K25: 0 | M25: 0 | N25: 0 | O25: =IF(L25=0,0,+H25/L25) -> 0 | P25: 0 | Q25: 0 | R25: =-'App.2-BA_Fixed Asset Cont'!K110 -> 0 | S25: 0
A26: 1808 | B26: Buildings | C26: ='App.2-BA_Fixed Asset Cont'!D111+'App.2-BA_Fixed Asset Cont'!J111 -> 0 | E26: 0 | H26: 0 | I26: ='App.2-BA_Fixed Asset Cont'!E111 -> 0 | J26: 0 | K26: 0 | M26: 0 | N26: 0 | O26: 0 | P26: 0 | Q26: 0 | R26: =-'App.2-BA_Fixed Asset Cont'!K111 -> 0 | S26: 0
A27: 1810 | B27: Leasehold Improvements | C27: ='App.2-BA_Fixed Asset Cont'!D112+'App.2-BA_Fixed Asset Cont'!J112 -> 0 | E27: 0 | H27: 0 | I27: ='App.2-BA_Fixed Asset Cont'!E112 -> 0 | J27: 0 | K27: 0 | M27: 0 | N27: 0 | O27: 0 | P27: 0 | Q27: 0 | R27: =-'App.2-BA_Fixed Asset Cont'!K112 -> 0 | S27: 0
A28: 1815 | B28: Transformer Station Equipment >50 kV | C28: ='App.2-BA_Fixed Asset Cont'!D113+'App.2-BA_Fixed Asset Cont'!J113 -> 0 | E28: 0 | H28: 0 | I28: ='App.2-BA_Fixed Asset Cont'!E113 -> 0 | J28: 0 | K28: 0 | M28: 0 | N28: 0 | O28: 0 | P28: 0 | Q28: 0 | R28: =-'App.2-BA_Fixed Asset Cont'!K113 -> 0 | S28: 0
A29: 1820 | B29: Distribution Station Equipment <50 kV | C29: ='App.2-BA_Fixed Asset Cont'!D114+'App.2-BA_Fixed Asset Cont'!J114 -> 3292186 | E29: 3292186 | H29: 0 | I29: ='App.2-BA_Fixed Asset Cont'!E114 -> 167402 | J29: 15.01524021 | K29: 0.06659900115 | L29: 40 | M29: 0.025 | N29: 219256.2992 | O29: 0 | P29: 2092.525 | Q29: 221348.8242 | R29: =-'App.2-BA_Fixed Asset Cont'!K114 -> 220406 | S29: -942.8242045
A30: 1825 | B30: Storage Battery Equipment | C30: ='App.2-BA_Fixed Asset Cont'!D115+'App.2-BA_Fixed Asset Cont'!J115 -> 0 | E30: 0 | H30: 0 | I30: ='App.2-BA_Fixed Asset Cont'!E115 -> 0 | J30: 0 | K30: 0 | M30: 0 | N30: 0 | O30: 0 | P30: 0 | Q30: 0 | R30: =-'App.2-BA_Fixed Asset Cont'!K115 -> 0 | S30: 0
A31: 1830 | B31: Poles, Towers & Fixtures | C31: ='App.2-BA_Fixed Asset Cont'!D116+'App.2-BA_Fixed Asset Cont'!J116 -> 2930272 | E31: 2930272 | H31: 0 | I31: ='App.2-BA_Fixed Asset Cont'!E116 -> 535801 | J31: 41.75274342 | K31: 0.023950522 | L31: 45 | M31: 0.02222222222 | N31: 70181.54402 | O31: 0 | P31: 5953.344444 | Q31: 76134.88846 | R31: =-'App.2-BA_Fixed Asset Cont'!K116 -> 74568 | S31: -1566.88846
A32: 1835 | B32: Overhead Conductors & Devices | C32: ='App.2-BA_Fixed Asset Cont'!D117+'App.2-BA_Fixed Asset Cont'!J117 -> 9855401 | E32: 9855401 | H32: 0 | I32: ='App.2-BA_Fixed Asset Cont'!E117 -> 553800 | J32: 34.26018073 | K32: 0.02918840411 | L32: 60 | M32: 0.01666666667 | N32: 287663.4271 | O32: 0 | P32: 4615 | Q32: 292278.4271 | R32: =-'App.2-BA_Fixed Asset Cont'!K117 -> 292374 | S32: 95.57293475
A33: 1840 | B33: Underground Conduit | C33: ='App.2-BA_Fixed Asset Cont'!D118+'App.2-BA_Fixed Asset Cont'!J118 -> 1182052 | E33: 1182052 | H33: 0 | I33: ='App.2-BA_Fixed Asset Cont'!E118 -> 211686 | J33: 48.88058945 | K33: 0.02045801843 | L33: 60 | M33: 0.01666666667 | N33: 24182.4416 | O33: 0 | P33: 1764.05 | Q33: 25946.4916 | R33: =-'App.2-BA_Fixed Asset Cont'!K118 -> 25598 | S33: -348.4916035
A34: 1845 | B34: Underground Conductors & Devices | C34: ='App.2-BA_Fixed Asset Cont'!D119+'App.2-BA_Fixed Asset Cont'!J119 -> 8093402 | E34: 8093402 | H34: 0 | I34: ='App.2-BA_Fixed Asset Cont'!E119 -> 259635 | J34: 21.8047941 | K34: 0.04586147411 | L34: 40 | M34: 0.025 | N34: 371175.3463 | O34: 0 | P34: 3245.4375 | Q34: 374420.7838 | R34: =-'App.2-BA_Fixed Asset Cont'!K119 -> 355853 | S34: -18567.78382
A35: 1850 | B35: Line Transformers | C35: ='App.2-BA_Fixed Asset Cont'!D120+'App.2-BA_Fixed Asset Cont'!J120 -> 7257615 | E35: 7257615 | H35: 0 | I35: ='App.2-BA_Fixed Asset Cont'!E120 -> 512341 | J35: 31.08410133 | K35: 0.0321707869 | L35: 40 | M35: 0.025 | N35: 233483.1856 | O35: 0 | P35: 6404.2625 | Q35: 239887.4481 | R35: =-'App.2-BA_Fixed Asset Cont'!K120 -> 239910 | S35: 22.55192147
A36: 1855 | B36: Services (Overhead & Underground) | C36: ='App.2-BA_Fixed Asset Cont'!D121+'App.2-BA_Fixed Asset Cont'!J121 -> 665779 | E36: 665779 | H36: 0 | I36: ='App.2-BA_Fixed Asset Cont'!E121 -> 175147 | J36: 21.5144363 | K36: 0.04648041836 | L36: 25 | M36: 0.04 | N36: 30945.68645 | O36: 0 | P36: 3502.94 | Q36: 34448.62645 | R36: =-'App.2-BA_Fixed Asset Cont'!K121 -> 32945 | S36: -1503.626453
A37: 1860 | B37: Meters | C37: ='App.2-BA_Fixed Asset Cont'!D122+'App.2-BA_Fixed Asset Cont'!J122 -> 662870 | E37: 662870 | H37: 0 | I37: ='App.2-BA_Fixed Asset Cont'!E122 -> 13134 | J37: 13.28932526 | K37: 0.07524836516 | L37: 15 | M37: 0.06666666667 | N37: 49879.88381 | O37: 0 | P37: 437.8 | Q37: 50317.68381 | R37: =-'App.2-BA_Fixed Asset Cont'!K122 -> 35854 | S37: -14463.68381
A38: 1860 | B38: Meters (Smart Meters) | C38: ='App.2-BA_Fixed Asset Cont'!D123+'App.2-BA_Fixed Asset Cont'!J123 -> 4242960 | E38: 4242960 | H38: 0 | I38: ='App.2-BA_Fixed Asset Cont'!E123 -> 93902 | J38: 13.28932526 | K38: 0.07524836516 | L38: 15 | M38: 0.06666666667 | N38: 319275.8034 | O38: 0 | P38: 3130.066667 | Q38: 322405.8701 | R38: =-'App.2-BA_Fixed Asset Cont'!K123 -> 337523 | S38: 15117.12991
A39: 1905 | B39: Land | C39: ='App.2-BA_Fixed Asset Cont'!D124+'App.2-BA_Fixed Asset Cont'!J124 -> 0 | E39: 0 | H39: 0 | I39: ='App.2-BA_Fixed Asset Cont'!E124 -> 0 | J39: 0 | K39: 0 | M39: 0 | N39: 0 | O39: 0 | P39: 0 | Q39: 0 | R39: =-'App.2-BA_Fixed Asset Cont'!K124 -> 0 | S39: 0
A40: 1908 | B40: Buildings & Fixtures | C40: ='App.2-BA_Fixed Asset Cont'!D125+'App.2-BA_Fixed Asset Cont'!J125 -> 6122664 | E40: 6122664 | H40: 0 | I40: ='App.2-BA_Fixed Asset Cont'!E125 -> 515860 | J40: 34.81553409 | K40: 0.02872281084 | L40: 60 | M40: 0.01666666667 | N40: 175860.1199 | O40: 0 | P40: 4298.833333 | Q40: 180158.9532 | R40: =-'App.2-BA_Fixed Asset Cont'!K125 -> 178130 | S40: -2028.953246
A41: 1910 | B41: Leasehold Improvements | C41: ='App.2-BA_Fixed Asset Cont'!D126+'App.2-BA_Fixed Asset Cont'!J126 -> 0 | E41: 0 | H41: 0 | I41: ='App.2-BA_Fixed Asset Cont'!E126 -> 0 | J41: 0 | K41: 0 | M41: 0 | N41: 0 | O41: 0 | P41: 0 | Q41: 0 | R41: =-'App.2-BA_Fixed Asset Cont'!K126 -> 0 | S41: 0
A42: 1915 | B42: Office Furniture & Equipment (10 years) | C42: ='App.2-BA_Fixed Asset Cont'!D127+'App.2-BA_Fixed Asset Cont'!J127 -> 243411 | E42: 243411 | H42: 0 | I42: ='App.2-BA_Fixed Asset Cont'!E127 -> 64833 | J42: 4.83346858 | K42: 0.2068907625 | L42: 10 | M42: 0.1 | N42: 50359.48739 | O42: 0 | P42: 3241.65 | Q42: 53601.13739 | R42: =-'App.2-BA_Fixed Asset Cont'!K127 -> 43493 | S42: -10108.13739
A43: 1915 | B43: Office Furniture & Equipment (5 years) | C43: ='App.2-BA_Fixed Asset Cont'!D128+'App.2-BA_Fixed Asset Cont'!J128 -> 0 | E43: 0 | H43: 0 | I43: ='App.2-BA_Fixed Asset Cont'!E128 -> 0 | J43: 0 | K43: 0 | M43: 0 | N43: 0 | O43: 0 | P43: 0 | Q43: 0 | R43: =-'App.2-BA_Fixed Asset Cont'!K128 -> 0 | S43: 0
A44: 1920 | B44: Computer Equipment - Hardware | C44: ='App.2-BA_Fixed Asset Cont'!D129+'App.2-BA_Fixed Asset Cont'!J129 -> 1737416 | E44: 1737416 | H44: 0 | I44: ='App.2-BA_Fixed Asset Cont'!E129 -> 554938 | J44: 2.964957561 | K44: 0.3372729557 | L44: 5 | M44: 0.2 | N44: 585983.4296 | O44: 0 | P44: 55493.8 | Q44: 641477.2296 | R44: =-'App.2-BA_Fixed Asset Cont'!K129 -> 628644 | S44: -12833.22959
A45: 1920 | B45: Computer Equip.-Hardware(Post Mar. 22/04) | C45: ='App.2-BA_Fixed Asset Cont'!D130+'App.2-BA_Fixed Asset Cont'!J130 -> 0 | E45: 0 | H45: 0 | I45: ='App.2-BA_Fixed Asset Cont'!E130 -> 0 | J45: 0 | K45: 0 | M45: 0 | N45: 0 | O45: 0 | P45: 0 | Q45: 0 | R45: =-'App.2-BA_Fixed Asset Cont'!K130 -> 0 | S45: 0
A46: 1920 | B46: Computer Equip.-Hardware(Post Mar. 19/07) | C46: ='App.2-BA_Fixed Asset Cont'!D131+'App.2-BA_Fixed Asset Cont'!J131 -> 0 | E46: 0 | H46: 0 | I46: ='App.2-BA_Fixed Asset Cont'!E131 -> 0 | J46: 0 | K46: 0 | M46: 0 | N46: 0 | O46: 0 | P46: 0 | Q46: 0 | R46: =-'App.2-BA_Fixed Asset Cont'!K131 -> 0 | S46: 0
A47: 1930 | B47: Transportation Equipment | C47: ='App.2-BA_Fixed Asset Cont'!D132+'App.2-BA_Fixed Asset Cont'!J132 -> 1881536 | E47: 1881536 | H47: 0 | I47: ='App.2-BA_Fixed Asset Cont'!E132 -> 488549 | J47: 6.226460923 | K47: 0.1606048785 | L47: 10 | M47: 0.1 | N47: 302183.8607 | O47: 0 | P47: 24427.45 | Q47: 326611.3107 | R47: =-'App.2-BA_Fixed Asset Cont'!K132 -> 320365 | S47: -6246.310681
A48: 1935 | B48: Stores Equipment | C48: ='App.2-BA_Fixed Asset Cont'!D133+'App.2-BA_Fixed Asset Cont'!J133 -> 5063 | E48: 5063 | H48: 0 | I48: ='App.2-BA_Fixed Asset Cont'!E133 -> 0 | J48: 1 | K48: 1 | L48: 10 | M48: 0.1 | N48: 5063 | O48: 0 | P48: 0 | Q48: 5063 | R48: =-'App.2-BA_Fixed Asset Cont'!K133 -> 4790 | S48: -273
A49: 1940 | B49: Tools, Shop & Garage Equipment | C49: ='App.2-BA_Fixed Asset Cont'!D134+'App.2-BA_Fixed Asset Cont'!J134 -> 262549 | D49: 37128 | E49: 225421 | H49: 0 | I49: ='App.2-BA_Fixed Asset Cont'!E134 -> -8962 | J49: 4.337411452 | K49: 0.230552257 | L49: 10 | M49: 0.1 | N49: 51971.32033 | O49: 0 | P49: -448.1 | Q49: 51523.22033 | R49: =-'App.2-BA_Fixed Asset Cont'!K134 -> 43018 | S49: -8505.220333
A50: 1945 | B50: Measurement & Testing Equipment | C50: ='App.2-BA_Fixed Asset Cont'!D135+'App.2-BA_Fixed Asset Cont'!J135 -> 124962 | E50: 124962 | H50: 0 | I50: ='App.2-BA_Fixed Asset Cont'!E135 -> 0 | J50: 6.012884703 | K50: 0.1663095252 | L50: 10 | M50: 0.1 | N50: 20782.37089 | O50: 0 | P50: 0 | Q50: 20782.37089 | R50: =-'App.2-BA_Fixed Asset Cont'!K135 -> 16750 | S50: -4032.370886
A51: 1950 | B51: Power Operated Equipment | C51: ='App.2-BA_Fixed Asset Cont'!D136+'App.2-BA_Fixed Asset Cont'!J136 -> 0 | E51: 0 | H51: 0 | I51: ='App.2-BA_Fixed Asset Cont'!E136 -> 0 | J51: 0 | K51: 0 | M51: 0 | N51: 0 | O51: 0 | P51: 0 | Q51: 0 | R51: =-'App.2-BA_Fixed Asset Cont'!K136 -> 0 | S51: 0
A52: 1955 | B52: Communications Equipment | C52: ='App.2-BA_Fixed Asset Cont'!D137+'App.2-BA_Fixed Asset Cont'!J137 -> 77915 | E52: 77915 | H52: 0 | I52: ='App.2-BA_Fixed Asset Cont'!E137 -> 0 | J52: 5.863636241 | K52: 0.1705426392 | L52: 10 | M52: 0.1 | N52: 13287.82973 | O52: 0 | P52: 0 | Q52: 13287.82973 | R52: =-'App.2-BA_Fixed Asset Cont'!K137 -> 12953 | S52: -334.8297342
A53: 1955 | B53: Communication Equipment (Smart Meters) | C53: ='App.2-BA_Fixed Asset Cont'!D138+'App.2-BA_Fixed Asset Cont'!J138 -> 0 | E53: 0 | H53: 0 | I53: ='App.2-BA_Fixed Asset Cont'!E138 -> 0 | J53: 0 | K53: 0 | M53: 0 | N53: 0 | O53: 0 | P53: 0 | Q53: 0 | R53: =-'App.2-BA_Fixed Asset Cont'!K138 -> 0 | S53: 0
A54: 1960 | B54: Miscellaneous Equipment | C54: ='App.2-BA_Fixed Asset Cont'!D139+'App.2-BA_Fixed Asset Cont'!J139 -> 66518 | E54: 66518 | H54: 0 | I54: ='App.2-BA_Fixed Asset Cont'!E139 -> 71693 | J54: 5 | K54: 0.2 | L54: 10 | M54: 0.1 | N54: 13303.6 | O54: 0 | P54: 3584.65 | Q54: 16888.25 | R54: =-'App.2-BA_Fixed Asset Cont'!K139 -> 15925 | S54: -963.25
A55: 1970 | B55: Load Management Controls Customer Premises | C55: ='App.2-BA_Fixed Asset Cont'!D140+'App.2-BA_Fixed Asset Cont'!J140 -> 0 | E55: 0 | H55: 0 | I55: ='App.2-BA_Fixed Asset Cont'!E140 -> 0 | J55: 0 | K55: 0 | M55: 0 | N55: 0 | O55: 0 | P55: 0 | Q55: 0 | R55: =-'App.2-BA_Fixed Asset Cont'!K140 -> 0 | S55: 0
A56: 1975 | B56: Load Management Controls Utility Premises | C56: ='App.2-BA_Fixed Asset Cont'!D141+'App.2-BA_Fixed Asset Cont'!J141 -> 0 | E56: 0 | H56: 0 | I56: ='App.2-BA_Fixed Asset Cont'!E141 -> 0 | J56: 0 | K56: 0 | M56: 0 | N56: 0 | O56: 0 | P56: 0 | Q56: 0 | R56: =-'App.2-BA_Fixed Asset Cont'!K141 -> 0 | S56: 0
A57: 1980 | B57: System Supervisor Equipment | C57: ='App.2-BA_Fixed Asset Cont'!D142+'App.2-BA_Fixed Asset Cont'!J142 -> 478522 | E57: 478522 | H57: 0 | I57: ='App.2-BA_Fixed Asset Cont'!E142 -> 98765 | J57: 12.15683689 | K57: 0.08225823946 | L57: 10 | M57: 0.1 | N57: 39362.37726 | O57: 0 | P57: 4938.25 | Q57: 44300.62726 | R57: =-'App.2-BA_Fixed Asset Cont'!K142 -> 44425 | S57: 124.3727375
A58: 1985 | B58: Miscellaneous Fixed Assets | C58: ='App.2-BA_Fixed Asset Cont'!D143+'App.2-BA_Fixed Asset Cont'!J143 -> 0 | E58: 0 | H58: 0 | I58: ='App.2-BA_Fixed Asset Cont'!E143 -> 0 | J58: 0 | K58: 0 | M58: 0 | N58: 0 | O58: 0 | P58: 0 | Q58: 0 | R58: =-'App.2-BA_Fixed Asset Cont'!K143 -> 0 | S58: 0
A59: 1990 | B59: Other Tangible Property | C59: ='App.2-BA_Fixed Asset Cont'!D144+'App.2-BA_Fixed Asset Cont'!J144 -> 645280 | E59: 645280 | H59: 0 | I59: ='App.2-BA_Fixed Asset Cont'!E144 -> 100867 | J59: 0 | K59: 0 | M59: 0 | N59: 0 | O59: 0 | P59: 0 | Q59: 0 | R59: =-'App.2-BA_Fixed Asset Cont'!K144 -> 0 | S59: 0
A60: 1995 | B60: Contributions & Grants | C60: ='App.2-BA_Fixed Asset Cont'!D145+'App.2-BA_Fixed Asset Cont'!J145 -> -5126899 | E60: -5126899 | H60: 0 | I60: ='App.2-BA_Fixed Asset Cont'!E145 -> -537827 | J60: 18.75927234 | K60: 0.05330697172 | L60: 25 | M60: 0.04 | N60: -273299.46 | O60: 0 | P60: -10756.54 | Q60: -284056 | R60: =-'App.2-BA_Fixed Asset Cont'!K145 -> -284056 | S60: 0
A61: 2005 | B61: Property Under Finance Lease | C61: ='App.2-BA_Fixed Asset Cont'!D146+'App.2-BA_Fixed Asset Cont'!J146 -> 0 | E61: 0 | H61: 0 | I61: ='App.2-BA_Fixed Asset Cont'!E146 -> 0 | K61: 0 | M61: 0 | N61: 0 | O61: =IF(L61=0,0,+H61/L61) -> 0 | P61: =IF(L61=0,0,+(I61*0.5)/L61) -> 0 | Q61: =IF(ISERROR(+N61+O61+P61), 0, +N61+O61+P61) -> 0 | R61: =-'App.2-BA_Fixed Asset Cont'!K146 -> 0 | S61: 0
B62: Total | C62: =SUM(C23:C61) -> 51900367 | D62: =SUM(D23:D61) -> 37128 | E62: =SUM(E23:E61) -> 51863239 | F62: 0 | G62: 0 | H62: 0 | I62: 4861199 | N62: =SUM(N23:N61) -> 4638173.694 | O62: =SUM(O23:O61) -> 0 | P62: 214888.9194 | Q62: 4853062.613 | R62: 4757470 | S62: -95592.61315
A65: General: | B65: Applicants are to complete this appendix to show the reasonability of the depreciation expense that is included in rate base via. Accumulated depreciation and the revenue requirement.
B66: Applicants must provide a breakdown of depreciation and amortization expense in the above format for all relevant accounts. Balances presented in the table should exclude asset retirement obligations (AROs) and the related depreciation and accretion expense. These should be disclosed separately consistent with the Notes of historical Audited Financial Statements.
B67: This appendix must be completed under MIFRS for each year for the earlier of: 1) all historical years back to its last rebasing; or 2) at least three years of historical actuals, in addition to Bridge Year and Test Year forecasts. If this is the first application where the applicant is rebasing under MIFRS, contact OEB staff for further guidance on the appropriate depreciation schedules to complete (i.e. applicable years and accounting standard for each schedule).
A69: Notes:
A70: 1 | B70: This is the net book value of assets that existed as at the date of the utility's change in depreciation policies (i.e. as at Jan. 1, 2012 or Jan. 1, 2013). These assets are to be depreciated at the average remaining service life. This amount will not change in years subsequent to the date of the utility's change in depreciation policies. This column is expected to be used until the assets that existed as at the date of the utility's change in depreciation policies are fully depreciated.
A71: 2 | B71: This is the opening gross book value of assets that have been acquired after the date of the utility's change in depreciation policies (i.e. additions starting in 2012/2013 for those who changed policies Jan. 1, 2012/2013). These assets are to be depreciated at the revised service life. The amount is expected to be equal to the opening gross book value of the prior year plus the prior year's additions.
A72: 3 | B72: A recalculation should be performed to determine the average remaining life of opening balance of assets (i.e. excluding current year's additions) under the change in policies under CGAAP. For example, Asset A had a useful life of 20 years under CGAAP without the change in policies. On January 1 of the year of policy changes, Asset A was 3 years depreciated. As a result, Asset A would have a remaining service life of 17 years (20 years less 3 years) as at January 1 of the year of policy changes. Due to making the change in policies under CGAAP, management re-assessed the asset useful lives and concluded that the revised useful life of Asset A is now 30 years. Therefore, the average remaining useful life of the opening balance of Asset A is determined to be 27 years (30 years less 3 years) under the revised CGAAP as at January 1 of the year of policy changes.
A73: 4 | B73: The useful life used should be consistent with the OEB's regulatory accounting policies as set out in the Accounting Procedures Handbook for Electricity Distributors, effective Jan. 1, 2012 and also with the Report of the Board, Transition to International Financial Reporting Standards, EB-2008-0408, and the Kinectrics Report.
A74: 5 | B74: OEB policy of the "half-year" rule - the applicant must ensure that additions in the year attract a half-year depreciation expense in the first year. Deviations from this standard practice must be supported in the application.
A75: 6 | B75: The applicant must provide an explanation of material variances in evidence.
A76: 7 | B76: This should include assets in column A (excel column C) that become fully depreciated since the date of the policy change. The amount input in b (excel column D) should equal the net book value of the asset as at the date of depreciation policy change
A77: 8 | B77: This should include assets in column D (excel column F) that have become fully depreciated. The amount input in e (excel column G) should equal the gross book value of the asset
B81: 2014 CGAAP | C81: Book Values | J81: Service Lives | N81: Depreciation Expense
A82: Account | B82: Description | C82: Opening Net Book Value of Existing Assets as at Date of Policy Change (Jan. 1) 1 | D82: Less Fully Depreciated 7 | E82: Net Amount of Existing Assets Before Policy Change to be Depreciated | F82: Opening Gross Book Value of Assets Acquired After Policy Change 2 | G82: Less Fully Depreciated 8 | H82: Net Amount of Assets Acquired After Policy Change to be Depreciated | I82: Current Year Additions | J82: Average Remaining Life of Assets Existing Before Policy Change 3 | K82: Depreciation Rate Assets Acquired After Policy Change | L82: Life of Assets Acquired After Policy Change 4 | M82: Depreciation Rate on New Additions | N82: Depreciation Expense on Assets Existing Before Policy Change | O82: Depreciation Expense on Assets Acquired After Policy Change | P82: Depreciation Expense on Current Year Additions 5 | Q82: Total Current Year Depreciation Expense | R82: Depreciation Expense per Appendix 2-BA Fixed Assets, Column J | S82: Variance 6
C83: a | D83: b | E83: c = a-b | F83: d | G83: e | H83: f = d- e | I83: g | J83: h | K83: i = 1/h | L83: j | M83: k = 1/j | N83: l = c/h | O83: m = f/j | P83: n = g*0.5/j | Q83: o = l+m+n | R83: p | S83: q = p-o
A84: 1611 | B84: Computer Software (Formally known as Account 1925) | C84: =E23 -> 6686779 | D84: 68831 | E84: =C84-D84 -> 6617948 | F84: =+H23+I23 -> 989635 | H84: =F84-G84 -> 989635 | I84: ='App.2-BA_Fixed Asset Cont'!E272 -> 651520 | J84: 3.4449072 | K84: =IF(J84=0,0,1/J84) -> 0.2902835816 | L84: =+L23 -> 5 | M84: =IF(L84=0,0,1/L84) -> 0.2 | N84: =IF(J84=0,0,+E84/J84) -> 1921081.648 | O84: =IF(L84=0,0,+H84/L84) -> 197927 | P84: =IF(L84=0,0,+(I84*0.5)/L84) -> 65152 | Q84: =IF(ISERROR(+N84+O84+P84), 0, +N84+O84+P84) -> 2184160.648 | R84: =-'App.2-BA_Fixed Asset Cont'!K272 -> 2180898 | S84: =IF(ISERROR(+R84-Q84), 0, +R84-Q84) -> -3262.647979
A85: 1612 | B85: Land Rights (Formally known as Account 1906) | C85: =E24 -> 14625 | E85: =C85-D85 -> 14625 | F85: 0 | H85: =F85-G85 -> 0 | I85: ='App.2-BA_Fixed Asset Cont'!E273 -> 160000 | J85: =+J24 -> 13 | K85: =IF(J85=0,0,1/J85) -> 0.07692307692 | L85: =+L24 -> 25 | M85: =IF(L85=0,0,1/L85) -> 0.04 | N85: =IF(J85=0,0,+E85/J85) -> 1125 | O85: =IF(L85=0,0,+H85/L85) -> 0 | P85: =IF(L85=0,0,+(I85*0.5)/L85) -> 3200 | Q85: =IF(ISERROR(+N85+O85+P85), 0, +N85+O85+P85) -> 4325 | R85: =-'App.2-BA_Fixed Asset Cont'!K273 -> 1192 | S85: =IF(ISERROR(+R85-Q85), 0, +R85-Q85) -> -3133
A86: 1805 | B86: Land | C86: =E25 -> 497489 | E86: 497489 | F86: 0 | H86: 0 | I86: ='App.2-BA_Fixed Asset Cont'!E274 -> 0 | J86: 0 | K86: 0 | L86: 0 | M86: 0 | N86: 0 | O86: =IF(L86=0,0,+H86/L86) -> 0 | P86: 0 | Q86: 0 | R86: =-'App.2-BA_Fixed Asset Cont'!K274 -> 0 | S86: 0
A87: 1808 | B87: Buildings | C87: =E26 -> 0 | E87: 0 | F87: 0 | H87: 0 | I87: ='App.2-BA_Fixed Asset Cont'!E275 -> 0 | J87: 0 | K87: 0 | L87: 0 | M87: 0 | N87: 0 | O87: 0 | P87: 0 | Q87: 0 | R87: =-'App.2-BA_Fixed Asset Cont'!K275 -> 0 | S87: 0
A88: 1810 | B88: Leasehold Improvements | C88: 0 | E88: 0 | F88: 0 | H88: 0 | I88: ='App.2-BA_Fixed Asset Cont'!E276 -> 0 | J88: 0 | K88: 0 | L88: 0 | M88: 0 | N88: 0 | O88: 0 | P88: 0 | Q88: 0 | R88: =-'App.2-BA_Fixed Asset Cont'!K276 -> 0 | S88: 0
A89: 1815 | B89: Transformer Station Equipment >50 kV | C89: 0 | E89: 0 | F89: 0 | H89: 0 | I89: ='App.2-BA_Fixed Asset Cont'!E277 -> 0 | J89: 0 | K89: 0 | L89: 0 | M89: 0 | N89: 0 | O89: 0 | P89: 0 | Q89: 0 | R89: =-'App.2-BA_Fixed Asset Cont'!K277 -> 0 | S89: 0
A90: 1820 | B90: Distribution Station Equipment <50 kV | C90: 3292186 | D90: 99127 | E90: 3193059 | F90: 167402 | H90: 167402 | I90: ='App.2-BA_Fixed Asset Cont'!E278 -> 79308 | J90: 26.58026338 | K90: 0.03762189959 | L90: 40 | M90: 0.025 | N90: 120128.9451 | O90: 4185.05 | P90: 991.35 | Q90: 125305.3451 | R90: =-'App.2-BA_Fixed Asset Cont'!K278 -> 126280 | S90: 974.6549316
A91: 1825 | B91: Storage Battery Equipment | C91: =E30 -> 0 | E91: 0 | F91: 0 | H91: 0 | I91: ='App.2-BA_Fixed Asset Cont'!E279 -> 0 | J91: 0 | K91: 0 | L91: 0 | M91: 0 | N91: 0 | O91: 0 | P91: 0 | Q91: 0 | R91: =-'App.2-BA_Fixed Asset Cont'!K279 -> 0 | S91: 0
A92: 1830 | B92: Poles, Towers & Fixtures | C92: 2930272 | E92: 2930272 | F92: 535801 | H92: 535801 | I92: ='App.2-BA_Fixed Asset Cont'!E280 -> 385717 | J92: 41.75274342 | K92: 0.023950522 | L92: 45 | M92: 0.02222222222 | N92: 70181.54402 | O92: 11906.68889 | P92: 4285.744444 | Q92: 86373.97735 | R92: =-'App.2-BA_Fixed Asset Cont'!K280 -> 86341 | S92: -32.97734901
A93: 1835 | B93: Overhead Conductors & Devices | C93: 9855401 | E93: 9855401 | F93: 553800 | H93: 553800 | I93: ='App.2-BA_Fixed Asset Cont'!E281 -> 428402 | J93: 34.26018073 | K93: 0.02918840411 | L93: 60 | M93: 0.01666666667 | N93: 287663.4271 | O93: 9230 | P93: 3570.016667 | Q93: 300463.4437 | R93: =-'App.2-BA_Fixed Asset Cont'!K281 -> 302663 | S93: 2199.556268
A94: 1840 | B94: Underground Conduit | C94: 1182052 | E94: 1182052 | F94: =+H33+I33 -> 211686 | H94: 211686 | I94: ='App.2-BA_Fixed Asset Cont'!E282 -> 168722 | J94: 48.88058945 | K94: 0.02045801843 | L94: 60 | M94: 0.01666666667 | N94: 24182.4416 | O94: 3528.1 | P94: 1406.016667 | Q94: 29116.55827 | R94: =-'App.2-BA_Fixed Asset Cont'!K282 -> 33388 | S94: 4271.44173
A95: 1845 | B95: Underground Conductors & Devices | C95: 8093402 | E95: 8093402 | F95: 259635 | H95: 259635 | I95: ='App.2-BA_Fixed Asset Cont'!E283 -> 560924 | J95: 23.07466696 | K95: 0.04333757022 | L95: 40 | M95: 0.025 | N95: 350748.3775 | O95: 6490.875 | P95: 7011.55 | Q95: 364250.8025 | R95: =-'App.2-BA_Fixed Asset Cont'!K283 -> 367474 | S95: 3223.19747
A96: 1850 | B96: Line Transformers | C96: 7257615 | E96: 7257615 | F96: 512341 | H96: 512341 | I96: ='App.2-BA_Fixed Asset Cont'!E284 -> 578441 | J96: 31.08410133 | K96: 0.0321707869 | L96: 40 | M96: 0.025 | N96: 233483.1856 | O96: 12808.525 | P96: 7230.5125 | Q96: 253522.2231 | R96: =-'App.2-BA_Fixed Asset Cont'!K284 -> 252284 | S96: -1238.223079
A97: 1855 | B97: Services (Overhead & Underground) | C97: 665779 | E97: 665779 | F97: 175147 | H97: 175147 | I97: ='App.2-BA_Fixed Asset Cont'!E285 -> 192720 | J97: 21.5144363 | K97: 0.04648041836 | L97: 25 | M97: 0.04 | N97: 30945.68645 | O97: 7005.88 | P97: 3854.4 | Q97: 41805.96645 | R97: =-'App.2-BA_Fixed Asset Cont'!K285 -> 39203 | S97: -2602.966453
A98: 1860 | B98: Meters | C98: 662870 | E98: 662870 | F98: 13134 | H98: 13134 | I98: ='App.2-BA_Fixed Asset Cont'!E286 -> 22895 | J98: 13.28932526 | K98: 0.07524836516 | L98: 15 | M98: 0.06666666667 | N98: 49879.88381 | O98: 875.6 | P98: 763.1666667 | Q98: 51518.65048 | R98: =-'App.2-BA_Fixed Asset Cont'!K286 -> 36748 | S98: -14770.65048
A99: 1860 | B99: Meters (Smart Meters) | C99: 4242960 | E99: 4242960 | F99: 93902 | H99: 93902 | I99: ='App.2-BA_Fixed Asset Cont'!E287 -> 26175 | J99: 13.28932526 | K99: 0.07524836516 | L99: 15 | M99: 0.06666666667 | N99: 319275.8034 | O99: 6260.133333 | P99: 872.5 | Q99: 326408.4368 | R99: =-'App.2-BA_Fixed Asset Cont'!K287 -> 341975 | S99: 15566.56324
A100: 1905 | B100: Land | C100: 0 | E100: 0 | F100: 0 | H100: 0 | I100: ='App.2-BA_Fixed Asset Cont'!E288 -> 0 | J100: 0 | K100: 0 | L100: 0 | M100: 0 | N100: 0 | O100: 0 | P100: 0 | Q100: 0 | R100: =-'App.2-BA_Fixed Asset Cont'!K288 -> 0 | S100: 0
A101: 1908 | B101: Buildings & Fixtures | C101: 6122664 | D101: 19456 | E101: 6103208 | F101: 515860 | H101: 515860 | I101: ='App.2-BA_Fixed Asset Cont'!E289 -> 128295 | J101: 34.81553409 | K101: 0.02872281084 | L101: 60 | M101: 0.01666666667 | N101: 175301.2889 | O101: 8597.666667 | P101: 1069.125 | Q101: 184968.0806 | R101: =-'App.2-BA_Fixed Asset Cont'!K289 -> 176464 | S101: -8504.080571
A102: 1910 | B102: Leasehold Improvements | C102: =E41 -> 0 | E102: 0 | F102: 0 | H102: 0 | I102: ='App.2-BA_Fixed Asset Cont'!E290 -> 0 | J102: 0 | K102: 0 | L102: 0 | M102: 0 | N102: 0 | O102: 0 | P102: 0 | Q102: 0 | R102: =-'App.2-BA_Fixed Asset Cont'!K290 -> 0 | S102: 0
A103: 1915 | B103: Office Furniture & Equipment (10 years) | C103: =E42 -> 243411 | E103: 243411 | F103: 64833 | H103: 64833 | I103: ='App.2-BA_Fixed Asset Cont'!E291 -> 9848 | J103: 4.83346858 | K103: 0.2068907625 | L103: 10 | M103: 0.1 | N103: 50359.48739 | O103: 6483.3 | P103: 492.4 | Q103: 57335.18739 | R103: =-'App.2-BA_Fixed Asset Cont'!K291 -> 45826 | S103: -11509.18739
A104: 1915 | B104: Office Furniture & Equipment (5 years) | C104: 0 | E104: 0 | F104: 0 | H104: 0 | I104: ='App.2-BA_Fixed Asset Cont'!E292 -> 0 | J104: 0 | K104: 0 | L104: 0 | M104: 0 | N104: 0 | O104: 0 | P104: 0 | Q104: 0 | R104: =-'App.2-BA_Fixed Asset Cont'!K292 -> 0 | S104: 0
A105: 1920 | B105: Computer Equipment - Hardware | C105: 1737416 | D105: 47385 | E105: 1690031 | F105: 554938 | H105: 554938 | I105: ='App.2-BA_Fixed Asset Cont'!E293 -> 401544 | J105: 3.518143683 | K105: 0.2842408071 | L105: 5 | M105: 0.2 | N105: 480375.7754 | O105: 110987.6 | P105: 40154.4 | Q105: 631517.7754 | R105: =-'App.2-BA_Fixed Asset Cont'!K293 -> 625036 | S105: -6481.77545
A106: 1920 | B106: Computer Equip.-Hardware(Post Mar. 22/04) | C106: 0 | E106: 0 | F106: 0 | H106: 0 | I106: ='App.2-BA_Fixed Asset Cont'!E294 -> 0 | J106: 0 | K106: 0 | L106: 0 | M106: 0 | N106: 0 | O106: 0 | P106: 0 | Q106: 0 | R106: =-'App.2-BA_Fixed Asset Cont'!K294 -> 0 | S106: 0
A107: 1920 | B107: Computer Equip.-Hardware(Post Mar. 19/07) | C107: 0 | E107: 0 | F107: 0 | H107: 0 | I107: ='App.2-BA_Fixed Asset Cont'!E295 -> 0 | J107: 0 | K107: 0 | L107: 0 | M107: 0 | N107: 0 | O107: 0 | P107: 0 | Q107: 0 | R107: =-'App.2-BA_Fixed Asset Cont'!K295 -> 0 | S107: 0
A108: 1930 | B108: Transportation Equipment | C108: 1881536 | D108: 15613 | E108: 1865923 | F108: 488549 | H108: 488549 | I108: ='App.2-BA_Fixed Asset Cont'!E296 -> 59531 | J108: 6.511200916 | K108: 0.1535814995 | L108: 10 | M108: 0.1 | N108: 286571.2522 | O108: 48854.9 | P108: 2976.55 | Q108: 338402.7022 | R108: =-'App.2-BA_Fixed Asset Cont'!K296 -> 346069 | S108: 7666.29779
A109: 1935 | B109: Stores Equipment | C109: 5063 | D109: 5063 | E109: 0 | F109: 0 | H109: 0 | I109: ='App.2-BA_Fixed Asset Cont'!E297 -> 0 | J109: 0 | K109: 0 | L109: 10 | M109: 0.1 | N109: 0 | O109: 0 | P109: 0 | Q109: 0 | R109: =-'App.2-BA_Fixed Asset Cont'!K297 -> 113 | S109: 113
A110: 1940 | B110: Tools, Shop & Garage Equipment | C110: 225421 | E110: 225421 | F110: -8962 | H110: -8962 | I110: ='App.2-BA_Fixed Asset Cont'!E298 -> 59439 | J110: 4.337411452 | K110: 0.230552257 | L110: 10 | M110: 0.1 | N110: 51971.32033 | O110: -896.2 | P110: 2971.95 | Q110: 54047.07033 | R110: =-'App.2-BA_Fixed Asset Cont'!K298 -> 44674 | S110: -9373.070333
A111: 1945 | B111: Measurement & Testing Equipment | C111: 124962 | E111: 124962 | F111: 0 | H111: 0 | I111: ='App.2-BA_Fixed Asset Cont'!E299 -> 0 | J111: 6.012884703 | K111: 0.1663095252 | L111: 10 | M111: 0.1 | N111: 20782.37089 | O111: 0 | P111: 0 | Q111: 20782.37089 | R111: =-'App.2-BA_Fixed Asset Cont'!K299 -> 16750 | S111: -4032.370886
A112: 1950 | B112: Power Operated Equipment | C112: 0 | E112: 0 | F112: 0 | H112: 0 | I112: ='App.2-BA_Fixed Asset Cont'!E300 -> 0 | J112: 0 | K112: 0 | L112: 0 | M112: 0 | N112: 0 | O112: 0 | P112: 0 | Q112: 0 | R112: =-'App.2-BA_Fixed Asset Cont'!K300 -> 0 | S112: 0
A113: 1955 | B113: Communications Equipment | C113: 77915 | E113: 77915 | F113: 0 | H113: 0 | I113: ='App.2-BA_Fixed Asset Cont'!E301 -> 0 | J113: 5.863636241 | K113: 0.1705426392 | L113: 10 | M113: 0.1 | N113: 13287.82973 | O113: 0 | P113: 0 | Q113: 13287.82973 | R113: =-'App.2-BA_Fixed Asset Cont'!K301 -> 11288 | S113: -1999.829734
A114: 1955 | B114: Communication Equipment (Smart Meters) | C114: 0 | E114: 0 | F114: 0 | H114: 0 | I114: ='App.2-BA_Fixed Asset Cont'!E302 -> 0 | J114: 0 | K114: 0 | L114: 0 | M114: 0 | N114: 0 | O114: 0 | P114: 0 | Q114: 0 | R114: =-'App.2-BA_Fixed Asset Cont'!K302 -> 0 | S114: 0
A115: 1960 | B115: Miscellaneous Equipment | C115: 66518 | E115: 66518 | F115: 71693 | H115: 71693 | I115: ='App.2-BA_Fixed Asset Cont'!E303 -> 6270 | J115: 5 | K115: 0.2 | L115: 10 | M115: 0.1 | N115: 13303.6 | O115: 7169.3 | P115: 313.5 | Q115: 20786.4 | R115: =-'App.2-BA_Fixed Asset Cont'!K303 -> 17977 | S115: -2809.4
A116: 1970 | B116: Load Management Controls Customer Premises | C116: 0 | E116: 0 | F116: =+H55+I55 -> 0 | H116: 0 | I116: ='App.2-BA_Fixed Asset Cont'!E304 -> 0 | J116: 0 | K116: 0 | L116: 0 | M116: 0 | N116: 0 | O116: 0 | P116: 0 | Q116: 0 | R116: =-'App.2-BA_Fixed Asset Cont'!K304 -> 0 | S116: 0
A117: 1975 | B117: Load Management Controls Utility Premises | C117: 0 | E117: 0 | F117: =+H56+I56 -> 0 | H117: 0 | I117: ='App.2-BA_Fixed Asset Cont'!E305 -> 0 | J117: 0 | K117: 0 | L117: 0 | M117: 0 | N117: 0 | O117: 0 | P117: 0 | Q117: 0 | R117: =-'App.2-BA_Fixed Asset Cont'!K305 -> 0 | S117: 0
A118: 1980 | B118: System Supervisor Equipment | C118: 478522 | E118: 478522 | F118: =+H57+I57 -> 98765 | H118: 98765 | I118: ='App.2-BA_Fixed Asset Cont'!E306 -> 133760 | J118: 12.15683689 | K118: 0.08225823946 | L118: 10 | M118: 0.1 | N118: 39362.37726 | O118: 9876.5 | P118: 6688 | Q118: 55926.87726 | R118: =-'App.2-BA_Fixed Asset Cont'!K306 -> 44669 | S118: -11257.87726
A119: 1985 | B119: Miscellaneous Fixed Assets | C119: 0 | E119: 0 | F119: =+H58+I58 -> 0 | H119: 0 | I119: ='App.2-BA_Fixed Asset Cont'!E307 -> 0 | J119: 0 | K119: 0 | L119: 0 | M119: 0 | N119: 0 | O119: 0 | P119: 0 | Q119: 0 | R119: =-'App.2-BA_Fixed Asset Cont'!K307 -> 0 | S119: 0
A120: 1990 | B120: Other Tangible Property | C120: 645280 | E120: 645280 | F120: 100867 | H120: 100867 | I120: ='App.2-BA_Fixed Asset Cont'!E308 -> 71716 | J120: 0 | K120: 0 | L120: 0 | M120: 0 | N120: 0 | O120: 0 | P120: 0 | Q120: 0 | R120: =-'App.2-BA_Fixed Asset Cont'!K308 -> 0 | S120: 0
A121: 1995 | B121: Contributions & Grants | C121: =E60 -> -5126899 | E121: -5126899 | F121: -537827 | H121: -537827 | I121: ='App.2-BA_Fixed Asset Cont'!E309 -> 0 | J121: 18.75927234 | K121: 0.05330697172 | L121: 25 | M121: 0.04 | N121: -273299.46 | O121: -21513.08 | P121: 0 | Q121: -294812.54 | R121: =-'App.2-BA_Fixed Asset Cont'!K309 -> -289235 | S121: 5577.54
A122: 2440 | B122: Deferred Revenue | C122: 0 | E122: 0 | H122: 0 | I122: ='App.2-BA_Fixed Asset Cont'!E310 -> -221294 | J122: 0 | K122: 0 | L122: 25 | M122: 0.04 | N122: 0 | O122: 0 | P122: -4425.88 | Q122: -4425.88 | R122: =-'App.2-BA_Fixed Asset Cont'!K310 -> -8852 | S122: -4426.12
A123: 2005 | B123: Property Under Finance Lease | C123: 0 | E123: 0 | F123: =+H61+I61 -> 0 | H123: 0 | I123: ='App.2-BA_Fixed Asset Cont'!E311 -> 0 | K123: 0 | M123: 0 | N123: 0 | O123: 0 | P123: 0 | Q123: 0 | R123: =-'App.2-BA_Fixed Asset Cont'!K311 -> 0 | S123: 0
B124: Total | C124: =SUM(C84:C123) -> 51863239 | D124: 255475 | E124: 51607764 | F124: 4861199 | G124: 0 | H124: 4861199 | I124: 3903933 | N124: =SUM(N84:N123) -> 4266711.785 | O124: 429777.8389 | P124: 148577.3019 | Q124: 4845066.926 | R124: 4799225 | S124: -45841.92554
B131: 2015 MIFRS | C131: Book Values | J131: Service Lives | N131: Depreciation Expense
A132: Account | B132: Description | C132: Opening Net Book Value of Existing Assets as at Date of Policy Change (Jan. 1) 1 | D132: Less Fully Depreciated 7 | E132: Net Amount of Existing Assets Before Policy Change to be Depreciated | F132: Opening Gross Book Value of Assets Acquired After Policy Change 2 | G132: Less Fully Depreciated 8 | H132: Net Amount of Assets Acquired After Policy Change to be Depreciated | I132: Current Year Additions | J132: Average Remaining Life of Assets Existing Before Policy Change 3 | K132: Depreciation Rate Assets Acquired After Policy Change | L132: Life of Assets Acquired After Policy Change 4 | M132: Depreciation Rate on New Additions | N132: Depreciation Expense on Assets Existing Before Policy Change | O132: Depreciation Expense on Assets Acquired After Policy Change | P132: Depreciation Expense on Current Year Additions 5 | Q132: Total Current Year Depreciation Expense | R132: Depreciation Expense per Appendix 2-BA Fixed Assets, Column J | S132: Variance 6
C133: a | D133: b | E133: c = a-b | F133: d | G133: e | H133: f = d- e | I133: g | J133: h | K133: i = 1/h | L133: j | M133: k = 1/j | N133: l = c/h | O133: m = f/j | P133: n = g*0.5/j | Q133: o = l+m+n | R133: p | S133: q = p-o
A134: 1611 | B134: Computer Software (Formally known as Account 1925) | C134: =E84 -> 6617948 | D134: 186218 | E134: =C134-D134 -> 6431730 | F134: =+H84+I84 -> 1641155 | H134: =F134-G134 -> 1641155 | I134: ='App.2-BA_Fixed Asset Cont'!E361 -> 994604 | J134: 4.201744194 | K134: =IF(J134=0,0,1/J134) -> 0.2379964019 | L134: =+L84 -> 5 | M134: =IF(L134=0,0,1/L134) -> 0.2 | N134: =IF(J134=0,0,+E134/J134) -> 1530728.598 | O134: =IF(L134=0,0,+H134/L134) -> 328231 | P134: =IF(L134=0,0,+(I134*0.5)/L134) -> 99460.4 | Q134: =IF(ISERROR(+N134+O134+P134), 0, +N134+O134+P134) -> 1958419.998 | R134: =-'App.2-BA_Fixed Asset Cont'!K361 -> 1946660 | S134: =IF(ISERROR(+R134-Q134), 0, +R134-Q134) -> -11759.99804
A135: 1612 | B135: Land Rights (Formally known as Account 1906) | C135: =E85 -> 14625 | E135: =C135-D135 -> 14625 | F135: =+H85+I85 -> 160000 | H135: =F135-G135 -> 160000 | I135: ='App.2-BA_Fixed Asset Cont'!E362 -> 0 | J135: =+J85 -> 13 | K135: =IF(J135=0,0,1/J135) -> 0.07692307692 | L135: =+L85 -> 25 | M135: =IF(L135=0,0,1/L135) -> 0.04 | N135: =IF(J135=0,0,+E135/J135) -> 1125 | O135: =IF(L135=0,0,+H135/L135) -> 6400 | P135: =IF(L135=0,0,+(I135*0.5)/L135) -> 0 | Q135: =IF(ISERROR(+N135+O135+P135), 0, +N135+O135+P135) -> 7525 | R135: =-'App.2-BA_Fixed Asset Cont'!K362 -> 1192 | S135: =IF(ISERROR(+R135-Q135), 0, +R135-Q135) -> -6333
A136: 1805 | B136: Land | C136: 497489 | E136: 497489 | F136: 0 | H136: 0 | I136: ='App.2-BA_Fixed Asset Cont'!E363 -> 0 | J136: =+J86 -> 0 | K136: 0 | L136: 0 | M136: 0 | N136: 0 | O136: =IF(L136=0,0,+H136/L136) -> 0 | P136: 0 | Q136: 0 | R136: =-'App.2-BA_Fixed Asset Cont'!K363 -> 0 | S136: 0
A137: 1808 | B137: Buildings | C137: 0 | E137: 0 | F137: 0 | H137: 0 | I137: ='App.2-BA_Fixed Asset Cont'!E364 -> 0 | J137: 0 | K137: =IF(J137=0,0,1/J137) -> 0 | L137: 0 | M137: 0 | N137: 0 | O137: 0 | P137: 0 | Q137: 0 | R137: =-'App.2-BA_Fixed Asset Cont'!K364 -> 0 | S137: 0
A138: 1810 | B138: Leasehold Improvements | C138: 0 | E138: 0 | F138: 0 | H138: 0 | I138: ='App.2-BA_Fixed Asset Cont'!E365 -> 0 | J138: 0 | K138: 0 | L138: 0 | M138: 0 | N138: 0 | O138: 0 | P138: 0 | Q138: 0 | R138: =-'App.2-BA_Fixed Asset Cont'!K365 -> 0 | S138: 0
A139: 1815 | B139: Transformer Station Equipment >50 kV | C139: 0 | E139: 0 | F139: 0 | H139: 0 | I139: ='App.2-BA_Fixed Asset Cont'!E366 -> 0 | J139: 0 | K139: 0 | L139: 0 | M139: 0 | N139: 0 | O139: 0 | P139: 0 | Q139: 0 | R139: =-'App.2-BA_Fixed Asset Cont'!K366 -> 0 | S139: 0
A140: 1820 | B140: Distribution Station Equipment <50 kV | C140: 3193059 | E140: 3193059 | F140: 246710 | H140: 246710 | I140: ='App.2-BA_Fixed Asset Cont'!E367 -> 441280 | J140: 26.58026338 | K140: 0.03762189959 | L140: 40 | M140: 0.025 | N140: 120128.9451 | O140: 6167.75 | P140: 5516 | Q140: 131812.6951 | R140: =-'App.2-BA_Fixed Asset Cont'!K367 -> 136378 | S140: 4565.304932
A141: 1825 | B141: Storage Battery Equipment | C141: 0 | E141: 0 | F141: 0 | H141: 0 | I141: ='App.2-BA_Fixed Asset Cont'!E368 -> 0 | J141: 0 | K141: 0 | L141: 0 | M141: 0 | N141: 0 | O141: 0 | P141: 0 | Q141: 0 | R141: =-'App.2-BA_Fixed Asset Cont'!K368 -> 0 | S141: 0
A142: 1830 | B142: Poles, Towers & Fixtures | C142: 2930272 | E142: 2930272 | F142: 921518 | H142: 921518 | I142: ='App.2-BA_Fixed Asset Cont'!E369 -> 1494255 | J142: 41.75274342 | K142: 0.023950522 | L142: 45 | M142: 0.02222222222 | N142: 70181.54402 | O142: 20478.17778 | P142: 16602.83333 | Q142: 107262.5551 | R142: =-'App.2-BA_Fixed Asset Cont'!K369 -> 106376 | S142: -886.5551268
A143: 1835 | B143: Overhead Conductors & Devices | C143: 9855401 | E143: 9855401 | F143: 982202 | H143: 982202 | I143: ='App.2-BA_Fixed Asset Cont'!E370 -> 1114705 | J143: 34.26018073 | K143: 0.02918840411 | L143: 60 | M143: 0.01666666667 | N143: 287663.4271 | O143: 16370.03333 | P143: 9289.208333 | Q143: 313322.6687 | R143: =-'App.2-BA_Fixed Asset Cont'!K370 -> 317574 | S143: 4251.331268
A144: 1840 | B144: Underground Conduit | C144: 1182052 | E144: 1182052 | F144: 380408 | H144: 380408 | I144: ='App.2-BA_Fixed Asset Cont'!E371 -> 150691 | J144: 48.88058945 | K144: 0.02045801843 | L144: 60 | M144: 0.01666666667 | N144: 24182.4416 | O144: 6340.133333 | P144: 1255.758333 | Q144: 31778.33327 | R144: =-'App.2-BA_Fixed Asset Cont'!K371 -> 39658 | S144: 7879.66673
A145: 1845 | B145: Underground Conductors & Devices | C145: 8093402 | E145: 8093402 | F145: 820559 | H145: 820559 | I145: ='App.2-BA_Fixed Asset Cont'!E372 -> 740129 | J145: 23.40820145 | K145: 0.0427200698 | L145: 40 | M145: 0.025 | N145: 345750.6983 | O145: 20513.975 | P145: 9251.6125 | Q145: 375516.2858 | R145: =-'App.2-BA_Fixed Asset Cont'!K372 -> 379270 | S145: 3753.714157
A146: 1850 | B146: Line Transformers | C146: 7257615 | E146: 7257615 | F146: 1090782 | H146: 1090782 | I146: ='App.2-BA_Fixed Asset Cont'!E373 -> 1103952 | J146: 31.08410133 | K146: 0.0321707869 | L146: 40 | M146: 0.025 | N146: 233483.1856 | O146: 27269.55 | P146: 13799.4 | Q146: 274552.1356 | R146: =-'App.2-BA_Fixed Asset Cont'!K373 -> 276760 | S146: 2207.864421
A147: 1855 | B147: Services (Overhead & Underground) | C147: 665779 | E147: 665779 | F147: 367867 | H147: 367867 | I147: ='App.2-BA_Fixed Asset Cont'!E374 -> 172600 | J147: 21.5144363 | K147: 0.04648041836 | L147: 25 | M147: 0.04 | N147: 30945.68645 | O147: 14714.68 | P147: 3452 | Q147: 49112.36645 | R147: =-'App.2-BA_Fixed Asset Cont'!K374 -> 47669 | S147: -1443.366453
A148: 1860 | B148: Meters | C148: 662870 | E148: 662870 | F148: 36029 | H148: 36029 | I148: ='App.2-BA_Fixed Asset Cont'!E375 -> 19599 | J148: 13.28932526 | K148: 0.07524836516 | L148: 15 | M148: 0.06666666667 | N148: 49879.88381 | O148: 2401.933333 | P148: 653.3 | Q148: 52935.11714 | R148: =-'App.2-BA_Fixed Asset Cont'!K375 -> 38600.45 | S148: -14334.66714
A149: 1860 | B149: Meters (Smart Meters) | C149: 4242960 | E149: 4242960 | F149: 120077 | H149: 120077 | I149: ='App.2-BA_Fixed Asset Cont'!E376 -> 630238 | J149: 13.28932526 | K149: 0.07524836516 | L149: 15 | M149: 0.06666666667 | N149: 319275.8034 | O149: 8005.133333 | P149: 21007.93333 | Q149: 348288.8701 | R149: =-'App.2-BA_Fixed Asset Cont'!K376 -> 338817.55 | S149: -9471.320093
A150: 1905 | B150: Land | C150: 0 | E150: 0 | F150: 0 | H150: 0 | I150: ='App.2-BA_Fixed Asset Cont'!E377 -> 0 | J150: 0 | K150: 0 | L150: 0 | M150: 0 | N150: 0 | O150: 0 | P150: 0 | Q150: 0 | R150: =-'App.2-BA_Fixed Asset Cont'!K377 -> 0 | S150: 0
A151: 1908 | B151: Buildings & Fixtures | C151: 6103208 | E151: 6103208 | F151: 644155 | H151: 644155 | I151: ='App.2-BA_Fixed Asset Cont'!E378 -> 53172 | J151: 39.022102 | K151: 0.02562650264 | L151: 60 | M151: 0.01666666667 | N151: 156403.8759 | O151: 10735.91667 | P151: 443.1 | Q151: 167582.8926 | R151: =-'App.2-BA_Fixed Asset Cont'!K378 -> 178014 | S151: 10431.10739
A152: 1910 | B152: Leasehold Improvements | C152: 0 | E152: 0 | F152: 0 | H152: 0 | I152: ='App.2-BA_Fixed Asset Cont'!E379 -> 0 | J152: 0 | K152: 0 | L152: 0 | M152: 0 | N152: 0 | O152: 0 | P152: 0 | Q152: 0 | R152: =-'App.2-BA_Fixed Asset Cont'!K379 -> 0 | S152: 0
A153: 1915 | B153: Office Furniture & Equipment (10 years) | C153: 243411 | D153: 43642 | E153: 199769 | F153: 74681 | H153: 74681 | I153: ='App.2-BA_Fixed Asset Cont'!E380 -> 9645 | J153: 7 | K153: 0.1428571429 | L153: 10 | M153: 0.1 | N153: 28538.42857 | O153: 7468.1 | P153: 482.25 | Q153: 36488.77857 | R153: =-'App.2-BA_Fixed Asset Cont'!K380 -> 43579 | S153: 7090.221429
A154: 1915 | B154: Office Furniture & Equipment (5 years) | C154: 0 | E154: 0 | F154: 0 | H154: 0 | I154: ='App.2-BA_Fixed Asset Cont'!E381 -> 0 | J154: 0 | K154: 0 | L154: 0 | M154: 0 | N154: 0 | O154: 0 | P154: 0 | Q154: 0 | R154: =-'App.2-BA_Fixed Asset Cont'!K381 -> 0 | S154: 0
A155: 1920 | B155: Computer Equipment - Hardware | C155: 1690031 | D155: 258079 | E155: 1431952 | F155: 956482 | H155: 956482 | I155: ='App.2-BA_Fixed Asset Cont'!E382 -> 177871 | J155: 4.543910321 | K155: 0.2200747659 | L155: 5 | M155: 0.2 | N155: 315136.5011 | O155: 191296.4 | P155: 17787.1 | Q155: 524220.0011 | R155: =-'App.2-BA_Fixed Asset Cont'!K382 -> 527358 | S155: 3137.998878
A156: 1920 | B156: Computer Equip.-Hardware(Post Mar. 22/04) | C156: 0 | E156: 0 | F156: 0 | H156: 0 | I156: ='App.2-BA_Fixed Asset Cont'!E383 -> 0 | J156: 0 | K156: 0 | L156: 0 | M156: 0 | N156: 0 | O156: 0 | P156: 0 | Q156: 0 | R156: =-'App.2-BA_Fixed Asset Cont'!K383 -> 0 | S156: 0
A157: 1920 | B157: Computer Equip.-Hardware(Post Mar. 19/07) | C157: 0 | E157: 0 | F157: 0 | H157: 0 | I157: ='App.2-BA_Fixed Asset Cont'!E384 -> 0 | J157: 0 | K157: 0 | L157: 0 | M157: 0 | N157: 0 | O157: 0 | P157: 0 | Q157: 0 | R157: =-'App.2-BA_Fixed Asset Cont'!K384 -> 0 | S157: 0
A158: 1930 | B158: Transportation Equipment | C158: 1865923 | D158: 9504 | E158: 1856419 | F158: 548080 | H158: 548080 | I158: ='App.2-BA_Fixed Asset Cont'!E385 -> 131389 | J158: 6.587268825 | K158: 0.1518079839 | L158: 10 | M158: 0.1 | N158: 281819.2257 | O158: 54808 | P158: 6569.45 | Q158: 343196.6757 | R158: =-'App.2-BA_Fixed Asset Cont'!K385 -> 353733 | S158: 10536.32428
A159: 1935 | B159: Stores Equipment | C159: 0 | E159: 0 | F159: 0 | H159: 0 | I159: ='App.2-BA_Fixed Asset Cont'!E386 -> 0 | J159: 0 | K159: 0 | L159: 10 | M159: 0.1 | N159: 0 | O159: 0 | P159: 0 | Q159: 0 | R159: =-'App.2-BA_Fixed Asset Cont'!K386 -> 53 | S159: 53
A160: 1940 | B160: Tools, Shop & Garage Equipment | C160: 225421 | D160: 55465 | E160: 169956 | F160: 50477 | H160: 50477 | I160: ='App.2-BA_Fixed Asset Cont'!E387 -> 17543 | J160: 7.011736579 | K160: 0.1426180218 | L160: 10 | M160: 0.1 | N160: 24238.78851 | O160: 5047.7 | P160: 877.15 | Q160: 30163.63851 | R160: =-'App.2-BA_Fixed Asset Cont'!K387 -> 43745 | S160: 13581.36149
A161: 1945 | B161: Measurement & Testing Equipment | C161: 124962 | D161: 8206 | E161: 116756 | F161: 0 | H161: 0 | I161: ='App.2-BA_Fixed Asset Cont'!E388 -> 0 | J161: 7 | K161: 0.1428571429 | L161: 10 | M161: 0.1 | N161: 16679.42857 | O161: 0 | P161: 0 | Q161: 16679.42857 | R161: =-'App.2-BA_Fixed Asset Cont'!K388 -> 14377 | S161: -2302.428571
A162: 1950 | B162: Power Operated Equipment | C162: 0 | E162: 0 | F162: 0 | H162: 0 | I162: ='App.2-BA_Fixed Asset Cont'!E389 -> 0 | J162: 0 | K162: 0 | L162: 0 | M162: 0 | N162: 0 | O162: 0 | P162: 0 | Q162: 0 | R162: =-'App.2-BA_Fixed Asset Cont'!K389 -> 0 | S162: 0
A163: 1955 | B163: Communications Equipment | C163: 77915 | D163: 6040 | E163: 71875 | F163: 0 | H163: 0 | I163: ='App.2-BA_Fixed Asset Cont'!E390 -> 0 | J163: 7 | K163: 0.1428571429 | L163: 10 | M163: 0.1 | N163: 10267.85714 | O163: 0 | P163: 0 | Q163: 10267.85714 | R163: =-'App.2-BA_Fixed Asset Cont'!K390 -> 9433 | S163: -834.8571429
A164: 1955 | B164: Communication Equipment (Smart Meters) | C164: 0 | E164: 0 | F164: 0 | H164: 0 | I164: ='App.2-BA_Fixed Asset Cont'!E391 -> 0 | J164: 0 | K164: 0 | L164: 0 | M164: 0 | N164: 0 | O164: 0 | P164: 0 | Q164: 0 | R164: =-'App.2-BA_Fixed Asset Cont'!K391 -> 0 | S164: 0
A165: 1960 | B165: Miscellaneous Equipment | C165: 66518 | E165: 66518 | F165: 77963 | H165: 77963 | I165: ='App.2-BA_Fixed Asset Cont'!E392 -> 0 | J165: 5 | K165: 0.2 | L165: 10 | M165: 0.1 | N165: 13303.6 | O165: 7796.3 | P165: 0 | Q165: 21099.9 | R165: =-'App.2-BA_Fixed Asset Cont'!K392 -> 18708 | S165: -2391.9
A166: 1970 | B166: Load Management Controls Customer Premises | C166: 0 | E166: 0 | F166: 0 | H166: 0 | I166: ='App.2-BA_Fixed Asset Cont'!E393 -> 0 | J166: 0 | K166: 0 | L166: 0 | M166: 0 | N166: 0 | O166: 0 | P166: 0 | Q166: 0 | R166: =-'App.2-BA_Fixed Asset Cont'!K393 -> 0 | S166: 0
A167: 1975 | B167: Load Management Controls Utility Premises | C167: 0 | E167: 0 | F167: 0 | H167: 0 | I167: ='App.2-BA_Fixed Asset Cont'!E394 -> 0 | J167: 0 | K167: 0 | L167: 0 | M167: 0 | N167: 0 | O167: 0 | P167: 0 | Q167: 0 | R167: =-'App.2-BA_Fixed Asset Cont'!K394 -> 0 | S167: 0
A168: 1980 | B168: System Supervisor Equipment | C168: 478522 | E168: 478522 | F168: 232525 | H168: 232525 | I168: ='App.2-BA_Fixed Asset Cont'!E395 -> 64952 | J168: 12.15683689 | K168: 0.08225823946 | L168: 10 | M168: 0.1 | N168: 39362.37726 | O168: 23252.5 | P168: 3247.6 | Q168: 65862.47726 | R168: =-'App.2-BA_Fixed Asset Cont'!K395 -> 48752 | S168: -17110.47726
A169: 1985 | B169: Miscellaneous Fixed Assets | C169: 0 | E169: 0 | F169: 0 | H169: 0 | I169: ='App.2-BA_Fixed Asset Cont'!E396 -> 0 | J169: 0 | K169: 0 | L169: 0 | M169: 0 | N169: 0 | O169: 0 | P169: 0 | Q169: 0 | R169: =-'App.2-BA_Fixed Asset Cont'!K396 -> 0 | S169: 0
A170: 1990 | B170: Other Tangible Property | C170: 645280 | E170: 645280 | F170: 172583 | H170: 172583 | I170: ='App.2-BA_Fixed Asset Cont'!E397 -> 64975 | J170: 0 | K170: 0 | L170: 0 | M170: 0 | N170: 0 | O170: 0 | P170: 0 | Q170: 0 | R170: =-'App.2-BA_Fixed Asset Cont'!K397 -> 0 | S170: 0
A171: 1995 | B171: Contributions & Grants | C171: -5126899 | E171: -5126899 | F171: -537827 | H171: -537827 | I171: ='App.2-BA_Fixed Asset Cont'!E398 -> 0 | J171: 18.75927234 | K171: 0.05330697172 | L171: 25 | M171: 0.04 | N171: -273299.46 | O171: -21513.08 | P171: 0 | Q171: -294812.54 | R171: =-'App.2-BA_Fixed Asset Cont'!K398 -> -288808 | S171: 6004.54
A172: 2440 | B172: Deferred Revenue | C172: 0 | E172: 0 | F172: -221294 | H172: -221294 | I172: ='App.2-BA_Fixed Asset Cont'!E399 -> -360407 | J172: 0 | K172: 0 | L172: 25 | M172: 0.04 | N172: 0 | O172: -8851.76 | P172: -7208.14 | Q172: -16059.9 | R172: =-'App.2-BA_Fixed Asset Cont'!K399 -> -23268 | S172: -7208.1
A173: 2005 | B173: Property Under Finance Lease | E173: 0 | H173: 0 | K173: 0 | M173: 0 | N173: 0 | O173: 0 | P173: 0 | Q173: 0 | R173: =-'App.2-BA_Fixed Asset Cont'!K400 -> 0 | S173: 0
B174: Total | C174: =SUM(C134:C173) -> 51607764 | D174: 567154 | E174: 51040610 | F174: 8765132 | G174: 0 | H174: 8765132 | I174: 7021193 | N174: =SUM(N134:N173) -> 3625795.836 | O174: 726932.4428 | P174: 202486.9558 | Q174: 4555215.235 | R174: 4554631 | S174: -584.2348621
B180: 2016 | C180: Book Values | J180: Service Lives | N180: Depreciation Expense
A181: Account | B181: Description | C181: Opening Net Book Value of Existing Assets as at Date of Policy Change (Jan. 1) 1 | D181: Less Fully Depreciated 7 | E181: Net Amount of Existing Assets Before Policy Change to be Depreciated | F181: Opening Gross Book Value of Assets Acquired After Policy Change 2 | G181: Less Fully Depreciated 8 | H181: Net Amount of Assets Acquired After Policy Change to be Depreciated | I181: Current Year Additions | J181: Average Remaining Life of Assets Existing Before Policy Change 3 | K181: Depreciation Rate Assets Acquired After Policy Change | L181: Life of Assets Acquired After Policy Change 4 | M181: Depreciation Rate on New Additions | N181: Depreciation Expense on Assets Existing Before Policy Change | O181: Depreciation Expense on Assets Acquired After Policy Change | P181: Depreciation Expense on Current Year Additions 5 | Q181: Total Current Year Depreciation Expense | R181: Depreciation Expense per Appendix 2-BA Fixed Assets, Column J | S181: Variance 6
C182: a | D182: b | E182: c = a-b | F182: d | G182: e | H182: f = d- e | I182: g | J182: h | K182: i = 1/h | L182: j | M182: k = 1/j | N182: l = c/h | O182: m = f/j | P182: n = g*0.5/j | Q182: o = l+m+n | R182: p | S182: q = p-o
A183: 1611 | B183: Computer Software (Formally known as Account 1925) | C183: =E134 -> 6431730 | D183: 1729770 | E183: =C183-D183 -> 4701960 | F183: =+H134+I134 -> 2635759 | H183: =F183-G183 -> 2635759 | I183: ='App.2-BA_Fixed Asset Cont'!E451 -> 1110282 | J183: 5.412638234 | K183: =IF(J183=0,0,1/J183) -> 0.1847527872 | L183: =+L134 -> 5 | M183: =IF(L183=0,0,1/L183) -> 0.2 | N183: =IF(J183=0,0,+E183/J183) -> 868700.2154 | O183: =IF(L183=0,0,+H183/L183) -> 527151.8 | P183: =IF(L183=0,0,+(I183*0.5)/L183) -> 111028.2 | Q183: =IF(ISERROR(+N183+O183+P183), 0, +N183+O183+P183) -> 1506880.215 | R183: =-'App.2-BA_Fixed Asset Cont'!K451 -> 1456969 | S183: =IF(ISERROR(+R183-Q183), 0, +R183-Q183) -> -49911.21537
A184: 1612 | B184: Land Rights (Formally known as Account 1906) | C184: =E135 -> 14625 | E184: =C184-D184 -> 14625 | F184: =+H135+I135 -> 160000 | H184: =F184-G184 -> 160000 | I184: ='App.2-BA_Fixed Asset Cont'!E452 -> 0 | J184: =+J135 -> 13 | K184: =IF(J184=0,0,1/J184) -> 0.07692307692 | L184: =+L135 -> 25 | M184: =IF(L184=0,0,1/L184) -> 0.04 | N184: =IF(J184=0,0,+E184/J184) -> 1125 | O184: =IF(L184=0,0,+H184/L184) -> 6400 | P184: =IF(L184=0,0,+(I184*0.5)/L184) -> 0 | Q184: =IF(ISERROR(+N184+O184+P184), 0, +N184+O184+P184) -> 7525 | R184: =-'App.2-BA_Fixed Asset Cont'!K452 -> 1192 | S184: =IF(ISERROR(+R184-Q184), 0, +R184-Q184) -> -6333
A185: 1805 | B185: Land | C185: 497489 | E185: 497489 | F185: 0 | H185: 0 | I185: ='App.2-BA_Fixed Asset Cont'!E453 -> 0 | J185: =+J136 -> 0 | K185: 0 | L185: 0 | M185: 0 | N185: 0 | O185: =IF(L185=0,0,+H185/L185) -> 0 | P185: 0 | Q185: 0 | R185: =-'App.2-BA_Fixed Asset Cont'!K453 -> 0 | S185: 0
A186: 1808 | B186: Buildings | C186: 0 | E186: 0 | F186: 0 | H186: 0 | I186: ='App.2-BA_Fixed Asset Cont'!E454 -> 0 | J186: 0 | K186: =IF(J186=0,0,1/J186) -> 0 | L186: 0 | M186: 0 | N186: 0 | O186: 0 | P186: 0 | Q186: 0 | R186: =-'App.2-BA_Fixed Asset Cont'!K454 -> 0 | S186: 0
A187: 1810 | B187: Leasehold Improvements | C187: 0 | E187: 0 | F187: 0 | H187: 0 | I187: ='App.2-BA_Fixed Asset Cont'!E455 -> 0 | J187: 0 | K187: =IF(J187=0,0,1/J187) -> 0 | L187: 0 | M187: 0 | N187: 0 | O187: 0 | P187: 0 | Q187: 0 | R187: =-'App.2-BA_Fixed Asset Cont'!K455 -> 0 | S187: 0
A188: 1815 | B188: Transformer Station Equipment >50 kV | C188: 0 | E188: 0 | F188: 0 | H188: 0 | I188: ='App.2-BA_Fixed Asset Cont'!E456 -> 0 | J188: 0 | K188: 0 | L188: 0 | M188: 0 | N188: 0 | O188: 0 | P188: 0 | Q188: 0 | R188: =-'App.2-BA_Fixed Asset Cont'!K456 -> 0 | S188: 0
A189: 1820 | B189: Distribution Station Equipment <50 kV | C189: 3193059 | E189: 3193059 | F189: 687990 | H189: 687990 | I189: ='App.2-BA_Fixed Asset Cont'!E457 -> 98036 | J189: 26.58026338 | K189: 0.03762189959 | L189: 40 | M189: 0.025 | N189: 120128.9451 | O189: 17199.75 | P189: 1225.45 | Q189: 138554.1451 | R189: =-'App.2-BA_Fixed Asset Cont'!K457 -> 139319 | S189: 764.8549316
A190: 1825 | B190: Storage Battery Equipment | C190: 0 | E190: 0 | F190: 0 | H190: 0 | I190: ='App.2-BA_Fixed Asset Cont'!E458 -> 0 | J190: 0 | K190: 0 | L190: 0 | M190: 0 | N190: 0 | O190: 0 | P190: 0 | Q190: 0 | R190: =-'App.2-BA_Fixed Asset Cont'!K458 -> 0 | S190: 0
A191: 1830 | B191: Poles, Towers & Fixtures | C191: 2930272 | E191: 2930272 | F191: 2415773 | H191: 2415773 | I191: ='App.2-BA_Fixed Asset Cont'!E459 -> 2069153 | J191: 41.75274342 | K191: 0.023950522 | L191: 45 | M191: 0.02222222222 | N191: 70181.54402 | O191: 53683.84444 | P191: 22990.58889 | Q191: 146855.9773 | R191: =-'App.2-BA_Fixed Asset Cont'!K459 -> 142927 | S191: -3928.977349
A192: 1835 | B192: Overhead Conductors & Devices | C192: 9855401 | E192: 9855401 | F192: 2096907 | H192: 2096907 | I192: ='App.2-BA_Fixed Asset Cont'!E460 -> 895151 | J192: 34.26018073 | K192: 0.02918840411 | L192: 60 | M192: 0.01666666667 | N192: 287663.4271 | O192: 34948.45 | P192: 7459.591667 | Q192: 330071.4687 | R192: =-'App.2-BA_Fixed Asset Cont'!K460 -> 336370 | S192: 6298.531268
A193: 1840 | B193: Underground Conduit | C193: 1182052 | E193: 1182052 | F193: 531099 | H193: 531099 | I193: ='App.2-BA_Fixed Asset Cont'!E461 -> 284077 | J193: 48.88058945 | K193: 0.02045801843 | L193: 60 | M193: 0.01666666667 | N193: 24182.4416 | O193: 8851.65 | P193: 2367.308333 | Q193: 35401.39994 | R193: =-'App.2-BA_Fixed Asset Cont'!K461 -> 45733 | S193: 10331.60006
A194: 1845 | B194: Underground Conductors & Devices | C194: 8093402 | D194: 30640.47 | E194: 8062761.53 | F194: 1560688 | H194: 1560688 | I194: ='App.2-BA_Fixed Asset Cont'!E462 -> 440868 | J194: 23.68952778 | K194: 0.04221274519 | L194: 40 | M194: 0.025 | N194: 340351.298 | O194: 39017.2 | P194: 5510.85 | Q194: 384879.348 | R194: =-'App.2-BA_Fixed Asset Cont'!K462 -> 382801 | S194: -2078.347993
A195: 1850 | B195: Line Transformers | C195: 7257615 | E195: 7257615 | F195: 2194734 | H195: 2194734 | I195: ='App.2-BA_Fixed Asset Cont'!E463 -> 1122373 | J195: 31.08410133 | K195: 0.0321707869 | L195: 40 | M195: 0.025 | N195: 233483.1856 | O195: 54868.35 | P195: 14029.6625 | Q195: 302381.1981 | R195: =-'App.2-BA_Fixed Asset Cont'!K463 -> 301949 | S195: -432.1980785
A196: 1855 | B196: Services (Overhead & Underground) | C196: 665779 | E196: 665779 | F196: 540467 | H196: 540467 | I196: ='App.2-BA_Fixed Asset Cont'!E464 -> 200440 | J196: 21.5144363 | K196: 0.04648041836 | L196: 25 | M196: 0.04 | N196: 30945.68645 | O196: 21618.68 | P196: 4008.8 | Q196: 56573.16645 | R196: =-'App.2-BA_Fixed Asset Cont'!K464 -> 54989 | S196: -1584.166453
A197: 1860 | B197: Meters | C197: 662870 | E197: 662870 | F197: 55628 | H197: 55628 | I197: ='App.2-BA_Fixed Asset Cont'!E465 -> 19970 | J197: 13.28932526 | K197: 0.07524836516 | L197: 15 | M197: 0.06666666667 | N197: 49879.88381 | O197: 3708.533333 | P197: 665.6666667 | Q197: 54254.08381 | R197: =-'App.2-BA_Fixed Asset Cont'!K465 -> 39797 | S197: -14457.08381
A198: 1860 | B198: Meters (Smart Meters) | C198: 4242960 | E198: 4242960 | F198: 750315 | H198: 750315 | I198: ='App.2-BA_Fixed Asset Cont'!E466 -> 175795 | J198: 13.28932526 | K198: 0.07524836516 | L198: 15 | M198: 0.06666666667 | N198: 319275.8034 | O198: 50021 | P198: 5859.833333 | Q198: 375156.6368 | R198: =-'App.2-BA_Fixed Asset Cont'!K466 -> 346569 | S198: -28587.63676
A199: 1905 | B199: Land | C199: 0 | E199: 0 | F199: 0 | H199: 0 | I199: ='App.2-BA_Fixed Asset Cont'!E467 -> 0 | J199: 0 | K199: 0 | L199: 0 | M199: 0 | N199: 0 | O199: 0 | P199: 0 | Q199: 0 | R199: =-'App.2-BA_Fixed Asset Cont'!K467 -> 0 | S199: 0
A200: 1908 | B200: Buildings & Fixtures | C200: 6103208 | E200: 6103208 | F200: 697327 | H200: 697327 | I200: ='App.2-BA_Fixed Asset Cont'!E468 -> 109510 | J200: 39.022102 | K200: 0.02562650264 | L200: 60 | M200: 0.01666666667 | N200: 156403.8759 | O200: 11622.11667 | P200: 912.5833333 | Q200: 168938.5759 | R200: =-'App.2-BA_Fixed Asset Cont'!K468 -> 180382 | S200: 11443.42405
A201: 1910 | B201: Leasehold Improvements | C201: 0 | E201: 0 | F201: 0 | H201: 0 | I201: ='App.2-BA_Fixed Asset Cont'!E469 -> 0 | J201: 0 | K201: 0 | L201: 0 | M201: 0 | N201: 0 | O201: 0 | P201: 0 | Q201: 0 | R201: =-'App.2-BA_Fixed Asset Cont'!K469 -> 0 | S201: 0
A202: 1915 | B202: Office Furniture & Equipment (10 years) | C202: 199769 | E202: 199769 | F202: 84326 | H202: 84326 | I202: ='App.2-BA_Fixed Asset Cont'!E470 -> 79006 | J202: 7 | K202: 0.1428571429 | L202: 10 | M202: 0.1 | N202: 28538.42857 | O202: 8432.6 | P202: 3950.3 | Q202: 40921.32857 | R202: =-'App.2-BA_Fixed Asset Cont'!K470 -> 47354 | S202: 6432.671429
A203: 1915 | B203: Office Furniture & Equipment (5 years) | C203: 0 | E203: 0 | F203: 0 | H203: 0 | I203: ='App.2-BA_Fixed Asset Cont'!E471 -> 0 | J203: 0 | K203: 0 | L203: 0 | M203: 0 | N203: 0 | O203: 0 | P203: 0 | Q203: 0 | R203: =-'App.2-BA_Fixed Asset Cont'!K471 -> 0 | S203: 0
A204: 1920 | B204: Computer Equipment - Hardware | C204: 1431952 | D204: 317599 | E204: 1114353 | F204: 1134353 | H204: 1134353 | I204: ='App.2-BA_Fixed Asset Cont'!E472 -> 261921 | J204: 4.994169659 | K204: 0.2002334859 | L204: 5 | M204: 0.2 | N204: 223130.7857 | O204: 226870.6 | P204: 26192.1 | Q204: 476193.4857 | R204: =-'App.2-BA_Fixed Asset Cont'!K472 -> 475441 | S204: -752.4857151
A205: 1920 | B205: Computer Equip.-Hardware(Post Mar. 22/04) | C205: 0 | E205: 0 | F205: 0 | H205: 0 | I205: ='App.2-BA_Fixed Asset Cont'!E473 -> 0 | J205: 0 | K205: 0 | L205: 0 | M205: 0 | N205: 0 | O205: 0 | P205: 0 | Q205: 0 | R205: =-'App.2-BA_Fixed Asset Cont'!K473 -> 0 | S205: 0
A206: 1920 | B206: Computer Equip.-Hardware(Post Mar. 19/07) | C206: 0 | E206: 0 | F206: 0 | H206: 0 | I206: ='App.2-BA_Fixed Asset Cont'!E474 -> 0 | J206: 0 | K206: 0 | L206: 0 | M206: 0 | N206: 0 | O206: 0 | P206: 0 | Q206: 0 | R206: =-'App.2-BA_Fixed Asset Cont'!K474 -> 0 | S206: 0
A207: 1930 | B207: Transportation Equipment | C207: 1856419 | D207: 25756 | E207: 1830663 | F207: 679469 | H207: 679469 | I207: ='App.2-BA_Fixed Asset Cont'!E475 -> 453484 | J207: 6.699983855 | K207: 0.149254091 | L207: 10 | M207: 0.1 | N207: 273233.942 | O207: 67946.9 | P207: 22674.2 | Q207: 363855.042 | R207: =-'App.2-BA_Fixed Asset Cont'!K475 -> 372951 | S207: 9095.95799
A208: 1935 | B208: Stores Equipment | C208: 0 | E208: 0 | F208: 0 | H208: 0 | I208: ='App.2-BA_Fixed Asset Cont'!E476 -> 0 | J208: 0 | K208: 0 | L208: 10 | M208: 0.1 | N208: 0 | O208: 0 | P208: 0 | Q208: 0 | R208: =-'App.2-BA_Fixed Asset Cont'!K476 -> 53 | S208: 53
A209: 1940 | B209: Tools, Shop & Garage Equipment | C209: 169956 | E209: 169956 | F209: 68020 | H209: 68020 | I209: ='App.2-BA_Fixed Asset Cont'!E477 -> 84648 | J209: 7.011736579 | K209: 0.1426180218 | L209: 10 | M209: 0.1 | N209: 24238.78851 | O209: 6802 | P209: 4232.4 | Q209: 35273.18851 | R209: =-'App.2-BA_Fixed Asset Cont'!K477 -> 45619 | S209: 10345.81149
A210: 1945 | B210: Measurement & Testing Equipment | C210: 116756 | E210: 116756 | F210: 0 | H210: 0 | I210: ='App.2-BA_Fixed Asset Cont'!E478 -> 0 | J210: 7 | K210: 0.1428571429 | L210: 10 | M210: 0.1 | N210: 16679.42857 | O210: 0 | P210: 0 | Q210: 16679.42857 | R210: =-'App.2-BA_Fixed Asset Cont'!K478 -> 13224 | S210: -3455.428571
A211: 1950 | B211: Power Operated Equipment | C211: 0 | E211: 0 | F211: 0 | H211: 0 | I211: ='App.2-BA_Fixed Asset Cont'!E479 -> 0 | J211: 0 | K211: 0 | L211: 0 | M211: 0 | N211: 0 | O211: 0 | P211: 0 | Q211: 0 | R211: =-'App.2-BA_Fixed Asset Cont'!K479 -> 0 | S211: 0
A212: 1955 | B212: Communications Equipment | C212: 71875 | E212: 71875 | F212: 0 | H212: 0 | I212: ='App.2-BA_Fixed Asset Cont'!E480 -> 0 | J212: 7 | K212: 0.1428571429 | L212: 10 | M212: 0.1 | N212: 10267.85714 | O212: 0 | P212: 0 | Q212: 10267.85714 | R212: =-'App.2-BA_Fixed Asset Cont'!K480 -> 9289 | S212: -978.8571429
A213: 1955 | B213: Communication Equipment (Smart Meters) | C213: 0 | E213: 0 | F213: 0 | H213: 0 | I213: ='App.2-BA_Fixed Asset Cont'!E481 -> 0 | J213: 0 | K213: 0 | L213: 0 | M213: 0 | N213: 0 | O213: 0 | P213: 0 | Q213: 0 | R213: =-'App.2-BA_Fixed Asset Cont'!K481 -> 0 | S213: 0
A214: 1960 | B214: Miscellaneous Equipment | C214: 66518 | E214: 66518 | F214: 77963 | H214: 77963 | I214: ='App.2-BA_Fixed Asset Cont'!E482 -> 14187 | J214: 5 | K214: 0.2 | L214: 10 | M214: 0.1 | N214: 13303.6 | O214: 7796.3 | P214: 709.35 | Q214: 21809.25 | R214: =-'App.2-BA_Fixed Asset Cont'!K482 -> 20026 | S214: -1783.25
A215: 1970 | B215: Load Management Controls Customer Premises | C215: 0 | E215: 0 | F215: 0 | H215: 0 | I215: ='App.2-BA_Fixed Asset Cont'!E483 -> 0 | J215: 0 | K215: 0 | L215: 0 | M215: 0 | N215: 0 | O215: 0 | P215: 0 | Q215: 0 | R215: =-'App.2-BA_Fixed Asset Cont'!K483 -> 0 | S215: 0
A216: 1975 | B216: Load Management Controls Utility Premises | C216: 0 | E216: 0 | F216: 0 | H216: 0 | I216: ='App.2-BA_Fixed Asset Cont'!E484 -> 0 | J216: 0 | K216: 0 | L216: 0 | M216: 0 | N216: 0 | O216: 0 | P216: 0 | Q216: 0 | R216: =-'App.2-BA_Fixed Asset Cont'!K484 -> 0 | S216: 0
A217: 1980 | B217: System Supervisor Equipment | C217: 478522 | E217: 478522 | F217: 297477 | H217: 297477 | I217: ='App.2-BA_Fixed Asset Cont'!E485 -> 39516 | J217: 12.15683689 | K217: 0.08225823946 | L217: 10 | M217: 0.1 | N217: 39362.37726 | O217: 29747.7 | P217: 1975.8 | Q217: 71085.87726 | R217: =-'App.2-BA_Fixed Asset Cont'!K485 -> 50625 | S217: -20460.87726
A218: 1985 | B218: Miscellaneous Fixed Assets | C218: 0 | E218: 0 | F218: 0 | H218: 0 | I218: ='App.2-BA_Fixed Asset Cont'!E486 -> 0 | J218: 0 | K218: 0 | L218: 0 | M218: 0 | N218: 0 | O218: 0 | P218: 0 | Q218: 0 | R218: =-'App.2-BA_Fixed Asset Cont'!K486 -> 0 | S218: 0
A219: 1990 | B219: Other Tangible Property | C219: 645280 | E219: 645280 | F219: 237558 | H219: 237558 | I219: ='App.2-BA_Fixed Asset Cont'!E487 -> 327110 | J219: 0 | K219: 0 | L219: 0 | M219: 0 | N219: 0 | O219: 0 | P219: 0 | Q219: 0 | R219: =-'App.2-BA_Fixed Asset Cont'!K487 -> 0 | S219: 0
A220: 1995 | B220: Contributions & Grants | C220: -5126899 | E220: -5126899 | F220: -537827 | H220: -537827 | I220: ='App.2-BA_Fixed Asset Cont'!E488 -> 0 | J220: 18.75927234 | K220: 0.05330697172 | L220: 25 | M220: 0.04 | N220: -273299.46 | O220: -21513.08 | P220: 0 | Q220: -294812.54 | R220: =-'App.2-BA_Fixed Asset Cont'!K488 -> -293730 | S220: 1082.54
A221: 2440 | B221: Deferred Revenue | C221: 0 | E221: 0 | F221: -581701 | H221: -581701 | I221: ='App.2-BA_Fixed Asset Cont'!E489 -> -272609 | J221: 0 | K221: 0 | L221: 25 | M221: 0.04 | N221: 0 | O221: -23268.04 | P221: -5452.18 | Q221: -28720.22 | R221: =-'App.2-BA_Fixed Asset Cont'!K489 -> -34173 | S221: -5452.78
A222: 2005 | B222: Property Under Finance Lease | E222: 0 | H222: 0 | K222: 0 | M222: 0 | N222: 0 | O222: 0 | P222: 0 | Q222: 0 | R222: =-'App.2-BA_Fixed Asset Cont'!K490 -> 0 | S222: 0
B223: Total | C223: =SUM(C183:C222) -> 51040610 | D223: 2103765.47 | E223: 48936844.53 | F223: 15786325 | G223: 0 | H223: 15786325 | I223: 7512918 | N223: =SUM(N183:N222) -> 2857777.054 | O223: 1131906.354 | P223: 230340.5047 | Q223: 4220023.913 | R223: 4135676 | S223: -84347.91328
B229: 2017 | C229: Book Values | J229: Service Lives | N229: Depreciation Expense
A230: Account | B230: Description | C230: Opening Net Book Value of Existing Assets as at Date of Policy Change (Jan. 1) 1 | D230: Less Fully Depreciated 7 | E230: Net Amount of Existing Assets Before Policy Change to be Depreciated | F230: Opening Gross Book Value of Assets Acquired After Policy Change 2 | G230: Less Fully Depreciated 8 | H230: Net Amount of Assets Acquired After Policy Change to be Depreciated | I230: Current Year Additions | J230: Average Remaining Life of Assets Existing Before Policy Change 3 | K230: Depreciation Rate Assets Acquired After Policy Change | L230: Life of Assets Acquired After Policy Change 4 | M230: Depreciation Rate on New Additions | N230: Depreciation Expense on Assets Existing Before Policy Change | O230: Depreciation Expense on Assets Acquired After Policy Change | P230: Depreciation Expense on Current Year Additions 5 | Q230: Total Current Year Depreciation Expense | R230: Depreciation Expense per Appendix 2-BA Fixed Assets, Column J | S230: Variance 6
C231: a | D231: b | E231: c = a-b | F231: d | G231: e | H231: f = d- e | I231: g | J231: h | K231: i = 1/h | L231: j | M231: k = 1/j | N231: l = c/h | O231: m = f/j | P231: n = g*0.5/j | Q231: o = l+m+n | R231: p | S231: q = p-o
... 312 more rows

Sheet App.2-D_Overhead
H1: File Number: | I1: =EBNUMBER -> EB-2022-0016
H2: Exhibit:
H3: Tab:
H4: Schedule:
H5: Page:
H7: Date: | I7: 2023-02-13
A9: Appendix 2-D
A10: Overhead Expense
A12: Applicants are to provide a breakdown of OM&A before capitalization in the below table. OM&A before capitalization may be broken down by cost center, program, drivers or another format best suited to focus on capitalized vs. uncapitalized OM&A.
A14: OM&A Before Capitalization
B15: 2013 | C15: =G15-4 -> 2013 | D15: =G15-3 -> 2014 | E15: =G15-2 -> 2015 | F15: =G15-1 -> 2016 | G15: =K15-4 -> 2017 | H15: =M15-4 -> 2018 | I15: =N15-4 -> 2019 | J15: =N15-3 -> 2020 | K15: =N15-2 -> 2021 | L15: 2022 | M15: =N15-1 -> 2022 | N15: =TestYear -> 2023
B16: OEB Approved | C16: Historical Year | D16: Historical Year | E16: Historical Year | F16: Historical Year | G16: Historical Year | H16: Historical Year | I16: Historical Year | J16: Historical Year | K16: Historical Year | L16: Actual | M16: Bridge Year | N16: Test Year
A17: Operations Expense | B17: 4673625.029 | C17: 4843527.1 | D17: 4991530.7 | E17: 5552568.78 | F17: 5777384.37 | G17: 5826448.13 | H17: 6478363.01 | I17: 6837712.43 | J17: 6688684.507 | K17: 6512023.1 | L17: 7327083.63 | M17: 7790914 | N17: 8367844
A18: Maintenance Expense | B18: 136331.4161 | C18: 132433.92 | D18: 98269.31 | E18: 180124.8 | F18: 163254.7 | G18: 496689.14 | H18: 475522.22 | I18: 494281.89 | J18: 400271.31 | K18: 1082631.54 | L18: 1359441.12 | M18: 1294093 | N18: 1453769
A19: Billing & Collections Expense | B19: 1859428.79 | C19: 2032298.56 | D19: 2008834.83 | E19: 2118001.34 | F19: 2642769.14 | G19: 2011201.75 | H19: 1886244.75 | I19: 1927257.07 | J19: 1830895.9 | K19: 2144914.63 | L19: 2026549.62 | M19: 1956293 | N19: 2036929
A20: Community Relations Expense | B20: 245980.1522 | C20: 265912.68 | D20: 228805.58 | E20: 258257.1 | F20: 330038.43 | G20: 370674.23 | H20: 459107.18 | I20: 387826.74 | J20: 360960.36 | K20: 171438.12 | L20: 26723.84 | M20: 142483 | N20: 176527
A21: Administration & General | B21: 7165191.127 | C21: 6968549.12 | D21: 6512091.7 | E21: 6733888.78 | F21: 7432610.42 | G21: 7934561.88 | H21: 7853254.07 | I21: 8258504.18 | J21: 8171379.08 | K21: 7794530.9 | L21: 8451618.65 | M21: 8142063 | N21: 8619764
A22: LEAP | B22: 0 | C22: 24000 | D22: 24848 | E22: 24848 | F22: 24848 | G22: 24848 | H22: 24848 | I22: 24848 | J22: 24848 | K22: 66280 | L22: 24848 | M22: 24848 | N22: 30000
A27: Total OM&A Before Capitalization (B) | B27: =SUM(B17:B26) -> 14080556.51 | C27: 14266721.38 | D27: 13864380.12 | E27: 14867688.8 | F27: 16370905.06 | G27: 16664423.13 | H27: 17177339.23 | I27: 17930430.31 | J27: 17477039.16 | K27: 17771818.29 | L27: 19216264.86 | M27: 19350694 | N27: 20684833
A29: Applicants are to provide a breakdown of capitalized OM&A in the below table. Capitalized OM&A may be broken down using the categories listed in the table below if possible. Otherwise, applicants are to provide its own break down of capitalized OM&A.
A31: Capitalized OM&A | O31: Directly | P31: Explanation for Change in Overhead Capitalized
B32: 2013 | C32: =G32-4 -> 2013 | D32: 2014 | E32: 2015 | F32: 2016 | G32: 2017 | H32: =M32-4 -> 2018 | I32: =N32-4 -> 2019 | J32: =N32-3 -> 2020 | K32: =N32-2 -> 2021 | L32: 2022 | M32: =N32-1 -> 2022 | N32: =TestYear -> 2023 | O32: Attributable?
B33: OEB Approved | C33: Historical Year | D33: Historical Year | E33: Historical Year | F33: Historical Year | G33: Historical Year | H33: Historical Year | I33: Historical Year | J33: Historical Year | K33: Historical Year | L33: Actual | M33: Bridge Year | N33: Test Year | O33: (Yes/No)
A34: employee benefits
A35: costs of site preparation
A36: initial delivery and handling costs
A37: costs of testing whether the asset is functioning properly
A38: professional fees
A40: costs of opening a new facility
A41: costs of introducing a new product or service (including costs of advertising and promotional activities)
A42: costs of conducting business in a new location or with a new class of customer (including costs of staff training)
A43: administration and other general overhead costs
A45: Capitalized Directly attributed labour (including benefits) | B45: 1583834.531 | C45: 1775604.87 | D45: 1929074.52 | E45: 2341234.94 | F45: 2516046.67 | G45: 2674518.88 | H45: 2918323.08 | I45: 4015670.52 | J45: 4132585.62 | K45: 4154925.87 | L45: 4595179 | M45: 4539828 | N45: 4550412 | O45: Yes
A46: Capitalized Vehicle Costs | B46: 219162.7897 | C46: 189595.03 | D46: 153178.2 | E46: 283809.5 | F46: 315411.76 | G46: 396187.2 | H46: 373195.4 | I46: 499332.75 | J46: 416314.57 | K46: 424390 | L46: 433265 | M46: 369972 | N46: 370588 | O46: Yes
A47: Total Capitalized OM&A (A) | B47: =(SUM(B34:B46)) -> 1802997.321 | C47: =(SUM(C34:C46)) -> 1965199.9 | D47: 2082252.72 | E47: 2625044.44 | F47: 2831458.43 | G47: 3070706.08 | H47: 3291518.48 | I47: 4515003.27 | J47: 4548900.19 | K47: 4579315.87 | L47: 5028444 | M47: =(SUM(M34:M46)) -> 4909800 | N47: =(SUM(N34:N46)) -> 4921000
A49: % of Capitalized OM&A (=A/B) | B49: =IF(ISERROR(B47/B27),"0%",B47/B27) -> 0.1280487259 | C49: =IF(ISERROR(C47/C27),"0%",C47/C27) -> 0.1377471283 | D49: 0.1501872209 | E49: 0.1765603568 | F49: 0.1729567437 | G49: 0.1842671694 | H49: =IF(ISERROR(H47/H27),"0%",H47/H27) -> 0.19161981 | I49: =IF(ISERROR(I47/I27),"0%",I47/I27) -> 0.2518067437 | J49: 0.2602786518 | K49: 0.2576728951 | L49: 0.2616764515 | M49: 0.253727334 | N49: 0.237903782
A52: -1
A53: Net OM&A after Capitalization | B53: =B27-B47 -> 12277559.19 | C53: =C27-C47 -> 12301521.48 | D53: 11782127.4 | E53: 12242644.36 | F53: 13539446.63 | G53: 13593717.05 | H53: 13885820.75 | I53: 13415427.04 | J53: 12928138.97 | K53: 13192502.42 | M53: 14440894 | N53: 15763833

Sheet App.2-EA_Account 1575 (2015) (hidden)
H1: File Number: | I1: =EBNUMBER -> EB-2022-0016
H2: Exhibit:
H3: Tab:
H4: Schedule:
H5: Page:
H7: Date:
A9: Appendix 2-EA
A10: Account 1575 - IFRS-CGAAP Transitional PP&E Amounts
A11: 2015 Adopters of IFRS for Financial Reporting Purposes
A13: For applicants that adopted IFRS on January 1, 2015 for financial reporting purposes
B17: 2014 | C17: =TestYear-3 -> 2020 | D17: =TestYear-2 -> 2021 | E17: =CONCATENATE(TestYear-1," Bridge Year") -> 2022 Bridge Year | F17: =CONCATENATE(TestYear," Rebasing Year") -> 2023 Rebasing Year
A18: Reporting Basis | B18: CGAAP | C18: CGAAP | D18: CGAAP | E18: MIFRS | F18: MIFRS
B19: Actual | C19: Actual | D19: Actual | E19: Forecast | F19: Forecast
D20: $ | E20: $
A21: PP&E Values under CGAAP
A22: Opening net PP&E - Note 1 | C22: =+B25 -> 0 | D22: =+C25 -> 0 | E22: =+D25 -> 0
A23: Net Additions - Note 4
A24: Net Depreciation (amounts should be negative) - Note 4
A25: Closing net PP&E (1) | B25: =SUM(B22:B24) -> 0 | C25: =SUM(C22:C24) -> 0 | D25: =SUM(D22:D24) -> 0 | E25: =SUM(E22:E24) -> 0
A27: PP&E Values under MIFRS (Starts from 2014, the transition year)
A28: Opening net PP&E - Note 1 | C28: =+B31 -> 0 | D28: =+C31 -> 0 | E28: =+D31 -> 0
A29: Net Additions - Note 4
A30: Net Depreciation (amounts should be negative) - Note 4
A31: Closing net PP&E (2) | B31: =SUM(B28:B30) -> 0 | C31: =SUM(C28:C30) -> 0 | D31: =SUM(D28:D30) -> 0 | E31: =SUM(E28:E30) -> 0
A33: Difference in Closing net PP&E, former CGAAP vs. revised CGAAP | B33: =B25-B31 -> 0 | C33: =C25-C31 -> 0 | D33: =D25-D31 -> 0 | E33: =E25-E31 -> 0
A36: Effect on Deferral and Variance Account Rate Riders
A37: Closing balance in Account 1575 | F37: =IF(ISERROR(E33), 0, E33) -> 0 | H37: WACC
A38: Return on Rate Base Associated with Account 1575 balance at WACC - Note 2 | F38: =E33*I37*I38 -> 0 | G38: # of years of rate rider disposition period
A39: Amount included in Deferral and Variance Account Rate Rider Calculation | F39: =F37+F38 -> 0
A41: Notes:
A42: 1 For an applicant that adopted IFRS on January 1, 2015, the PP&E values as of January 1, 2014 under both CGAAP and MIFRS should be the same.
A43: 2 Return on rate base associated with deferred balance is calculated as:
A44: the deferral account closing balance as of 2017 x WACC X # of years of rate rider disposition period
A45: * Please note that the calculation should be adjusted once WACC is updated and finalized in the rate application.
A46: 3 The PP&E deferral account is cleared by including the total balance in the deferral and variance account rate rider calculation.
A47: 4 Net additions are additions net of disposals; Net depreciation is additions to depreciation net of disposals.

Sheet App.2-EB_Account 1576 (2012) (hidden)
K1: File Number: | L1: =EBNUMBER -> EB-2022-0016
K2: Exhibit:
K3: Tab:
K4: Schedule:
K5: Page:
K7: Date:
A9: Appendix 2-EB
A10: Account 1576 - Accounting Changes under CGAAP
A11: 2012 Changes in Accounting Policies under CGAAP
A13: For applicants with a balance in Account 1576 and made capitalization and depreciation expense accounting policy changes under CGAAP effective January 1, 2012. This is the first time the applicant is rebasing with changes in these accounting policies.
B17: Prior Years Rebasing | C17: 2012 | D17: 2013 | E17: 2014 | F17: 2015 | G17: 2016 | H17: 2017 | I17: 2018 Rebasing Year
A18: Reporting Basis | B18: CGAAP | C18: CGAAP | D18: CGAAP | E18: CGAAP | F18: MIFRS - Note 5 | G18: MIFRS | H18: MIFRS | I18: MIFRS
B19: Forecast | C19: Actual | D19: Actual | E19: Actual | F19: Actual | G19: Actual | H19: Forecast | I19: Forecast
C20: $ | D20: $ | E20: $ | F20: $ | G20: $ | H20: $
A21: PP&E Values under former CGAAP
A22: Opening net PP&E - Note 1 | D22: =+C25 -> 0 | E22: =+D25 -> 0 | F22: =+E25 -> 0 | G22: =+F25 -> 0 | H22: =+G25 -> 0
A23: Net Additions - Note 4
A24: Net Depreciation (amounts should be negative) - Note 4
A25: Closing net PP&E (1) | C25: =C22+C23+C24 -> 0 | D25: 0 | E25: 0 | F25: 0 | G25: 0 | H25: 0
A27: PP&E Values under revised CGAAP (Starts from 2012)
A28: Opening net PP&E - Note 1 | D28: =+C31 -> 0 | E28: =+D31 -> 0 | F28: =+E31 -> 0 | G28: =+F31 -> 0 | H28: =+G31 -> 0
A29: Net Additions - Note 4
A30: Net Depreciation (amounts should be negative) - Note 4
A31: Closing net PP&E (2) | C31: =SUM(C28:C30) -> 0 | D31: 0 | E31: 0 | F31: 0 | G31: 0 | H31: 0
A33: Difference in Closing net PP&E, former CGAAP vs. revised CGAAP | C33: =C25-C31 -> 0 | D33: 0 | E33: 0 | F33: 0 | G33: 0 | H33: 0
A36: Effect on Deferral and Variance Account Rate Riders
A37: Closing balance in Account 1576 | I37: =IF(ISERROR(H33), 0, H33) -> 0 | K37: WACC
A38: Return on Rate Base Associated with Account 1576 balance at WACC - Note 2 | I38: =H33*L37*L38 -> 0 | J38: # of years of rate rider disposition period
A39: Amount included in Deferral and Variance Account Rate Rider Calculation | I39: =I37+I38 -> 0
A41: Notes:
A42: 1 For an applicant that made the capitalization and depreciation expense accounting policy changes on January 1, 2012, the PP&E values as of January 1, 2012 under both former CGAAP and revised CGAAP should be the same.
A43: 2 Return on rate base associated with Account 1576 balance is calculated as:
A44: the variance account ending balance as of 2017 x WACC X # of years of rate rider disposition period
A45: * Please note that the calculation should be adjusted once WACC is updated and finalized in the rate application.
A46: 3 Account 1576 is cleared by including the total balance in the deferral and variance account rate rider calculation.
A47: 4 Net additions are additions net of disposals; Net depreciation is additions to depreciation net of disposals.
A48: 5 Differences due to the adoption of MIFRS are to be shown separately in Account 1575 in Appendix 2-EA as Accounts 1575 and 1576 cannot be used interchangably.

Sheet App.2-EC_Account 1576 (2013) (hidden)
J1: File Number: | K1: =EBNUMBER -> EB-2022-0016
J2: Exhibit:
J3: Tab:
J4: Schedule:
J5: Page:
J7: Date:
A9: Appendix 2-EC
A10: Account 1576 - Accounting Changes under CGAAP
A11: 2013 Changes in Accounting Policies under CGAAP
A13: For applicants with a balance in Account 1576 and made capitalization and depreciation expense accounting policy changes under CGAAP effective January 1, 2013. This is the first time the applicant is rebasing with changes in these accounting policies.
B17: Prior Years Rebasing | C17: 2013 | D17: 2014 | E17: 2015 | F17: 2016 | G17: 2017 | H17: 2018 Rebasing Year
A18: Reporting Basis | B18: CGAAP | C18: CGAAP | D18: CGAAP | E18: MIFRS - Note 5 | F18: MIFRS | G18: MIFRS | H18: MIFRS
B19: Actual | C19: Actual | D19: Actual | E19: Actual | F19: Actual | G19: Forecast | H19: Forecast
C20: $ | D20: $ | F20: $
A21: PP&E Values under former CGAAP
A22: Opening net PP&E - Note 1 | D22: =+C25 -> 0 | E22: =+D25 -> 0 | F22: =+E25 -> 0 | G22: =+F25 -> 0
A23: Net Additions - Note 4
A24: Net Depreciation (amounts should be negative) - Note 4
A25: Closing net PP&E (1) | C25: =C22+C23+C24 -> 0 | D25: =D22+D23+D24 -> 0 | E25: =E22+E23+E24 -> 0 | F25: =F22+F23+F24 -> 0 | G25: =G22+G23+G24 -> 0
A27: PP&E Values under revised CGAAP (Starts from 2012)
A28: Opening net PP&E - Note 1 | D28: =+C31 -> 0 | E28: =+D31 -> 0 | F28: =+E31 -> 0 | G28: =+F31 -> 0
A29: Net Additions - Note 4
A30: Net Depreciation (amounts should be negative) - Note 4
A31: Closing net PP&E (2) | C31: =SUM(C28:C30) -> 0 | D31: =SUM(D28:D30) -> 0 | E31: =SUM(E28:E30) -> 0 | F31: =SUM(F28:F30) -> 0 | G31: =SUM(G28:G30) -> 0
A33: Difference in Closing net PP&E, former CGAAP vs. revised CGAAP | C33: =C25-C31 -> 0 | D33: =D25-D31 -> 0 | E33: =E25-E31 -> 0 | F33: =F25-F31 -> 0 | G33: =G25-G31 -> 0
A36: Effect on Deferral and Variance Account Rate Riders
A37: Closing balance in Account 1576 | H37: =IF(ISERROR(G33), 0, G33) -> 0 | J37: WACC
A38: Return on Rate Base Associated with Account 1576 balance at WACC - Note 2 | H38: =G33*K37*K38 -> 0 | I38: # of years of rate rider disposition period
A39: Amount included in Deferral and Variance Account Rate Rider Calculation | H39: =H37+H38 -> 0
A41: Notes:
A42: 1 For an applicant that made the capitalization and depreciation expense accounting policy changes on January 1, 2013, the PP&E values as of January 1, 2013 under both former CGAAP and revised CGAAP should be the same.
A43: 2 Return on rate base associated with Account 1576 balance is calculated as:
A44: the variance account ending balance as of 2017 x WACC X # of years of rate rider disposition period
A45: * Please note that the calculation should be adjusted once WACC is updated and finalized in the rate application.
A46: 3 Account 1576 is cleared by including the total balance in the deferral and variance account rate rider calculation.
A47: 4 Net additions are additions net of disposals; Net depreciation is additions to depreciation net of disposals.
A48: 5 Differences due to the adoption of MIFRS are to be shown separately in Account 1575 in Appendix 2-EA as Accounts 1575 and 1576 cannot be used interchangably.

Sheet Hidden_REG Invest. (hidden)
A1: Utility Name | B1: EB Number | C1: Test Year | D1: Bridge Year | E1: Last Rebasing Year | F1: Renewable Generation Connection Investment Summary | G1: Year | H1: Amount
A2: ='LDC Info'!$E$14 -> Bluewater Power Distribution Corporation | B2: =EBNUMBER -> EB-2022-0016 | C2: =TestYear -> 2023 | D2: =BridgeYear -> 2022 | E2: =RebaseYear -> 2013 | F2: REI Investments_A_Total Capital Costs | G2: ='App.2-FA Proposed REG Invest.'!$C$31 -> 2018 | H2: ='App.2-FA Proposed REG Invest.'!C62 -> 0
A3: ='LDC Info'!$E$14 -> Bluewater Power Distribution Corporation | B3: EB-2022-0016 | C3: 2023 | D3: 2022 | E3: 2013 | F3: REI Investments_A_Total OM&A Start-Up | G3: ='App.2-FA Proposed REG Invest.'!$C$31 -> 2018 | H3: ='App.2-FA Proposed REG Invest.'!$C63 -> 0
A4: ='LDC Info'!$E$14 -> Bluewater Power Distribution Corporation | B4: EB-2022-0016 | C4: 2023 | D4: 2022 | E4: 2013 | F4: REI Investments_A_Total OM&A Ongoing | G4: ='App.2-FA Proposed REG Invest.'!$C$31 -> 2018 | H4: ='App.2-FA Proposed REG Invest.'!$C64 -> 0
A5: ='LDC Info'!$E$14 -> Bluewater Power Distribution Corporation | B5: EB-2022-0016 | C5: 2023 | D5: 2022 | E5: 2013 | F5: REI Investments_A_Total Capital Costs | G5: ='App.2-FA Proposed REG Invest.'!$D$31 -> 2019 | H5: ='App.2-FA Proposed REG Invest.'!D62 -> 0
A6: ='LDC Info'!$E$14 -> Bluewater Power Distribution Corporation | B6: EB-2022-0016 | C6: 2023 | D6: 2022 | E6: 2013 | F6: REI Investments_A_Total OM&A Start-Up | G6: ='App.2-FA Proposed REG Invest.'!$D$31 -> 2019 | H6: ='App.2-FA Proposed REG Invest.'!D63 -> 0
A7: ='LDC Info'!$E$14 -> Bluewater Power Distribution Corporation | B7: EB-2022-0016 | C7: 2023 | D7: 2022 | E7: 2013 | F7: REI Investments_A_Total OM&A Ongoing | G7: ='App.2-FA Proposed REG Invest.'!$D$31 -> 2019 | H7: ='App.2-FA Proposed REG Invest.'!D64 -> 0
A8: ='LDC Info'!$E$14 -> Bluewater Power Distribution Corporation | B8: EB-2022-0016 | C8: 2023 | D8: 2022 | E8: 2013 | F8: REI Investments_A_Total Capital Costs | G8: ='App.2-FA Proposed REG Invest.'!$E$31 -> 2020 | H8: ='App.2-FA Proposed REG Invest.'!E62 -> 0
A9: ='LDC Info'!$E$14 -> Bluewater Power Distribution Corporation | B9: EB-2022-0016 | C9: 2023 | D9: 2022 | E9: 2013 | F9: REI Investments_A_Total OM&A Start-Up | G9: ='App.2-FA Proposed REG Invest.'!$E$31 -> 2020 | H9: ='App.2-FA Proposed REG Invest.'!E63 -> 0
A10: ='LDC Info'!$E$14 -> Bluewater Power Distribution Corporation | B10: EB-2022-0016 | C10: 2023 | D10: 2022 | E10: 2013 | F10: REI Investments_A_Total OM&A Ongoing | G10: ='App.2-FA Proposed REG Invest.'!$E$31 -> 2020 | H10: ='App.2-FA Proposed REG Invest.'!E64 -> 0
A11: ='LDC Info'!$E$14 -> Bluewater Power Distribution Corporation | B11: EB-2022-0016 | C11: 2023 | D11: 2022 | E11: 2013 | F11: REI Investments_A_Total Capital Costs | G11: ='App.2-FA Proposed REG Invest.'!$F$31 -> 2021 | H11: ='App.2-FA Proposed REG Invest.'!F62 -> 0
A12: ='LDC Info'!$E$14 -> Bluewater Power Distribution Corporation | B12: EB-2022-0016 | C12: 2023 | D12: 2022 | E12: 2013 | F12: REI Investments_A_Total OM&A Start-Up | G12: ='App.2-FA Proposed REG Invest.'!$F$31 -> 2021 | H12: ='App.2-FA Proposed REG Invest.'!F63 -> 0
A13: ='LDC Info'!$E$14 -> Bluewater Power Distribution Corporation | B13: EB-2022-0016 | C13: 2023 | D13: 2022 | E13: 2013 | F13: REI Investments_A_Total OM&A Ongoing | G13: ='App.2-FA Proposed REG Invest.'!$F$31 -> 2021 | H13: ='App.2-FA Proposed REG Invest.'!F64 -> 0
A14: ='LDC Info'!$E$14 -> Bluewater Power Distribution Corporation | B14: EB-2022-0016 | C14: 2023 | D14: 2022 | E14: 2013 | F14: REI Investments_A_Total Capital Costs | G14: ='App.2-FA Proposed REG Invest.'!$G$31 -> 2022 | H14: ='App.2-FA Proposed REG Invest.'!G62 -> 0
A15: ='LDC Info'!$E$14 -> Bluewater Power Distribution Corporation | B15: EB-2022-0016 | C15: 2023 | D15: 2022 | E15: 2013 | F15: REI Investments_A_Total OM&A Start-Up | G15: ='App.2-FA Proposed REG Invest.'!$G$31 -> 2022 | H15: ='App.2-FA Proposed REG Invest.'!G63 -> 0
A16: ='LDC Info'!$E$14 -> Bluewater Power Distribution Corporation | B16: EB-2022-0016 | C16: 2023 | D16: 2022 | E16: 2013 | F16: REI Investments_A_Total OM&A Ongoing | G16: ='App.2-FA Proposed REG Invest.'!$G$31 -> 2022 | H16: ='App.2-FA Proposed REG Invest.'!G64 -> 0
A17: ='LDC Info'!$E$14 -> Bluewater Power Distribution Corporation | B17: EB-2022-0016 | C17: 2023 | D17: 2022 | E17: 2013 | F17: REI Investments_A_Total Capital Costs | G17: ='App.2-FA Proposed REG Invest.'!$H$31 -> 2023 | H17: ='App.2-FA Proposed REG Invest.'!H62 -> 0
A18: ='LDC Info'!$E$14 -> Bluewater Power Distribution Corporation | B18: EB-2022-0016 | C18: 2023 | D18: 2022 | E18: 2013 | F18: REI Investments_A_Total OM&A Start-Up | G18: ='App.2-FA Proposed REG Invest.'!$H$31 -> 2023 | H18: ='App.2-FA Proposed REG Invest.'!H63 -> 0
A19: ='LDC Info'!$E$14 -> Bluewater Power Distribution Corporation | B19: EB-2022-0016 | C19: 2023 | D19: 2022 | E19: 2013 | F19: REI Investments_A_Total OM&A Ongoing | G19: ='App.2-FA Proposed REG Invest.'!$H$31 -> 2023 | H19: ='App.2-FA Proposed REG Invest.'!H64 -> 0
A20: ='LDC Info'!$E$14 -> Bluewater Power Distribution Corporation | B20: EB-2022-0016 | C20: 2023 | D20: 2022 | E20: 2013 | F20: REI Investments_A_Total Capital Costs | G20: ='App.2-FA Proposed REG Invest.'!$I$31 -> 2024 | H20: ='App.2-FA Proposed REG Invest.'!I62 -> 0
A21: ='LDC Info'!$E$14 -> Bluewater Power Distribution Corporation | B21: EB-2022-0016 | C21: 2023 | D21: 2022 | E21: 2013 | F21: REI Investments_A_Total OM&A Start-Up | G21: ='App.2-FA Proposed REG Invest.'!$I$31 -> 2024 | H21: ='App.2-FA Proposed REG Invest.'!I63 -> 0
A22: ='LDC Info'!$E$14 -> Bluewater Power Distribution Corporation | B22: EB-2022-0016 | C22: 2023 | D22: 2022 | E22: 2013 | F22: REI Investments_A_Total OM&A Ongoing | G22: ='App.2-FA Proposed REG Invest.'!$I$31 -> 2024 | H22: ='App.2-FA Proposed REG Invest.'!I64 -> 0
A23: ='LDC Info'!$E$14 -> Bluewater Power Distribution Corporation | B23: EB-2022-0016 | C23: 2023 | D23: 2022 | E23: 2013 | F23: REI Investments_A_Total Capital Costs | G23: ='App.2-FA Proposed REG Invest.'!$J$31 -> 2025 | H23: ='App.2-FA Proposed REG Invest.'!J62 -> 0
A24: ='LDC Info'!$E$14 -> Bluewater Power Distribution Corporation | B24: EB-2022-0016 | C24: 2023 | D24: 2022 | E24: 2013 | F24: REI Investments_A_Total OM&A Start-Up | G24: ='App.2-FA Proposed REG Invest.'!$J$31 -> 2025 | H24: ='App.2-FA Proposed REG Invest.'!J63 -> 0
A25: ='LDC Info'!$E$14 -> Bluewater Power Distribution Corporation | B25: EB-2022-0016 | C25: 2023 | D25: 2022 | E25: 2013 | F25: REI Investments_A_Total OM&A Ongoing | G25: ='App.2-FA Proposed REG Invest.'!$J$31 -> 2025 | H25: ='App.2-FA Proposed REG Invest.'!J64 -> 0
A26: ='LDC Info'!$E$14 -> Bluewater Power Distribution Corporation | B26: EB-2022-0016 | C26: 2023 | D26: 2022 | E26: 2013 | F26: REI Investments_A_Total Capital Costs | G26: ='App.2-FA Proposed REG Invest.'!$K$31 -> 2026 | H26: ='App.2-FA Proposed REG Invest.'!K62 -> 0
A27: ='LDC Info'!$E$14 -> Bluewater Power Distribution Corporation | B27: EB-2022-0016 | C27: 2023 | D27: 2022 | E27: 2013 | F27: REI Investments_A_Total OM&A Start-Up | G27: ='App.2-FA Proposed REG Invest.'!$K$31 -> 2026 | H27: ='App.2-FA Proposed REG Invest.'!K63 -> 0
A28: ='LDC Info'!$E$14 -> Bluewater Power Distribution Corporation | B28: EB-2022-0016 | C28: 2023 | D28: 2022 | E28: 2013 | F28: REI Investments_A_Total OM&A Ongoing | G28: ='App.2-FA Proposed REG Invest.'!$K$31 -> 2026 | H28: ='App.2-FA Proposed REG Invest.'!K64 -> 0
A29: ='LDC Info'!$E$14 -> Bluewater Power Distribution Corporation | B29: EB-2022-0016 | C29: 2023 | D29: 2022 | E29: 2013 | F29: REI Investments_A_Total Capital Costs | G29: ='App.2-FA Proposed REG Invest.'!$L$31 -> 2027 | H29: ='App.2-FA Proposed REG Invest.'!L62 -> 0
A30: ='LDC Info'!$E$14 -> Bluewater Power Distribution Corporation | B30: EB-2022-0016 | C30: 2023 | D30: 2022 | E30: 2013 | F30: REI Investments_A_Total OM&A Start-Up | G30: ='App.2-FA Proposed REG Invest.'!$L$31 -> 2027 | H30: ='App.2-FA Proposed REG Invest.'!L63 -> 0
A31: ='LDC Info'!$E$14 -> Bluewater Power Distribution Corporation | B31: EB-2022-0016 | C31: 2023 | D31: 2022 | E31: 2013 | F31: REI Investments_A_Total OM&A Ongoing | G31: ='App.2-FA Proposed REG Invest.'!$L$31 -> 2027 | H31: ='App.2-FA Proposed REG Invest.'!L64 -> 0
A32: ='LDC Info'!$E$14 -> Bluewater Power Distribution Corporation | B32: EB-2022-0016 | C32: 2023 | D32: 2022 | E32: 2013 | F32: Expansion Investments_B_Total Capital Costs | G32: ='App.2-FA Proposed REG Invest.'!$C$31 -> 2018 | H32: ='App.2-FA Proposed REG Invest.'!C99 -> 0
A33: ='LDC Info'!$E$14 -> Bluewater Power Distribution Corporation | B33: EB-2022-0016 | C33: 2023 | D33: 2022 | E33: 2013 | F33: Expansion Investments_B_Total OM&A Start-Up | G33: ='App.2-FA Proposed REG Invest.'!$C$31 -> 2018 | H33: ='App.2-FA Proposed REG Invest.'!C100 -> 0
A34: ='LDC Info'!$E$14 -> Bluewater Power Distribution Corporation | B34: EB-2022-0016 | C34: 2023 | D34: 2022 | E34: 2013 | F34: Expansion Investments_B_Total OM&A Ongoing | G34: ='App.2-FA Proposed REG Invest.'!$C$31 -> 2018 | H34: ='App.2-FA Proposed REG Invest.'!C101 -> 0
A35: ='LDC Info'!$E$14 -> Bluewater Power Distribution Corporation | B35: EB-2022-0016 | C35: 2023 | D35: 2022 | E35: 2013 | F35: Expansion Investments_B_Total Capital Costs | G35: ='App.2-FA Proposed REG Invest.'!$D$31 -> 2019 | H35: ='App.2-FA Proposed REG Invest.'!D99 -> 0
A36: ='LDC Info'!$E$14 -> Bluewater Power Distribution Corporation | B36: EB-2022-0016 | C36: 2023 | D36: 2022 | E36: 2013 | F36: Expansion Investments_B_Total OM&A Start-Up | G36: ='App.2-FA Proposed REG Invest.'!$D$31 -> 2019 | H36: ='App.2-FA Proposed REG Invest.'!D100 -> 0
A37: ='LDC Info'!$E$14 -> Bluewater Power Distribution Corporation | B37: EB-2022-0016 | C37: 2023 | D37: 2022 | E37: 2013 | F37: Expansion Investments_B_Total OM&A Ongoing | G37: ='App.2-FA Proposed REG Invest.'!$D$31 -> 2019 | H37: ='App.2-FA Proposed REG Invest.'!D101 -> 0
A38: ='LDC Info'!$E$14 -> Bluewater Power Distribution Corporation | B38: EB-2022-0016 | C38: 2023 | D38: 2022 | E38: 2013 | F38: Expansion Investments_B_Total Capital Costs | G38: ='App.2-FA Proposed REG Invest.'!$E$31 -> 2020 | H38: ='App.2-FA Proposed REG Invest.'!E99 -> 0
A39: ='LDC Info'!$E$14 -> Bluewater Power Distribution Corporation | B39: EB-2022-0016 | C39: 2023 | D39: 2022 | E39: 2013 | F39: Expansion Investments_B_Total OM&A Start-Up | G39: ='App.2-FA Proposed REG Invest.'!$E$31 -> 2020 | H39: ='App.2-FA Proposed REG Invest.'!E100 -> 0
A40: ='LDC Info'!$E$14 -> Bluewater Power Distribution Corporation | B40: EB-2022-0016 | C40: 2023 | D40: 2022 | E40: 2013 | F40: Expansion Investments_B_Total OM&A Ongoing | G40: ='App.2-FA Proposed REG Invest.'!$E$31 -> 2020 | H40: ='App.2-FA Proposed REG Invest.'!E101 -> 0
A41: ='LDC Info'!$E$14 -> Bluewater Power Distribution Corporation | B41: EB-2022-0016 | C41: 2023 | D41: 2022 | E41: 2013 | F41: Expansion Investments_B_Total Capital Costs | G41: ='App.2-FA Proposed REG Invest.'!$F$31 -> 2021 | H41: ='App.2-FA Proposed REG Invest.'!F99 -> 0
A42: ='LDC Info'!$E$14 -> Bluewater Power Distribution Corporation | B42: EB-2022-0016 | C42: 2023 | D42: 2022 | E42: 2013 | F42: Expansion Investments_B_Total OM&A Start-Up | G42: ='App.2-FA Proposed REG Invest.'!$F$31 -> 2021 | H42: ='App.2-FA Proposed REG Invest.'!F100 -> 0
A43: ='LDC Info'!$E$14 -> Bluewater Power Distribution Corporation | B43: EB-2022-0016 | C43: 2023 | D43: 2022 | E43: 2013 | F43: Expansion Investments_B_Total OM&A Ongoing | G43: ='App.2-FA Proposed REG Invest.'!$F$31 -> 2021 | H43: ='App.2-FA Proposed REG Invest.'!F101 -> 0
A44: ='LDC Info'!$E$14 -> Bluewater Power Distribution Corporation | B44: EB-2022-0016 | C44: 2023 | D44: 2022 | E44: 2013 | F44: Expansion Investments_B_Total Capital Costs | G44: ='App.2-FA Proposed REG Invest.'!$G$31 -> 2022 | H44: ='App.2-FA Proposed REG Invest.'!G99 -> 0
A45: ='LDC Info'!$E$14 -> Bluewater Power Distribution Corporation | B45: EB-2022-0016 | C45: 2023 | D45: 2022 | E45: 2013 | F45: Expansion Investments_B_Total OM&A Start-Up | G45: ='App.2-FA Proposed REG Invest.'!$G$31 -> 2022 | H45: ='App.2-FA Proposed REG Invest.'!G100 -> 0
A46: ='LDC Info'!$E$14 -> Bluewater Power Distribution Corporation | B46: EB-2022-0016 | C46: 2023 | D46: 2022 | E46: 2013 | F46: Expansion Investments_B_Total OM&A Ongoing | G46: ='App.2-FA Proposed REG Invest.'!$G$31 -> 2022 | H46: ='App.2-FA Proposed REG Invest.'!G101 -> 0
A47: ='LDC Info'!$E$14 -> Bluewater Power Distribution Corporation | B47: EB-2022-0016 | C47: 2023 | D47: 2022 | E47: 2013 | F47: Expansion Investments_B_Total Capital Costs | G47: ='App.2-FA Proposed REG Invest.'!$H$31 -> 2023 | H47: ='App.2-FA Proposed REG Invest.'!H99 -> 0
A48: ='LDC Info'!$E$14 -> Bluewater Power Distribution Corporation | B48: EB-2022-0016 | C48: 2023 | D48: 2022 | E48: 2013 | F48: Expansion Investments_B_Total OM&A Start-Up | G48: ='App.2-FA Proposed REG Invest.'!$H$31 -> 2023 | H48: ='App.2-FA Proposed REG Invest.'!H100 -> 0
A49: ='LDC Info'!$E$14 -> Bluewater Power Distribution Corporation | B49: EB-2022-0016 | C49: 2023 | D49: 2022 | E49: 2013 | F49: Expansion Investments_B_Total OM&A Ongoing | G49: ='App.2-FA Proposed REG Invest.'!$H$31 -> 2023 | H49: ='App.2-FA Proposed REG Invest.'!H101 -> 0
A50: ='LDC Info'!$E$14 -> Bluewater Power Distribution Corporation | B50: EB-2022-0016 | C50: 2023 | D50: 2022 | E50: 2013 | F50: Expansion Investments_B_Total Capital Costs | G50: ='App.2-FA Proposed REG Invest.'!$I$31 -> 2024 | H50: ='App.2-FA Proposed REG Invest.'!I99 -> 0
A51: ='LDC Info'!$E$14 -> Bluewater Power Distribution Corporation | B51: EB-2022-0016 | C51: 2023 | D51: 2022 | E51: 2013 | F51: Expansion Investments_B_Total OM&A Start-Up | G51: ='App.2-FA Proposed REG Invest.'!$I$31 -> 2024 | H51: ='App.2-FA Proposed REG Invest.'!I100 -> 0
A52: ='LDC Info'!$E$14 -> Bluewater Power Distribution Corporation | B52: EB-2022-0016 | C52: 2023 | D52: 2022 | E52: 2013 | F52: Expansion Investments_B_Total OM&A Ongoing | G52: ='App.2-FA Proposed REG Invest.'!$I$31 -> 2024 | H52: ='App.2-FA Proposed REG Invest.'!I101 -> 0
A53: ='LDC Info'!$E$14 -> Bluewater Power Distribution Corporation | B53: EB-2022-0016 | C53: 2023 | D53: 2022 | E53: 2013 | F53: Expansion Investments_B_Total Capital Costs | G53: ='App.2-FA Proposed REG Invest.'!$J$31 -> 2025 | H53: ='App.2-FA Proposed REG Invest.'!J99 -> 0
A54: ='LDC Info'!$E$14 -> Bluewater Power Distribution Corporation | B54: EB-2022-0016 | C54: 2023 | D54: 2022 | E54: 2013 | F54: Expansion Investments_B_Total OM&A Start-Up | G54: ='App.2-FA Proposed REG Invest.'!$J$31 -> 2025 | H54: ='App.2-FA Proposed REG Invest.'!J100 -> 0
A55: ='LDC Info'!$E$14 -> Bluewater Power Distribution Corporation | B55: EB-2022-0016 | C55: 2023 | D55: 2022 | E55: 2013 | F55: Expansion Investments_B_Total OM&A Ongoing | G55: ='App.2-FA Proposed REG Invest.'!$J$31 -> 2025 | H55: ='App.2-FA Proposed REG Invest.'!J101 -> 0
A56: ='LDC Info'!$E$14 -> Bluewater Power Distribution Corporation | B56: EB-2022-0016 | C56: 2023 | D56: 2022 | E56: 2013 | F56: Expansion Investments_B_Total Capital Costs | G56: ='App.2-FA Proposed REG Invest.'!$K$31 -> 2026 | H56: ='App.2-FA Proposed REG Invest.'!K99 -> 0
A57: ='LDC Info'!$E$14 -> Bluewater Power Distribution Corporation | B57: EB-2022-0016 | C57: 2023 | D57: 2022 | E57: 2013 | F57: Expansion Investments_B_Total OM&A Start-Up | G57: ='App.2-FA Proposed REG Invest.'!$K$31 -> 2026 | H57: ='App.2-FA Proposed REG Invest.'!K100 -> 0
A58: ='LDC Info'!$E$14 -> Bluewater Power Distribution Corporation | B58: EB-2022-0016 | C58: 2023 | D58: 2022 | E58: 2013 | F58: Expansion Investments_B_Total OM&A Ongoing | G58: ='App.2-FA Proposed REG Invest.'!$K$31 -> 2026 | H58: ='App.2-FA Proposed REG Invest.'!K101 -> 0
A59: ='LDC Info'!$E$14 -> Bluewater Power Distribution Corporation | B59: EB-2022-0016 | C59: 2023 | D59: 2022 | E59: 2013 | F59: Expansion Investments_B_Total Capital Costs | G59: ='App.2-FA Proposed REG Invest.'!$L$31 -> 2027 | H59: ='App.2-FA Proposed REG Invest.'!L99 -> 0
A60: ='LDC Info'!$E$14 -> Bluewater Power Distribution Corporation | B60: EB-2022-0016 | C60: 2023 | D60: 2022 | E60: 2013 | F60: Expansion Investments_B_Total OM&A Start-Up | G60: ='App.2-FA Proposed REG Invest.'!$L$31 -> 2027 | H60: ='App.2-FA Proposed REG Invest.'!L100 -> 0
A61: ='LDC Info'!$E$14 -> Bluewater Power Distribution Corporation | B61: EB-2022-0016 | C61: 2023 | D61: 2022 | E61: 2013 | F61: Expansion Investments_B_Total OM&A Ongoing | G61: ='App.2-FA Proposed REG Invest.'!$L$31 -> 2027 | H61: ='App.2-FA Proposed REG Invest.'!L101 -> 0

Sheet Hidden_REG Improvement (hidden)
A1: Utility Name | B1: EB Number | C1: Test Year | D1: Bridge Year | E1: Last Rebasing Year | F1: Renewable Generation Connection Direct Benefits/Provincial Amount Renewable Enabling Improvement Investments | G1: Year | H1: Amount
A2: ='LDC Info'!$E$14 -> Bluewater Power Distribution Corporation | B2: =EBNUMBER -> EB-2022-0016 | C2: =TestYear -> 2023 | D2: =BridgeYear -> 2022 | E2: =RebaseYear -> 2013 | F2: Provincial Rate Protection | G2: ='App.2-FB Calc of REG Improvemnt'!D17 -> 2018 | H2: ='App.2-FB Calc of REG Improvemnt'!F$44 -> 0
A3: ='LDC Info'!$E$14 -> Bluewater Power Distribution Corporation | B3: EB-2022-0016 | C3: 2023 | D3: 2022 | E3: 2013 | F3: Provincial Rate Protection | G3: ='App.2-FB Calc of REG Improvemnt'!G17 -> 2019 | H3: ='App.2-FB Calc of REG Improvemnt'!I$44 -> 0
A4: ='LDC Info'!$E$14 -> Bluewater Power Distribution Corporation | B4: EB-2022-0016 | C4: 2023 | D4: 2022 | E4: 2013 | F4: Provincial Rate Protection | G4: ='App.2-FB Calc of REG Improvemnt'!J17 -> 2020 | H4: ='App.2-FB Calc of REG Improvemnt'!L$44 -> 0
A5: ='LDC Info'!$E$14 -> Bluewater Power Distribution Corporation | B5: EB-2022-0016 | C5: 2023 | D5: 2022 | E5: 2013 | F5: Provincial Rate Protection | G5: ='App.2-FB Calc of REG Improvemnt'!M17 -> 2021 | H5: ='App.2-FB Calc of REG Improvemnt'!O$44 -> 0
A6: ='LDC Info'!$E$14 -> Bluewater Power Distribution Corporation | B6: EB-2022-0016 | C6: 2023 | D6: 2022 | E6: 2013 | F6: Provincial Rate Protection | G6: ='App.2-FB Calc of REG Improvemnt'!P17 -> 2022 | H6: ='App.2-FB Calc of REG Improvemnt'!R$44 -> 0
A7: ='LDC Info'!$E$14 -> Bluewater Power Distribution Corporation | B7: EB-2022-0016 | C7: 2023 | D7: 2022 | E7: 2013 | F7: Provincial Rate Protection | G7: ='App.2-FB Calc of REG Improvemnt'!S17 -> 2023 | H7: ='App.2-FB Calc of REG Improvemnt'!U$44 -> 0
A8: ='LDC Info'!$E$14 -> Bluewater Power Distribution Corporation | B8: EB-2022-0016 | C8: 2023 | D8: 2022 | E8: 2013 | F8: Provincial Rate Protection | G8: ='App.2-FB Calc of REG Improvemnt'!V17 -> 2024 | H8: ='App.2-FB Calc of REG Improvemnt'!X$44 -> 0
A9: ='LDC Info'!$E$14 -> Bluewater Power Distribution Corporation | B9: EB-2022-0016 | C9: 2023 | D9: 2022 | E9: 2013 | F9: Provincial Rate Protection | G9: ='App.2-FB Calc of REG Improvemnt'!Y17 -> 2025 | H9: ='App.2-FB Calc of REG Improvemnt'!AA$44 -> 0
A10: ='LDC Info'!$E$14 -> Bluewater Power Distribution Corporation | B10: EB-2022-0016 | C10: 2023 | D10: 2022 | E10: 2013 | F10: Provincial Rate Protection | G10: ='App.2-FB Calc of REG Improvemnt'!AB17 -> 2026 | H10: ='App.2-FB Calc of REG Improvemnt'!AD$44 -> 0
A11: ='LDC Info'!$E$14 -> Bluewater Power Distribution Corporation | B11: EB-2022-0016 | C11: 2023 | D11: 2022 | E11: 2013 | F11: Provincial Rate Protection | G11: ='App.2-FB Calc of REG Improvemnt'!AE17 -> 2027 | H11: ='App.2-FB Calc of REG Improvemnt'!AG$44 -> 0

Sheet Hidden_REG Expansion (hidden)
A1: Utility Name | B1: EB Number | C1: Test Year | D1: Bridge Year | E1: Last Rebasing Year | F1: Calculation of Renewable Generation Connection Direct Benefits/Provincial Amount Renewable Expansion Investments | G1: Year | H1: Amount
A2: ='LDC Info'!$E$14 -> Bluewater Power Distribution Corporation | B2: =EBNUMBER -> EB-2022-0016 | C2: =TestYear -> 2023 | D2: =BridgeYear -> 2022 | E2: =RebaseYear -> 2013 | F2: Provincial Rate Protection | G2: ='App.2-FC Calc of REG Expansion'!D$17 -> 2018 | H2: ='App.2-FC Calc of REG Expansion'!F$44 -> 0
A3: ='LDC Info'!$E$14 -> Bluewater Power Distribution Corporation | B3: EB-2022-0016 | C3: 2023 | D3: 2022 | E3: 2013 | F3: Provincial Rate Protection | G3: ='App.2-FC Calc of REG Expansion'!G$17 -> 2019 | H3: ='App.2-FC Calc of REG Expansion'!I$44 -> 0
A4: ='LDC Info'!$E$14 -> Bluewater Power Distribution Corporation | B4: EB-2022-0016 | C4: 2023 | D4: 2022 | E4: 2013 | F4: Provincial Rate Protection | G4: ='App.2-FC Calc of REG Expansion'!J$17 -> 2020 | H4: ='App.2-FC Calc of REG Expansion'!L$44 -> 0
A5: ='LDC Info'!$E$14 -> Bluewater Power Distribution Corporation | B5: EB-2022-0016 | C5: 2023 | D5: 2022 | E5: 2013 | F5: Provincial Rate Protection | G5: ='App.2-FC Calc of REG Expansion'!M$17 -> 2021 | H5: ='App.2-FC Calc of REG Expansion'!O$44 -> 0
A6: ='LDC Info'!$E$14 -> Bluewater Power Distribution Corporation | B6: EB-2022-0016 | C6: 2023 | D6: 2022 | E6: 2013 | F6: Provincial Rate Protection | G6: ='App.2-FC Calc of REG Expansion'!P$17 -> 2022 | H6: ='App.2-FC Calc of REG Expansion'!R$44 -> 0
A7: ='LDC Info'!$E$14 -> Bluewater Power Distribution Corporation | B7: EB-2022-0016 | C7: 2023 | D7: 2022 | E7: 2013 | F7: Provincial Rate Protection | G7: ='App.2-FC Calc of REG Expansion'!S$17 -> 2023 | H7: ='App.2-FC Calc of REG Expansion'!U$44 -> 0
A8: ='LDC Info'!$E$14 -> Bluewater Power Distribution Corporation | B8: EB-2022-0016 | C8: 2023 | D8: 2022 | E8: 2013 | F8: Provincial Rate Protection | G8: ='App.2-FC Calc of REG Expansion'!V$17 -> 2024 | H8: ='App.2-FC Calc of REG Expansion'!X$44 -> 0
A9: ='LDC Info'!$E$14 -> Bluewater Power Distribution Corporation | B9: EB-2022-0016 | C9: 2023 | D9: 2022 | E9: 2013 | F9: Provincial Rate Protection | G9: ='App.2-FC Calc of REG Expansion'!Y$17 -> 2025 | H9: ='App.2-FC Calc of REG Expansion'!AA$44 -> 0
A10: ='LDC Info'!$E$14 -> Bluewater Power Distribution Corporation | B10: EB-2022-0016 | C10: 2023 | D10: 2022 | E10: 2013 | F10: Provincial Rate Protection | G10: ='App.2-FC Calc of REG Expansion'!AB$17 -> 2026 | H10: ='App.2-FC Calc of REG Expansion'!AD$44 -> 0
A11: ='LDC Info'!$E$14 -> Bluewater Power Distribution Corporation | B11: EB-2022-0016 | C11: 2023 | D11: 2022 | E11: 2013 | F11: Provincial Rate Protection | G11: ='App.2-FC Calc of REG Expansion'!AE$17 -> 2027 | H11: ='App.2-FC Calc of REG Expansion'!AG$44 -> 0

Sheet App.2-FA Proposed REG Invest.
K1: File Number: | L1: 0
K2: Exhibit:
K3: Tab:
A4: TO BE UPDATED AT DRAFT RATE ORDER STAGE | K4: Schedule:
K5: Page:
K7: Date:
A9: Appendix 2-FA
A10: Renewable Generation Connection Investment Summary (past investments or over the future rate setting period)
A12: Enter the details of the Renewable Generation Connection projects as described in the appropriate section of the Filing Requirements.
A13: All costs entered on this page will be transferred to the appropriate cells in the appendices that follow.
A14: For Part A, Renewable Enabling Improvements (REI), these amounts will be transferred to Appendix 2 - FB
A15: For Part B, Expansions, these amounts will be transferred to Appendix 2 - FC
A17: If there are more than five projects proposed to be in-service in a certain year, please amend the tables below and ensure that the formulae for the Total Amounts in any given rate year are updated.
A18: Based on the current methodology and allocation, amounts allocated represent 6% for REI Connection Investments and 17% for Expansion Investments. (EB-2009-0349, 6-10-2010, p. 15, note 9)
A19: Ensure that OM&A costs below are not included in Recoverable OM&A (App. 2-JA)
A20: There are two scenarios described below. Separate sets of spreadsheets (2-FA, 2-FB, 2-FC) should be submited for each scenario as required.
A21: Scenario 1: | B21: Past Investments with No Recovery. The distributor has made investments in the past (during the IRM Years), but has not received approval for these projects and therefore did not receive
B22: revenue from the IESO under Regulation 330/09 and did not receive ratepayer revenue for the direct benefit portion of the investment.
B23: The WCA percentage, debt percentages, interest rates, kWh, tax rates, amortization period, CCA Class and percentage should correspond to the distributor's last Cost of Service approval.
B24: The Direct Benefit portion of the calculated Revenue Requirement for each year should be summed and can be applied for recovery from the distributor's ratepayers through a rate rider.
B25: The Provincial Recovery portion of the calculated Revenue Requirement for each year should be summed and can be applied for recovery from the IESO through a separate order.
A27: Scenario 2: | B27: Investments in the Test Year and Beyond. Distributor plans to make investments in 2023 and/or beyond. These investments should be added to 2-FA in the appropriate year.
B28: The WCA percentage, debt percentages, interest rates, kWh, tax rates, amortization period, CCA Class and percentage should correspond to the distributor's current application.
A30: Part A | H30: Test Year
A31: REI Investments (Direct Benefit at 6%) | C31: =D31-1 -> 2018 | D31: =E31-1 -> 2019 | E31: =F31-1 -> 2020 | F31: =G31-1 -> 2021 | G31: =H31-1 -> 2022 | H31: ='LDC Info'!$E$24 -> 2023 | I31: =H31+1 -> 2024 | J31: =I31+1 -> 2025 | K31: =J31+1 -> 2026 | L31: =K31+1 -> 2027
A32: Project 1
A33: Name: REI Connection Project
A34: Capital Costs | C34: 0 | D34: 0 | E34: 0 | F34: 0 | G34: 0 | H34: 0 | I34: 0 | J34: 0 | K34: 0 | L34: 0
A35: Incremental OM&A (Start-Up) | C35: 0 | D35: 0 | E35: 0 | F35: 0 | G35: 0 | H35: 0 | I35: 0 | J35: 0 | K35: 0 | L35: 0
A36: Incremental OM&A (Ongoing) | C36: 0 | D36: 0 | E36: 0 | F36: 0 | G36: 0 | H36: 0 | I36: 0 | J36: 0 | K36: 0 | L36: 0
A38: Project 2
A39: Name: REI Connection Project
A40: Capital Costs | C40: 0 | D40: 0 | E40: 0 | F40: 0 | G40: 0 | H40: 0 | I40: 0 | J40: 0 | K40: 0 | L40: 0
A41: Incremental OM&A (Start-Up) | C41: 0 | D41: 0 | E41: 0 | F41: 0 | G41: 0 | H41: 0 | I41: 0 | J41: 0 | K41: 0 | L41: 0
A42: Incremental OM&A (Ongoing) | C42: 0 | D42: 0 | E42: 0 | F42: 0 | G42: 0 | H42: 0 | I42: 0 | J42: 0 | K42: 0 | L42: 0
A44: Project 3
A45: Name: REI Connection Project
A46: Capital Costs | C46: 0 | D46: 0 | E46: 0 | F46: 0 | G46: 0 | H46: 0 | I46: 0 | J46: 0 | K46: 0 | L46: 0
A47: Incremental OM&A (Start-Up) | C47: 0 | D47: 0 | E47: 0 | F47: 0 | G47: 0 | H47: 0 | I47: 0 | J47: 0 | K47: 0 | L47: 0
A48: Incremental OM&A (Ongoing) | C48: 0 | D48: 0 | E48: 0 | F48: 0 | G48: 0 | H48: 0 | I48: 0 | J48: 0 | K48: 0 | L48: 0
A50: Project 4
A51: Name: REI Connection Project
A52: Capital Costs | C52: 0 | D52: 0 | E52: 0 | F52: 0 | G52: 0 | H52: 0 | I52: 0 | J52: 0 | K52: 0 | L52: 0
A53: Incremental OM&A (Start-Up) | C53: 0 | D53: 0 | E53: 0 | F53: 0 | G53: 0 | H53: 0 | I53: 0 | J53: 0 | K53: 0 | L53: 0
A54: Incremental OM&A (Ongoing) | C54: 0 | D54: 0 | E54: 0 | F54: 0 | G54: 0 | H54: 0 | I54: 0 | J54: 0 | K54: 0 | L54: 0
A56: Project 5
A57: Name: REI Connection Project
A58: Capital Costs | C58: 0 | D58: 0 | E58: 0 | F58: 0 | G58: 0 | H58: 0 | I58: 0 | J58: 0 | K58: 0 | L58: 0
A59: Incremental OM&A (Start-Up) | C59: 0 | D59: 0 | E59: 0 | F59: 0 | G59: 0 | H59: 0 | I59: 0 | J59: 0 | K59: 0 | L59: 0
A60: Incremental OM&A (Ongoing) | C60: 0 | D60: 0 | E60: 0 | F60: 0 | G60: 0 | H60: 0 | I60: 0 | J60: 0 | K60: 0 | L60: 0
A62: Total Capital Costs | C62: =SUM(C58,C52,C46,C40,C34) -> 0 | D62: 0 | E62: 0 | F62: 0 | G62: 0 | H62: 0 | I62: 0 | J62: 0 | K62: 0 | L62: 0
A63: Total Incremental OM&A (Start-Up) | C63: 0 | D63: 0 | E63: 0 | F63: 0 | G63: 0 | H63: 0 | I63: 0 | J63: 0 | K63: 0 | L63: 0
A64: Total Incremental OM&A (Ongoing) | C64: 0 | D64: 0 | E64: 0 | F64: 0 | G64: 0 | H64: 0 | I64: 0 | J64: 0 | K64: 0 | L64: 0
A67: Part B | H67: Test Year
A68: Expansion Investments (Direct Benefit at 17%) | C68: =D68-1 -> 2018 | D68: =E68-1 -> 2019 | E68: =F68-1 -> 2020 | F68: =G68-1 -> 2021 | G68: =H68-1 -> 2022 | H68: =H31 -> 2023 | I68: =H68+1 -> 2024 | J68: =I68+1 -> 2025 | K68: =J68+1 -> 2026 | L68: =K68+1 -> 2027
A69: Project 1
A70: Name: Expansion Connection Project
A71: Capital Costs | C71: 0 | D71: 0 | E71: 0 | F71: 0 | G71: 0 | H71: 0 | I71: 0 | J71: 0 | K71: 0 | L71: 0
A72: Incremental OM&A (Start-Up) | C72: 0 | D72: 0 | E72: 0 | F72: 0 | G72: 0 | H72: 0 | I72: 0 | J72: 0 | K72: 0 | L72: 0
A73: Incremental OM&A (Ongoing) | C73: 0 | D73: 0 | E73: 0 | F73: 0 | G73: 0 | H73: 0 | I73: 0 | J73: 0 | K73: 0 | L73: 0
A75: Project 2
A76: Name: Expansion Connection Project
A77: Capital Costs | C77: 0 | D77: 0 | E77: 0 | F77: 0 | G77: 0 | H77: 0 | I77: 0 | J77: 0 | K77: 0 | L77: 0
A78: Incremental OM&A (Start-Up) | C78: 0 | D78: 0 | E78: 0 | F78: 0 | G78: 0 | H78: 0 | I78: 0 | J78: 0 | K78: 0 | L78: 0
A79: Incremental OM&A (Ongoing) | C79: 0 | D79: 0 | E79: 0 | F79: 0 | G79: 0 | H79: 0 | I79: 0 | J79: 0 | K79: 0 | L79: 0
A81: Project 3
A82: Name: Expansion Connection Project
A83: Capital Costs | C83: 0 | D83: 0 | E83: 0 | F83: 0 | G83: 0 | H83: 0 | I83: 0 | J83: 0 | K83: 0 | L83: 0
A84: Incremental OM&A (Start-Up) | C84: 0 | D84: 0 | E84: 0 | F84: 0 | G84: 0 | H84: 0 | I84: 0 | J84: 0 | K84: 0 | L84: 0
A85: Incremental OM&A (Ongoing) | C85: 0 | D85: 0 | E85: 0 | F85: 0 | G85: 0 | H85: 0 | I85: 0 | J85: 0 | K85: 0 | L85: 0
A87: Project 4
A88: Name: Expansion Connection Project
A89: Capital Costs | C89: 0 | D89: 0 | E89: 0 | F89: 0 | G89: 0 | H89: 0 | I89: 0 | J89: 0 | K89: 0 | L89: 0
A90: Incremental OM&A (Start-Up) | C90: 0 | D90: 0 | E90: 0 | F90: 0 | G90: 0 | H90: 0 | I90: 0 | J90: 0 | K90: 0 | L90: 0
A91: Incremental OM&A (Ongoing) | C91: 0 | D91: 0 | E91: 0 | F91: 0 | G91: 0 | H91: 0 | I91: 0 | J91: 0 | K91: 0 | L91: 0
A93: Project 5
A94: Name: Expansion Connection Project
A95: Capital Costs | C95: 0 | D95: 0 | E95: 0 | F95: 0 | G95: 0 | H95: 0 | I95: 0 | J95: 0 | K95: 0 | L95: 0
A96: Incremental OM&A (Start-Up) | C96: 0 | D96: 0 | E96: 0 | F96: 0 | G96: 0 | H96: 0 | I96: 0 | J96: 0 | K96: 0 | L96: 0
A97: Incremental OM&A (Ongoing) | C97: 0 | D97: 0 | E97: 0 | F97: 0 | G97: 0 | H97: 0 | I97: 0 | J97: 0 | K97: 0 | L97: 0
A99: Total Capital Costs | C99: =SUM(C95,C89,C83,C77,C71) -> 0 | D99: 0 | E99: 0 | F99: 0 | G99: 0 | H99: 0 | I99: 0 | J99: 0 | K99: 0 | L99: 0
A100: Total Incremental OM&A (Start-Up) | C100: 0 | D100: 0 | E100: 0 | F100: 0 | G100: 0 | H100: 0 | I100: 0 | J100: 0 | K100: 0 | L100: 0
A101: Total Incremental OM&A (Ongoing) | C101: 0 | D101: 0 | E101: 0 | F101: 0 | G101: 0 | H101: 0 | I101: 0 | J101: 0 | K101: 0 | L101: 0

Sheet App.2-FB Calc of REG Improvemnt
R1: File Number: | S1: 0
R2: Exhibit:
R3: Tab:
A4: TO BE UPDATED AT DRAFT RATE ORDER STAGE | R4: Schedule:
R5: Page:
R7: Date:
A9: Appendix 2-FB
A10: Calculation of Renewable Generation Connection Direct Benefits/Provincial Amount: Renewable Enabling Improvement Investments
A12: This table will calculate the distributor/provincial shares of the investments entered in Part A of Appendix 2-FA.
A13: Enter values in green shaded cells: WCA percentage, debt percentages, interest rates, kWh, tax rates, amortization period, CCA Class and percentage.
A14: For historical investments, enter these variables that were approved in your last cost of service test year. For test year and beyond, enter variables as in the application.
A15: Rate Riders related to the direct benefit portion of the renewable investments are not calculated for the Test Year as these assets and costs are already in the distributor's rate base/revenue requirement.
S16: Test Year
D17: =G17-1 -> 2018 | G17: =J17-1 -> 2019 | J17: =M17-1 -> 2020 | M17: =P17-1 -> 2021 | P17: =S17-1 -> 2022 | S17: ='LDC Info'!$E$24 -> 2023 | V17: =S17+1 -> 2024 | Y17: =V17+1 -> 2025 | Z17: 2016 | AB17: =Y17+1 -> 2026 | AE17: =AB17+1 -> 2027 | AH17: =AE17+1 -> 2028
E18: Direct Benefit | F18: Provincial | H18: Direct Benefit | I18: Provincial | K18: Direct Benefit | L18: Provincial | N18: Direct Benefit | O18: Provincial | Q18: Direct Benefit | R18: Provincial | T18: Direct Benefit | U18: Provincial | W18: Direct Benefit | X18: Provincial | Z18: Direct Benefit | AA18: Provincial | AC18: Direct Benefit | AD18: Provincial | AF18: Direct Benefit | AG18: Provincial | AI18: Direct Benefit | AJ18: Provincial
D19: Total | E19: 0.06 | F19: 0.94 | G19: Total | H19: 0.06 | I19: 0.94 | J19: Total | K19: 0.06 | L19: 0.94 | M19: Total | N19: 0.06 | O19: 0.94 | P19: Total | Q19: 0.06 | R19: 0.94 | S19: Total | T19: 0.06 | U19: 0.94 | V19: Total | W19: 0.06 | X19: 0.94 | Y19: Total | Z19: 0.06 | AA19: 0.94 | AB19: Total | AC19: 0.06 | AD19: 0.94 | AE19: Total | AF19: 0.06 | AG19: 0.94 | AH19: Total | AI19: 0.06 | AJ19: 0.94
A20: Net Fixed Assets (average) | D20: =E83 -> 0 | E20: =D20*E19 -> 0 | F20: =D20*F19 -> 0 | G20: =F83 -> 0 | H20: =G20*H19 -> 0 | I20: =G20*I19 -> 0 | J20: =G83 -> 0 | K20: =J20*K19 -> 0 | L20: =J20*L19 -> 0 | M20: =H83 -> 0 | N20: =M20*N19 -> 0 | O20: =M20*O19 -> 0 | P20: =I83 -> 0 | Q20: =P20*Q19 -> 0 | R20: =P20*R19 -> 0 | S20: =J83 -> 0 | T20: =S20*T19 -> 0 | U20: =S20*U19 -> 0 | V20: =K83 -> 0 | W20: =V20*W19 -> 0 | X20: =V20*X19 -> 0 | Y20: =L83 -> 0 | Z20: =Y20*Z19 -> 0 | AA20: =Y20*AA19 -> 0 | AB20: =M83 -> 0 | AC20: =AB20*AC19 -> 0 | AD20: =AB20*AD19 -> 0 | AE20: =N83 -> 0 | AF20: =AE20*AF19 -> 0 | AG20: =AE20*AG19 -> 0 | AH20: =O83 -> 0 | AI20: =AH20*AI19 -> 0 | AJ20: =AH20*AJ19 -> 0
A21: Incremental OM&A (on-going, N/A for Provincial Recovery) | D21: 0 | E21: =D21*E19 -> 0 | F21: =D21*F19 -> 0 | G21: 0 | H21: =G21*H19 -> 0 | I21: =G21*I19 -> 0 | J21: 0 | K21: =J21*K19 -> 0 | L21: =J21*L19 -> 0 | M21: 0 | N21: =M21*N19 -> 0 | O21: =M21*O19 -> 0 | P21: 0 | Q21: =P21*Q19 -> 0 | R21: =P21*R19 -> 0 | S21: 0 | T21: =S21*T19 -> 0 | U21: =S21*U19 -> 0 | V21: 0 | W21: =V21*W19 -> 0 | X21: =V21*X19 -> 0 | Y21: 0 | Z21: =Y21*Z19 -> 0 | AA21: =Y21*AA19 -> 0 | AB21: 0 | AC21: =AB21*AC19 -> 0 | AD21: =AB21*AD19 -> 0 | AE21: 0 | AF21: =AE21*AF19 -> 0 | AG21: =AE21*AG19 -> 0 | AH21: 0 | AI21: =AH21*AI19 -> 0 | AJ21: =AH21*AJ19 -> 0
A22: Incremental OM&A (start-up, applicable for Provincial Recovery) | D22: 0 | E22: =D22*E19 -> 0 | F22: =D22*F19 -> 0 | G22: 0 | H22: =G22*H19 -> 0 | I22: =G22*I19 -> 0 | J22: 0 | K22: =J22*K19 -> 0 | L22: =J22*L19 -> 0 | M22: 0 | N22: =M22*N19 -> 0 | O22: =M22*O19 -> 0 | P22: 0 | Q22: =P22*Q19 -> 0 | R22: =P22*R19 -> 0 | S22: 0 | T22: =S22*T19 -> 0 | U22: =S22*U19 -> 0 | V22: 0 | W22: =V22*W19 -> 0 | X22: =V22*X19 -> 0 | Y22: 0 | Z22: =Y22*Z19 -> 0 | AA22: =Y22*AA19 -> 0 | AB22: 0 | AC22: =AB22*AC19 -> 0 | AD22: =AB22*AD19 -> 0 | AE22: 0 | AF22: =AE22*AF19 -> 0 | AG22: =AE22*AG19 -> 0 | AH22: 0 | AI22: =AH22*AI19 -> 0 | AJ22: =AH22*AJ19 -> 0
A23: Rebasing Year vs. Test Year | B23: ='LDC Info'!E28 -> 2013 | C23: ='LDC Info'!E24 -> 2023
A24: Allowance for Working Capital (enter rate) | E24: =IF(AND(D$17>=$B$23, D$17<$C$23),(E21+E22)*$B$24,(E21+E22)*$C$24) -> 0 | F24: =IF(AND(D$17>=$B$23, D$17<$C$23),(F22)*$B$24,(F22)*$C$24) -> 0 | H24: =IF(AND(G$17>=$B$23, G$17<$C$23),(H21+H22)*$B$24,(H21+H22)*$C$24) -> 0 | I24: =IF(AND(G$17>=$B$23, G$17<$C$23),(I22)*$B$24,(I22)*$C$24) -> 0 | K24: =IF(AND(J$17>=$B$23, J$17<$C$23),(K21+K22)*$B$24,(K21+K22)*$C$24) -> 0 | L24: =IF(AND(J$17>=$B$23, J$17<$C$23),(L22)*$B$24,(L22)*$C$24) -> 0 | N24: =IF(AND(M$17>=$B$23, M$17<$C$23),(N21+N22)*$B$24,(N21+N22)*$C$24) -> 0 | O24: =IF(AND(M$17>=$B$23, M$17<$C$23),(O22)*$B$24,(O22)*$C$24) -> 0 | Q24: =IF(AND(P$17>=$B$23, P$17<$C$23),(Q21+Q22)*$B$24,(Q21+Q22)*$C$24) -> 0 | R24: =IF(AND(P$17>=$B$23, P$17<$C$23),(R22)*$B$24,(R22)*$C$24) -> 0 | T24: =IF(AND(S$17>=$B$23, S$17<$C$23),(T21+T22)*$B$24,(T21+T22)*$C$24) -> 0 | U24: =IF(AND(S$17>=$B$23, S$17<$C$23),(U22)*$B$24,(U22)*$C$24) -> 0 | W24: =IF(AND(V$17>=$B$23, V$17<$C$23),(W21+W22)*$B$24,(W21+W22)*$C$24) -> 0 | X24: =IF(AND(V$17>=$B$23, V$17<$C$23),(X22)*$B$24,(X22)*$C$24) -> 0 | Z24: =IF(AND(Y$17>=$B$23, Y$17<$C$23),(Z21+Z22)*$B$24,(Z21+Z22)*$C$24) -> 0 | AA24: =IF(AND(Y$17>=$B$23, Y$17<$C$23),(AA22)*$B$24,(AA22)*$C$24) -> 0 | AC24: =IF(AND(AB$17>=$B$23, AB$17<$C$23),(AC21+AC22)*$B$24,(AC21+AC22)*$C$24) -> 0 | AD24: =IF(AND(AB$17>=$B$23, AB$17<$C$23),(AD22)*$B$24,(AD22)*$C$24) -> 0 | AF24: =IF(AND(AE$17>=$B$23, AE$17<$C$23),(AF21+AF22)*$B$24,(AF21+AF22)*$C$24) -> 0 | AG24: =IF(AND(AE$17>=$B$23, AE$17<$C$23),(AG22)*$B$24,(AG22)*$C$24) -> 0 | AI24: =IF(AND(AH$17>=$B$23, AH$17<$C$23),(AI21+AI22)*$B$24,(AI21+AI22)*$C$24) -> 0 | AJ24: =IF(AND(AH$17>=$B$23, AH$17<$C$23),(AJ22)*$B$24,(AJ22)*$C$24) -> 0
A25: Rate Base | E25: =SUM(E20+E24) -> 0 | F25: =SUM(F20+F24) -> 0 | H25: =SUM(H20+H24) -> 0 | I25: =SUM(I20+I24) -> 0 | K25: =SUM(K20+K24) -> 0 | L25: =SUM(L20+L24) -> 0 | N25: =SUM(N20+N24) -> 0 | O25: =SUM(O20+O24) -> 0 | Q25: =SUM(Q20+Q24) -> 0 | R25: =SUM(R20+R24) -> 0 | T25: =SUM(T20+T24) -> 0 | U25: =SUM(U20+U24) -> 0 | W25: =SUM(W20+W24) -> 0 | X25: =SUM(X20+X24) -> 0 | Z25: =SUM(Z20+Z24) -> 0 | AA25: =SUM(AA20+AA24) -> 0 | AC25: =SUM(AC20+AC24) -> 0 | AD25: =SUM(AD20+AD24) -> 0 | AF25: =SUM(AF20+AF24) -> 0 | AG25: =SUM(AG20+AG24) -> 0 | AI25: =SUM(AI20+AI24) -> 0 | AJ25: =SUM(AJ20+AJ24) -> 0
A27: Rebasing Year vs. Test Year | B27: =B23 -> 2013 | C27: =C23 -> 2023
A28: Deemed ST Debt | B28: 0.04 | C28: 0.04 | E28: =E25*$B$28 -> 0 | F28: =F25*$B$28 -> 0 | H28: =H25*$B$28 -> 0 | I28: =I25*$B$28 -> 0 | K28: =K25*$B$28 -> 0 | L28: =L25*$B$28 -> 0 | N28: =N25*$B$28 -> 0 | O28: =O25*$B$28 -> 0 | Q28: =Q25*$B$28 -> 0 | R28: =R25*$B$28 -> 0 | T28: =T25*$C$28 -> 0 | U28: =U25*$C$28 -> 0 | W28: =W25*$C$28 -> 0 | X28: =X25*$C$28 -> 0 | Z28: =Z25*$C$28 -> 0 | AA28: =AA25*$C$28 -> 0 | AC28: =AC25*$C$28 -> 0 | AD28: =AD25*$C$28 -> 0 | AF28: =AF25*$C$28 -> 0 | AG28: =AG25*$C$28 -> 0 | AI28: =AI25*$C$28 -> 0 | AJ28: =AJ25*$C$28 -> 0
A29: Deemed LT Debt | B29: 0.56 | C29: 0.56 | E29: =E25*$B$29 -> 0 | F29: =F25*$B$29 -> 0 | H29: =H25*$B$29 -> 0 | I29: =I25*$B$29 -> 0 | K29: =K25*$B$29 -> 0 | L29: =L25*$B$29 -> 0 | N29: =N25*$B$29 -> 0 | O29: =O25*$B$29 -> 0 | Q29: =Q25*$B$29 -> 0 | R29: =R25*$B$29 -> 0 | T29: =T25*$C$29 -> 0 | U29: =U25*$C$29 -> 0 | W29: =W25*$C$29 -> 0 | X29: =X25*$C$29 -> 0 | Z29: =Z25*$C$29 -> 0 | AA29: =AA25*$C$29 -> 0 | AC29: =AC25*$C$29 -> 0 | AD29: =AD25*$C$29 -> 0 | AF29: =AF25*$C$29 -> 0 | AG29: =AG25*$C$29 -> 0 | AI29: =AI25*$C$29 -> 0 | AJ29: =AJ25*$C$29 -> 0
A30: Deemed Equity | B30: 0.4 | C30: 0.4 | E30: =E25*$B$30 -> 0 | F30: =F25*$B$30 -> 0 | H30: =H25*$B$30 -> 0 | I30: =I25*$B$30 -> 0 | K30: =K25*$B$30 -> 0 | L30: =L25*$B$30 -> 0 | N30: =N25*$B$30 -> 0 | O30: =O25*$B$30 -> 0 | Q30: =Q25*$B$30 -> 0 | R30: =R25*$B$30 -> 0 | T30: =T25*$C$30 -> 0 | U30: =U25*$C$30 -> 0 | W30: =W25*$C$30 -> 0 | X30: =X25*$C$30 -> 0 | Z30: =Z25*$C$30 -> 0 | AA30: =AA25*$C$30 -> 0 | AC30: =AC25*$C$30 -> 0 | AD30: =AD25*$C$30 -> 0 | AF30: =AF25*$C$30 -> 0 | AG30: =AG25*$C$30 -> 0 | AI30: =AI25*$C$30 -> 0 | AJ30: =AJ25*$C$30 -> 0
A32: ST Interest (enter rate) | E32: =E28*$B32 -> 0 | F32: 0 | H32: 0 | I32: 0 | K32: 0 | L32: 0 | N32: 0 | O32: 0 | Q32: 0 | R32: 0 | T32: =T28*$C32 -> 0 | U32: 0 | W32: =W28*$C32 -> 0 | X32: 0 | Z32: =Z28*$C32 -> 0 | AA32: 0 | AC32: =AC28*$C32 -> 0 | AD32: 0 | AF32: =AF28*$C32 -> 0 | AG32: 0 | AI32: =AI28*$C32 -> 0 | AJ32: 0
A33: LT Interest (enter rate) | E33: 0 | F33: 0 | H33: 0 | I33: 0 | K33: 0 | L33: 0 | N33: 0 | O33: 0 | Q33: 0 | R33: 0 | T33: 0 | U33: 0 | W33: 0 | X33: 0 | Z33: 0 | AA33: 0 | AC33: 0 | AD33: 0 | AF33: 0 | AG33: 0 | AI33: =AI29*$C33 -> 0 | AJ33: 0
A34: Return on Equity (enter rate) | E34: 0 | F34: 0 | H34: 0 | I34: 0 | K34: 0 | L34: 0 | N34: 0 | O34: 0 | Q34: 0 | R34: 0 | T34: 0 | U34: 0 | W34: 0 | X34: 0 | Z34: 0 | AA34: 0 | AC34: 0 | AD34: 0 | AF34: 0 | AG34: 0 | AI34: =AI30*$C34 -> 0 | AJ34: 0
A35: Cost of Capital Total | E35: =SUM(E32:E34) -> 0 | F35: =SUM(F32:F34) -> 0 | H35: =SUM(H32:H34) -> 0 | I35: =SUM(I32:I34) -> 0 | K35: =SUM(K32:K34) -> 0 | L35: =SUM(L32:L34) -> 0 | N35: =SUM(N32:N34) -> 0 | O35: =SUM(O32:O34) -> 0 | Q35: =SUM(Q32:Q34) -> 0 | R35: =SUM(R32:R34) -> 0 | T35: =SUM(T32:T34) -> 0 | U35: =SUM(U32:U34) -> 0 | W35: =SUM(W32:W34) -> 0 | X35: =SUM(X32:X34) -> 0 | Z35: =SUM(Z32:Z34) -> 0 | AA35: =SUM(AA32:AA34) -> 0 | AC35: =SUM(AC32:AC34) -> 0 | AD35: =SUM(AD32:AD34) -> 0 | AF35: =SUM(AF32:AF34) -> 0 | AG35: =SUM(AG32:AG34) -> 0 | AI35: =SUM(AI32:AI34) -> 0 | AJ35: =SUM(AJ32:AJ34) -> 0
A37: OM&A | E37: =E21+E22 -> 0 | F37: =F22 -> 0 | H37: =H21+H22 -> 0 | I37: =I22 -> 0 | K37: =K21+K22 -> 0 | L37: =L22 -> 0 | N37: =N21+N22 -> 0 | O37: =O22 -> 0 | Q37: =Q21+Q22 -> 0 | R37: =R22 -> 0 | T37: =T21+T22 -> 0 | U37: =U22 -> 0 | W37: =W21+W22 -> 0 | X37: =X22 -> 0 | Z37: =Z21+Z22 -> 0 | AA37: =AA22 -> 0 | AC37: =AC21+AC22 -> 0 | AD37: =AD22 -> 0 | AF37: =AF21+AF22 -> 0 | AG37: =AG22 -> 0 | AI37: =AI21+AI22 -> 0 | AJ37: =AJ22 -> 0
A38: Amortization | D38: =+E77+E78 -> 0 | E38: =D38*E$19 -> 0 | F38: =D38*F$19 -> 0 | G38: =+F77+F78 -> 0 | H38: =G38*H$19 -> 0 | I38: =G38*I$19 -> 0 | J38: =+G77+G78 -> 0 | K38: =J38*K$19 -> 0 | L38: =J38*L$19 -> 0 | M38: =+H77+H78 -> 0 | N38: =M38*N$19 -> 0 | O38: =M38*O$19 -> 0 | P38: =+I77+I78 -> 0 | Q38: =P38*Q$19 -> 0 | R38: =P38*R$19 -> 0 | S38: =+J77+J78 -> 0 | T38: =S38*T$19 -> 0 | U38: =S38*U$19 -> 0 | V38: =+K77+K78 -> 0 | W38: =V38*W$19 -> 0 | X38: =V38*X$19 -> 0 | Y38: =+L77+L78 -> 0 | Z38: =Y38*Z$19 -> 0 | AA38: =Y38*AA$19 -> 0 | AB38: =+M77+M78 -> 0 | AC38: =AB38*AC$19 -> 0 | AD38: =AB38*AD$19 -> 0 | AE38: =+N77+N78 -> 0 | AF38: =AE38*AF$19 -> 0 | AG38: =AE38*AG$19 -> 0 | AH38: =+O77+O78 -> 0 | AI38: =AH38*AI$19 -> 0 | AJ38: =AH38*AJ$19 -> 0
A39: Grossed-up PILs | E39: =+E66 -> 0 | F39: =+F66 -> 0 | H39: =+H66 -> 0 | I39: =+I66 -> 0 | K39: =+K66 -> 0 | L39: =+L66 -> 0 | N39: =+N66 -> 0 | O39: =+O66 -> 0 | Q39: =+Q66 -> 0 | R39: =+R66 -> 0 | T39: =+T66 -> 0 | U39: =+U66 -> 0 | W39: =+W66 -> 0 | X39: =+X66 -> 0 | Z39: =+Z66 -> 0 | AA39: =+AA66 -> 0 | AC39: =+AC66 -> 0 | AD39: =+AD66 -> 0 | AF39: =+AF66 -> 0 | AG39: =+AG66 -> 0 | AI39: =+AI66 -> 0 | AJ39: =+AJ66 -> 0
A41: Revenue Requirement | E41: =SUM(E35:E39) -> 0 | F41: =SUM(F35:F39) -> 0 | H41: =SUM(H35:H39) -> 0 | I41: 0 | K41: =SUM(K35:K39) -> 0 | L41: 0 | N41: =SUM(N35:N39) -> 0 | O41: 0 | Q41: =SUM(Q35:Q39) -> 0 | R41: 0 | T41: =SUM(T35:T39) -> 0 | U41: 0 | W41: =SUM(W35:W39) -> 0 | X41: 0 | Z41: =SUM(Z35:Z39) -> 0 | AA41: 0 | AC41: =SUM(AC35:AC39) -> 0 | AD41: 0 | AF41: =SUM(AF35:AF39) -> 0 | AG41: 0 | AI41: =SUM(AI35:AI39) -> 0 | AJ41: 0
A44: Provincial Rate Protection | F44: =F41 -> 0 | I44: =I41 -> 0 | L44: =L41 -> 0 | O44: =O41 -> 0 | R44: =R41 -> 0 | U44: =U41 -> 0 | X44: =X41 -> 0 | AA44: =AA41 -> 0 | AD44: =AD41 -> 0 | AG44: =AG41 -> 0 | AJ44: =AJ41 -> 0
A46: Monthly Amount Paid by IESO | F46: =F44/12 -> 0 | I46: =I44/12 -> 0 | L46: =L44/12 -> 0 | O46: =O44/12 -> 0 | R46: =R44/12 -> 0 | U46: =U44/12 -> 0 | X46: =X44/12 -> 0 | AA46: =AA44/12 -> 0 | AD46: =AD44/12 -> 0 | AG46: =AG44/12 -> 0 | AJ46: =AJ44/12 -> 0
A48: Note 1: The distributor should follow the regulatory accounting set out in the Accounting Procedure Handbook Guidance FAQs issued in March 2015. Q10 of the APH FAQs states that: “For approved eligible investments as defined under O.Reg. 330/09 under the OEB Act, a variance account will continue to be used for the purpose of recording variances between the revenue requirement based on actual costs of approved eligible investments and the revenue received from the IESO.” The answer for Q10 provides the accounting guidance for this variance account: “Distributors that have included eligible investments to connect qualifying facilities in their DS plans are to establish the variance Account 1533 Renewable Generation Connection Funding Adder Deferral Account, Sub-account Provincial Rate Protection Payment Variances following OEB approval for investments forecast to enter service beyond the test year for purposes of implementing rate protection pursuant to O.Reg. 330/09. The purpose of this variance account is to track the variance between the distributor’s revenue requirement associated with the portion of the actual capital and/or operating costs that are eligible for rate protection, as incurred by the distributor for eligible renewable enabling and expansion investments, and the rate protection payments collected from the IESO.” The answer further provides the journal entries to record the variances. Distributors should follow the instructions in the answer for recording the journal entries in the variance account 1533.
A50: Note 2: For the Test Year, Costs and Revenues of the Direct Benefit are to be included in the test year applicant Rate Base and Revenues.
A52: PILs Calculation | T52: Test Year
E53: =G17-1 -> 2018 | H53: =G17 -> 2019 | K53: =J17 -> 2020 | N53: =M17 -> 2021 | Q53: =P17 -> 2022 | T53: =S17 -> 2023 | W53: =V17 -> 2024 | Z53: =Y17 -> 2025 | AC53: =AB17 -> 2026 | AF53: =AE17 -> 2027 | AI53: =AH17 -> 2028
A54: Income Tax | E54: Direct Benefit | F54: Provincial | H54: Direct Benefit | I54: Provincial | K54: Direct Benefit | L54: Provincial | N54: Direct Benefit | O54: Provincial | Q54: Direct Benefit | R54: Provincial | T54: Direct Benefit | U54: Provincial | W54: Direct Benefit | X54: Provincial | Z54: Direct Benefit | AA54: Provincial | AC54: Direct Benefit | AD54: Provincial | AF54: Direct Benefit | AG54: Provincial | AI54: Direct Benefit | AJ54: Provincial
AB55: Total | AE55: Total | AH55: Total
A56: Net Income - ROE on Rate Base | E56: =E34 -> 0 | F56: =F34 -> 0 | H56: =H34 -> 0 | I56: =I34 -> 0 | K56: =K34 -> 0 | L56: =L34 -> 0 | N56: =N34 -> 0 | O56: =O34 -> 0 | Q56: =Q34 -> 0 | R56: =R34 -> 0 | T56: =T34 -> 0 | U56: =U34 -> 0 | W56: =W34 -> 0 | X56: =X34 -> 0 | Z56: =Z34 -> 0 | AA56: =AA34 -> 0 | AC56: =AC34 -> 0 | AD56: =AD34 -> 0 | AF56: =AF34 -> 0 | AG56: =AG34 -> 0 | AI56: =AI34 -> 0 | AJ56: =AJ34 -> 0
A57: Amortization (6% DB and 94% P) | E57: =E38 -> 0 | F57: =F38 -> 0 | H57: =H38 -> 0 | I57: =I38 -> 0 | K57: =K38 -> 0 | L57: =L38 -> 0 | N57: =N38 -> 0 | O57: =O38 -> 0 | Q57: =Q38 -> 0 | R57: =R38 -> 0 | T57: =T38 -> 0 | U57: =U38 -> 0 | W57: =W38 -> 0 | X57: =X38 -> 0 | Z57: =Z38 -> 0 | AA57: =AA38 -> 0 | AC57: =AC38 -> 0 | AD57: =AD38 -> 0 | AF57: =AF38 -> 0 | AG57: =AG38 -> 0 | AI57: =AI38 -> 0 | AJ57: =AJ38 -> 0
A58: CCA (6% DB and 94% P) | E58: =-E95*$E$19 -> 0 | F58: =-E95*$F$19 -> 0 | H58: =-F95*$E$19 -> 0 | I58: =-F95*$F$19 -> 0 | K58: =-G95*$E$19 -> 0 | L58: =-G95*$F$19 -> 0 | N58: =-H95*$E$19 -> 0 | O58: =-H95*$F$19 -> 0 | Q58: =-I95*$E$19 -> 0 | R58: =-I95*$F$19 -> 0 | T58: =-J95*$E$19 -> 0 | U58: =-J95*$F$19 -> 0 | W58: =-K95*$E$19 -> 0 | X58: =-K95*$F$19 -> 0 | Z58: =-L95*$E$19 -> 0 | AA58: =-L95*$F$19 -> 0 | AC58: =-M95*$E$19 -> 0 | AD58: =-M95*$F$19 -> 0 | AF58: =-N95*$E$19 -> 0 | AG58: =-N95*$F$19 -> 0 | AI58: =-Q95*$E$19 -> 0 | AJ58: =-Q95*$F$19 -> 0
A59: Taxable income | E59: =SUM(E56:E58) -> 0 | F59: =SUM(F56:F58) -> 0 | H59: =SUM(H56:H58) -> 0 | I59: 0 | K59: =SUM(K56:K58) -> 0 | L59: 0 | N59: =SUM(N56:N58) -> 0 | O59: 0 | Q59: =SUM(Q56:Q58) -> 0 | R59: 0 | T59: =SUM(T56:T58) -> 0 | U59: 0 | W59: =SUM(W56:W58) -> 0 | X59: 0 | Z59: =SUM(Z56:Z58) -> 0 | AA59: =SUM(AA56:AA58) -> 0 | AC59: =SUM(AC56:AC58) -> 0 | AD59: =SUM(AD56:AD58) -> 0 | AF59: =SUM(AF56:AF58) -> 0 | AG59: =SUM(AG56:AG58) -> 0 | AI59: =SUM(AI56:AI58) -> 0 | AJ59: =SUM(AJ56:AJ58) -> 0
B60: =B27 -> 2013 | C60: =C27 -> 2023
A61: Tax Rate (to be entered) | E61: =IF(AND(E$53>=$B$60, E$53<$C$60),$B$61,$C$61) -> 0 | F61: =IF(AND(E$53>=$B$60, E$53<$C$60),$B$61,$C$61) -> 0 | H61: =IF(AND(H$53>=$B$60, H$53<$C$60),$B$61,$C$61) -> 0 | I61: =IF(AND(H$53>=$B$60, H$53<$C$60),$B$61,$C$61) -> 0 | K61: =IF(AND(K$53>=$B$60, K$53<$C$60),$B$61,$C$61) -> 0 | L61: =IF(AND(K$53>=$B$60, K$53<$C$60),$B$61,$C$61) -> 0 | N61: =IF(AND(N$53>=$B$60, N$53<$C$60),$B$61,$C$61) -> 0 | O61: =IF(AND(N$53>=$B$60, N$53<$C$60),$B$61,$C$61) -> 0 | Q61: =IF(AND(Q$53>=$B$60, Q$53<$C$60),$B$61,$C$61) -> 0 | R61: =IF(AND(Q$53>=$B$60, Q$53<$C$60),$B$61,$C$61) -> 0 | T61: =IF(AND(T$53>=$B$60, T$53<$C$60),$B$61,$C$61) -> 0 | U61: =IF(AND(T$53>=$B$60, T$53<$C$60),$B$61,$C$61) -> 0 | W61: =IF(AND(W$53>=$B$60, W$53<$C$60),$B$61,$C$61) -> 0 | X61: =IF(AND(W$53>=$B$60, W$53<$C$60),$B$61,$C$61) -> 0 | Z61: =IF(AND(Z$53>=$B$60, Z$53<$C$60),$B$61,$C$61) -> 0 | AA61: =IF(AND(Z$53>=$B$60, Z$53<$C$60),$B$61,$C$61) -> 0 | AC61: =IF(AND(AC$53>=$B$60, AC$53<$C$60),$B$61,$C$61) -> 0 | AD61: =IF(AND(AC$53>=$B$60, AC$53<$C$60),$B$61,$C$61) -> 0 | AF61: =IF(AND(AF$53>=$B$60, AF$53<$C$60),$B$61,$C$61) -> 0 | AG61: =IF(AND(AF$53>=$B$60, AF$53<$C$60),$B$61,$C$61) -> 0 | AI61: =IF(AND(AI$53>=$B$60, AI$53<$C$60),$B$61,$C$61) -> 0 | AJ61: =IF(AND(AI$53>=$B$60, AI$53<$C$60),$B$61,$C$61) -> 0
A63: Income Taxes Payable | E63: =E59*E61 -> 0 | F63: =F59*F61 -> 0 | H63: =H59*H61 -> 0 | I63: =I59*I61 -> 0 | K63: =K59*K61 -> 0 | L63: =L59*L61 -> 0 | N63: =N59*N61 -> 0 | O63: =O59*O61 -> 0 | Q63: =Q59*Q61 -> 0 | R63: =R59*R61 -> 0 | T63: =T59*T61 -> 0 | U63: =U59*U61 -> 0 | W63: =W59*W61 -> 0 | X63: =X59*X61 -> 0 | Z63: =Z59*Z61 -> 0 | AA63: =AA59*AA61 -> 0 | AC63: =AC59*AC61 -> 0 | AD63: =AD59*AD61 -> 0 | AF63: =AF59*AF61 -> 0 | AG63: =AG59*AG61 -> 0 | AI63: =AI59*AI61 -> 0 | AJ63: =AJ59*AJ61 -> 0
A64: Gross Up
A65: Income Taxes Payable | E65: =E63/(1-E61) -> 0 | F65: =F63/(1-F61) -> 0 | H65: =H63/(1-H61) -> 0 | I65: =I63/(1-I61) -> 0 | K65: =K63/(1-K61) -> 0 | L65: =L63/(1-L61) -> 0 | N65: =N63/(1-N61) -> 0 | O65: =O63/(1-O61) -> 0 | Q65: =Q63/(1-Q61) -> 0 | R65: =R63/(1-R61) -> 0 | T65: =T63/(1-T61) -> 0 | U65: =U63/(1-U61) -> 0 | W65: =W63/(1-W61) -> 0 | X65: =X63/(1-X61) -> 0 | Z65: =Z63/(1-Z61) -> 0 | AA65: =AA63/(1-AA61) -> 0 | AC65: =AC63/(1-AC61) -> 0 | AD65: =AD63/(1-AD61) -> 0 | AF65: =AF63/(1-AF61) -> 0 | AG65: =AG63/(1-AG61) -> 0 | AI65: =AI63/(1-AI61) -> 0 | AJ65: =AJ63/(1-AJ61) -> 0
A66: Grossed Up PILs | E66: =+E65 -> 0 | F66: =+F65 -> 0 | H66: =+H65 -> 0 | I66: =+I65 -> 0 | K66: =+K65 -> 0 | L66: 0 | N66: =+N65 -> 0 | O66: 0 | Q66: =+Q65 -> 0 | R66: 0 | T66: =+T65 -> 0 | U66: 0 | W66: =+W65 -> 0 | X66: 0 | Z66: =+Z65 -> 0 | AA66: 0 | AC66: =+AC65 -> 0 | AD66: 0 | AF66: =+AF65 -> 0 | AG66: 0 | AI66: =+AI65 -> 0 | AJ66: 0
J68: Test Year
E69: =F69-1 -> 2018 | F69: =G69-1 -> 2019 | G69: =H69-1 -> 2020 | H69: =I69-1 -> 2021 | I69: =J69-1 -> 2022 | J69: ='LDC Info'!E24 -> 2023 | K69: =J69+1 -> 2024 | L69: =K69+1 -> 2025 | M69: =L69+1 -> 2026 | N69: =M69+1 -> 2027 | O69: =N69+1 -> 2028
A70: Net Fixed Assets
A71: Enter applicable amortization in years: | B71: 40
A72: Opening Gross Fixed Assets | F72: =E74 -> 0 | G72: 0 | H72: 0 | I72: 0 | J72: 0 | K72: 0 | L72: 0 | M72: 0 | N72: 0 | O72: 0
A73: Capital Additions | E73: ='App.2-FA Proposed REG Invest.'!C62 -> 0 | F73: ='App.2-FA Proposed REG Invest.'!D62 -> 0 | G73: ='App.2-FA Proposed REG Invest.'!E62 -> 0 | H73: ='App.2-FA Proposed REG Invest.'!F62 -> 0 | I73: ='App.2-FA Proposed REG Invest.'!G62 -> 0 | J73: ='App.2-FA Proposed REG Invest.'!H62 -> 0 | K73: ='App.2-FA Proposed REG Invest.'!I62 -> 0 | L73: ='App.2-FA Proposed REG Invest.'!J62 -> 0 | M73: ='App.2-FA Proposed REG Invest.'!K62 -> 0 | N73: ='App.2-FA Proposed REG Invest.'!L62 -> 0 | O73: ='App.2-FA Proposed REG Invest.'!M62 -> 0
A74: Closing Gross Fixed Assets | E74: =SUM(E72:E73) -> 0 | F74: 0 | G74: 0 | H74: 0 | I74: 0 | J74: 0 | K74: 0 | L74: 0 | M74: 0 | N74: 0 | O74: =SUM(O72:O73) -> 0
A76: Opening Accumulated Amortization | F76: =+E79 -> 0 | G76: =+F79 -> 0 | H76: 0 | I76: 0 | J76: 0 | K76: 0 | L76: 0 | M76: 0 | N76: 0 | O76: 0
A77: Current Year Amortization (before additions) | E77: =IF(ISERROR(E72/$B$71), 0, E72/$B$71) -> 0 | F77: =IF(ISERROR(F72/$B$71), 0, F72/$B$71) -> 0 | G77: 0 | H77: 0 | I77: 0 | J77: 0 | K77: 0 | L77: 0 | M77: 0 | N77: 0 | O77: =IF(ISERROR(O72/$B$71), 0, O72/$B$71) -> 0
A78: Capital Additions Amortization (half year) | E78: =E73/$B$71/2 -> 0 | F78: =F73/$B$71/2 -> 0 | G78: 0 | H78: 0 | I78: 0 | J78: 0 | K78: 0 | L78: 0 | M78: 0 | N78: 0 | O78: =O73/$B$71/2 -> 0
A79: Closing Accumulated Amortization | E79: =SUM(E76+E77+E78) -> 0 | F79: 0 | G79: 0 | H79: 0 | I79: 0 | J79: 0 | K79: 0 | L79: 0 | M79: 0 | N79: 0 | O79: =SUM(O76+O77+O78) -> 0
A81: Opening Net Fixed Assets | E81: =E72-E76 -> 0 | F81: 0 | G81: 0 | H81: 0 | I81: 0 | J81: 0 | K81: 0 | L81: 0 | M81: 0 | N81: 0 | O81: =O72-O76 -> 0
A82: Closing Net Fixed Assets | E82: =E74-E79 -> 0 | F82: 0 | G82: 0 | H82: 0 | I82: 0 | J82: 0 | K82: 0 | L82: 0 | M82: 0 | N82: 0 | O82: =O74-O79 -> 0
A83: Average Net Fixed Assets | E83: =SUM(E81:E82)/2 -> 0 | F83: 0 | G83: 0 | H83: 0 | I83: 0 | J83: 0 | K83: 0 | L83: 0 | M83: 0 | N83: 0 | O83: =SUM(O81:O82)/2 -> 0
A85: UCC for PILs Calculation | J85: Test Year
E86: =E69 -> 2018 | F86: =F69 -> 2019 | G86: =G69 -> 2020 | H86: 2021 | I86: 2022 | J86: 2023 | K86: 2024 | L86: 2025 | M86: 2026 | N86: 2027 | O86: =O69 -> 2028
A88: Opening UCC | E88: =E72 -> 0 | F88: =E96 -> 0 | G88: 0 | H88: 0 | I88: 0 | J88: 0 | K88: 0 | L88: 0 | M88: 0 | N88: 0 | O88: 0
A89: Capital Additions | E89: =E73 -> 0 | F89: 0 | G89: 0 | H89: 0 | I89: 0 | J89: 0 | K89: 0 | L89: 0 | M89: 0 | N89: 0 | O89: =O73 -> 0
A90: UCC Before Half Year Rule | E90: =SUM(E88:E89) -> 0 | F90: 0 | G90: 0 | H90: 0 | I90: 0 | J90: 0 | K90: 0 | L90: 0 | M90: 0 | N90: 0 | O90: =SUM(O88:O89) -> 0
A91: Capital Additions (half year) | E91: =E89/2 -> 0 | F91: 0 | G91: 0 | H91: 0 | I91: 0 | J91: 0 | K91: 0 | L91: 0 | M91: 0 | N91: 0 | O91: =O89/2 -> 0
A92: Reduced UCC | E92: =E90-E91 -> 0 | F92: 0 | G92: 0 | H92: 0 | I92: 0 | J92: 0 | K92: 0 | L92: 0 | M92: 0 | N92: 0 | O92: =O90-O91 -> 0
A93: CCA Rate Class (to be entered)
A94: CCA Rate (to be entered)
A95: CCA | E95: =E92*$B$94 -> 0 | F95: =F92*$B$94 -> 0 | G95: 0 | H95: 0 | I95: 0 | J95: 0 | K95: 0 | L95: 0 | M95: 0 | N95: 0 | O95: =O92*$B$94 -> 0
A96: Closing UCC | E96: =E90-E95 -> 0 | F96: 0 | G96: 0 | H96: 0 | I96: 0 | J96: 0 | K96: 0 | L96: 0 | M96: 0 | N96: 0 | O96: =O90-O95 -> 0

Sheet App.2-FC Calc of REG Expansion
R1: File Number: | S1: 0
R2: Exhibit:
R3: Tab:
A4: TO BE UPDATED AT DRAFT RATE ORDER STAGE | R4: Schedule:
R5: Page:
R7: Date:
A9: Appendix 2-FC
A10: Calculation of Renewable Generation Connection Direct Benefits/Provincial Amount: Renewable Expansion Investments
A12: This table will calculate the distributor/provincial shares of the investments entered in Part B of Appendix 2-FA.
A13: Enter values in green shaded cells: WCA percentage, debt percentages, interest rates, kWh, tax rates, amortization period, CCA Class and percentage.
A14: For historical investments, enter these variables that were approved in your last cost of service test year. For test year and beyond, enter variables as in the application.
A15: Rate Riders related to the direct benefit portion of the renewable investments are not calculated for the Test Year as these assets and costs are already in the distributor's rate base/revenue requirement.
S16: Test Year
D17: =G17-1 -> 2018 | G17: =J17-1 -> 2019 | J17: =M17-1 -> 2020 | M17: =P17-1 -> 2021 | P17: =S17-1 -> 2022 | S17: ='LDC Info'!$E$24 -> 2023 | V17: =S17+1 -> 2024 | Y17: =V17+1 -> 2025 | Z17: 2016 | AB17: =Y17+1 -> 2026 | AE17: =AB17+1 -> 2027 | AH17: =AE17+1 -> 2028
E18: Direct Benefit | F18: Provincial | H18: Direct Benefit | I18: Provincial | K18: Direct Benefit | L18: Provincial | N18: Direct Benefit | O18: Provincial | Q18: Direct Benefit | R18: Provincial | T18: Direct Benefit | U18: Provincial | W18: Direct Benefit | X18: Provincial | Z18: Direct Benefit | AA18: Provincial | AC18: Direct Benefit | AD18: Provincial | AF18: Direct Benefit | AG18: Provincial | AI18: Direct Benefit | AJ18: Provincial
D19: Total | E19: 0.17 | F19: 0.83 | G19: Total | H19: 0.17 | I19: 0.83 | J19: Total | K19: 0.17 | L19: 0.83 | M19: Total | N19: 0.17 | O19: 0.83 | P19: Total | Q19: 0.17 | R19: 0.83 | S19: Total | T19: 0.17 | U19: 0.83 | V19: Total | W19: 0.17 | X19: 0.83 | Y19: Total | Z19: 0.17 | AA19: 0.83 | AB19: Total | AC19: 0.17 | AD19: 0.83 | AE19: Total | AF19: 0.17 | AG19: 0.83 | AH19: Total | AI19: 0.17 | AJ19: 0.83
A20: Net Fixed Assets (average) | D20: =E83 -> 0 | E20: =D20*E19 -> 0 | F20: =D20*F19 -> 0 | G20: =F83 -> 0 | H20: =G20*H19 -> 0 | I20: =G20*I19 -> 0 | J20: =G83 -> 0 | K20: =J20*K19 -> 0 | L20: =J20*L19 -> 0 | M20: =H83 -> 0 | N20: =M20*N19 -> 0 | O20: =M20*O19 -> 0 | P20: =I83 -> 0 | Q20: =P20*Q19 -> 0 | R20: =P20*R19 -> 0 | S20: =J83 -> 0 | T20: =S20*T19 -> 0 | U20: =S20*U19 -> 0 | V20: =K83 -> 0 | W20: =V20*W19 -> 0 | X20: =V20*X19 -> 0 | Y20: =L83 -> 0 | Z20: =Y20*Z19 -> 0 | AA20: =Y20*AA19 -> 0 | AB20: =M83 -> 0 | AC20: =AB20*AC19 -> 0 | AD20: =AB20*AD19 -> 0 | AE20: =N83 -> 0 | AF20: =AE20*AF19 -> 0 | AG20: =AE20*AG19 -> 0 | AH20: =O83 -> 0 | AI20: =AH20*AI19 -> 0 | AJ20: =AH20*AJ19 -> 0
A21: Incremental OM&A (on-going, N/A for Provincial Recovery) | D21: 0 | E21: =D21*E19 -> 0 | F21: =D21*F19 -> 0 | G21: 0 | H21: =G21*H19 -> 0 | I21: =G21*I19 -> 0 | J21: 0 | K21: =J21*K19 -> 0 | L21: =J21*L19 -> 0 | M21: 0 | N21: =M21*N19 -> 0 | O21: =M21*O19 -> 0 | P21: 0 | Q21: =P21*Q19 -> 0 | R21: =P21*R19 -> 0 | S21: 0 | T21: =S21*T19 -> 0 | U21: =S21*U19 -> 0 | V21: 0 | W21: =V21*W19 -> 0 | X21: =V21*X19 -> 0 | Y21: 0 | Z21: =Y21*Z19 -> 0 | AA21: =Y21*AA19 -> 0 | AB21: 0 | AC21: =AB21*AC19 -> 0 | AD21: =AB21*AD19 -> 0 | AE21: 0 | AF21: =AE21*AF19 -> 0 | AG21: =AE21*AG19 -> 0 | AH21: 0 | AI21: =AH21*AI19 -> 0 | AJ21: =AH21*AJ19 -> 0
A22: Incremental OM&A (start-up, applicable for Provincial Recovery) | D22: 0 | E22: =D22*E19 -> 0 | F22: =D22*F19 -> 0 | G22: 0 | H22: =G22*H19 -> 0 | I22: =G22*I19 -> 0 | J22: 0 | K22: =J22*K19 -> 0 | L22: =J22*L19 -> 0 | M22: 0 | N22: =M22*N19 -> 0 | O22: =M22*O19 -> 0 | P22: 0 | Q22: =P22*Q19 -> 0 | R22: =P22*R19 -> 0 | S22: 0 | T22: =S22*T19 -> 0 | U22: =S22*U19 -> 0 | V22: 0 | W22: =V22*W19 -> 0 | X22: =V22*X19 -> 0 | Y22: 0 | Z22: =Y22*Z19 -> 0 | AA22: =Y22*AA19 -> 0 | AB22: 0 | AC22: =AB22*AC19 -> 0 | AD22: =AB22*AD19 -> 0 | AE22: 0 | AF22: =AE22*AF19 -> 0 | AG22: =AE22*AG19 -> 0 | AH22: 0 | AI22: =AH22*AI19 -> 0 | AJ22: =AH22*AJ19 -> 0
A23: Rebasing Year vs. Test Year | B23: ='LDC Info'!E28 -> 2013 | C23: ='LDC Info'!E24 -> 2023
A24: Allowance for Working Capital (enter rate) | E24: =IF(AND(D$17>=$B$23, D$17<$C$23),(E21+E22)*$B$24,(E21+E22)*$C$24) -> 0 | F24: =IF(AND(D$17>=$B$23, D$17<$C$23),(F22)*$B$24,(F22)*$C$24) -> 0 | H24: =IF(AND(G$17>=$B$23, G$17<$C$23),(H21+H22)*$B$24,(H21+H22)*$C$24) -> 0 | I24: =IF(AND(G$17>=$B$23, G$17<$C$23),(I22)*$B$24,(I22)*$C$24) -> 0 | K24: =IF(AND(J$17>=$B$23, J$17<$C$23),(K21+K22)*$B$24,(K21+K22)*$C$24) -> 0 | L24: =IF(AND(J$17>=$B$23, J$17<$C$23),(L22)*$B$24,(L22)*$C$24) -> 0 | N24: =IF(AND(M$17>=$B$23, M$17<$C$23),(N21+N22)*$B$24,(N21+N22)*$C$24) -> 0 | O24: =IF(AND(M$17>=$B$23, M$17<$C$23),(O22)*$B$24,(O22)*$C$24) -> 0 | Q24: =IF(AND(P$17>=$B$23, P$17<$C$23),(Q21+Q22)*$B$24,(Q21+Q22)*$C$24) -> 0 | R24: =IF(AND(P$17>=$B$23, P$17<$C$23),(R22)*$B$24,(R22)*$C$24) -> 0 | T24: =IF(AND(S$17>=$B$23, S$17<$C$23),(T21+T22)*$B$24,(T21+T22)*$C$24) -> 0 | U24: =IF(AND(S$17>=$B$23, S$17<$C$23),(U22)*$B$24,(U22)*$C$24) -> 0 | W24: =IF(AND(V$17>=$B$23, V$17<$C$23),(W21+W22)*$B$24,(W21+W22)*$C$24) -> 0 | X24: =IF(AND(V$17>=$B$23, V$17<$C$23),(X22)*$B$24,(X22)*$C$24) -> 0 | Z24: =IF(AND(Y$17>=$B$23, Y$17<$C$23),(Z21+Z22)*$B$24,(Z21+Z22)*$C$24) -> 0 | AA24: =IF(AND(Y$17>=$B$23, Y$17<$C$23),(AA22)*$B$24,(AA22)*$C$24) -> 0 | AC24: =IF(AND(AB$17>=$B$23, AB$17<$C$23),(AC21+AC22)*$B$24,(AC21+AC22)*$C$24) -> 0 | AD24: =IF(AND(AB$17>=$B$23, AB$17<$C$23),(AD22)*$B$24,(AD22)*$C$24) -> 0 | AF24: =IF(AND(AE$17>=$B$23, AE$17<$C$23),(AF21+AF22)*$B$24,(AF21+AF22)*$C$24) -> 0 | AG24: =IF(AND(AE$17>=$B$23, AE$17<$C$23),(AG22)*$B$24,(AG22)*$C$24) -> 0 | AI24: =IF(AND(AH$17>=$B$23, AH$17<$C$23),(AI21+AI22)*$B$24,(AI21+AI22)*$C$24) -> 0 | AJ24: =IF(AND(AH$17>=$B$23, AH$17<$C$23),(AJ22)*$B$24,(AJ22)*$C$24) -> 0
A25: Rate Base | E25: =SUM(E20+E24) -> 0 | F25: =SUM(F20+F24) -> 0 | H25: =SUM(H20+H24) -> 0 | I25: =SUM(I20+I24) -> 0 | K25: =SUM(K20+K24) -> 0 | L25: =SUM(L20+L24) -> 0 | N25: =SUM(N20+N24) -> 0 | O25: =SUM(O20+O24) -> 0 | Q25: =SUM(Q20+Q24) -> 0 | R25: =SUM(R20+R24) -> 0 | T25: =SUM(T20+T24) -> 0 | U25: =SUM(U20+U24) -> 0 | W25: =SUM(W20+W24) -> 0 | X25: =SUM(X20+X24) -> 0 | Z25: =SUM(Z20+Z24) -> 0 | AA25: =SUM(AA20+AA24) -> 0 | AC25: =SUM(AC20+AC24) -> 0 | AD25: =SUM(AD20+AD24) -> 0 | AF25: =SUM(AF20+AF24) -> 0 | AG25: =SUM(AG20+AG24) -> 0 | AI25: =SUM(AI20+AI24) -> 0 | AJ25: =SUM(AJ20+AJ24) -> 0
B27: =B23 -> 2013 | C27: =C23 -> 2023
A28: Deemed ST Debt | B28: 0.04 | C28: 0.04 | E28: =E25*$B$28 -> 0 | F28: =F25*$B$28 -> 0 | H28: =H25*$B$28 -> 0 | I28: =I25*$B$28 -> 0 | K28: =K25*$B$28 -> 0 | L28: =L25*$B$28 -> 0 | N28: =N25*$B$28 -> 0 | O28: =O25*$B$28 -> 0 | Q28: =Q25*$B$28 -> 0 | R28: =R25*$B$28 -> 0 | T28: =T25*$C$28 -> 0 | U28: =U25*$C$28 -> 0 | W28: =W25*$C$28 -> 0 | X28: =X25*$C$28 -> 0 | Z28: =Z25*$C$28 -> 0 | AA28: =AA25*$C$28 -> 0 | AC28: =AC25*$C$28 -> 0 | AD28: =AD25*$C$28 -> 0 | AF28: =AF25*$C$28 -> 0 | AG28: =AG25*$C$28 -> 0 | AI28: =AI25*$C$28 -> 0 | AJ28: =AJ25*$C$28 -> 0
A29: Deemed LT Debt | B29: 0.56 | C29: 0.56 | E29: =E25*$B$29 -> 0 | F29: =F25*$B$29 -> 0 | H29: =H25*$B$29 -> 0 | I29: =I25*$B$29 -> 0 | K29: =K25*$B$29 -> 0 | L29: =L25*$B$29 -> 0 | N29: =N25*$B$29 -> 0 | O29: =O25*$B$29 -> 0 | Q29: =Q25*$B$29 -> 0 | R29: =R25*$B$29 -> 0 | T29: =T25*$C$29 -> 0 | U29: =U25*$C$29 -> 0 | W29: =W25*$C$29 -> 0 | X29: =X25*$C$29 -> 0 | Z29: =Z25*$C$29 -> 0 | AA29: =AA25*$C$29 -> 0 | AC29: =AC25*$C$29 -> 0 | AD29: =AD25*$C$29 -> 0 | AF29: =AF25*$C$29 -> 0 | AG29: =AG25*$C$29 -> 0 | AI29: =AI25*$C$29 -> 0 | AJ29: =AJ25*$C$29 -> 0
A30: Deemed Equity | B30: 0.4 | C30: 0.4 | E30: =E25*$B$30 -> 0 | F30: =F25*$B$30 -> 0 | H30: =H25*$B$30 -> 0 | I30: =I25*$B$30 -> 0 | K30: =K25*$B$30 -> 0 | L30: =L25*$B$30 -> 0 | N30: =N25*$B$30 -> 0 | O30: =O25*$B$30 -> 0 | Q30: =Q25*$B$30 -> 0 | R30: =R25*$B$30 -> 0 | T30: =T25*$C$30 -> 0 | U30: =U25*$C$30 -> 0 | W30: =W25*$C$30 -> 0 | X30: =X25*$C$30 -> 0 | Z30: =Z25*$C$30 -> 0 | AA30: =AA25*$C$30 -> 0 | AC30: =AC25*$C$30 -> 0 | AD30: =AD25*$C$30 -> 0 | AF30: =AF25*$C$30 -> 0 | AG30: =AG25*$C$30 -> 0 | AI30: =AI25*$C$30 -> 0 | AJ30: =AJ25*$C$30 -> 0
A32: ST Interest (enter rate) | E32: =E28*$B32 -> 0 | F32: 0 | H32: 0 | I32: 0 | K32: 0 | L32: 0 | N32: 0 | O32: 0 | Q32: 0 | R32: 0 | T32: =T28*$C32 -> 0 | U32: 0 | W32: =W28*$C32 -> 0 | X32: 0 | Z32: =Z28*$C32 -> 0 | AA32: 0 | AC32: =AC28*$C32 -> 0 | AD32: 0 | AF32: =AF28*$C32 -> 0 | AG32: 0 | AI32: =AI28*$C32 -> 0 | AJ32: 0
A33: LT Interest (enter rate) | E33: 0 | F33: 0 | H33: 0 | I33: 0 | K33: 0 | L33: 0 | N33: 0 | O33: 0 | Q33: 0 | R33: 0 | T33: 0 | U33: 0 | W33: 0 | X33: 0 | Z33: 0 | AA33: 0 | AC33: 0 | AD33: 0 | AF33: 0 | AG33: 0 | AI33: =AI29*$C33 -> 0 | AJ33: 0
A34: Return on Equity (enter rate) | E34: 0 | F34: 0 | H34: 0 | I34: 0 | K34: 0 | L34: 0 | N34: 0 | O34: 0 | Q34: 0 | R34: 0 | T34: 0 | U34: 0 | W34: 0 | X34: 0 | Z34: 0 | AA34: 0 | AC34: 0 | AD34: 0 | AF34: 0 | AG34: 0 | AI34: =AI30*$C34 -> 0 | AJ34: 0
A35: Cost of Capital Total | E35: =SUM(E32:E34) -> 0 | F35: =SUM(F32:F34) -> 0 | H35: =SUM(H32:H34) -> 0 | I35: =SUM(I32:I34) -> 0 | K35: =SUM(K32:K34) -> 0 | L35: =SUM(L32:L34) -> 0 | N35: =SUM(N32:N34) -> 0 | O35: =SUM(O32:O34) -> 0 | Q35: =SUM(Q32:Q34) -> 0 | R35: =SUM(R32:R34) -> 0 | T35: =SUM(T32:T34) -> 0 | U35: =SUM(U32:U34) -> 0 | W35: =SUM(W32:W34) -> 0 | X35: =SUM(X32:X34) -> 0 | Z35: =SUM(Z32:Z34) -> 0 | AA35: =SUM(AA32:AA34) -> 0 | AC35: =SUM(AC32:AC34) -> 0 | AD35: =SUM(AD32:AD34) -> 0 | AF35: =SUM(AF32:AF34) -> 0 | AG35: =SUM(AG32:AG34) -> 0 | AI35: =SUM(AI32:AI34) -> 0 | AJ35: =SUM(AJ32:AJ34) -> 0
A37: OM&A | E37: =E21+E22 -> 0 | F37: =F22 -> 0 | H37: =H21+H22 -> 0 | I37: =I22 -> 0 | K37: =K21+K22 -> 0 | L37: =L22 -> 0 | N37: =N21+N22 -> 0 | O37: =O22 -> 0 | Q37: =Q21+Q22 -> 0 | R37: =R22 -> 0 | T37: =T21+T22 -> 0 | U37: =U22 -> 0 | W37: =W21+W22 -> 0 | X37: =X22 -> 0 | Z37: =Z21+Z22 -> 0 | AA37: =AA22 -> 0 | AC37: =AC21+AC22 -> 0 | AD37: =AD22 -> 0 | AF37: =AF21+AF22 -> 0 | AG37: =AG22 -> 0 | AI37: =AI21+AI22 -> 0 | AJ37: =AJ22 -> 0
A38: Amortization | D38: =+E77+E78 -> 0 | E38: =D38*E$19 -> 0 | F38: =D38*F$19 -> 0 | G38: =+F77+F78 -> 0 | H38: =G38*H$19 -> 0 | I38: =G38*I$19 -> 0 | J38: =+G77+G78 -> 0 | K38: =J38*K$19 -> 0 | L38: =J38*L$19 -> 0 | M38: =+H77+H78 -> 0 | N38: =M38*N$19 -> 0 | O38: =M38*O$19 -> 0 | P38: =+I77+I78 -> 0 | Q38: =P38*Q$19 -> 0 | R38: =P38*R$19 -> 0 | S38: =+J77+J78 -> 0 | T38: =S38*T$19 -> 0 | U38: =S38*U$19 -> 0 | V38: =+K77+K78 -> 0 | W38: =V38*W$19 -> 0 | X38: =V38*X$19 -> 0 | Y38: =+L77+L78 -> 0 | Z38: =Y38*Z$19 -> 0 | AA38: =Y38*AA$19 -> 0 | AB38: =+M77+M78 -> 0 | AC38: =AB38*AC$19 -> 0 | AD38: =AB38*AD$19 -> 0 | AE38: =+N77+N78 -> 0 | AF38: =AE38*AF$19 -> 0 | AG38: =AE38*AG$19 -> 0 | AH38: =+O77+O78 -> 0 | AI38: =AH38*AI$19 -> 0 | AJ38: =AH38*AJ$19 -> 0
A39: Grossed-up PILs | E39: =+E66 -> 0 | F39: =+F66 -> 0 | H39: =+H66 -> 0 | I39: =+I66 -> 0 | K39: =+K66 -> 0 | L39: =+L66 -> 0 | N39: =+N66 -> 0 | O39: =+O66 -> 0 | Q39: =+Q66 -> 0 | R39: =+R66 -> 0 | T39: =+T66 -> 0 | U39: =+U66 -> 0 | W39: =+W66 -> 0 | X39: =+X66 -> 0 | Z39: =+Z66 -> 0 | AA39: =+AA66 -> 0 | AC39: =+AC66 -> 0 | AD39: =+AD66 -> 0 | AF39: =+AF66 -> 0 | AG39: =+AG66 -> 0 | AI39: =+AI66 -> 0 | AJ39: =+AJ66 -> 0
A41: Revenue Requirement | E41: =SUM(E35:E39) -> 0 | F41: =SUM(F35:F39) -> 0 | H41: =SUM(H35:H39) -> 0 | I41: 0 | K41: =SUM(K35:K39) -> 0 | L41: 0 | N41: =SUM(N35:N39) -> 0 | O41: 0 | Q41: =SUM(Q35:Q39) -> 0 | R41: 0 | T41: =SUM(T35:T39) -> 0 | U41: 0 | W41: =SUM(W35:W39) -> 0 | X41: 0 | Z41: =SUM(Z35:Z39) -> 0 | AA41: 0 | AC41: =SUM(AC35:AC39) -> 0 | AD41: 0 | AF41: =SUM(AF35:AF39) -> 0 | AG41: 0 | AI41: =SUM(AI35:AI39) -> 0 | AJ41: 0
A44: Provincial Rate Protection | F44: =F41 -> 0 | I44: =I41 -> 0 | L44: =L41 -> 0 | O44: =O41 -> 0 | R44: =R41 -> 0 | U44: =U41 -> 0 | X44: =X41 -> 0 | AA44: =AA41 -> 0 | AD44: =AD41 -> 0 | AG44: =AG41 -> 0 | AJ44: =AJ41 -> 0
A46: Monthly Amount Paid by IESO | F46: =F44/12 -> 0 | I46: =I44/12 -> 0 | L46: =L44/12 -> 0 | O46: =O44/12 -> 0 | R46: =R44/12 -> 0 | U46: =U44/12 -> 0 | X46: =X44/12 -> 0 | AA46: =AA44/12 -> 0 | AD46: =AD44/12 -> 0 | AG46: =AG44/12 -> 0 | AJ46: =AJ44/12 -> 0
A48: Note 1: The distributor should follow the regulatory accounting set out in the Accounting Procedure Handbook Guidance FAQs issued in March 2015. Q10 of the APH FAQs states that: “For approved eligible investments as defined under O.Reg. 330/09 under the OEB Act, a variance account will continue to be used for the purpose of recording variances between the revenue requirement based on actual costs of approved eligible investments and the revenue received from the IESO.” The answer for Q10 provides the accounting guidance for this variance account: “Distributors that have included eligible investments to connect qualifying facilities in their DS plans are to establish the variance Account 1533 Renewable Generation Connection Funding Adder Deferral Account, Sub-account Provincial Rate Protection Payment Variances following OEB approval for investments forecast to enter service beyond the test year for purposes of implementing rate protection pursuant to O.Reg. 330/09. The purpose of this variance account is to track the variance between the distributor’s revenue requirement associated with the portion of the actual capital and/or operating costs that are eligible for rate protection, as incurred by the distributor for eligible renewable enabling and expansion investments, and the rate protection payments collected from the IESO.” The answer further provides the journal entries to record the variances. Distributors should follow the instructions in the answer for recording the journal entries in the variance account 1533.
A50: Note 2: For the Test Year, Costs and Revenues of the Direct Benefit are to be included in the test year applicant Rate Base and Revenues.
A52: PILs Calculation | T52: Test Year
E53: =G17-1 -> 2018 | H53: =G17 -> 2019 | K53: =J17 -> 2020 | N53: =M17 -> 2021 | Q53: =P17 -> 2022 | T53: =S17 -> 2023 | W53: =V17 -> 2024 | Z53: =Y17 -> 2025 | AC53: =AB17 -> 2026 | AF53: =AE17 -> 2027 | AI53: =AH17 -> 2028
A54: Income Tax | E54: Direct Benefit | F54: Provincial | H54: Direct Benefit | I54: Provincial | K54: Direct Benefit | L54: Provincial | N54: Direct Benefit | O54: Provincial | Q54: Direct Benefit | R54: Provincial | T54: Direct Benefit | U54: Provincial | W54: Direct Benefit | X54: Provincial | Z54: Direct Benefit | AA54: Provincial | AC54: Direct Benefit | AD54: Provincial | AF54: Direct Benefit | AG54: Provincial | AI54: Direct Benefit | AJ54: Provincial
AB55: Total | AE55: Total | AH55: Total
A56: Net Income - ROE on Rate Base | E56: =E34 -> 0 | F56: =F34 -> 0 | H56: =H34 -> 0 | I56: =I34 -> 0 | K56: =K34 -> 0 | L56: =L34 -> 0 | N56: =N34 -> 0 | O56: =O34 -> 0 | Q56: =Q34 -> 0 | R56: =R34 -> 0 | T56: =T34 -> 0 | U56: =U34 -> 0 | W56: =W34 -> 0 | X56: =X34 -> 0 | Z56: =Z34 -> 0 | AA56: =AA34 -> 0 | AC56: =AC34 -> 0 | AD56: =AD34 -> 0 | AF56: =AF34 -> 0 | AG56: =AG34 -> 0 | AI56: =AI34 -> 0 | AJ56: =AJ34 -> 0
A57: Amortization (6% DB and 94% P) | E57: =E38 -> 0 | F57: =F38 -> 0 | H57: =H38 -> 0 | I57: =I38 -> 0 | K57: =K38 -> 0 | L57: =L38 -> 0 | N57: =N38 -> 0 | O57: =O38 -> 0 | Q57: =Q38 -> 0 | R57: =R38 -> 0 | T57: =T38 -> 0 | U57: =U38 -> 0 | W57: =W38 -> 0 | X57: =X38 -> 0 | Z57: =Z38 -> 0 | AA57: =AA38 -> 0 | AC57: =AC38 -> 0 | AD57: =AD38 -> 0 | AF57: =AF38 -> 0 | AG57: =AG38 -> 0 | AI57: =AI38 -> 0 | AJ57: =AJ38 -> 0
A58: CCA (6% DB and 94% P) | E58: =-E95*$E$19 -> 0 | F58: =-E95*$F$19 -> 0 | H58: =-F95*$E$19 -> 0 | I58: =-F95*$F$19 -> 0 | K58: =-G95*$E$19 -> 0 | L58: =-G95*$F$19 -> 0 | N58: =-H95*$E$19 -> 0 | O58: =-H95*$F$19 -> 0 | Q58: =-I95*$E$19 -> 0 | R58: =-I95*$F$19 -> 0 | T58: =-J95*$E$19 -> 0 | U58: =-J95*$F$19 -> 0 | W58: =-K95*$E$19 -> 0 | X58: =-K95*$F$19 -> 0 | Z58: =-L95*$E$19 -> 0 | AA58: =-L95*$F$19 -> 0 | AC58: =-M95*$E$19 -> 0 | AD58: =-M95*$F$19 -> 0 | AF58: =-N95*$E$19 -> 0 | AG58: =-N95*$F$19 -> 0 | AI58: =-Q95*$E$19 -> 0 | AJ58: =-Q95*$F$19 -> 0
A59: Taxable income | E59: =SUM(E56:E58) -> 0 | F59: =SUM(F56:F58) -> 0 | H59: =SUM(H56:H58) -> 0 | I59: 0 | K59: =SUM(K56:K58) -> 0 | L59: 0 | N59: =SUM(N56:N58) -> 0 | O59: 0 | Q59: =SUM(Q56:Q58) -> 0 | R59: 0 | T59: =SUM(T56:T58) -> 0 | U59: 0 | W59: =SUM(W56:W58) -> 0 | X59: 0 | Z59: =SUM(Z56:Z58) -> 0 | AA59: =SUM(AA56:AA58) -> 0 | AC59: =SUM(AC56:AC58) -> 0 | AD59: =SUM(AD56:AD58) -> 0 | AF59: =SUM(AF56:AF58) -> 0 | AG59: =SUM(AG56:AG58) -> 0 | AI59: =SUM(AI56:AI58) -> 0 | AJ59: =SUM(AJ56:AJ58) -> 0
B60: =B27 -> 2013 | C60: =C27 -> 2023
A61: Tax Rate (to be entered) | E61: =IF(AND(E$53>=$B$60, E$53<$C$60),$B$61,$C$61) -> 0 | F61: =IF(AND(E$53>=$B$60, E$53<$C$60),$B$61,$C$61) -> 0 | H61: =IF(AND(H$53>=$B$60, H$53<$C$60),$B$61,$C$61) -> 0 | I61: =IF(AND(H$53>=$B$60, H$53<$C$60),$B$61,$C$61) -> 0 | K61: =IF(AND(K$53>=$B$60, K$53<$C$60),$B$61,$C$61) -> 0 | L61: =IF(AND(K$53>=$B$60, K$53<$C$60),$B$61,$C$61) -> 0 | N61: =IF(AND(N$53>=$B$60, N$53<$C$60),$B$61,$C$61) -> 0 | O61: =IF(AND(N$53>=$B$60, N$53<$C$60),$B$61,$C$61) -> 0 | Q61: =IF(AND(Q$53>=$B$60, Q$53<$C$60),$B$61,$C$61) -> 0 | R61: =IF(AND(Q$53>=$B$60, Q$53<$C$60),$B$61,$C$61) -> 0 | T61: =IF(AND(T$53>=$B$60, T$53<$C$60),$B$61,$C$61) -> 0 | U61: =IF(AND(T$53>=$B$60, T$53<$C$60),$B$61,$C$61) -> 0 | W61: =IF(AND(W$53>=$B$60, W$53<$C$60),$B$61,$C$61) -> 0 | X61: =IF(AND(W$53>=$B$60, W$53<$C$60),$B$61,$C$61) -> 0 | Z61: =IF(AND(Z$53>=$B$60, Z$53<$C$60),$B$61,$C$61) -> 0 | AA61: =IF(AND(Z$53>=$B$60, Z$53<$C$60),$B$61,$C$61) -> 0 | AC61: =IF(AND(AC$53>=$B$60, AC$53<$C$60),$B$61,$C$61) -> 0 | AD61: =IF(AND(AC$53>=$B$60, AC$53<$C$60),$B$61,$C$61) -> 0 | AF61: =IF(AND(AF$53>=$B$60, AF$53<$C$60),$B$61,$C$61) -> 0 | AG61: =IF(AND(AF$53>=$B$60, AF$53<$C$60),$B$61,$C$61) -> 0 | AI61: =IF(AND(AI$53>=$B$60, AI$53<$C$60),$B$61,$C$61) -> 0 | AJ61: =IF(AND(AI$53>=$B$60, AI$53<$C$60),$B$61,$C$61) -> 0
A63: Income Taxes Payable | E63: =E59*E61 -> 0 | F63: =F59*F61 -> 0 | H63: =H59*H61 -> 0 | I63: =I59*I61 -> 0 | K63: =K59*K61 -> 0 | L63: =L59*L61 -> 0 | N63: =N59*N61 -> 0 | O63: =O59*O61 -> 0 | Q63: =Q59*Q61 -> 0 | R63: =R59*R61 -> 0 | T63: =T59*T61 -> 0 | U63: =U59*U61 -> 0 | W63: =W59*W61 -> 0 | X63: =X59*X61 -> 0 | Z63: =Z59*Z61 -> 0 | AA63: =AA59*AA61 -> 0 | AC63: =AC59*AC61 -> 0 | AD63: =AD59*AD61 -> 0 | AF63: =AF59*AF61 -> 0 | AG63: =AG59*AG61 -> 0 | AI63: =AI59*AI61 -> 0 | AJ63: =AJ59*AJ61 -> 0
A64: Gross Up
A65: Income Taxes Payable | E65: =E63/(1-E61) -> 0 | F65: =F63/(1-F61) -> 0 | H65: =H63/(1-H61) -> 0 | I65: =I63/(1-I61) -> 0 | K65: =K63/(1-K61) -> 0 | L65: =L63/(1-L61) -> 0 | N65: =N63/(1-N61) -> 0 | O65: =O63/(1-O61) -> 0 | Q65: =Q63/(1-Q61) -> 0 | R65: =R63/(1-R61) -> 0 | T65: =T63/(1-T61) -> 0 | U65: =U63/(1-U61) -> 0 | W65: =W63/(1-W61) -> 0 | X65: =X63/(1-X61) -> 0 | Z65: =Z63/(1-Z61) -> 0 | AA65: =AA63/(1-AA61) -> 0 | AC65: =AC63/(1-AC61) -> 0 | AD65: =AD63/(1-AD61) -> 0 | AF65: =AF63/(1-AF61) -> 0 | AG65: =AG63/(1-AG61) -> 0 | AI65: =AI63/(1-AI61) -> 0 | AJ65: =AJ63/(1-AJ61) -> 0
A66: Grossed Up PILs | E66: =+E65 -> 0 | F66: =+F65 -> 0 | H66: =+H65 -> 0 | I66: =+I65 -> 0 | K66: =+K65 -> 0 | L66: 0 | N66: =+N65 -> 0 | O66: 0 | Q66: =+Q65 -> 0 | R66: 0 | T66: =+T65 -> 0 | U66: 0 | W66: =+W65 -> 0 | X66: 0 | Z66: =+Z65 -> 0 | AA66: 0 | AC66: =+AC65 -> 0 | AD66: 0 | AF66: =+AF65 -> 0 | AG66: 0 | AI66: =+AI65 -> 0 | AJ66: 0
J68: Test Year
E69: =F69-1 -> 2018 | F69: =G69-1 -> 2019 | G69: =H69-1 -> 2020 | H69: =I69-1 -> 2021 | I69: =J69-1 -> 2022 | J69: ='LDC Info'!E24 -> 2023 | K69: =J69+1 -> 2024 | L69: =K69+1 -> 2025 | M69: =L69+1 -> 2026 | N69: =M69+1 -> 2027 | O69: =N69+1 -> 2028
A70: Net Fixed Assets
A71: Enter applicable amortization in years: | B71: 40
A72: Opening Gross Fixed Assets | F72: =E74 -> 0 | G72: 0 | H72: 0 | I72: 0 | J72: 0 | K72: 0 | L72: 0 | M72: 0 | N72: 0 | O72: 0
A73: Capital Additions | E73: ='App.2-FA Proposed REG Invest.'!C99 -> 0 | F73: ='App.2-FA Proposed REG Invest.'!D99 -> 0 | G73: ='App.2-FA Proposed REG Invest.'!E99 -> 0 | H73: ='App.2-FA Proposed REG Invest.'!F99 -> 0 | I73: ='App.2-FA Proposed REG Invest.'!G99 -> 0 | J73: ='App.2-FA Proposed REG Invest.'!H99 -> 0 | K73: ='App.2-FA Proposed REG Invest.'!I99 -> 0 | L73: ='App.2-FA Proposed REG Invest.'!J99 -> 0 | M73: ='App.2-FA Proposed REG Invest.'!K99 -> 0 | N73: ='App.2-FA Proposed REG Invest.'!L99 -> 0 | O73: ='App.2-FA Proposed REG Invest.'!M99 -> 0
A74: Closing Gross Fixed Assets | E74: =SUM(E72:E73) -> 0 | F74: 0 | G74: 0 | H74: 0 | I74: 0 | J74: 0 | K74: 0 | L74: 0 | M74: 0 | N74: 0 | O74: =SUM(O72:O73) -> 0
A76: Opening Accumulated Amortization | E76: 0 | F76: =+E79 -> 0 | G76: =+F79 -> 0 | H76: 0 | I76: 0 | J76: 0 | K76: 0 | L76: 0 | M76: 0 | N76: 0 | O76: 0
A77: Current Year Amortization (before additions) | E77: =IF(ISERROR(E72/$B$71), 0, E72/$B$71) -> 0 | F77: =IF(ISERROR(F72/$B$71), 0, F72/$B$71) -> 0 | G77: 0 | H77: 0 | I77: 0 | J77: 0 | K77: 0 | L77: 0 | M77: 0 | N77: 0 | O77: =IF(ISERROR(O72/$B$71), 0, O72/$B$71) -> 0
A78: Capital Additions Amortization (half year) | E78: =E73/$B$71/2 -> 0 | F78: =F73/$B$71/2 -> 0 | G78: 0 | H78: 0 | I78: 0 | J78: 0 | K78: 0 | L78: 0 | M78: 0 | N78: 0 | O78: =O73/$B$71/2 -> 0
A79: Closing Accumulated Amortization | E79: =SUM(E76+E77+E78) -> 0 | F79: 0 | G79: 0 | H79: 0 | I79: 0 | J79: 0 | K79: 0 | L79: 0 | M79: 0 | N79: 0 | O79: =SUM(O76+O77+O78) -> 0
A81: Opening Net Fixed Assets | E81: =E72-E76 -> 0 | F81: 0 | G81: 0 | H81: 0 | I81: 0 | J81: 0 | K81: 0 | L81: 0 | M81: 0 | N81: 0 | O81: =O72-O76 -> 0
A82: Closing Net Fixed Assets | E82: =E74-E79 -> 0 | F82: 0 | G82: 0 | H82: 0 | I82: 0 | J82: 0 | K82: 0 | L82: 0 | M82: 0 | N82: 0 | O82: =O74-O79 -> 0
A83: Average Net Fixed Assets | E83: =SUM(E81:E82)/2 -> 0 | F83: 0 | G83: 0 | H83: 0 | I83: 0 | J83: 0 | K83: 0 | L83: 0 | M83: 0 | N83: 0 | O83: =SUM(O81:O82)/2 -> 0
A85: UCC for PILs Calculation | J85: =J68 -> Test Year
E86: =E69 -> 2018 | F86: =F69 -> 2019 | G86: =G69 -> 2020 | H86: 2021 | I86: 2022 | J86: 2023 | K86: 2024 | L86: 2025 | M86: 2026 | N86: 2027 | O86: =O69 -> 2028
A88: Opening UCC | E88: =E72 -> 0 | F88: =E96 -> 0 | G88: 0 | H88: 0 | I88: 0 | J88: 0 | K88: 0 | L88: 0 | M88: 0 | N88: 0 | O88: 0
A89: Capital Additions | E89: =E73 -> 0 | F89: 0 | G89: 0 | H89: 0 | I89: 0 | J89: 0 | K89: 0 | L89: 0 | M89: 0 | N89: 0 | O89: =O73 -> 0
A90: UCC Before Half Year Rule | E90: =SUM(E88:E89) -> 0 | F90: 0 | G90: 0 | H90: 0 | I90: 0 | J90: 0 | K90: 0 | L90: 0 | M90: 0 | N90: 0 | O90: =SUM(O88:O89) -> 0
A91: Capital Additions (half year) | E91: =E89/2 -> 0 | F91: 0 | G91: 0 | H91: 0 | I91: 0 | J91: 0 | K91: 0 | L91: 0 | M91: 0 | N91: 0 | O91: =O89/2 -> 0
A92: Reduced UCC | E92: =E90-E91 -> 0 | F92: 0 | G92: 0 | H92: 0 | I92: 0 | J92: 0 | K92: 0 | L92: 0 | M92: 0 | N92: 0 | O92: =O90-O91 -> 0
A93: CCA Rate Class (to be entered)
A94: CCA Rate (to be entered)
A95: CCA | E95: =E92*$B$94 -> 0 | F95: =F92*$B$94 -> 0 | G95: 0 | H95: 0 | I95: 0 | J95: 0 | K95: 0 | L95: 0 | M95: 0 | N95: 0 | O95: =O92*$B$94 -> 0
A96: Closing UCC | E96: =E90-E95 -> 0 | F96: 0 | G96: 0 | H96: 0 | I96: 0 | J96: 0 | K96: 0 | L96: 0 | M96: 0 | N96: 0 | O96: =O90-O95 -> 0

Sheet App.2-G SQI
M1: File Number: | O1: =EBNUMBER -> EB-2022-0016
M2: Exhibit:
M3: Tab:
M4: Schedule:
M5: Page:
M7: Date: | O7: 2022-10-24
A9: Appendix 2-G
A10: Service Reliability and Quality Indicators
A12: Service Reliability
A14: Index | B14: Excluding Loss of Supply and Major Event Days | G14: Including Major Event Days, Excluding Loss of Supply | L14: Including Loss of Supply, Excluding Major Event Days | Q14: Including Loss of Supply and Major Event Days
B16: =TestYear-6 -> 2017 | C16: =TestYear-5 -> 2018 | D16: =TestYear-4 -> 2019 | E16: =TestYear-3 -> 2020 | F16: =TestYear-2 -> 2021 | G16: =B16 -> 2017 | H16: 2018 | I16: 2019 | J16: 2020 | K16: 2021 | L16: 2017 | M16: 2018 | N16: 2019 | O16: 2020 | P16: 2021 | Q16: =L16 -> 2017 | R16: =M16 -> 2018 | S16: =N16 -> 2019 | T16: =O16 -> 2020 | U16: =P16 -> 2021
A17: SAIDI | B17: =VLOOKUP('LDC Info'!$E$14,'2017 Adjusted SAIDI and SAIFI'!$A:$Q,6,FALSE) -> 1.30589228 | C17: =VLOOKUP('LDC Info'!$E$14,'2018 Adjusted SAIDI and SAIFI'!$A:$Q,6,FALSE) -> 1.596943741 | D17: =VLOOKUP('LDC Info'!$E$14,'2019 Adjusted SAIDI and SAIFI'!$A:$Q,6,FALSE) -> 1.877566899 | E17: 1.95 | F17: 1.86 | G17: 1.31 | H17: 2.2 | I17: 1.88 | J17: 2.29 | K17: 2.92 | L17: 1.31 | M17: 2.72 | N17: 3.35 | O17: 2.11 | P17: 1.92 | Q17: 3.13 | R17: 3.69 | S17: 3.35 | T17: 2.45 | U17: 2.97
A18: SAIFI | B18: =VLOOKUP('LDC Info'!$E$14,'2017 Adjusted SAIDI and SAIFI'!$A:$Q,14,FALSE) -> 0.9637554107 | C18: =VLOOKUP('LDC Info'!$E$14,'2018 Adjusted SAIDI and SAIFI'!$A:$Q,14,FALSE) -> 1.673766699 | D18: =VLOOKUP('LDC Info'!$E$14,'2019 Adjusted SAIDI and SAIFI'!$A:$Q,14,FALSE) -> 1.869897423 | E18: 2.02 | F18: 1.59 | G18: 0.96 | H18: 1.98 | I18: 1.87 | J18: 2.22 | K18: 1.98 | L18: 0.96 | M18: 3.32 | N18: 2.93 | O18: 2.15 | P18: 1.79 | Q18: 2.2 | R18: 3.75 | S18: 2.93 | T18: 2.34 | U18: 2.17
A20: 5 Year Historical Average
A21: SAIDI | F21: =IF(ISERROR(AVERAGE(B17:F17)), "", AVERAGE(B17:F17)) -> 1.718080584 | K21: =IF(ISERROR(AVERAGE(G17:K17)), "", AVERAGE(G17:K17)) -> 2.12 | P21: =IF(ISERROR(AVERAGE(L17:P17)), "", AVERAGE(L17:P17)) -> 2.282 | U21: =IF(ISERROR(AVERAGE(Q17:U17)), "", AVERAGE(Q17:U17)) -> 3.118
A22: SAIFI | F22: =IF(ISERROR(AVERAGE(B18:F18)), "", AVERAGE(B18:F18)) -> 1.623483907 | K22: =IF(ISERROR(AVERAGE(G18:K18)), "", AVERAGE(G18:K18)) -> 1.802 | P22: =IF(ISERROR(AVERAGE(L18:P18)), "", AVERAGE(L18:P18)) -> 2.23 | U22: =IF(ISERROR(AVERAGE(Q18:U18)), "", AVERAGE(Q18:U18)) -> 2.678
A24: SAIDI = System Average Interruption Duration Index
A25: SAIFI = System Average Interruption Frequency Index
A27: Service Quality
A29: Indicator | E29: OEB Minimum Standard | G29: =B16 -> 2017 | H29: =C16 -> 2018 | I29: =D16 -> 2019 | J29: =E16 -> 2020 | K29: =F16 -> 2021
A30: Low Voltage Connections | E30: 0.9 | G30: 0.9927 | H30: 0.9689 | I30: 0.9977 | J30: 1 | K30: 0.9392
A31: High Voltage Connections | E31: 0.9 | G31: =IFERROR(VLOOKUP('LDC Info'!$E$14,'2.1.4_ServiceQuality'!$A:$FY,7,FALSE),"") -> N/A | H31: =IFERROR(VLOOKUP('LDC Info'!$E$14,'2.1.4_ServiceQuality'!$A:$FY,43,FALSE),"") -> N/A | I31: =IFERROR(VLOOKUP('LDC Info'!$E$14,'2.1.4_ServiceQuality'!$A:$FY,79,FALSE),"") -> N/A | J31: =IFERROR(VLOOKUP('LDC Info'!$E$14,'2.1.4_ServiceQuality'!$A:$FY,115,FALSE),"") -> N/A | K31: =IFERROR(VLOOKUP('LDC Info'!$E$14,'2.1.4_ServiceQuality'!$A:$FY,151,FALSE),"") -> N/A
A32: Telephone Accessibility | E32: 0.65 | G32: 0.7801 | H32: 0.8231 | I32: 0.874 | J32: 0.8267 | K32: 0.8626
A33: Appointments Met | E33: 0.9 | G33: 0.9982 | H33: 0.9972 | I33: 1 | J33: 1 | K33: 0.9941
A34: Written Response to Enquires | E34: 0.8 | G34: 0.9999 | H34: 0.9982 | I34: 0.9959 | J34: 0.9984 | K34: 0.9991
A35: Emergency Urban Response | E35: 0.8 | G35: =IFERROR(VLOOKUP('LDC Info'!$E$14,'2.1.4_ServiceQuality'!$A:$FY,28,FALSE),"") -> 1 | H35: =IFERROR(VLOOKUP('LDC Info'!$E$14,'2.1.4_ServiceQuality'!$A:$FY,64,FALSE),"") -> 1 | I35: =IFERROR(VLOOKUP('LDC Info'!$E$14,'2.1.4_ServiceQuality'!$A:$FY,100,FALSE),"") -> 1 | J35: =IFERROR(VLOOKUP('LDC Info'!$E$14,'2.1.4_ServiceQuality'!$A:$FY,136,FALSE),"") -> 1 | K35: =IFERROR(VLOOKUP('LDC Info'!$E$14,'2.1.4_ServiceQuality'!$A:$FY,172,FALSE),"") -> 1
A36: Emergency Rural Response | E36: 0.8 | G36: =IFERROR(VLOOKUP('LDC Info'!$E$14,'2.1.4_ServiceQuality'!$A:$FY,31,FALSE),"") -> 1 | H36: N/A | I36: =IFERROR(VLOOKUP('LDC Info'!$E$14,'2.1.4_ServiceQuality'!$A:$FY,103,FALSE),"") -> N/A | J36: 1 | K36: =IFERROR(VLOOKUP('LDC Info'!$E$14,'2.1.4_ServiceQuality'!$A:$FY,175,FALSE),"") -> 1
A37: Telephone Call Abandon Rate | E37: 0.1 | G37: 0.0362 | H37: 0.0297 | I37: 0.0285 | J37: 0.0265 | K37: 0.0364
A38: Appointment Scheduling | E38: 0.9 | G38: 0.9997 | H38: 0.9989 | I38: 0.992 | J38: 0.9883 | K38: 0.9545
A39: Rescheduling a Missed Appointment | E39: 1 | G39: =IFERROR(VLOOKUP('LDC Info'!$E$14,'2.1.4_ServiceQuality'!$A:$FY,16,FALSE),"") -> 1 | H39: =IFERROR(VLOOKUP('LDC Info'!$E$14,'2.1.4_ServiceQuality'!$A:$FY,52,FALSE),"") -> 1 | I39: =IFERROR(VLOOKUP('LDC Info'!$E$14,'2.1.4_ServiceQuality'!$A:$FY,88,FALSE),"") -> 1 | J39: =IFERROR(VLOOKUP('LDC Info'!$E$14,'2.1.4_ServiceQuality'!$A:$FY,124,FALSE),"") -> 1 | K39: =IFERROR(VLOOKUP('LDC Info'!$E$14,'2.1.4_ServiceQuality'!$A:$FY,160,FALSE),"") -> 1
A40: Reconnection Performance Standard | E40: 0.85 | G40: 0.9939 | H40: 1 | I40: =IFERROR(VLOOKUP('LDC Info'!$E$14,'2.1.4_ServiceQuality'!$A:$FY,106,FALSE),"") -> 1 | J40: =IFERROR(VLOOKUP('LDC Info'!$E$14,'2.1.4_ServiceQuality'!$A:$FY,142,FALSE),"") -> 1 | K40: =IFERROR(VLOOKUP('LDC Info'!$E$14,'2.1.4_ServiceQuality'!$A:$FY,178,FALSE),"") -> 1

